Workbook

Sheet Reference (hidden)
D1: =VLOOKUP(ref_co,newcos_list,3,FALSE) -> S2S
A2: General | B2: Reference Company | D2: 3 | J2: INT-ADT-01002 | K2: =IFERROR(VLOOKUP(J2,newcalcs,4,FALSE),0) -> 0 | L2: =IF(ISNA(VLOOKUP(J2,newcalcs,4,FALSE)),0,VLOOKUP(J2,newcalcs,4,FALSE)) -> 0
B3: QC Type | D3: =VLOOKUP(ref_co,newcos_list,5,FALSE) -> 02-S2S | E3: Accounting Changes | J3: INT-ADT-01003 | K3: =IFERROR(VLOOKUP(J3,newcalcs,4,FALSE),0) -> 0 | L3: =IF(ISNA(VLOOKUP(J3,newcalcs,4,FALSE)),0,VLOOKUP(J3,newcalcs,4,FALSE)) -> 0 | W3: beyond2000
B4: MA or Reseller | D4: Reseller | J4: INT-ADT-11003 | K4: =IFERROR(VLOOKUP(J4,newcalcs,4,FALSE),0) -> 0 | L4: =IF(ISNA(VLOOKUP(J4,newcalcs,4,FALSE)),0,VLOOKUP(J4,newcalcs,4,FALSE)) -> 0 | W4: beaches
B5: Reg Reseller QC (Dealer) | D5: =IF(ref_NIMA=TRUE,FALSE,FALSE) -> FALSE | W5: 2b0b
B6: MA QC (Kooky) | D6: =IF(D4="Master Agent with Sub Agent",TRUE,FALSE) -> FALSE | E6: Demo Kit Discount: | F6: 0.9
B7: Wholesale? | D7: =VLOOKUP($D$3,cos_list,22,FALSE) -> FALSE
B8: Partner ID | D8: =VLOOKUP(D$3,cos_list,35,FALSE) -> 0 | E8: Partner In House Sys | F8: =IF(ref_locationid=3,TRUE,FALSE) -> FALSE | J8: INT-ADT-11001 | K8: =IFERROR(VLOOKUP(J8,newcalcs,4,FALSE),0) -> 0 | L8: =IF(ISNA(VLOOKUP(J8,newcalcs,4,FALSE)),0,VLOOKUP(J8,newcalcs,4,FALSE)) -> 0
B9: Last Update | D9: 2014-02-26 | E9: Demo Kit | F9: =IF(ref_locationid=2,TRUE,FALSE) -> FALSE | J9: ADDL-0022 | K9: =IFERROR(VLOOKUP(J9,NewServices,29,FALSE),0) -> 0 | L9: =VLOOKUP(J9,NewServices,29,FALSE) -> 
A10: =VALUE(MID(version,FIND("2.1.0",version,1)+6,2)) -> 34 | B10: Version | D10: 2.1.0.34 2014
A11: noQ4Promo | B11: System Type | D11: =IF(AND(Comparison!H33="StarSIP",LEFT(apple,3)="SIP"),"StarSIP","StarSystem") -> StarSystem | E11: Installation Surveys (Count) Override | G11: Leave Blank if not using
A12: 2.1.0.34 2014 | B12: Install Date | D12: =IF(ref_installentry="",TODAY()+60,ref_installentry) -> 2014-07-19 | E12: Shipping Override | G12: Leave Blank if not using
B13: Quote Date Valid? | D13: =IF(ref_installdate>=TODAY(),TRUE,FALSE) -> TRUE | E13: Additional Support Charge for Provisioning Existing Phones
B14: Contract Years | D14: =MAX(IF(ISNA(VLOOKUP(Comparison!AD33,Tables!A166:B170,2,FALSE)),5,VLOOKUP(Comparison!AD33,Tables!A166:B170,2,FALSE))) -> 5 | E14: (Enter Qty) | F14: 0 | G14: Leave 0 if none
B15: Contract Months | D15: =ref_conyears*12 -> 60 | E15: (Enter Amount) | F15: =F14*100 -> 0 | G15: Leave 0 if none
B16: # of Locations | D16: =IF(ref_locationmulti,IF(ref_numlocs>0,ref_numlocs,IF(ref_ttlphones>0,1,0)),IF(ref_ttlphones>0,1,0)) -> 0 | E16: Number of Locations for SNA Fee Calc | G16: Leave Blank if not using, Enter Total number of Locations
B17: Multi Location | D17: =IF(ref_location="",FALSE,IF(ref_location="Multi-Site Quote",TRUE,FALSE)) -> FALSE | E17: Add Expedited Shipping | G17: Leave Blank if not using, add expedited amount only
B18: Add-on Deal? | D18: =IF(AND(ref_ordertype="Add-on Order",ref_hideaddon=FALSE),TRUE,FALSE) -> FALSE | J18: =IF(ref_salestaxstate,'Customer Details'!F46&" Tax Rate","") -> 
B19: StarRecovery Deal Type | D19: =IF(ref_dealtype="StarRecovery Only",TRUE,FALSE) -> FALSE | E19: Waive Existing Port Prov | G19: Enter True or False
B20: Location Type ID | D20: =IFERROR(VLOOKUP(ref_locordercombo,locationtypelu,3,FALSE),1) -> 1 | E20: Waive Coop Mktg | G20: Enter True or False
B21: LocationTYPE | D21: =VLOOKUP(ref_locordercombo,locationtypelu,4,FALSE) -> 10
B22: SIP | D22: =IF(AND(ref_locationmulti),FALSE,IF(AND(ref_purchase=TRUE,Comparison!H33="StarSIP",ref_systype="StarSIP"),TRUE,FALSE)) -> FALSE | E22: Additional Coop Mktg | F22: 0 | G22: Enter Dollar Amount, or leave as 0
B23: PBX? | D23: =IF(OR(ref_sip=FALSE,ref_systype="PBX"),TRUE,FALSE) -> TRUE | E23: Additional Port Prov | F23: 0 | G23: Enter Dollar Amount, or leave as 0
B24: Blank Quote | D24: =IF(SUM(SUM(D81:D88),SUM(M136:M140))=0,TRUE,FALSE) -> TRUE | E24: Additional Equip Prov | F24: 0 | G24: Enter Dollar Amount, or leave as 0
B25: CR System | D25: =IF(OR(AND(ref_locationmulti,OR('Customer Details'!H27>0,'Monthly Service'!K52>0)),'Monthly Service'!K52>0),TRUE,FALSE) -> FALSE | E25: Additional Maintenance | F25: 0 | G25: Enter Dollar Amount, or leave as 0
B26: Estimated Quote | D26: =IF(OR(AND(ref_pbx,ref_NIMA,ref_locationmulti,OR(E401>0,E403>0))),TRUE,FALSE) -> FALSE | F26: 0 | G26: Enter Dollar Amount, or leave as 0
B27: Master Agent QC Type | D27: =IF(D4="Reseller",3,IF(ref_NIMA,1,2)) -> 3 | E27: Additional Installation Charges | F27: 0 | G27: Enter Dollar Amount, or leave as 0
E28: Extra SW Cost to Partner | F28: 0 | G28: Enter Dollar Amount, or leave as 0
B29: Hide Base System Components | D29: =IF(OR(AND(ref_locationmulti,OR(E401>0,E403>0))),TRUE,FALSE) -> FALSE
B30: Estimated Purchase | D30: =IF(AND(ref_purchase,ref_estquote),TRUE,FALSE) -> FALSE
B31: Multi MHW | D31: =IF(AND(ref_rent,ref_locationmulti,ref_estquote=FALSE),TRUE,FALSE) -> FALSE
B32: Estimated Lease | D32: =IF(AND(ref_leaseoption,ref_estquote),TRUE,FALSE) -> FALSE | E32: User Seat Vol Disc (Seats) Amount: | G32: Enter Dollar Amount, or leave as blank
B33: HW Type | D33: =IF(A37="",IF(ref_rent,3,1)+IF(ref_estquote,0,1),A37) -> 2 | E33: Starwatch Vol Disc OVERRIDE: | F33: TRUE | G33: Set to TRUE if needed, or leave blank
B34: Srv Type | D34: =IF(ref_perseat,1,2) -> 2 | E34: Free Starbox | G34: Enter Free Qty or leave Blank
B35: HW Offset | D35: =VLOOKUP(ref_hwtype,hwtypes,3,FALSE) -> 26 | E35: Free Starlite | G35: Enter Free Qty or leave Blank
B36: Srv Offset | D36: =VLOOKUP(ref_servtype,hwtypes,3,FALSE) -> 26 | L36: Enter Shipping
B37: Paged Quote | D37: TRUE | E37: PEL Rebate | G37: Enter the number of PEL's to rebate | L37: Override (+)
B38: Beta Version | D38: FALSE | L38: =IFERROR(IF(ref_rent,TRUE,FALSE),FALSE) -> FALSE | M38: =IFERROR(IF(ref_rent,TRUE,FALSE),FALSE) -> FALSE | N38: =IFERROR(IF(ref_rent,TRUE,FALSE),FALSE) -> FALSE
A39: =ref_hidehw -> Yes | B39: Show HW Invoice | D39: =IF(ref_hidehw="Yes",FALSE,TRUE) -> FALSE
A40: dealerprofit | B40: PW | D40: =IF(Comparison!I2=p_2,TRUE,FALSE) -> TRUE | E40: Modified Monthly HW Deposit | G40: Enter TOTAL MHW Deposit or leave Blank | L40: =SUM(prodship) -> 0
B41: Check for QC with No Phy Phones: | D41: =IF(ref_ttlphones=D100,TRUE,FALSE) -> TRUE | E41: Modified Service Deposit | G41: Enter TOTAL Service Deposit or leave Blank | L41: ONLY WHEN DEALER WANTS TO LOWER IT
B42: Deal Type | D42: Regular | E42: Modified Purchase HW Deposit | G42: Enter TOTAL Purchase HW Deposit or leave Blank
B43: Line type Conflict | D43: =IF(OR(AND(ref_qtforceserv,J144=0),AND(J145>0,OR(J146>0,J144>0))),TRUE,FALSE) -> FALSE
B44: No PB Lines | D44: =IF(J145>0,TRUE,FALSE) -> FALSE
B45: No NPB Lines | D45: =IF(J144>0,TRUE,FALSE) -> FALSE
B46: Service Type ID: | D46: =IF(SUM(O135:O140)=0,6,MAX(W135:W140)) -> 6
B47: Quote Toggle: | D47: =Comparison!L33&" with "&ref_servselector -> Purchase/Lease with StarLines
B48: Use Sav Comp: | D48: =IFERROR(IF(AND(IF(AND(comp2_hosted="",comp1_premise="",currprovider=""),FALSE,TRUE),D49=TRUE),TRUE,FALSE),FALSE) -> FALSE
B49: Sav Comp Shows Favorable Results? | D49: =IF(AND(OR(SavComp!I59=0,SavComp!G59>SavComp!I59),OR(SavComp!K59=0,SavComp!G59>SavComp!K59),OR(SavComp!M59=0,SavComp!G59>SavComp!M59)),FALSE,TRUE) -> FALSE | E49: =SavComp!G35 -> 0 | F49: =SavComp!I35 -> 0 | G49: =SavComp!K35 -> 0 | H49: =SavComp!M35 -> 0
J51: 1 | K51: 1st
A52: Waivers | B52: Starscope Fee Waive | D52: =ref_ss2ttl*100 -> 0 | J52: 2 | K52: 2nd
B53: Waive SNA bandwidth Test | D53: =VLOOKUP(D$3,cos_list,16,FALSE) -> FALSE | J53: 3 | K53: 3rd
B54: Waive Starwatch | D54: =VLOOKUP(D$3,cos_list,19,FALSE) -> 0 | J54: 4 | K54: 4th
B55: Waive Coop Mktg Fee | D55: =IF(OR(ref_NIMA,ref_locationid<>1,ref_demokit=TRUE,F20=TRUE),TRUE,VLOOKUP(D$3,cos_list,20,FALSE)) -> FALSE | J55: 5 | K55: 5th
B57: Actual Choice: | D57: =IFERROR(VLOOKUP(ref_mainop,Tables!$B$590:$C$592,2,FALSE),2) -> 2
A58: Maint | B58: Maint Option # | D58: =IF(ref_addon,D57,CHOOSE(ref_hwtype,2,2,4,4)) -> 2 | J58: Partner OR | K58: Calc'd | L58: Added | M58: Acct OR
B59: 1 Year Maint | D59: =IFERROR(SUM(prodmaint,SUM(F25)),0) -> 0 | J59: =IF(Reference!L39="","",Reference!L39) ->  | K59: =IF(AND(ref_addon=FALSE,ref_locationid=2),25,SUM(IFERROR(SUM(prodship),0),SUM(F12),SUM(F17))) -> 0 | L59: =F17 -> 0 | M59: =F12 -> 0
B60: Maint Selected : | D60: =CHOOSE(ref_mainopnum,ref_ttlmaintb4disc*ref_conyears,ref_monmaint*ref_conmonths,ref_ttlmaintb4disc*ref_conyears*0.9,ref_monmaint4*ref_conmonths) -> 0 | E60: =CHOOSE(ref_mainopnum,ref_ttlmaintb4disc,ref_monmaint*12,ref_ttlmaintb4disc*0.9,ref_monmaint4*12) -> 0 | K60: =IF(IF(J59="",0,J59)>K59,J59+L59,K59) -> 0 | L60: =IF(M59=0,K59,M59) -> 0
B61: Maint Option 3 | D61: =(ref_maintall1yr*0.9)*ref_conyears -> 0 | K61: =IF(M59=0,K62,M59) ->  | L61: =IF(IF(J59="",0,J59)<L60,L60,J59) -> 
B62: Maint Option 2 | D62: =SUM('Prod Calcs'!CE6:CE42) -> 0 | K62: =IF(J59<K59,K59,J59) -> 
B63: Maint Option 4 | D63: =ref_maint4alacarte -> 0 | K63: To Customer: | L63: =IF(M59=0,IF(J59="",K59,J59)+L59,M59) -> 0 | N63: =ref_shipamt -> 0
B64: Tier % | D64: =VLOOKUP(IF(ISBLANK(ref_partnertier),3,ref_partnertier),partnertierids,3,FALSE) -> 0.05 | K64: To Partner: | L64: =ref_partnernetshipping ->  | N64: =IF(M59=0,IF(OR(ref_rent,J59=""),K59,J59)+L59,M59)+IF('Customer Details'!F50="Canada",100,0) -> 0
B65: Total Partner Tier % for MHW/Est Purch | D65: =SUM(ref_partner2tierpcent,0.05,IF(ref_conyears>2,0.05,IF(AND(ref_NIMA,ref_rent99),0.025))) -> 0.15
B66: Multi Year Bonus Pcent | D66: =IF(ref_NIMA,0,IF(ref_conyears>2,0.05,0)) -> 0.05
K67: Shipping Covered By Partner: | L67: =IF(K59>L63,K59-L63,0) -> 0
B68: Trip Charge Maint: | D68: =Comparison!$U$53*SUM(ref_phonescnt,ref_atacnt) -> 0 | K68: Extra Shipping | L68: =IF(SUM(L64)>K59,SUM(L64)-K59,0) -> 0
B69: MAC Maint: | D69: =Comparison!$Y$53*SUM(ref_phonescnt,ref_atacnt) -> 0
B70: Maint Option 4 - AlaCarte Maint: | D70: =SUM('Prod Calcs'!BZ7:BZ90) -> 0
B71: Ala Carte Maint Only | D71: =ref_maint4alacarte-(SUM(ref_phonescnt,ref_existingcnt,ref_atacnt)*4) -> 0
B73: 1 Year Maint: | D73: =SUM('Prod Calcs'!CC7:CC60) -> 0
B74: Monthly Maint: | D74: =SUM('Prod Calcs'!CE6:CE100) -> 0
B75: All Years with 10% disc | D75: =SUM('Prod Calcs'!CF6:CF61) -> 0
B76: Added Monthly maint: | D76: =ref_extramaint -> 0
B77: All Maint for 1 yr: | D77: =ref_maint1yr+(ref_extramaint*12) -> 0
B78: Partner Maint % | D78: =IF(AND(ref_conyears>2,ref_s2sconfigs=FALSE),0.1,0) -> 0.1
A81: Counts | B81: Physical Phones: | D81: =MAX(SUMIF(Products!$AQ$6:$AQ$175,1,Products!$BQ$6:$BQ$175),SUMIF(Products!$AQ$6:$AQ$175,1,Products!$BN$6:$BN$175)) -> 0
B82: Total Soft Phones: | D82: =SUM('Monthly Service'!K29:K30) -> 0
B83: Virtual Phones: | D83: =SUM('Monthly Service'!K32) -> 0
B84: Starphone Count: | D84: =SUM('Monthly Service'!K31) -> 0
B85: Existing Phones Cnt | D85: =IF(ref_addon,0,SUM(Products!BM6:BM175)) -> 0
B86: Total Phones Cnt: | D86: =SUM(ref_existingcnt,ref_virtualcnt,ref_softphcnt,ref_starphcnt,ref_phonescnt) -> 0 | E86: =ref_ttlportsext -> 0
B87: Remote Phones Cnt: | D87: =SUM(ref_starphcnt,SUM(Products!BL6:BL176),'Basic Configuration'!I48) -> 0 | J87: =IF(M87>0,MAX(J$86:J86)+1,"") ->  | K87: ="Pooling/Bursting "&IF(ref_co=1,"Entele","Star")&"Line"&IF(M87>1,"s","") -> Pooling/Bursting StarLine | L87: PBVL-0024 | M87: =VLOOKUP(L87,NewServices,29,FALSE) -> 0 | N87: 600 | O87: =M87*N87 -> 0 | P87: StarLine - Pooling/Bursting Voice 600 LD minutes included
B88: ATA Cnt: | D88: =MAX(SUMIF(Products!$AQ$6:$AQ$175,10,Products!$BQ$6:$BQ$175),SUMIF(Products!$AQ$6:$AQ$175,10,Products!$BN$6:$BN$175)) -> 0 | J88: =IF(M88>0,MAX(J$86:J87)+1,"") ->  | K88: ="Non-Pooling/Non-Bursting "&IF(ref_co=1,"Entele","Star")&"Line"&IF(M88>1,"s","") -> Non-Pooling/Non-Bursting StarLine | L88: NPBV-0023 | M88: =VLOOKUP(L88,NewServices,29,FALSE) -> 0 | N88: 600 | O88: =M88*N88 -> 0 | P88: StarLine - Non-Pooling/Non-Bursting Voice 600 LD minutes included
B89: Ata Port Cnt: | D89: =IF(ref_sip,0,SUMIF(Products!AG6:AG176,"Analog Adaptors",Products!BV6:BV176)) -> 0
B90: Count of PBX: | D90: =MAX(E90,E91) -> 0 | E90: =SUM(IF(Products!$AQ$6:$AQ$175={2,6},Products!$BQ$6:$BQ$175,0)) -> 0 | O90: =SUM(O86:O88) -> 0
B91: Installation Survey: | D91: =IF(OR(AND(ref_locationid=3,ref_s2sinstall=FALSE),ref_addon,ref_blankquote),0,IF(F11="",IF(ref_ttlphones>19,IF(ref_locationcnt="",1,ref_locationcnt),F11))) -> 0 | E91: =SUM(IF(Products!$AQ$6:$AQ$175={2,6},Products!$BS$6:$BS$175,0)) -> 0 | J91: =MAX(J86:J88) -> 0 | K91: 1 | L91: =IF(J91=2,2,"") ->  | N91: LD Mins | P91: =O90 -> 0
B92: LD Buckets: | D92: ='Monthly Service'!K68 -> 0 | J92: Qty | K92: =IF(ISNA(VLOOKUP($K91,$J$86:$O$88,4,FALSE)),0,VLOOKUP($K91,$J$86:$O$88,4,FALSE)) -> 0 | L92: =IF(J91>1,VLOOKUP($L91,$J$86:$O$88,4,FALSE),"") ->  | O92: =K92&" "&K93 -> 0
B93: Adtran Months: | D93: =VLOOKUP("INT-ADT-01003",area_pbx,9,FALSE) -> 0 | J93: Type | K93: =IF(ISNA(VLOOKUP($K91,$J$86:$O$88,2,FALSE)),"",(VLOOKUP($K91,$J$86:$O$88,2,FALSE))) ->  | L93: =IF(J91>1,VLOOKUP($L91,$J$86:$O$88,2,FALSE),"") ->  | O93: =K93&" "&K94 -> s
B94: First contact Base License: | D94: =IF(OR(ref_firstcontact="",ref_firstcontact=0),0,IF(ref_firstcontact>0,1,0)) -> 0 | J94: s or not | K94: =IF(K92<1,"s","") -> s | L94: =IF(L92<1,"s","") ->  | N94: =IF(O94="",""," and ") ->  | O94: =IF(J91>1,L92&" "&L93,"") -> 
B95: First contact Addl Users: | D95: =IF(ref_firstcontactusers=0,0,IF(ref_firstcontact>20,ref_firstcontact-20,0)) -> 0
B96: First contact Set Cnt: | D96: =IF(ref_firstcontactusers>0,1,0) -> 0
B97: e911 Num Count: | D97: =IF(OR(ref_locationid<>1,AND(ref_pbx,ref_ttlphones=0,ref_linecnt=0,ref_seats=0),ref_addon),0,ref_locationcnt) -> 0
B98: Star Center Rec Cnt: | D98: =IF(ref_perseat,0,Infrastructure!J26) -> 0
B99: ACD Lite Cnt: | D99: =IF(ref_perseat,0,Infrastructure!H23) -> 0
B100: Non-Physical Phones: | D100: =SUM(ref_softphcnt,ref_virtualcnt) -> 0
B101: # of User Seats: | D101: =IF('Monthly Service'!I39="",IF(ref_sip,0,ref_seats-'Basic Configuration'!I65),'Monthly Service'!I39) -> 0
B102: # of User Seat Vol Disc (Seats): | D102: =IF(OR(D32=TRUE,ref_userseatqty>=20),ref_userseatqty,0) -> 0
B103: $ Amount of Each User Seat Vol Disc | D103: =IF(F32="",-1,F32) -> -1
B104: # of Seats of Service: | D104: ='Monthly Service'!G13 -> 0
B105: StarPath by Seat: | D105: =ref_seats -> 0
B106: StarPath by Line: | D106: =ref_linecnt -> 0
B107: Starwatch by Ext: | D107: =IF(ref_sip,0,MAX(ref_qqttlports,ref_ttlportsext)) -> 0 | E107: StarWatch by line | F107: =IF(ref_sip,ref_linecnt,0) -> 0
B108: Starwatch Vol Disc: | D108: =IF(OR(D33=TRUE,ref_watchext>=20),ref_watchext,0) -> 0
B109: StarRecovery Qty: | D109: =IF(ref_dealtypeSR=TRUE,'Monthly Service'!#REF!="",0) -> 0
B110: LD Discount Qty >9 <20 | D110: =IF(AND('Monthly Service'!K68>9,'Monthly Service'!K68<20),'Monthly Service'!K68,0) -> 0
B111: LD Discount 20+ | D111: =IF(AND('Monthly Service'!K68>=20),'Monthly Service'!K68,0) -> 0
B112: Toll Free Discount: | D112: =IF(AND('Monthly Service'!K69>9,'Monthly Service'!K69<20),'Monthly Service'!K69,0) -> 0
B113: Toll Free Discount: | D113: =IF(AND('Monthly Service'!K69>=20),'Monthly Service'!K69,0) -> 0
B114: Conf Discount: | D114: =IF(AND('Monthly Service'!K70>9,'Monthly Service'!K70<20),'Monthly Service'!K70,0) -> 0
B115: Conf Discount: | D115: =IF(AND('Monthly Service'!K70>=20),'Monthly Service'!K70,0) -> 0
B116: Included AA | D116: =IF(ref_addon,0,ref_locationcnt*2) -> 0
B117: Included Ring Groups | D117: =IF(ref_addon,0,ref_locationcnt*2) -> 0
B118: Included Call Queues | D118: =IF(ref_addon,0,ref_locationcnt*1) -> 0
B120: Starview Cost | D120: =IF(Infrastructure!F28="",15,Infrastructure!F28) -> 15
B121: Starview Qty | D121: ='Monthly Service'!G60 -> 0
B122: Lite Agents | D122: ='Monthly Service'!G58 -> 0
J123: ref_useORdata | K123: =Tables!C256 -> TRUE
J124: ref_usebcdata | K124: =Tables!C257 -> TRUE
A126: Fees | B126: Allow Per Seat? | D126: =IF(SUM(ref_adccalcnt,ref_adccblcnt,ref_acdlitecnt,ref_sccallreccnt)>0,FALSE,TRUE) -> TRUE | J126: =IF(ref_rent,"$49.95 Upfront on Phones","") -> 
B127: TF Mins Cost: | D127: =VLOOKUP('Monthly Service'!K68,longdistmins,4,TRUE) -> 25 | J127: =IF(ref_rent,"$0 Upfront on Phones","") -> 
B128: LD Mins Cost: | D128: =VLOOKUP('Monthly Service'!G72,longdistmins,3,TRUE) -> 24
B129: Conf Mins Cost: | D129: =VLOOKUP('Monthly Service'!G73,longdistmins,5,TRUE) -> 19
B130: Add on: | D130: =IF(AND(ref_blankquote=FALSE,ref_addon=TRUE),-10,0) -> 0
B131: First Contact Fee: | D131: =VLOOKUP("gen_fee_fcon",generalids,3,FALSE)*IFERROR(ref_firstcontactusers,0) -> 0
B133: Q4 Promos | D133: FALSE | K133: Max
B134: PEL PROMO ON: | D134: =IF(AND(ref_addon=FALSE,'~~~~~ QUOTE ~~~~'!AC12="",ref_q4off=TRUE),TRUE,FALSE) -> FALSE | E134: =ref_phonescnt -> 0 | J134: Seat Disc Solver | K134: =-K140 -> -15 | O134: All Qty | R134: Removing
A135: Ports | B135: Total Ports: | D135: =IF(OR(ref_hwtype=1,ref_demokit),0,IF(ref_pbx=FALSE,0,IFERROR(SUM(ref_softphcnt,ref_virtualcnt,ref_starphcnt,Products!BV7:BV175),0))) -> 0 | E135: =SUM(Products!BV7:BV175) -> 0 | J135: Line Disc Solver | K135: =-MAX(T136:T139) -> 0 | Q135: Disc | R135: Markups | T135: =MIN(Q136:Q139) -> 0 | U135: =MAX(U136:U139) -> 0
B136: BC Ttl Ports | D136: =IFERROR(SUM(ref_softphcnt,ref_virtualcnt,ref_starphcnt,Products!BV7:BV175),0) -> 0 | J136: PBVL-0024 | K136: =VLOOKUP($J136,NewServices,21,FALSE) -> 15 | L136: =VLOOKUP(J136,NewServices,5,FALSE)-MIN(K136,D$318) -> 32.49 | M136: =VLOOKUP(J136,NewServices,29,FALSE) -> 0 | N136: =VLOOKUP(J136,NewServices,5,FALSE) -> 32.49 | O136: =VLOOKUP(J136,NewServices,29,FALSE) -> 0 | P136: =J136 -> PBVL-0024 | Q136: =MIN(K136,D$318) -> 0 | R136: 10 | S136: =Q136*O136 -> 0 | T136: =IF(M136=0,"",K136) ->  | U136: =IF(O136=0,0,K136) -> 0 | V136: 2 | W136: =IF(M136=0,"",V136) -> 
B137: Port Ext Discount: | D137: =IF(F37="",IF(D134=TRUE,ref_ttlportsext,0),F37) -> 0 | J137: PBVL-0025 | K137: =VLOOKUP($J137,NewServices,21,FALSE) -> 5 | L137: =VLOOKUP(J137,NewServices,5,FALSE)-MIN(K137,D$318) -> 14.5 | M137: =VLOOKUP(J137,NewServices,29,FALSE) -> 0 | N137: =VLOOKUP(J137,NewServices,5,FALSE) -> 14.5 | O137: =VLOOKUP(J137,NewServices,29,FALSE) -> 0 | P137: =J137 -> PBVL-0025 | Q137: =MIN(K137,D$318) -> 0 | R137: 1 | S137: =Q137*O137 -> 0 | T137: =IF(M137=0,"",K137) ->  | U137: =IF(O137=0,0,K137) -> 0 | V137: 4 | W137: =IF(M137=0,"",V137) -> 
J138: NPBV-0023 | K138: =VLOOKUP($J138,NewServices,21,FALSE) -> 15 | L138: =VLOOKUP(J138,NewServices,5,FALSE)-MIN(K138,D$318) -> 24.99 | M138: =VLOOKUP(J138,NewServices,29,FALSE) -> 0 | N138: =VLOOKUP(J138,NewServices,5,FALSE) -> 24.99 | O138: =VLOOKUP(J138,NewServices,29,FALSE) -> 0 | P138: =J138 -> NPBV-0023 | Q138: =MIN(K138,D$318) -> 0 | R138: 10 | S138: =Q138*O138 -> 0 | T138: =IF(M138=0,"",K138) ->  | U138: =IF(O138=0,0,K138) -> 0 | V138: 1 | W138: =IF(M138=0,"",V138) -> 
A139: Qtys | B139: Use Quick Quote Qty | D139: =ref_NIMA -> FALSE | J139: NPBV-0024 | K139: =VLOOKUP($J139,NewServices,21,FALSE) -> 6 | L139: =VLOOKUP(J139,NewServices,5,FALSE)-MIN(K139,D$318) -> 8.99 | M139: =VLOOKUP(J139,NewServices,29,FALSE) -> 0 | N139: =VLOOKUP(J139,NewServices,5,FALSE) -> 8.99 | O139: =VLOOKUP(J139,NewServices,29,FALSE) -> 0 | P139: =J139 -> NPBV-0024 | Q139: =MIN(K139,D$318) -> 0 | R139: 1 | S139: =Q139*O139 -> 0 | T139: =IF(M139=0,"",K139) ->  | U139: =IF(O139=0,0,K139) -> 0 | V139: 3 | W139: =IF(M139=0,"",V139) ->  | AI139: Seats | AJ139: Lines
B140: Use Dashboard Qty | D140: =IF(ref_useqqonly,FALSE,TRUE) -> TRUE | J140: NPBV-0022 | K140: =VLOOKUP($J140,NewServices,21,FALSE) -> 15 | L140: =VLOOKUP(J140,NewServices,5,FALSE)-MIN(K140,D$317) -> 24.5 | M140: =VLOOKUP(J140,NewServices,29,FALSE) -> 0 | N140: =VLOOKUP(J140,NewServices,5,FALSE) -> 24.5 | O140: =VLOOKUP(J140,NewServices,29,FALSE) -> 0 | P140: =J140 -> NPBV-0022 | Q140: =MIN(K140,D$317) -> 0 | R140: 10 | S140: =Q140*O140 -> 0 | U140: =IF(O140=0,0,K140) -> 0 | V140: 5 | W140: =IF(M140=0,"",V140) ->  | AH140: Call Center | AI140: =SUMIF(Services!$L$7:$L$67,Reference!$AH140,Services!$AX$7:$AX$67) -> 0 | AJ140: =SUMIF(Services!$L$7:$L$67,Reference!$AH140,Services!$BD$7:$BD$67) -> 0
B141: Use Override Qty Only | D141: FALSE | K141: =D$317 -> 0 | AH141: User Licenses | AI141: =SUMIF(Services!$L$7:$L$67,Reference!$AH141,Services!$AX$7:$AX$67) -> 0 | AJ141: =SUMIF(Services!$L$7:$L$67,Reference!$AH141,Services!$BD$7:$BD$67) -> 0
AH142: Starpath/Starwatch/StarRecovery | AI142: =SUMIF(Services!$L$7:$L$67,Reference!$AH142,Services!$AX$7:$AX$67) -> 0 | AJ142: =SUMIF(Services!$L$7:$L$67,Reference!$AH142,Services!$BD$7:$BD$67) -> 0
A143: Basic Config | D143: remove | J143: =IF(ref_qtforceserv,0,SUM('Monthly Service'!G13)) -> 0 | K143: Per Seat | AH143: Desktop Fax & Recording | AI143: =SUMIF(Services!$L$7:$L$67,Reference!$AH143,Services!$AX$7:$AX$67) -> 0 | AJ143: =SUMIF(Services!$L$7:$L$67,Reference!$AH143,Services!$BD$7:$BD$67) -> 0
B144: Hide Dashboard: | D144: =IF(OR(ref_dealtypeSR=TRUE),TRUE,IF(ref_locationid<>1,TRUE,IF(OR(ref_dealtypeSR,ref_addon=TRUE),TRUE,FALSE))) -> FALSE | J144: =IF(ref_qtforceserv,0,SUM('Monthly Service'!K15:K17)) -> 0 | K144: Total PB | AH144: Seats/Lines | AI144: =SUMIF(Services!$L$7:$L$67,Reference!$AH144,Services!$AX$7:$AX$67) -> 0 | AJ144: =SUMIF(Services!$L$7:$L$67,Reference!$AH144,Services!$BD$7:$BD$67) -> 0
B145: Hide Vendor | D145: =IF(AND('Basic Configuration'!I17="Polycom",'Basic Configuration'!I15="Yes"),TRUE,FALSE) -> TRUE | J145: =IF(ref_qtforceserv,0,SUM('Monthly Service'!K19:K21)) -> 0 | K145: Total NPB | AH145: Minutes | AI145: =SUMIF(Services!$L$7:$L$67,Reference!$AH145,Services!$AX$7:$AX$67) -> 0 | AJ145: =SUMIF(Services!$L$7:$L$67,Reference!$AH145,Services!$BD$7:$BD$67) -> 0
B146: SIP2SIP | D146: =IF(AND(ref_sip=TRUE,apple="Sip to SIP"),TRUE,FALSE) -> FALSE | AH146: Numbers | AI146: =SUMIF(Services!$L$7:$L$67,Reference!$AH146,Services!$AX$7:$AX$67) -> 0 | AJ146: =SUMIF(Services!$L$7:$L$67,Reference!$AH146,Services!$BD$7:$BD$67) -> 0
B147: SIP2POTS | D147: =IF(AND(ref_sip=TRUE,apple="Sip to POTS"),TRUE,FALSE) -> FALSE | AH147: Call Routing | AI147: =SUMIF(Services!$L$7:$L$67,Reference!$AH147,Services!$AX$7:$AX$67) -> 0 | AJ147: =SUMIF(Services!$L$7:$L$67,Reference!$AH147,Services!$BD$7:$BD$67) -> 0
B148: SIp2PRI | D148: =IF(AND(ref_sip=TRUE,apple="Sip to PRI"),TRUE,FALSE) -> FALSE | AH148: Bandwidth | AI148: =SUMIF(Services!$L$7:$L$67,Reference!$AH148,Services!$AX$7:$AX$67) -> 0 | AJ148: =SUMIF(Services!$L$7:$L$67,Reference!$AH148,Services!$BD$7:$BD$67) -> 0
A150: Rebate | B150: Polycom Exchange: | D150: =E150 -> 0 | E150: =SUMIF(Products!$H$6:$H$175,F150,Products!$CE$6:$CE$175)-E151 -> 0 | F150: Polycom | G150: Available? | J150: Monthly HW with StarSeats | K150: =IFERROR(IF(ref_rent99,1,3),1) -> 1 | L150: 3 | M150: MHW | N150: Per Seat | AI150: =SUM(AI140:AI148) -> 0 | AJ150: =SUM(AJ140:AJ148) -> 0
B151: S2S Polycom Rebate: | D151: =E151 -> 0 | E151: =SUMIF(Products!$H$6:$H$175,F151,Products!$DF$6:$DF$175) -> 0 | F151: Polycom | G151: =IF(ref_rent,FALSE,TRUE) -> TRUE | J151: Monthly HW with Starlines | K151: 4 | L151: 7 | M151: MHW | N151: Per Line | AI151: =SUM(Services!$AX$7:$AX$67) -> 0 | AJ151: =SUM(Services!$BD$7:$BD$67) -> 0
A152: Rebate | B152: Yealink Rebate: | D152: =E152 -> 0 | E152: =SUM(IFERROR(IF(Products!$H$6:$H$175=F152,Products!$CE$6:$CE$175,0),0)) -> 0 | F152: Yealink | J152: Purchase/Lease with StarSeats | K152: 9 | L152: 3 | M152: Purchase/Lease | N152: Per Seat | AI152: =AI150-AI151 -> 0 | AJ152: =AJ150-AJ151 -> 0
B153: Cisco Rebate: | D153: =E153 -> 0 | E153: =SUM(IFERROR(IF(Products!$H$6:$H$175=F153,Products!$CE$6:$CE$175,0),0)) -> 0 | F153: Cisco | J153: Purchase/Lease with Starlines | K153: 9 | L153: 7 | M153: Purchase/Lease | N153: Per Line
B154: Total Rebate | D154: =SUM(D150:D153) -> 0
A156: Quote | B156: Hide Pricing: | D156: FALSE
B157: Beta Rider: | D157: =IF(OR(K12<>0,K13<>0,K11<>0,K14<>0),TRUE,FALSE) -> FALSE
B159: Total SW Recsrv Comm: | D159: 0
B160: Payform: | D160: =IF('~~~~~ QUOTE ~~~~'!J12="",0,VLOOKUP('~~~~~ QUOTE ~~~~'!J12,'Payment Form'!$G$45:$H$49,2,FALSE)) -> 2
A162: Subscription
B163: Short Name: | D163: =IF(ISNA(VLOOKUP($D$2,newcos_list,6,FALSE)),"Star",VLOOKUP($D$2,newcos_list,6,FALSE)) -> Star
B164: Mid Name: | D164: =IF(ISNA(VLOOKUP($D$2,newcos_list,7,FALSE)),"Star2Star",VLOOKUP($D$2,newcos_list,7,FALSE)) -> Star
B165: Long Name: | D165: =IF(ISNA(VLOOKUP($D$2,newcos_list,8,FALSE)),"Star",VLOOKUP($D$2,newcos_list,8,FALSE)) -> Star2Star
B166: Academy Name: | D166: =IF(ISNA(VLOOKUP($D$2,newcos_list,9,FALSE)),"Star",VLOOKUP($D$2,newcos_list,9,FALSE)) -> Star
B167: Support # | D167: =IF(ref_co=1,"NEED THIS INFO","Star2Star at 941-234-0001 Option 4 or 866-448-0039 or via email at support@star2star.com.") -> Star2Star at 941-234-0001 Option 4 or 866-448-0039 or via email at support@star2star.com.
B168: Website: | D168: =VLOOKUP(D3,cos_list,26,FALSE) -> http://www.star2star.com/termsanconditions.html
B169: Full Name | D169: =VLOOKUP(D$3,cos_list,27,FALSE) -> Star2Star Communications, LLC
B170: Add1 | D170: =VLOOKUP(D$3,cos_list,28,FALSE) -> 600 Tallevast Road, Suite 202
B171: Add2 | D171: =VLOOKUP(D$3,cos_list,29,FALSE) -> Sarasota, FL 34243
B172: Fax | D172: =VLOOKUP(D$3,cos_list,30,FALSE) -> (941) 981-1453
B173: Long2Name: | D173: =VLOOKUP(D$3,cos_list,31,FALSE) -> Star2Star
B174: Rep Name: | D174: =VLOOKUP(D$3,cos_list,32,FALSE) -> Jenn Dineen
B175: Email: | D175: =VLOOKUP(D$3,cos_list,33,FALSE) -> lease@star2star.com
B176: Phone: | D176: =VLOOKUP(D$3,cos_list,34,FALSE) -> 941-234-0001 x106
B177: 911 website: | D177: =VLOOKUP(D3,cos_list,42,FALSE) -> http://www.star2star.com/911.html
B178: Accounting email: | D178: =IF(ref_co=1,"","securepayment@star2star.com") -> securepayment@star2star.com
B179: Yearth: | D179: =VLOOKUP(ref_conyears,J51:K55,2,FALSE) -> 5th
A182: Totals | B182: Total Hardware: | D182: =INDEX(csa,MATCH(CHOOSE(ref_hwtype,E182,E183,E184,E185),csamainids,0),39) -> 0 | E182: CSA-0638
B183: Partner Discount: | D183: =ABS(Comparison!L46) -> 0 | E183: CSA-0639
B184: MHW Coop Mktg: | D184: =IF(ISERR(SUM('Prod Calcs'!CJ7:CJ41)),0,SUM('Prod Calcs'!CJ7:CJ41))+acct_coopmktg -> 0 | E184: CSA-0638
B185: Not MHW Coop Mktg | D185: =IF(ISERR(SUM('Prod Calcs'!AD6:AD90)),0,SUM('Prod Calcs'!AD6:AD90))+acct_coopmktg -> 0 | E185: CSA-0639
B186: Total Shipping Charges: | D186: =IF(M59=0,IF(J59="",K59,J59)+L59,M59)+IF('Customer Details'!F50="Canada",100,0) -> 0
B187: Total Upfront Services: | D187: =IF(ref_perseat,D331,D343) -> 0
B188: Outright Bought Items: | D188: =SUM('Prod Calcs'!CQ6:CQ62) -> 0
B189: Partner Margin: | D189: =SUM('Prod Calcs'!U7:U41) -> 0
A207: Installation: | B207: Calculated Installation Ttl: | D207: =IF(AND(ref_addon,'Basic Configuration'!I145="Customer Installed"),0,SUM('Prod Calcs'!AA6:AA100)) -> 0
B208: Existing Phone Installation: | D208: =IF(ref_s2sinstall,ref_existingcnt*20,0) -> 0
B209: Installation survey Amt: | D209: =IF(ref_locationid=1,225*D91,0) -> 0
B210: S2S Remote Install: | D210: =IF(AND(ref_pbxcnt=0,OR(ref_linecnt=0,MAX(ref_qqttlports,ref_ttlportsext)=0)),0,SUM(('Prof Serv'!G35))) -> 0 | E210: =IF(OR(ref_NIMA,ref_s2sconfigs=TRUE),SUM(CEILING(SUM('Prof Serv'!$G$62,SUM(ref_userseatqty*20),'Prof Serv'!$G$35)*ref_selrentfactor,0.05),IF(ref_locationcnt>0,ref_locationcnt,0)*CEILING(100*ref_selrentfactor,0.5)),0) -> 0
B211: Installation Ttl: | D211: =IF(AND(ref_locationid=3,ref_s2sinstall=FALSE),0,SUM(IF(ref_rent,0,ref_extracabling),ref_installcalcd,ref_installsurvamt,ref_profservinstall)) -> 0
B213: Site Survey | D213: =CEILING(IF(ref_rent,ref_locationcnt,IF(Reference!$D$91>0,Reference!$D$91,0))*CEILING(225*ref_selrentfactor,0.05)*ref_conmonths/ref_purchasefactor,0.05) -> 0 | E213: =CEILING(MAX(IF(ref_rent,ref_locationcnt,0),IF(Reference!$D$91>0,Reference!$D$91,0))*CEILING(225*ref_selrentfactor,0.05),0.05) -> 0 | F213: =Comparison!$R$192 -> 0
B214: Install Proserv | D214: =CEILING(IF(AND(ref_pbxcnt=0,OR(ref_linecnt=0,MAX(ref_qqttlports,ref_ttlportsext)=0)),0,SUM(SUM(IF(ref_sip,95,0)*IF(ref_locationcnt>0,ref_locationcnt,0)),IF(ref_locationcnt>0,ref_locationcnt,0)*CEILING(150*ref_selrentfactor,0.5)*ref_conmonths/ref_purchasefactor)),0.05) -> 0 | E214: =IF(ref_locationcnt>0,ref_locationcnt,0)*CEILING(150*ref_selrentfactor,0.05) -> 0 | F214: =Comparison!$R$193 -> 0
B215: SNA | D215: =CEILING(IF(ref_locationcnt>0,ref_locationcnt,0)*CEILING(50*ref_selrentfactor,0.05)*ref_conmonths/ref_purchasefactor,0.05) -> 0 | E215: =CEILING(IF(ref_locationcnt>0,ref_locationcnt,0)*CEILING(50*ref_selrentfactor,0.05),0.05) -> 0 | F215: =Comparison!$R$198 -> 0
B216: Config Proserv | D216: =IF(OR(ref_NIMA,ref_s2sconfigs=TRUE,ref_rent),CEILING(SUM(IF(ref_rent,0,CEILING(SUM('Prof Serv'!$G$62,SUM(ref_userseatqty*20),'Prof Serv'!$G$35)*ref_selrentfactor,0.05)),IF(ref_locationcnt>0,ref_locationcnt,0)*CEILING(100*ref_selrentfactor,0.5))*ref_conmonths/ref_purchasefactor,0.05),0) -> 0 | E216: =IF(OR(ref_NIMA,ref_s2sconfigs=TRUE,ref_rent),SUM(IF(ref_rent,0,CEILING(SUM('Prof Serv'!$G$62,SUM(ref_userseatqty*20),'Prof Serv'!$G$35)*ref_selrentfactor,0.05)),IF(ref_locationcnt>0,ref_locationcnt,0)*CEILING(100*ref_selrentfactor,0.5)),0) -> 0 | F216: =Comparison!$R$199 -> 0
D217: =SUM(D212:D216) -> 0 | E217: =SUM(E212:E216) -> 0 | H217: Install/Config | I217: Who Installs: | K217: =IF('Basic Configuration'!I145="","S2S Pro Serv Installed",'Basic Configuration'!I145) -> Reseller Installed
B218: Estimated HW CSAs | D218: =SUM(Configurator!F772:L775) -> 0
B219: Added: | D219: =SUM(CHOOSE(ref_hwtype,E218,0,0,0),CHOOSE(ref_hwtype,D217,0,E217,E217)) -> 0
A221: Config | B221: Extension Config: | D221: =IF(ref_locationid=1,(MAX(ref_ttlportsext,ref_qqttlports)*'Prof Serv'!D41),0) -> 0 | I221: Who Configs: | K221: =IF('Basic Configuration'!I148="","S2S Pro Serv Configured",'Basic Configuration'!I148) -> Reseller Configured
B222: S2S Remote Config: | D222: =IF(AND(ref_pbxcnt=0,OR(ref_linecnt=0,MAX(ref_qqttlports,ref_ttlportsext)=0)),0,SUM('Prof Serv'!G62)) -> 0 | I222: S2S Install?: | K222: =IF(OR(ref_NIMA,ref_install="S2S Pro Serv Installed"),TRUE,FALSE) -> FALSE
B223: S2S Managed Porting: | D223: =IF(AND(ref_pbxcnt=0,OR(ref_linecnt=0,MAX(ref_qqttlports,ref_ttlportsext)=0)),0,(IF(ref_s2sports,130,0)*ref_locationcnt)) -> 0 | I223: S2S Configs?: | K223: =IF(OR(ref_NIMA,ref_config="S2S Pro Serv Configured"),TRUE,FALSE) -> FALSE
B224: Full SNA Fee: | D224: =(IF(F16="",IF(ref_locationcnt="",1,ref_locationcnt),F16)*IF(OR(ref_locationid<>1,ref_ttlportsext=0),0,IF(ref_waiveSNA=TRUE,0,IF(ref_addon,0,VLOOKUP("Gen_fee_FSNA",generalids,3,FALSE))))) -> 0 | I224: S2S Trains?: | K224: =IF(OR(ref_NIMA,'Basic Configuration'!I151="S2S Pro Serv Trained"),TRUE,FALSE) -> FALSE
B225: Partner End User Training $: | D225: =IF(ref_locationid=1,IFERROR(SUM(SUM('Prod Calcs'!$DU$6:$DU$52),SUM(Services!$CH$7:$CH$68)),0),0) -> 0 | I225: S2S Ports?: | K225: =IF(OR(ref_NIMA,'Basic Configuration'!I154="S2S Managed Porting"),TRUE,FALSE) -> FALSE
B226: Starbox Configuration: | D226: =IF(ref_locationid=1,VLOOKUP("gen_fee_trng",generalids,3,FALSE)*ref_pbxcnt,0) -> 0 | I226: S2S Bills: | K226: =ref_addonpays<>"Pay with Order" -> TRUE
I227: S2S BillsSetup: | K227: =IF(OR(ref_leaseoption,ref_rent,ref_s2sinstall),TRUE,IF('Basic Configuration'!E146="Star2Star Bills for Setup Costs",TRUE,FALSE)) -> TRUE
A228: Prov | B228: Port Provisioning Ttl: | D228: =SUM('Prod Calcs'!AB3:AB34)+IF(OR(acctg_portprov="",acctg_portprov=0),0,acctg_portprov) -> 0
B229: Equip Provisioning Ttl: | D229: =IF(ref_locationid=2,0,SUM('Prod Calcs'!AC7:AC60))+IF(OR(acctg_equipprov="",acctg_equipprov=0),0,acctg_equipprov) -> 0
A233: Call Centers | B233: Advanced CC $: | D233: =IF(ref_usebcdata,IFERROR(VLOOKUP("gen_fee_ccon",generalids,3,FALSE),0)*ref_adccblcnt,0)+D234 -> 0
B234: Advanced Agent $: | D234: =VLOOKUP("gen_fee_cagn",generalids,3,FALSE)*IF(ref_adccalcnt="",0,ref_adccalcnt) -> 0
B235: Call Center Setups: | D235: =SUM(D233,D234) -> 0
A238: Partner Optional
... 203 more rows

Sheet Tables (hidden)
E1: 1 | F1: =E1+1 -> 2 | G1: 3 | H1: 4 | I1: 5 | J1: 6 | K1: 7 | L1: 8 | M1: 9 | N1: 10 | P1: =N1+1 -> 11 | Q1: 12 | R1: 13 | S1: 14 | T1: 15 | U1: 16 | V1: 17 | W1: 18 | X1: 19 | Y1: 20 | Z1: 21 | AA1: 22 | AB1: 23 | AC1: 24 | AD1: 25 | AE1: 26 | AF1: 27 | AG1: 28 | AH1: 29 | AI1: 30 | AJ1: 31 | AK1: 32 | AL1: 33 | AM1: 34 | AN1: 35 | AO1: 36 | AP1: 37 | AQ1: 38 | AR1: 39 | AS1: 40 | AT1: 41 | AZ1: Reseller Recurring Commission Schedule
A2: Ref_co | B2: COS_ACCTGID | C2: COS_NAME | D2: COS_ID | E2: Code | F2: Short | G2: Short2 | H2: Long | I2: Academy | J2: Notes Offset | K2: Services Offset | L2: Products Offset | M2: Services2Short Name | N2: Quote Hdr Name | P2: Quote Cat Name | Q2: Quote Long Desc | R2: Reseller Net Price | S2: Waive Exist Port Prov? | T2: Remove Install Costs: | U2: Waive SNA bandwidth Test: | W2: Custom Service Discount: | X2: Waive Starwatch: | Y2: Waive Coop Mktg Fee: | Z2: Use Reseller Cost? | AA2: Wholesale? | AB2: Quote Description | AC2: Reseller Markup Active | AD2: Website | AE2: Full Name | AF2: Add1 | AG2: Add2 | AH2: Fax | AI2: Long2name | AJ2: Rep Name | AK2: Email | AL2: Phone | AM2: Reseller ID | AN2: Calc Maint On | AO2: Total Reseller Cost On | AP2: Install Name | AQ2: Trunks Split Out? | AR2: Agent Comms? | AS2: pri packs? | AT2: 911 website | AZ2: Tier | BA2: Referral | BB2: Reseller | BC2: Redirected | BD2: *Spiff | BE2: Total
A3: 1 | B3: 869 | C3: EnTelegent | D3: 00 | E3: =D3&"-"&C3 -> 00-EnTelegent | F3: Star | G3: Star | H3: EnTelegent | I3: =H3 -> EnTelegent | J3: 3 | K3: 17 | L3: 35 | M3: 17 | N3: 3 | P3: 27 | Q3: 17 | R3: 12 | S3: FALSE | T3: FALSE | U3: FALSE | W3: 0 | X3: FALSE | Y3: FALSE | Z3: FALSE | AA3: TRUE | AB3: 30 | AC3: TRUE | AD3: www.entelegent.com/voip_terms.html | AE3: EnTelegent Solutions, Inc. | AF3: 3800 Arco Corporate Drive, Ste 310 | AG3: Charlotte, NC 28273 | AH3: (704) 504-5868 | AI3: EnTelegent Solutions | AJ3: Mike Ruziska | AK3: michael.ruziska@EnTelegent.com | AL3: 704-323-7495 | AM3: 3 | AN3: 8 | AO3: FALSE | AP3: Entelegent | AQ3: TRUE | AR3: FALSE | AS3: FALSE | AT3: www.entelegent.com/{NEED WEBSITE} | AZ3: Level | BA3: Comm | BB3: Comm | BC3: Discount | BD3: Comm | BE3: Comm
A4: 2 | B4: 865 | C4: ISS | D4: 01 | E4: 01-ISS | F4: Star | G4: Star | H4: Interface Digital | I4: ISS | J4: 2 | K4: 53 | L4: 6 | M4: 4 | N4: 2 | P4: 26 | Q4: 53 | R4: 93 | S4: FALSE | T4: FALSE | U4: FALSE | W4: 0 | X4: FALSE | Y4: FALSE | Z4: FALSE | AA4: TRUE | AB4: 11 | AC4: FALSE | AD4: http://www.star2star.com/termsanconditions.html | AE4: Star2Star Communications, LLC | AF4: 600 Tallevast Road, Suite 202 | AG4: Sarasota, FL 34243 | AH4: (941) 981-1453 | AI4: Star2Star | AJ4: Jenn Dineen | AK4: lease@star2star.com | AL4: 941-234-0001 x106 | AM4: 1 | AN4: 9 | AO4: TRUE | AP4: Reseller | AQ4: TRUE | AR4: FALSE | AS4: FALSE | AT4: http://www.star2star.com/911.html | AX4: 0 | AY4: 4 | AZ4: =Tables!$B107 -> 1 | BA4: =Tables!C107 -> 0.05 | BB4: =Tables!D107 -> 0 | BC4: =Tables!E107 -> 0 | BD4: =IF(ISERROR(1/(ref_conyears*12)),0,1/(ref_conyears*12)) -> 0.01666666667 | BE4: =SUM(BA4:BD4) -> 0.06666666667 | BF4: =Tables!J107 -> Less than 5 lines per month
A5: 3 | B5: 00000 | C5: S2S | D5: 02 | E5: 02-S2S | F5: Star | G5: Star | H5: Star2Star | I5: Star | J5: 2 | K5: 14 | L5: 6 | M5: 4 | N5: 2 | P5: 26 | Q5: 57 | R5: 12 | S5: FALSE | T5: FALSE | U5: FALSE | W5: 0 | X5: FALSE | Y5: FALSE | Z5: FALSE | AA5: FALSE | AB5: 11 | AC5: FALSE | AD5: http://www.star2star.com/termsanconditions.html | AE5: Star2Star Communications, LLC | AF5: 600 Tallevast Road, Suite 202 | AG5: Sarasota, FL 34243 | AH5: (941) 981-1453 | AI5: Star2Star | AJ5: Jenn Dineen | AK5: lease@star2star.com | AL5: 941-234-0001 x106 | AN5: 8 | AO5: FALSE | AP5: Reseller | AQ5: TRUE | AR5: FALSE | AS5: TRUE | AT5: http://www.star2star.com/911.html | AX5: 5 | AY5: 9 | AZ5: =Tables!B108 -> 2 | BA5: =Tables!C108 -> 0.05 | BB5: =Tables!D108 -> 0.0425 | BC5: =BC4 -> 0 | BD5: 0.01666666667 | BE5: 0.1091666667 | BF5: =Tables!J108 -> Between 5 and 9 lines per month
A6: 4 | B6: 2829 | C6: SONITROL | D6: 03 | E6: 03-SONITROL | F6: Star | G6: Star | H6: Sonitrol | I6: Star | J6: 2 | K6: 59 | L6: 6 | M6: 4 | N6: 2 | P6: 26 | Q6: 57 | R6: 93 | S6: FALSE | T6: FALSE | U6: FALSE | W6: 0 | X6: TRUE | Y6: TRUE | Z6: FALSE | AA6: TRUE | AB6: 11 | AC6: TRUE | AD6: http://www.star2star.com/termsanconditions.html | AE6: Star2Star Communications, LLC | AF6: 600 Tallevast Road, Suite 202 | AG6: Sarasota, FL 34243 | AH6: (941) 981-1453 | AI6: Star2Star | AJ6: Jenn Dineen | AK6: lease@star2star.com | AL6: 941-234-0001 x106 | AM6: 2 | AN6: 9 | AO6: TRUE | AP6: Sonitrol | AQ6: FALSE | AR6: FALSE | AS6: FALSE | AT6: http://www.star2star.com/911.html | AX6: 10 | AY6: 14 | AZ6: =Tables!B109 -> 3 | BA6: =Tables!C109 -> 0.05 | BB6: =Tables!D109 -> 0.05 | BC6: 0 | BD6: 0.01666666667 | BE6: 0.1166666667 | BF6: =Tables!J109 -> Between 10 and 14 lines per month
A7: 5 | B7: 00000 | C7: ATLAS | D7: 04 | E7: 04-ATLAS | F7: Star | G7: Star | H7: Atlas | I7: Star | J7: 4 | K7: 58 | L7: 6 | M7: 4 | N7: 2 | P7: 26 | Q7: 58 | R7: 93 | S7: FALSE | T7: TRUE | U7: TRUE | W7: 0.15 | X7: TRUE | Y7: TRUE | Z7: FALSE | AA7: TRUE | AB7: 11 | AC7: TRUE | AD7: http://www.star2star.com/termsanconditions.html | AE7: Star2Star Communications, LLC | AF7: 600 Tallevast Road, Suite 202 | AG7: Sarasota, FL 34243 | AH7: (941) 981-1453 | AI7: Star2Star | AJ7: Jenn Dineen | AK7: lease@star2star.com | AL7: 941-234-0001 x106 | AM7: 5 | AN7: 9 | AO7: FALSE | AP7: Reseller | AQ7: TRUE | AR7: FALSE | AS7: TRUE | AT7: http://www.star2star.com/911.html | AX7: 15 | AY7: 19 | AZ7: =Tables!B110 -> 4 | BA7: =Tables!C110 -> 0.05 | BB7: =Tables!D110 -> 0.0625 | BC7: 0 | BD7: 0.01666666667 | BE7: 0.1291666667 | BF7: =Tables!J110 -> Between 15 and 19 lines per month
A8: 6 | B8: 1 | C8: US METRO | D8: 05 | E8: 05-US METRO | F8: Star | G8: Star | H8: Star2Star | I8: Star | J8: 4 | L8: 6 | M8: 4 | N8: 2 | P8: 26 | Q8: 57 | R8: 93 | S8: FALSE | T8: FALSE | U8: FALSE | W8: 0 | X8: FALSE | Y8: FALSE | Z8: FALSE | AA8: FALSE | AB8: 11 | AC8: FALSE | AD8: http://www.star2star.com/termsanconditions.html | AE8: Star2Star Communications, LLC | AF8: 600 Tallevast Road, Suite 202 | AG8: Sarasota, FL 34243 | AH8: (941) 981-1453 | AI8: Star2Star | AJ8: Jenn Dineen | AK8: lease@star2star.com | AL8: 941-234-0001 x106 | AM8: 4 | AN8: 9 | AO8: FALSE | AP8: Reseller | AQ8: TRUE | AR8: FALSE | AS8: FALSE | AT8: http://www.star2star.com/911.html | AX8: 20 | AY8: 29 | AZ8: =Tables!B111 -> 5 | BA8: =Tables!C111 -> 0.05 | BB8: =Tables!D111 -> 0.075 | BC8: 0 | BD8: 0.01666666667 | BE8: 0.1416666667 | BF8: =Tables!J111 -> Between 20 and 29 lines per month
A9: 7 | B9: 2 | C9: S2S Agent | D9: 06 | E9: 06-S2S Agent | F9: Star | G9: Star | H9: Star2Star | I9: Star | J9: 2 | K9: 14 | L9: 6 | M9: 4 | N9: 2 | P9: 26 | Q9: 57 | R9: 12 | S9: FALSE | T9: FALSE | U9: FALSE | W9: 0 | X9: FALSE | Y9: FALSE | Z9: FALSE | AA9: FALSE | AB9: 11 | AC9: FALSE | AD9: http://www.star2star.com/termsanconditions.html | AE9: Star2Star Communications, LLC | AF9: 600 Tallevast Road, Suite 202 | AG9: Sarasota, FL 34243 | AH9: (941) 981-1453 | AI9: Star2Star | AJ9: Jenn Dineen | AK9: lease@star2star.com | AL9: 941-234-0001 x106 | AN9: 8 | AO9: FALSE | AP9: Reseller | AQ9: TRUE | AR9: TRUE | AS9: FALSE | AT9: http://www.star2star.com/911.html | AX9: 30 | AY9: 49 | AZ9: =Tables!B112 -> 6 | BA9: =Tables!C112 -> 0.05 | BB9: =Tables!D112 -> 0.0875 | BC9: 0 | BD9: 0.01666666667 | BE9: 0.1541666667 | BF9: =Tables!J112 -> Between 30 and 49 lines per month
A10: 8 | B10: 3 | C10: Black Box | D10: 07 | E10: 07-Black Box | F10: Star | G10: Star | H10: Star2Star | I10: Star | J10: 2 | K10: 14 | L10: 6 | M10: 4 | N10: 2 | P10: 26 | Q10: 57 | R10: 12 | S10: FALSE | T10: FALSE | U10: FALSE | W10: 0 | X10: FALSE | Y10: FALSE | Z10: FALSE | AA10: FALSE | AB10: 11 | AC10: TRUE | AD10: http://www.star2star.com/termsanconditions.html | AE10: Star2Star Communications, LLC | AF10: 600 Tallevast Road, Suite 202 | AG10: Sarasota, FL 34243 | AH10: (941) 981-1453 | AI10: Star2Star | AJ10: Jenn Dineen | AK10: lease@star2star.com | AL10: 941-234-0001 x106 | AM10: 6 | AN10: 8 | AO10: FALSE | AP10: Reseller | AQ10: TRUE | AR10: FALSE | AS10: TRUE | AT10: http://www.star2star.com/911.html | AX10: 50 | AY10: 69 | AZ10: =Tables!B113 -> 7 | BA10: =Tables!C113 -> 0.05 | BB10: =Tables!D113 -> 0.1 | BC10: 0 | BD10: 0.01666666667 | BE10: 0.1666666667 | BF10: =Tables!J113 -> Between 50 and 69 lines per month
AX11: 70 | AY11: 99 | AZ11: =Tables!B114 -> 8 | BA11: =Tables!C114 -> 0.05 | BB11: =Tables!D114 -> 0.1125 | BC11: 0 | BD11: 0.01666666667 | BE11: 0.1791666667 | BF11: =Tables!J114 -> Between 70 and 99 lines per month
E12: Forced Qty Calcs | AX12: 100 | AY12: 249 | AZ12: =Tables!B115 -> 9 | BA12: =Tables!C115 -> 0.05 | BB12: =Tables!D115 -> 0.1375 | BC12: 0 | BD12: 0.01666666667 | BE12: 0.2041666667 | BF12: =Tables!J115 -> Between 100 and 249 lines per month
B13: SHIP_ID | C13: SHIP_COST | E13: Code | AX13: 250 | AY13: 100000000000 | AZ13: =Tables!B116 -> 10 | BA13: =Tables!C116 -> 0.05 | BB13: =Tables!D116 -> 0.15 | BC13: 0 | BD13: 0.01666666667 | BE13: 0.2166666667 | BF13: =Tables!J116 -> Over 250 lines per month
B14: 00 | C14: 0 | E14: ADV-S2S-03003
B15: 01 | C15: 7.5
B16: 02 | C16: 25
B17: 03 | C17: 20
C22: 0 | D22: 3001 | E22: 10001 | F22: 25001
C23: $1,000-$3,000 | D23: $3,001-$10,000 | E23: $10,001-$25,000 | F23: Over $25,001
C24: 2 | D24: 3 | E24: 4 | F24: 5
C32: Points to Dealer | E32: 2 | F32: 1 | G32: 1 | H32: 1
C33: Point to S2S | E33: 2 | F33: 2 | G33: 1 | H33: 1
E34: =C23 -> $1,000-$3,000 | F34: =D23 -> $3,001-$10,000 | G34: =E23 -> $10,001-$25,000 | H34: =F23 -> Over $25,001
B35: Option 1 | C35: 12 Months | D35: =RIGHT(B35,1)&"-"&LEFT(C35,2) -> 1-12 | E35: 0.1047 | F35: 0.099 | G35: 0.0964 | H35: 0.0929
B36: Option 1 | C36: 24 Months | D36: =RIGHT(B36,1)&"-"&LEFT(C36,2) -> 1-24 | E36: 0.055 | F36: 0.0513 | G36: 0.05 | H36: 0.0482
B37: Option 1 | C37: 36 Months | D37: =RIGHT(B37,1)&"-"&LEFT(C37,2) -> 1-36 | E37: 0.0388 | F37: 0.0357 | G37: 0.0347 | H37: 0.0335
B38: Option 1 | C38: 48 Months | D38: =RIGHT(B38,1)&"-"&LEFT(C38,2) -> 1-48 | E38: 0 | F38: 0.0279 | G38: 0.0272 | H38: 0.0262
B39: Option 1 | C39: 60 Months | D39: 1-60 | E39: 0 | F39: 0.0234 | G39: 0.0228 | H39: 0.0219
B40: Option 2 | C40: 12 Months | D40: 2-12 | E40: =E35*1.01 -> 0.105747 | F40: 0.09999 | G40: 0.097364 | H40: 0.093829
B41: Option 2 | C41: 24 Months | D41: 2-24 | E41: 0.05555 | F41: 0.051813 | G41: 0.0505 | H41: 0.048682
B42: Option 2 | C42: 36 Months | D42: 2-36 | E42: 0.039188 | F42: 0.036057 | G42: 0.035047 | H42: 0.033835
B43: Option 2 | C43: 48 Months | D43: 2-48 | E43: 0 | F43: 0.028179 | G43: 0.027472 | H43: 0.026462
B44: Option 2 | C44: 60 Months | D44: 2-60 | E44: 0 | F44: 0.023634 | G44: 0.023028 | H44: 0.022119
B45: Option 3 | C45: 12 Months | D45: =RIGHT(B45,1)&"-"&LEFT(C45,2) -> 3-12 | E45: =E35*1.02 -> 0.106794 | F45: 0.10098 | G45: 0.098328 | H45: 0.094758
B46: Option 3 | C46: 24 Months | D46: 3-24 | E46: 0.0561 | F46: 0.052326 | G46: 0.051 | H46: 0.049164
B47: Option 3 | C47: 36 Months | D47: 3-36 | E47: 0.039576 | F47: 0.036414 | G47: 0.035394 | H47: 0.03417
B48: Option 3 | C48: 48 Months | D48: 3-48 | E48: 0 | F48: 0.028458 | G48: 0.027744 | H48: 0.026724
B49: Option 3 | C49: 60 Months | D49: 3-60 | E49: 0 | F49: 0.023868 | G49: 0.023256 | H49: 0.022338
B50: Option 4 | C50: 12 Months | D50: 4-12 | E50: =E35*1.03 -> 0.107841 | F50: 0.10197 | G50: 0.099292 | H50: 0.095687
B51: Option 4 | C51: 24 Months | D51: 4-24 | E51: 0.05665 | F51: 0.052839 | G51: 0.0515 | H51: 0.049646
B52: Option 4 | C52: 36 Months | D52: 4-36 | E52: 0.039964 | F52: 0.036771 | G52: 0.035741 | H52: 0.034505
B53: Option 4 | C53: 48 Months | D53: 4-48 | E53: 0 | F53: 0.028737 | G53: 0.028016 | H53: 0.026986
B54: Option 4 | C54: 60 Months | D54: 4-60 | E54: 0 | F54: 0.024102 | G54: 0.023484 | H54: 0.022557
B56: MAINT_ID | C56: MAINT_Type | D56: Maint_Subtype | E56: Maint_Pcent | F56: Maint_Flat | G56: 10
B57: 00 | C57: Wholesale | D57: S2S | E57: 0.135 | F57: 0
B58: 01 | C58: Wholesale | D58: Standard | E58: 0 | F58: 30
B59: 02 | C59: Wholesale | D59: None | E59: 0 | F59: 0
B60: 03 | C60: Retail | D60: S2S | E60: 0.15 | F60: 0
B61: 04 | C61: Retail | D61: Standard | E61: 0.15 | F61: 40
B62: 05 | C62: Retail | D62: None | E62: 0 | F62: 0
E73: PBX
D74: None | E74: PBX
C75: =IF(ref_pbx,"",D75) ->  | D75: SIP to SIP | E75: SIP
D76: Sip to POTS | E76: SIP | AX76: USE
C77: =IF(ref_pbx,"",D77) ->  | D77: SIP to PRI | E77: SIP
B82: GEN_ID | C82: GEN_TYPE | D82: CostStandard | E82: GEN_NOTES
B83: GEN_DSC_LINE | C83: Customer Line Charge Discount for 3 or more Year(s) Commitment | D83: 0.1
B84: GEN_FEE_CAGN | C84: Advanced Call Center Agent Configuration Charge w/30 days support | D84: 20 | E84: 1 per agent
B85: GEN_FEE_CCON | C85: Advanced Call Center Queue Configuration Charge w/30 days support | D85: 500 | E85: 1 per call center
B86: GEN_FEE_EQIN | C86: Basic Equipment Installation Cost | D86: 20 | E86: Per Device
B87: GEN_FEE_EUTR | C87: End User Phone Training per User includes materials, live training and 30 days support | D87: 5 | E87: Per Phone
B88: GEN_FEE_FCON | C88: Setup Fee for First Connect | D88: 50 | E88: 1 per location
B89: GEN_FEE_FSNA | C89: Full 2 Day SNA test, Required for all Locations, first time only | D89: 50 | E89: 1 per location
B90: GEN_FEE_MKTG | C90: Cooperative Marketing Reserve Percentage | D90: 0.025
B91: GEN_FEE_SURV | C91: Pre Installation Technical Site Survey | D91: 225 | E91: 20 or more phones
B92: GEN_FEE_TRNG | C92: Starbox Configuration | D92: 100 | E92: Per Starbox or Location
B93: GEN_PRV_ACCA | C93: Advanced Call Center Agent Provisioning | D93: 20 | E93: 1 per agent
B94: GEN_PRV_ADCC | C94: Advanced Call Center Provisioning Cost | D94: 200 | E94: 1 per customer
B95: GEN_PRV_ADCL | C95: Advanced Call Center Lite Provisioning Cost | D95: 50 | E95: 1 per customer
B96: GEN_PRV_Equp | C96: Equipment Provisioning Cost | D96: 10 | E96: per item
B97: GEN_PRV_PORT | C97: Port Provisioning Cost (per port) | D97: 20 | E97: Port Provisioning Cost (per port)
B98: GEN_PRV_SBOX | C98: Port Provisioning Cost (per Starbox 2200) | D98: 100 | E98: Port Provisioning Cost (per Starbox 2200)
B99: GEN_PRV_SLTE | C99: Port Provisioning Cost (per StarLite PBX) | D99: 50 | E99: Port Provisioning Cost (per StarLite PBX)
B100: GEN_SOB_LANK | C100: Blank Fee to overwrite my foolish use of an override field for two things | D100: 0 | E100: 1 per location
B106: ResellerCOMM_TIERID | C106: ResellerCOMM_REFPCENT | D106: ResellerCOMM_ResellerPCENT | E106: ResellerCOMM_REDIRPCENT | F106: ResellerCOMM_MAINTPCENT | G106: ResellerCOMM_SPIFF | H106: ResellerCOMM_AVGLPM_MIN | I106: ResellerCOMM_AVGLPM_MAX | J106: ResellerCOMM_Desc
B107: 1 | C107: 0.05 | D107: 0 | E107: 0 | F107: 0.1 | H107: 0 | I107: 4 | J107: ="Less than "&I107+1&" lines per month" -> Less than 5 lines per month
B108: 2 | C108: 0.05 | D108: 0.0425 | E108: 0 | F108: 0.1 | H108: 5 | I108: 9 | J108: ="Between "&H108&" and "&I108&" lines per month" -> Between 5 and 9 lines per month
B109: 3 | C109: 0.05 | D109: 0.05 | E109: 0 | F109: 0.1 | H109: 10 | I109: 14 | J109: Between 10 and 14 lines per month
B110: 4 | C110: 0.05 | D110: 0.0625 | E110: 0 | F110: 0.1 | H110: 15 | I110: 19 | J110: Between 15 and 19 lines per month
B111: 5 | C111: 0.05 | D111: 0.075 | E111: 0 | F111: 0.1 | H111: 20 | I111: 29 | J111: Between 20 and 29 lines per month
B112: 6 | C112: 0.05 | D112: 0.0875 | E112: 0 | F112: 0.1 | H112: 30 | I112: 49 | J112: Between 30 and 49 lines per month
B113: 7 | C113: 0.05 | D113: 0.1 | E113: 0 | F113: 0.1 | H113: 50 | I113: 69 | J113: Between 50 and 69 lines per month
B114: 8 | C114: 0.05 | D114: 0.1125 | E114: 0 | F114: 0.1 | H114: 70 | I114: 99 | J114: Between 70 and 99 lines per month
B115: 9 | C115: 0.05 | D115: 0.1375 | E115: 0 | F115: 0.1 | H115: 100 | I115: 249 | J115: Between 100 and 249 lines per month
B116: 10 | C116: 0.05 | D116: 0.15 | E116: 0 | F116: 0.1 | H116: 250 | I116: 1000000 | J116: ="Over "&H116&" lines per month" -> Over 250 lines per month
D127: =IF(ref_co=5,"New","Regular") -> Regular
B128: Location List | D128: =IF(ref_co=5,"New","Regular") -> Regular | F128: 1 | I128: 10
B129: Single Site Quote | D129: =IF(ref_dealtype="Single Site - Multilocation","","Add-on") -> Add-on | F129: 1 | I129: 11
B130: =IF(OR(ref_sip,ref_locationid<>1),"","Multi-Site Quote") -> Multi-Site Quote | D130: =IF(ref_co<>3,"","Reseller Demo Kit - New") -> Reseller Demo Kit - New | F130: 2 | I130: 20
D131: =IF(ref_co<>3,"","Reseller Demo Kit - Add-on") -> Reseller Demo Kit - Add-on | F131: 2 | I131: 21
D132: =IF(ref_co<>3,"","Reseller In-House System - New") -> Reseller In-House System - New | F132: 3 | I132: 30
D133: =IF(ref_co<>3,"","Reseller In-House System - Add-on") -> Reseller In-House System - Add-on | F133: 3 | I133: 31
B134: Purchase/Lease | D134: StarRecovery Package | F134: 8 | I134: 40
B135: =IF(OR(ref_sip,ref_locationid<>1),"","Monthly HW") -> Monthly HW | F135: 10 | I135: 70
D136: =IF(OR(ref_locationid=10,ref_locationid=1),"Customer","") -> Customer
D137: =CHOOSE(ref_MAType,"Installer","Installing Reseller","Reseller") -> Reseller
D138: =IF(OR(ref_locationid=10,ref_locationid=1),"Other","") -> Other
B143: Yes
B144: =IF(ref_rent,"","No") -> No | I144: =IF(OR(Reference!D126=FALSE,ref_sip),"","StarSeats") -> StarSeats
H145: =IF(OR(Reference!D126=FALSE,ref_sip),"","StarSeats") -> StarSeats | I145: Starlines
C146: New Customer | D146: 1 | E146: =IF(C146="","","New Location") -> New Location
A147: Yealink | C147: =IF(ref_locationmulti,"","Existing Customer") -> Existing Customer | D147: 2 | E147: =IF(C147="","","New Location") -> New Location | F147: =IF(C147="","","Add-on Order") -> Add-on Order
A148: Cisco | C148: =IF(OR(ref_sip,ref_locationmulti),"na","Reseller Demo Kit") -> Reseller Demo Kit | D148: 3 | E148: =IF(C148="","","New Location") -> New Location | F148: =IF(C148="","","Add-on Order") -> Add-on Order
A149: Polycom | C149: =IF(ref_sip,"","Reseller In-House System") -> Reseller In-House System | D149: 4 | E149: =IF(C149="","","New Location") -> New Location | F149: =IF(OR(ref_locationmulti,C149=""),"","Add-on Order") -> Add-on Order
C150: =IF(ref_locationmulti,"","StarRecovery Only") -> StarRecovery Only | D150: 5 | E150: =IF(C150="","","New Location") -> New Location
J151: =IF(ref_MAType=1,"","Reseller Installed") -> Reseller Installed
C152: =IFERROR(IF(VLOOKUP('Customer Details'!$F$16,$C$146:$F$150,3,FALSE)=0,"","New Location"),"") -> New Location | D152: 1 | J152: S2S Pro Serv Installed
C153: =IFERROR(IF(VLOOKUP('Customer Details'!$F$16,$C$146:$F$150,4,FALSE)=0,"n/a","Add-on Order"),"n/a") -> n/a | D153: 2 | J153: =IF(ref_addon,"Customer Installed","") -> 
D155: Combination | E155: Old Type | F155: Location ID | G155: LOCID | H155: Port Prov %
A156: Conflict in Order types | B156: =IF(ISNA(VLOOKUP('Customer Details'!F16,custtypes,1,FALSE)),TRUE,FALSE) -> FALSE | D156: 11 | E156: =IF(ref_co=5,"New","Regular") -> Regular | F156: 1 | G156: 10 | H156: =MAX(I156-0.06,0) -> 0.065 | I156: 0.125 | J156: S2S Pro Serv Configured
A157: Hide the Addon:? | B157: =IF(C153="",TRUE,FALSE) -> FALSE | D157: 21 | E157: =IF(ref_co=5,"New","Regular") -> Regular | F157: 1 | G157: 10 | H157: 0.065 | I157: 0.125 | J157: S2S Pro Serv Trained
A158: Location Code: | B158: =VALUE(IFERROR(VLOOKUP('Customer Details'!$F$16,Tables!$C$146:$D$150,2,FALSE),1)&IF(ref_hideaddon,"1",IFERROR(VLOOKUP('Customer Details'!$F$18,$C$152:$D$153,2,FALSE),1))) -> 11 | D158: 22 | E158: =IF(ref_dealtype="Single Site - Multilocation","","Add-on") -> Add-on | F158: 1 | G158: 11 | H158: 0.065 | I158: 0.125 | J158: S2S Pro Serv Ports
D159: 31 | E159: =IF(OR(ref_sip,ref_co<>3),"","Reseller Demo Kit - New") -> Reseller Demo Kit - New | F159: 2 | G159: 20 | H159: 0 | I159: 0
D160: 32 | E160: =IF(OR(ref_sip,ref_co<>3),"","Reseller Demo Kit - Add-on") -> Reseller Demo Kit - Add-on | F160: 2 | G160: 21 | H160: 0.065 | I160: 0.125
D161: 41 | E161: =IF(OR(ref_sip,ref_co<>3),"","Reseller In-House System - New") -> Reseller In-House System - New | F161: 3 | G161: =IF(ref_sip,10,30) -> 30 | H161: 0.065 | I161: 0.125
D162: 42 | E162: =IF(OR(ref_sip,ref_co<>3),"","Reseller In-House System - Add-on") -> Reseller In-House System - Add-on | F162: 3 | G162: =IF(ref_sip,11,31) -> 31 | H162: 0.065 | I162: 0.125
D163: 51 | E163: StarRecovery Package | F163: 8 | G163: 40 | H163: 0 | I163: 0
A166: 1 Year | B166: 1
A167: 2 Years | B167: 2
A168: 3 Years | B168: 3
A169: 4 Years | B169: 4
A170: 5 Years | B170: 5
A173: MAKE SELECTION | B173: 0 | C173: MUST SELECT PAYMENT FORM DESIRED, MUST BE SIGNED TO VALIDATE CONTRACT
A174: Single Use (Recurring or Non-Recurring) | B174: 1 | C174: AUTOMATED PAYMENT AUTHORIZATION FOR SINGLE USE ONLY | J174: ="to "&longname&" in the amount of $_________________________." -> to Star2Star in the amount of $_________________________.
A175: All Charges | B175: 2 | C175: AUTOMATED PAYMENT AUTHORIZATION FOR ALL CHARGES | J175: ="to "&longname&" of all amounts due "&longname&" including but not limited to:" -> to Star2Star of all amounts due Star2Star including but not limited to:
A176: All Non-Recurring Charges Only | B176: 3 | C176: AUTOMATED PAYMENT AUTHORIZATION FOR ALL NON-RECURRING CHARGES ONLY | J176: ="to "&longname&" for all non-recurring charges related to this location. Charges include but are not limited to:" -> to Star2Star for all non-recurring charges related to this location. Charges include but are not limited to:
A177: All Recurring Charges Only | B177: 4 | C177: AUTOMATED PAYMENT AUTHORIZATION FOR ALL RECURRING CHARGES ONLY | J177: ="to "&longname&" for all recurring charges related to this location. Charges include but are not limited to:" -> to Star2Star for all recurring charges related to this location. Charges include but are not limited to:
C179: Single Use (Recurring or Non-Recurring), All Charges, All Non-Recurring Charges Only, All Recurring Charges Only
K183: 335 | P183: T38 | Q183: 5000 | R183: T28
B184: Con | C184: Base | D184: Base | E184: Phone | G184: CR Base | H184: CR Base | K184: Std | P184: Exec | Q184: Conf | R184: Sect
B185: Years | C185: Tier 1 | D185: Tier 2 | E185: Tier 1 | G185: Tier 1 | H185: Tier 2 | K185: Phone | N185: Purchase Factor | P185: Phone | Q185: Phone/PS | R185: Ph/SC
B186: 1 | C186: 175 | D186: 225 | E186: 22 | F186: 0.092 | G186: 180 | H186: 285 | I186: 45 | J186: 60 | K186: 28.5 | L186: 6.5 | M186: 0.2280701754 | N186: 0.15 | P186: 28.5 | Q186: 28.5 | R186: 28.5
B187: 2 | C187: 100 | D187: 125 | E187: 12 | F187: 0.05 | G187: 105 | H187: 160 | I187: 25 | J187: 35 | K187: 15 | L187: 3 | M187: 0.2 | N187: 0.15 | P187: 15 | Q187: 15 | R187: 15
B188: 3 | C188: 60 | D188: 65 | E188: 9.5 | F188: 0.03549998 | G188: 65 | H188: 85 | I188: 15 | J188: 20 | K188: 12 | L188: 2.5 | M188: 0.2083333333 | N188: 0.15 | P188: 12 | Q188: 12 | R188: 12
B189: 4 | C189: 50 | D189: 40 | E189: 7.5 | F189: 0.02762048 | G189: 55 | H189: 50 | I189: 15 | J189: 10 | K189: 9 | L189: 1.5 | M189: 0.1666666667 | N189: 0.15 | P189: 9 | Q189: 9 | R189: 9
B190: 5 | C190: 40 | D190: 25 | E190: 7 | F190: 0.023 | G190: 45 | H190: 35 | I190: 10 | J190: 10 | K190: 8.5 | L190: 1.5 | M190: 0.1764705882 | N190: 0.15 | P190: 8.5 | Q190: 8.5 | R190: 8.5
G192: Changed on 3/7 because we are now bringing in the Starlite CRs
G193: to $5 above
A194: ADV-S2S-02007
A195: ADV-S2S-02011
A196: ADV-S2S-03003
A197: PBX-S2S-01008
A198: PBX-S2S-01011
A199: PBX-S2S-01012
A200: PBX-S2S-01013
A203: Cisco Upgrade | D203: 1 | E203: 2 | F203: 3 | G203: 4 | H203: 5
A205: 1 | B205: 24 | C205: 1 | D205: 28 | E205: 15 | F205: 11 | G205: 8 | H205: 7
A206: 25 | B206: 44 | C206: 2 | D206: 56 | E206: 30 | F206: 22 | G206: 16 | H206: 14
A207: 45 | B207: 68 | C207: 3 | D207: 84 | E207: 45 | F207: 33 | G207: 24 | H207: 21
A208: 69 | B208: 92 | C208: 4 | D208: 112 | E208: 60 | F208: 44 | G208: 32 | H208: 28
A209: 93 | B209: 116 | C209: 5 | D209: 140 | E209: 75 | F209: 55 | G209: 40 | H209: 35
A210: 117 | B210: 140 | C210: 6 | D210: 168 | E210: 90 | F210: 66 | G210: 48 | H210: 42
A211: 141 | B211: 164 | C211: 7 | D211: 196 | E211: 105 | F211: 77 | G211: 56 | H211: 49
A212: 165 | B212: 188 | C212: 8 | D212: 224 | E212: 120 | F212: 88 | G212: 64 | H212: 56
A213: 189 | B213: 212 | C213: 9 | D213: 252 | E213: 135 | F213: 99 | G213: 72 | H213: 63
A214: 213 | B214: 236 | C214: 10 | D214: 280 | E214: 150 | F214: 110 | G214: 80 | H214: 70
A215: 237 | B215: 262 | C215: 11 | D215: 308 | E215: 165 | F215: 121 | G215: 88 | H215: 77
A216: 263 | B216: 286 | C216: 12 | D216: 336 | E216: 180 | F216: 132 | G216: 96 | H216: 84
A217: 287 | B217: 310 | C217: 13 | D217: 364 | E217: 195 | F217: 143 | G217: 104 | H217: 91
A218: 311 | B218: 334 | C218: 14 | D218: 392 | E218: 210 | F218: 154 | G218: 112 | H218: 98
A219: 335 | B219: 358 | C219: 15 | D219: 420 | E219: 225 | F219: 165 | G219: 120 | H219: 105
A220: 359 | B220: 382 | C220: 16 | D220: 448 | E220: 240 | F220: 176 | G220: 128 | H220: 112
A221: 383 | B221: 406 | C221: 17 | D221: 476 | E221: 255 | F221: 187 | G221: 136 | H221: 119
A222: 407 | B222: 430 | C222: 18 | D222: 504 | E222: 270 | F222: 198 | G222: 144 | H222: 126
A223: 431 | B223: 454 | C223: 19 | D223: 532 | E223: 285 | F223: 209 | G223: 152 | H223: 133
A224: 455 | B224: 478 | C224: 20 | D224: 560 | E224: 300 | F224: 220 | G224: 160 | H224: 140
A225: 479 | B225: 500 | C225: 21 | D225: 588 | E225: 315 | F225: 231 | G225: 168 | H225: 147
B228: LD Minutes/TF Minutes
B229: Min | C229: Max | D229: LD Mins | E229: TF Mins | F229: Conf Mins
B230: 0 | C230: 9 | D230: 24 | E230: 25 | F230: 19
B231: 10 | C231: 19 | D231: 23 | E231: 24 | F231: 17
B232: 20 | C232: 2000 | D232: 21 | E232: 23 | F232: 15
B235: Lease Info:
B237: Header | C237: =IF(ref_co=1,long2name&" Lease Application",long2name&" Solutions Lease Application") -> Star2Star Solutions Lease Application
B240: id | C240: typename | D240: billable | E240: Resellerinstallcounts
B241: 1 | C241: Normal Customer | D241: 1 | E241: 1
B242: 2 | C242: Reseller Demo | D242: 0 | E242: 0
B243: 3 | C243: Reseller Office System | D243: 1 | E243: 0
B244: 4 | C244: Star2Star Demo System | D244: 0 | E244: 0
B245: 5 | C245: Star2Star Training System | D245: 0 | E245: 0
B246: 6 | C246: Star2Star Internal | D246: 0 | E246: 0
B247: 7 | C247: Reseller Showroom System | D247: 1 | E247: 0
C253: =ref_locid -> 10 | D253: =HLOOKUP(C253,E253:P254,2,FALSE) -> 1 | E253: 10 | F253: 11 | G253: 20 | H253: 21 | I253: 30 | J253: 31 | K253: 40
E254: 1 | F254: 2 | G254: 3 | H254: 4 | I254: 5 | J254: 6 | K254: 7
E255: Regular | F255: Addon | G255: Demo Kit | H255: DK - Addon | I255: Reseller In House | J255: DIH - Addon | K255: Star Recovery | L255: Kooky
B256: ref_useORdata | C256: =IF(ref_NIMA,FALSE,OFFSET(D256,0,$D$253)) -> TRUE | D256: Use Override Data | E256: TRUE | F256: TRUE | G256: TRUE | H256: TRUE | I256: TRUE | J256: TRUE | K256: TRUE | L256: FALSE
B257: ref_usebcdata | C257: =OFFSET(D257,0,$D$253) -> TRUE | D257: Use BC Products | E257: TRUE | F257: FALSE | G257: FALSE | H257: FALSE | I257: FALSE | J257: FALSE | K257: FALSE | L257: TRUE
B262: Deal Tiers
B264: Min Phones | C264: Max Phones | D264: Tier
B265: 0 | C265: 5 | D265: 1
B266: 6 | C266: 9 | D266: 2
B267: 10 | C267: 19 | D267: 3
B268: 20 | C268: 39 | D268: 4
B269: 40 | C269: 74 | D269: 5
B270: 74 | C270: 199 | D270: 6
B271: 200 | C271: 1000000 | D271: 7
B273: Monthly HW Factors
C274: Tier | D274: Term | E274: Upfront | F274: Base | G274: Factor
B275: =C275&D275&E275 -> 151 | C275: 1 | D275: 5 | E275: 1 | G275: 0.023
B276: 150 | C276: 1 | D276: 5 | E276: 0 | G276: 0.023
... 426 more rows

Sheet Products (hidden)
A1: =MAX(A6:A175) -> 0 | B1: ='Prod Calcs'!A43-1 -> -1 | C1: =MAX(B7:B175) -> 0 | BH1: ok | BI1: ok | BJ1: ok | BK1: ok | BL1: ok | BM1: ok | BN1: ok | BO1: ok | BP1: ok | BQ1: ok | BT1: ok | BU1: ok | BV1: ok | BW1: ok | BX1: ok | BY1: ok | DD1: PMT
B2: Type | V2: =58.05/12 -> 4.8375 | X2: =SUM(X7:X175) -> 8228.83 | AZ2: =SUM(AZ7:AZ175) -> 8028.83 | BH2: Off/On | BI2: Base Sys Qty | BJ2: BC Qtys | BN2: Combo Qtys | BQ2: QTY | BU2: Ports | BW2: Markups | BZ2: Purchase Price | CE2: Rebate | CU2: ON QUOTE | DD2: ESTIMATED or EXACT?
A3: Prodnums | B3: =TEXT(COLUMN()-1,"0") -> 1 | C3: 2 | D3: 3 | E3: 4 | F3: 5 | G3: 6 | H3: 7 | I3: 8 | J3: 9 | K3: 10 | L3: 11 | M3: 12 | N3: 13 | O3: 14 | P3: 15 | Q3: 16 | R3: 17 | S3: 18 | T3: 19 | U3: 20 | V3: 21 | W3: 22 | X3: 23 | Y3: 24 | Z3: 25 | AA3: 26 | AB3: 27 | AC3: 28 | AD3: 29 | AE3: 30 | AF3: 31 | AG3: 32 | AH3: 33 | AI3: 34 | AJ3: 35 | AK3: 36 | AL3: 37 | AM3: 38 | AN3: 39 | AO3: 40 | AP3: 41 | AQ3: 42 | AR3: 43 | AS3: 44 | AT3: 45 | AU3: 46 | AV3: 47 | AW3: 48 | AX3: 49 | AY3: 50 | AZ3: 51 | BA3: 52 | BB3: 53 | BC3: 54 | BD3: 55 | BE3: 56 | BF3: 57 | BG3: 58 | BH3: 59 | BI3: 60 | BJ3: 61 | BK3: 62 | BL3: 63 | BM3: 64 | BN3: =TEXT(COLUMN()-1,"0") -> 65 | BO3: 66 | BP3: 67 | BQ3: 68 | BR3: 69 | BS3: 70 | BT3: 71 | BU3: 72 | BV3: 73 | BW3: 74 | BX3: 75 | BY3: 76 | BZ3: 77 | CA3: 78 | CB3: 79 | CC3: 80 | CD3: 81 | CE3: 82 | CF3: 83 | CG3: 84 | CH3: 85 | CI3: 86 | CJ3: 87 | CK3: 88 | CL3: 89 | CM3: 90 | CN3: 91 | CO3: 92 | CP3: 93 | CQ3: 94 | CR3: 95 | CS3: 96 | CT3: 97 | CU3: 98 | DD3: ON QUOTE? | DE3: =TEXT(COLUMN()-1,"0") -> 108 | DF3: =TEXT(COLUMN()-1,"0") -> 109 | DG3: =TEXT(COLUMN()-1,"0") -> 110 | DH3: =TEXT(COLUMN()-1,"0") -> 111 | DR3: =(DR4-DQ4)/DQ4 -> 
B4: newprods2\ | C4: =TEXT(COLUMN()-2,"0") -> 1 | D4: 2 | E4: 3 | F4: 4 | G4: 5 | H4: 6 | I4: 7 | J4: 8 | K4: 9 | L4: 10 | M4: 11 | N4: 12 | O4: 13 | P4: 14 | Q4: 15 | R4: 16 | S4: 17 | T4: 18 | U4: 19 | V4: 20 | W4: 21 | X4: 22 | Y4: 23 | Z4: 24 | AA4: 25 | AB4: 26 | AC4: 27 | AD4: 28 | AE4: 29 | AF4: 30 | AG4: 31 | AH4: 32 | AI4: 33 | AJ4: 34 | AK4: 35 | AL4: 36 | AM4: 37 | AN4: 38 | AO4: 39 | AP4: 40 | AQ4: 41 | AR4: 42 | AS4: 43 | AT4: 44 | AU4: 45 | AV4: 46 | AW4: 47 | AX4: 48 | AY4: 49 | AZ4: 50 | BA4: 51 | BB4: 52 | BC4: 53 | BD4: 54 | BE4: 55 | BF4: 56 | BG4: 57 | BH4: 58 | BI4: 59 | BJ4: 60 | BK4: 61 | BL4: 62 | BM4: 63 | BN4: 64 | BO4: =TEXT(COLUMN()-2,"0") -> 65 | BP4: 66 | BQ4: 67 | BR4: 68 | BS4: 69 | BT4: 70 | BU4: 71 | BV4: 72 | BW4: 73 | BX4: 74 | BY4: 75 | BZ4: 76 | CA4: 77 | CB4: 78 | CC4: 79 | CD4: 80 | CE4: 81 | CF4: 82 | CG4: 83 | CH4: 84 | CI4: 85 | CJ4: 86 | CK4: 87 | CL4: 88 | CM4: 89 | CN4: 90 | CO4: 91 | CP4: 92 | CQ4: 93 | CR4: 94 | CS4: 95 | CT4: 96 | CU4: 97 | CV4: 0 | CW4: 1 | CX4: 2 | CY4: 3 | CZ4: 4 | DA4: 5 | DB4: 6 | DC4: 7 | DE4: =TEXT(COLUMN()-2,"0") -> 107 | DF4: =TEXT(COLUMN()-2,"0") -> 108 | DG4: =TEXT(COLUMN()-2,"0") -> 109 | DH4: =TEXT(COLUMN()-2,"0") -> 110 | DN4: 1=none, 2=markdown only, 3=markup only, 4 = both | DQ4: =SUM(DQ6:DQ176) -> 0 | DR4: =SUM(DR6:DR176) -> 0 | DS4: =SUM(DS6:DS176) -> 0
A5: F1 | B5: F2 | C5: S1 | D5: S2 | E5: S3 | F5: S4 | G5: S5 | H5: S6 | I5: S7 | J5: S8 | K5: S9 | L5: S10 | M5: S11 | N5: S12 | O5: S13 | P5: S14 | Q5: S15 | R5: S16 | S5: S17 | T5: S18 | U5: S19 | V5: S20 | W5: S21 | X5: S22 | Y5: S23 | Z5: S24 | AA5: S25 | AB5: S26 | AC5: S27 | AD5: S28 | AE5: S29 | AF5: S30 | AG5: S31 | AH5: S32 | AI5: S33 | AJ5: S34 | AK5: S35 | AL5: S36 | AM5: S37 | AN5: S38 | AO5: S39 | AP5: S40 | AQ5: S41 | AR5: S42 | AS5: S43 | AT5: S44 | AU5: S45 | AV5: S46 | AW5: S47 | AX5: S48 | AY5: S49 | AZ5: S50 | BA5: S51 | BB5: S52 | BC5: S53 | BD5: S54 | BE5: S55 | BF5: S56 | BG5: S57 | BH5: S58 | BI5: F3 | BJ5: F4 | BK5: F5 | BL5: F6 | BM5: F7 | BN5: F8 | BO5: F9 | BP5: F10 | BQ5: F11 | BR5: F12 | BS5: F13 | BT5: F14 | BU5: F15 | BV5: F16 | BW5: F17 | BX5: F18 | BY5: F19 | BZ5: F20 | CA5: F21 | CB5: F22 | CC5: F23 | CD5: F24 | CE5: F25 | CF5: F26 | CG5: F27 | CH5: F28 | CI5: F29 | CJ5: F30 | CK5: F31 | CL5: F32 | CM5: F33 | CN5: F34 | CO5: F35 | CP5: F36 | CQ5: F37 | CR5: F38 | CS5: F39 | CT5: F40 | CU5: F41 | CV5: F42 | CW5: F43 | CX5: F44 | CY5: F45 | CZ5: F46 | DA5: F47 | DB5: F48 | DC5: F49 | DD5: F50 | DE5: F51 | DF5: F52 | DG5: F53 | DH5: F54 | DI5: F55 | DJ5: F56 | DK5: F57 | DL5: F58 | DM5: F59 | DN5: F60 | DO5: F61 | DP5: F62
A6: Existing # | B6: New & Remote # | C6: ID | D6: QUOTEORDER | E6: EX_QUOTEORDER | F6: SWITCHPORTCOUNT | G6: TYPE | H6: BRAND | I6: GROUP | J6: SUBGROUP | K6: DESCSHORT | L6: NEW_HWCOST | M6: NEW_HWPARTNERNETCOST | N6: NEW_REBATE | O6: NEW_SWCOST | P6: NEW_SWPARTNERNETCOST | Q6: NEW_INSTALL | R6: NEW_PORTPROV | S6: NEW_EQUIPPROV | T6: NEW_EXTCONFIG | U6: NEW_EUTRAIN | V6: NEW_SHIPCOST | W6: NEW_COOPMKtg | X6: NEW_MAINTCOST | Y6: IHDS PRICE | Z6: EX_SWCOST | AA6: EX_PARTNERNETCOST | AB6: EX_INSTALL | AC6: EX_MAINTCOST | AD6: AREA_NAME | AE6: PORTCNT | AF6: PRODNUMACCTG | AG6: QUOTECAT | AH6: DESCQUOTE1 | AI6: FLEXNOTES | AJ6: SIPNOTES | AK6: NEW_SWID | AL6: EX_SWID | AM6: PN_TYPE | AN6: POLYCOM REBATE | AO6: EXISTING | AP6: BB_INSTALL | AQ6: SUBTORENTAL | AR6: ReapplytoCode | AS6: Ceiling | AT6: RENTOT | AU6: HWSWREB | AV6: PROVTTL | AW6: INST-TRAIN | AX6: PEL | AY6: SHIPCOST | AZ6: MAINTCOST | BA6: EX_HWSWREB | BB6: EX_PROVTTL | BC6: EX_INSTALL-TRAINING | BD6: EX_PEL | BE6: EX_MAINTCOST | BF6: DEMOQTY | BG6: QTYOR | BH6: EQUIPTYPE 0-1-2 | BI6: BC Base System Qty | BJ6: BC Entered Qty | BK6: OR Tab New Qtys Only | BL6: OR Tab Remote Qty Only | BM6: OR Tab Existing Qty Only | BN6: New (BC &OR Combo) | BO6: New SW (BC & OR Combo) | BP6: Existing SW Qty | BQ6: NEW Qty - Max of QtyOR, SW & Tab QTY | BR6: Existing Qty - Max of SW and OR | BS6: ALL QTY, New/Existing | BT6: OR Tab SW Qtys Only | BU6: BC Port Extension License Qty | BV6: Final Port Extension License Qty | BW6: Hardware Markup/Down | BX6: Software Markup/Markdown | BY6: Existing Phone SW Markup | BZ6: Hardware Price with Markup | CA6: Software Price with Markup | CB6: Existing Phone SW Price with Markup | CC6: Estimated Equipment Qty | CD6: Demo Kit | CE6: All Rebates | CF6: BB Install | CG6: PBX Markup Added | CH6: TOTAL NEW BASE | CI6: TOTAL EXISTING BASE | CJ6: Purchase Qty | CK6: Purchase/Lease EST Qty | CL6: Purchase/Lease Exact Qty | CM6: =CK6 -> Purchase/Lease EST Qty | CN6: =CL6 -> Purchase/Lease Exact Qty | CO6: Rent Qty | CP6: MHW Estimated Qty | CQ6: MHW Exact Qty | CR6: =CP6 -> MHW Estimated Qty | CS6: =CQ6 -> MHW Exact Qty | CT6: Existing Qty - All PMT | CU6: =CT6 -> Existing Qty - All PMT | CV6: PLEST YES | CW6: PLREAL YES | CX6: MHWEST YES | CY6: MHWREAL YES | CZ6: PLEST NO | DA6: PLREAL NO | DB6: MHWEST NO | DC6: MHWREAL NO | DD6: AVAILABLE FOR ANY MHW | DE6: Net MSRP (less Rebates) | DF6: S2S Rebate Only | DG6: Discounts | DH6: Markups | DI6: Net MSRP - Used for Order Detail, HW/SW/Rebate/Markup/Down | DJ6: OR Tab New Qtys Only HELPER 1 | DK6: OR Tab New Qtys Only HELPER 2 | DL6: JB_1972 | DM6: All Rebate per item | DN6: ALLOWMARKUP/DOWN | DO6: Quote ID for MHW Order Detail | DP6: HW and SW markup for Comp | DQ6: BC Ports | DR6: OR Ports | DS6: Final Ports | DT6: Order Detail Adjustment (ALL)
A7: =IF(SUM(BM7)>0,SUM(MAX(A$6:A6),1,IF(SUM(A$6:$A6)>0,0,$B$1)),0) -> 0 | B7: =IF(SUM(CC7,BI7:BK7,BO7,BQ7,BT7,BP7)<>0,MAX(B$6:B6)+1,0) -> 0 | C7: ADV-S2S-02008 | G7: Software | H7: S2S | I7: Advanced S2S | J7: Advanced S2S | K7: Star2Star Software for Provisioned Tier F Phones | L7: 0 | M7: 0 | N7: 0 | O7: 129.95 | P7: 71.39 | Q7: 0 | R7: 0 | S7: 0 | T7: 4.95 | U7: 0 | V7: 0 | W7: 3.24875 | X7: 40 | Y7: 0 | Z7: 0 | AA7: 0 | AB7: 0 | AE7: 1 | AF7: PROV | AM7: Existing | AO7: FALSE | AP7: None | AQ7: 0 | AR7: 0 | AS7: 0.05 | AT7: 0 | AU7: 129.95 | AV7: 20 | AW7: 4.95 | AX7: 49.95 | AY7: 0 | AZ7: 40 | BA7: 0 | BB7: 0 | BC7: 0 | BD7: 0 | BH7: 2,3,4,5 | BI7: =IFERROR(VLOOKUP($C7,dashqtys,5,FALSE),0) -> 0 | BJ7: =IFERROR(VLOOKUP($C7,dashqtys,2,FALSE),0) -> 0 | BK7: =IF(DK7=FALSE,DJ7,"") ->  | BL7: =IF(ref_NIMA,0,IFERROR(VLOOKUP($C7,area_phones,11,FALSE),0)) -> 0 | BM7: =IF(OR(ref_NIMA=TRUE,E7=0),0,IFERROR(VLOOKUP($C7,area_phones,13,FALSE),0)) -> 0 | BN7: =IF(ref_NIMA,MAX(BI7,BJ7),IF(BK7="",MAX(BI7,BJ7),BK7)) -> 0 | BO7: =SUMIF($AK$7:$AK$175,$C7,$BN$7:$BN$175) -> 0 | BP7: =SUMIF($AL$7:$AL$175,C7,$BM$7:$BM$175) -> 0 | BQ7: =IF(OR(JB_1972=FALSE,DL7="",AM7="Existing"),IF(BK7="",IF(ref_locid=20,BF7,MAX(BO7,BN7,BG7,BP7)),BK7),DL7) -> 0 | BR7: =MAX(BM7,IF(AM7="Existing",DL7,0)) -> 0 | BS7: =MAX(IF(ref_estquote,CC7,0),BQ7:BR7) -> 0 | BT7: =SUMIF($AK$7:$AK$175,$C7,$BK$7:$BK$175) -> 0 | BU7: =IF(AE7=0,0,IFERROR(BJ7*AE7,0)) -> 0 | BV7: =IF(AE7=0,0,IFERROR(BQ7*AE7,0)) -> 0 | BW7: =IFERROR(SUM(IF(BS7=0,0,1)*CG7,IF(DN7=3,IF(DT7<0,DT7,0),DT7)),0) -> 0 | BX7: =IF(AND(DT7>0,DN7=3),DT7,0) -> 0 | BY7: =IFERROR(VLOOKUP($AL7,area_salesagentmarkup,18,FALSE),0) -> 0 | BZ7: =SUM(BW7,L7) -> 0 | CA7: =SUM(BX7,O7) -> 129.95 | CB7: =SUM(BY7,Z7) -> 0 | CC7: =IFERROR(VLOOKUP($C7,dashqtys,4,FALSE),0) -> 0 | CD7: =IF(OR(BQ7>0,ref_addon=TRUE),Y7,Y7*ref_demokitdisc) -> 0 | CE7: =IFERROR(BQ7*SUM(N7,AN7),0) -> 0 | CF7: =VLOOKUP(AP7,'Reseller Info'!$AL$123:$AO$130,3,FALSE) -> 0 | CG7: =IF(OR(AQ7=2,AQ7=6),ref_pbxmuper,0) -> 0 | CH7: =SUM(AU7:AY7) -> 204.85 | CI7: =SUM(BA7:BD7) -> 0 | CJ7: =MAX(CK7:CL7) -> 0 | CK7: =IF(OR(CV7=TRUE,CZ7=TRUE),$BQ7,0) -> 0 | CL7: 0 | CM7: =IF(CV7=TRUE,$BQ7,0) -> 0 | CN7: =IF(OR(CW7=TRUE),$BQ7,0) -> 0 | CO7: =MAX(CP7:CQ7) -> 0 | CP7: =IF(OR(CX7=TRUE,DB7=TRUE),$BQ7,0) -> 0 | CQ7: =IF(OR(CY7=TRUE,DC7=TRUE),$BQ7,0) -> 0 | CR7: =IF(OR(CX7=TRUE),$CC7,0) -> 0 | CS7: =IF(OR(CY7=TRUE),$BQ7,0) -> 0 | CT7: =IF(OR(CW7=TRUE,DA7=TRUE),$BR7,0) -> 0 | CU7: =IF(CW7=TRUE,$BR7,0) -> 0 | CV7: =IF(ISERROR(FIND(CV$4,$BH7,1)),FALSE,TRUE) -> FALSE | CW7: FALSE | CX7: TRUE | CY7: TRUE | CZ7: TRUE | DA7: TRUE | DB7: FALSE | DC7: FALSE | DD7: =IF(OR(CX7=FALSE,CY7=FALSE),FALSE,TRUE) -> TRUE | DE7: =IF(H7="Polycom",BZ7,BZ7-N7) -> 0 | DF7: =IFERROR(BQ7*N7,0) -> 0 | DG7: =IF(AM7="Existing",IF($BY7<0,$BY7,0),SUM(IF($BX7<0,$BX7,0),IF($BW7<0,$BW7,0))) -> 0 | DH7: =IF(AM7="Existing",IF($BY7>0,$BY7,0),SUM(IF($BX7>0,$BX7,0),IF($BW7>0,$BW7,0))) -> 0 | DI7: =SUM(BZ7,CA7,-N7,-AN7) -> 129.95 | DJ7: =IF(ref_NIMA,"",IFERROR(VLOOKUP($C7,IF(AD7="area_pbx",area_pbx,area_phones),7,FALSE),"")) ->  | DK7: =IF(DJ7="","",ISBLANK(VLOOKUP($C7,IF(AD7="area_pbx",area_pbx,area_phones),7,FALSE))) ->  | DL7: =IF(NOT(JB_1972),"",IFERROR(IF(ISBLANK(VLOOKUP($C7,area_salesagentmarkup,16,FALSE)),"",VLOOKUP($C7,area_salesagentmarkup,16,FALSE)),"")) ->  | DM7: =SUM(AN7,N7) -> 0 | DN7: 4 | DO7: =AH7 -> 0 | DP7: =SUM(BW7:BX7) -> 0 | DQ7: =IFERROR(F7*BI7,0) -> 0 | DR7: =IFERROR(F7*(BK7),0) -> 0 | DS7: =IFERROR(F7*(CJ7),0) -> 0 | DT7: =IFERROR(VLOOKUP(C7,area_salesagentmarkup,18,FALSE),0) -> 0
A8: =IF(SUM(BM8)>0,SUM(MAX(A$6:A7),1,IF(SUM(A$6:$A7)>0,0,$B$1)),0) -> 0 | B8: =IF(SUM(CC8,BI8:BK8,BO8,BQ8,BT8,BP8)<>0,MAX(B$6:B7)+1,0) -> 0 | C8: ADV-S2S-02013 | G8: Software | H8: S2S | I8: Advanced S2S | J8: Advanced S2S | K8: Star2Star software for Polycom 300 series IP Phones | L8: 0 | M8: 0 | N8: 0 | O8: 44.95 | P8: 26.97 | Q8: 0 | R8: 0 | S8: 0 | T8: 0 | U8: 0 | V8: 0 | W8: 1.12375 | X8: 0 | Y8: 0 | Z8: 0 | AA8: 0 | AB8: 0 | AE8: 0 | AF8: PROV | AM8: Software | AO8: FALSE | AP8: None | AQ8: 0 | AR8: 0 | AS8: 0.05 | AT8: 0 | AU8: 44.95 | AV8: 0 | AW8: 0 | AX8: 0 | AY8: 0 | AZ8: 0 | BA8: 0 | BB8: 0 | BC8: 0 | BD8: 0 | BH8: 4,5 | BI8: 0 | BJ8: 0 | BK8: =IF(DK8=FALSE,DJ8,"") ->  | BL8: 0 | BM8: =IF(OR(ref_NIMA=TRUE,E8=0),0,IFERROR(VLOOKUP($C8,area_phones,13,FALSE),0)) -> 0 | BN8: 0 | BO8: =SUMIF($AK$7:$AK$175,$C8,$BN$7:$BN$175) -> 0 | BP8: 0 | BQ8: =IF(OR(JB_1972=FALSE,DL8="",AM8="Existing"),IF(BK8="",IF(ref_locid=20,BF8,MAX(BO8,BN8,BG8,BP8)),BK8),DL8) -> 0 | BR8: =MAX(BM8,IF(AM8="Existing",DL8,0)) -> 0 | BS8: 0 | BT8: 0 | BU8: =IF(AE8=0,0,IFERROR(BJ8*AE8,0)) -> 0 | BV8: =IF(AE8=0,0,IFERROR(BQ8*AE8,0)) -> 0 | BW8: 0 | BX8: 0 | BY8: 0 | BZ8: 0 | CA8: =SUM(BX8,O8) -> 44.95 | CB8: =SUM(BY8,Z8) -> 0 | CC8: 0 | CD8: =IF(OR(BQ8>0,ref_addon=TRUE),Y8,Y8*ref_demokitdisc) -> 0 | CE8: =IFERROR(BQ8*SUM(N8,AN8),0) -> 0 | CF8: =VLOOKUP(AP8,'Reseller Info'!$AL$123:$AO$130,3,FALSE) -> 0 | CG8: =IF(OR(AQ8=2,AQ8=6),ref_pbxmuper,0) -> 0 | CH8: =SUM(AU8:AY8) -> 44.95 | CI8: =SUM(BA8:BD8) -> 0 | CJ8: =MAX(CK8:CL8) -> 0 | CK8: 0 | CL8: 0 | CM8: =IF(CV8=TRUE,$BQ8,0) -> 0 | CN8: =IF(OR(CW8=TRUE),$BQ8,0) -> 0 | CO8: =MAX(CP8:CQ8) -> 0 | CP8: =IF(OR(CX8=TRUE,DB8=TRUE),$BQ8,0) -> 0 | CQ8: =IF(OR(CY8=TRUE,DC8=TRUE),$BQ8,0) -> 0 | CR8: =IF(OR(CX8=TRUE),$CC8,0) -> 0 | CS8: =IF(OR(CY8=TRUE),$BQ8,0) -> 0 | CT8: =IF(OR(CW8=TRUE,DA8=TRUE),$BR8,0) -> 0 | CU8: =IF(CW8=TRUE,$BR8,0) -> 0 | CV8: FALSE | CW8: FALSE | CX8: FALSE | CY8: FALSE | CZ8: TRUE | DA8: TRUE | DB8: FALSE | DC8: FALSE | DD8: =IF(OR(CX8=FALSE,CY8=FALSE),FALSE,TRUE) -> FALSE | DE8: 0 | DF8: =IFERROR(BQ8*N8,0) -> 0 | DG8: =IF(AM8="Existing",IF($BY8<0,$BY8,0),SUM(IF($BX8<0,$BX8,0),IF($BW8<0,$BW8,0))) -> 0 | DH8: =IF(AM8="Existing",IF($BY8>0,$BY8,0),SUM(IF($BX8>0,$BX8,0),IF($BW8>0,$BW8,0))) -> 0 | DI8: 44.95 | DJ8: =IF(ref_NIMA,"",IFERROR(VLOOKUP($C8,IF(AD8="area_pbx",area_pbx,area_phones),7,FALSE),"")) ->  | DK8: =IF(DJ8="","",ISBLANK(VLOOKUP($C8,IF(AD8="area_pbx",area_pbx,area_phones),7,FALSE))) ->  | DM8: =SUM(AN8,N8) -> 0 | DN8: 1 | DO8: =AH8 -> 0 | DP8: 0 | DQ8: =IFERROR(F8*BI8,0) -> 0 | DR8: =IFERROR(F8*(BK8),0) -> 0 | DS8: =IFERROR(F8*(CJ8),0) -> 0 | DT8: 0
A9: =IF(SUM(BM9)>0,SUM(MAX(A$6:A8),1,IF(SUM(A$6:$A8)>0,0,$B$1)),0) -> 0 | B9: =IF(SUM(CC9,BI9:BK9,BO9,BQ9,BT9,BP9)<>0,MAX(B$6:B8)+1,0) -> 0 | C9: ADV-S2S-02014 | G9: Software | H9: S2S | I9: Advanced S2S | J9: Advanced S2S | K9: Star2Star software for Polycom 450, 550, 560 & VVX 500 IP Phones | L9: 0 | M9: 0 | N9: 0 | O9: 84.95 | P9: 52.97 | Q9: 0 | R9: 0 | S9: 0 | T9: 0 | U9: 0 | V9: 0 | W9: 2.12375 | X9: 0 | Y9: 0 | Z9: 0 | AA9: 0 | AB9: 0 | AE9: 0 | AF9: PROV | AM9: Software | AO9: FALSE | AP9: None | AQ9: 0 | AR9: 0 | AS9: 0.05 | AT9: 0 | AU9: 84.95 | AV9: 0 | AW9: 0 | AX9: 0 | AY9: 0 | AZ9: 0 | BA9: 0 | BB9: 0 | BC9: 0 | BD9: 0 | BH9: 4,5 | BI9: 0 | BJ9: 0 | BL9: 0 | BM9: 0 | BN9: 0 | BO9: =SUMIF($AK$7:$AK$175,$C9,$BN$7:$BN$175) -> 0 | BP9: 0 | BQ9: =IF(OR(JB_1972=FALSE,DL9="",AM9="Existing"),IF(BK9="",IF(ref_locid=20,BF9,MAX(BO9,BN9,BG9,BP9)),BK9),DL9) -> 0 | BR9: 0 | BS9: 0 | BT9: 0 | BU9: 0 | BV9: 0 | BW9: 0 | BX9: 0 | BY9: 0 | BZ9: 0 | CA9: 84.95 | CB9: 0 | CC9: 0 | CD9: =IF(OR(BQ9>0,ref_addon=TRUE),Y9,Y9*ref_demokitdisc) -> 0 | CE9: =IFERROR(BQ9*SUM(N9,AN9),0) -> 0 | CF9: =VLOOKUP(AP9,'Reseller Info'!$AL$123:$AO$130,3,FALSE) -> 0 | CG9: 0 | CH9: 84.95 | CI9: 0 | CJ9: =MAX(CK9:CL9) -> 0 | CK9: 0 | CL9: 0 | CM9: 0 | CN9: 0 | CO9: 0 | CP9: 0 | CQ9: 0 | CR9: 0 | CS9: 0 | CT9: 0 | CU9: 0 | CV9: FALSE | CW9: FALSE | CX9: FALSE | CY9: FALSE | CZ9: TRUE | DA9: TRUE | DB9: FALSE | DC9: FALSE | DD9: FALSE | DE9: 0 | DF9: =IFERROR(BQ9*N9,0) -> 0 | DG9: =IF(AM9="Existing",IF($BY9<0,$BY9,0),SUM(IF($BX9<0,$BX9,0),IF($BW9<0,$BW9,0))) -> 0 | DH9: =IF(AM9="Existing",IF($BY9>0,$BY9,0),SUM(IF($BX9>0,$BX9,0),IF($BW9>0,$BW9,0))) -> 0 | DI9: 84.95 | DM9: 0 | DN9: 1 | DO9: 0 | DP9: 0 | DQ9: 0 | DR9: 0 | DS9: =IFERROR(F9*(CJ9),0) -> 0 | DT9: 0
A10: =IF(SUM(BM10)>0,SUM(MAX(A$6:A9),1,IF(SUM(A$6:$A9)>0,0,$B$1)),0) -> 0 | B10: =IF(SUM(CC10,BI10:BK10,BO10,BQ10,BT10,BP10)<>0,MAX(B$6:B9)+1,0) -> 0 | C10: ADV-S2S-02015 | G10: Software | H10: S2S | I10: Advanced S2S | J10: Advanced S2S | K10: Star2Star software for Polycom 650 & 670 IP Phones | L10: 0 | M10: 0 | N10: 0 | O10: 129.95 | P10: 76.97 | Q10: 0 | R10: 0 | S10: 0 | T10: 0 | U10: 0 | V10: 0 | W10: 3.24875 | X10: 0 | Y10: 0 | Z10: 0 | AA10: 0 | AB10: 0 | AE10: 0 | AF10: PROV | AM10: Software | AO10: FALSE | AP10: None | AQ10: 0 | AR10: 0 | AS10: 0.05 | AT10: 0 | AU10: 129.95 | AV10: 0 | AW10: 0 | AX10: 0 | AY10: 0 | AZ10: 0 | BA10: 0 | BB10: 0 | BC10: 0 | BD10: 0 | BH10: 4,5 | BI10: 0 | BJ10: 0 | BL10: 0 | BM10: 0 | BN10: 0 | BO10: =SUMIF($AK$7:$AK$175,$C10,$BN$7:$BN$175) -> 0 | BP10: 0 | BQ10: =IF(OR(JB_1972=FALSE,DL10="",AM10="Existing"),IF(BK10="",IF(ref_locid=20,BF10,MAX(BO10,BN10,BG10,BP10)),BK10),DL10) -> 0 | BR10: 0 | BS10: 0 | BT10: 0 | BU10: 0 | BV10: 0 | BW10: 0 | BX10: 0 | BY10: 0 | BZ10: 0 | CA10: 129.95 | CB10: 0 | CC10: 0 | CD10: =IF(OR(BQ10>0,ref_addon=TRUE),Y10,Y10*ref_demokitdisc) -> 0 | CE10: =IFERROR(BQ10*SUM(N10,AN10),0) -> 0 | CF10: =VLOOKUP(AP10,'Reseller Info'!$AL$123:$AO$130,3,FALSE) -> 0 | CG10: 0 | CH10: 129.95 | CI10: 0 | CJ10: =MAX(CK10:CL10) -> 0 | CK10: 0 | CL10: 0 | CM10: 0 | CN10: 0 | CO10: 0 | CP10: 0 | CQ10: 0 | CR10: 0 | CS10: 0 | CT10: 0 | CU10: 0 | CV10: FALSE | CW10: FALSE | CX10: FALSE | CY10: FALSE | CZ10: TRUE | DA10: TRUE | DB10: FALSE | DC10: FALSE | DD10: FALSE | DE10: 0 | DF10: =IFERROR(BQ10*N10,0) -> 0 | DG10: =IF(AM10="Existing",IF($BY10<0,$BY10,0),SUM(IF($BX10<0,$BX10,0),IF($BW10<0,$BW10,0))) -> 0 | DH10: =IF(AM10="Existing",IF($BY10>0,$BY10,0),SUM(IF($BX10>0,$BX10,0),IF($BW10>0,$BW10,0))) -> 0 | DI10: 129.95 | DM10: 0 | DN10: 1 | DO10: 0 | DP10: 0 | DQ10: 0 | DR10: 0 | DS10: =IFERROR(F10*(CJ10),0) -> 0 | DT10: 0
A11: =IF(SUM(BM11)>0,SUM(MAX(A$6:A10),1,IF(SUM(A$6:$A10)>0,0,$B$1)),0) -> 0 | B11: =IF(SUM(CC11,BI11:BK11,BO11,BQ11,BT11,BP11)<>0,MAX(B$6:B10)+1,0) -> 0 | C11: ADV-S2S-02016 | G11: Software | H11: S2S | I11: Advanced S2S | J11: Advanced S2S | K11: Star2Star software for Polycom Communicator | L11: 0 | M11: 0 | N11: 0 | O11: 19.95 | P11: 11.97 | Q11: 0 | R11: 0 | S11: 0 | T11: 0 | U11: 0 | V11: 0 | W11: 0.49875 | X11: 0 | Y11: 0 | Z11: 0 | AA11: 0 | AB11: 0 | AE11: 0 | AF11: PROV | AM11: Software | AO11: FALSE | AP11: None | AQ11: 0 | AR11: 0 | AS11: 0.05 | AT11: 0 | AU11: 19.95 | AV11: 0 | AW11: 0 | AX11: 0 | AY11: 0 | AZ11: 0 | BA11: 0 | BB11: 0 | BC11: 0 | BD11: 0 | BH11: 4,5 | BI11: 0 | BJ11: 0 | BL11: 0 | BM11: 0 | BN11: 0 | BO11: 0 | BP11: 0 | BQ11: =IF(OR(JB_1972=FALSE,DL11="",AM11="Existing"),IF(BK11="",IF(ref_locid=20,BF11,MAX(BO11,BN11,BG11,BP11)),BK11),DL11) -> 0 | BR11: 0 | BS11: 0 | BT11: 0 | BU11: 0 | BV11: 0 | BW11: 0 | BX11: 0 | BY11: 0 | BZ11: 0 | CA11: 19.95 | CB11: 0 | CC11: 0 | CD11: 0 | CE11: =IFERROR(BQ11*SUM(N11,AN11),0) -> 0 | CF11: =VLOOKUP(AP11,'Reseller Info'!$AL$123:$AO$130,3,FALSE) -> 0 | CG11: 0 | CH11: 19.95 | CI11: 0 | CJ11: =MAX(CK11:CL11) -> 0 | CK11: =IF(OR(CV11=TRUE,CZ11=TRUE),$BQ11,0) -> 0 | CL11: =IF(OR(CW11=TRUE,DA11=TRUE),$BQ11,0) -> 0 | CM11: 0 | CN11: 0 | CO11: 0 | CP11: 0 | CQ11: 0 | CR11: 0 | CS11: 0 | CT11: 0 | CU11: 0 | CV11: FALSE | CW11: FALSE | CX11: FALSE | CY11: FALSE | CZ11: TRUE | DA11: TRUE | DB11: FALSE | DC11: FALSE | DD11: FALSE | DE11: 0 | DF11: =IFERROR(BQ11*N11,0) -> 0 | DG11: =IF(AM11="Existing",IF($BY11<0,$BY11,0),SUM(IF($BX11<0,$BX11,0),IF($BW11<0,$BW11,0))) -> 0 | DH11: =IF(AM11="Existing",IF($BY11>0,$BY11,0),SUM(IF($BX11>0,$BX11,0),IF($BW11>0,$BW11,0))) -> 0 | DI11: 19.95 | DM11: 0 | DN11: 1 | DO11: 0 | DP11: 0 | DQ11: 0 | DR11: 0 | DS11: =IFERROR(F11*(CJ11),0) -> 0 | DT11: 0
A12: =IF(SUM(BM12)>0,SUM(MAX(A$6:A11),1,IF(SUM(A$6:$A11)>0,0,$B$1)),0) -> 0 | B12: =IF(SUM(CC12,BI12:BK12,BO12,BQ12,BT12,BP12)<>0,MAX(B$6:B11)+1,0) -> 0 | C12: ADV-S2S-02017 | G12: Software | H12: S2S | I12: Advanced S2S | J12: Advanced S2S | K12: Star2Star software for Provisioned Polycom 321, 335, VVX 300, 310, 400, 410 IP Phones | L12: 0 | M12: 0 | N12: 0 | O12: 44.95 | P12: 26.97 | Q12: 0 | R12: 0 | S12: 0 | T12: 4.95 | U12: 0 | V12: 0 | W12: 1.12375 | X12: 40 | Y12: 0 | Z12: 0 | AA12: 0 | AB12: 0 | AE12: 1 | AF12: PROV | AM12: Existing | AO12: FALSE | AP12: None | AQ12: 0 | AR12: 0 | AS12: 0.05 | AT12: 0 | AU12: 44.95 | AV12: 20 | AW12: 4.95 | AX12: 49.95 | AY12: 0 | AZ12: 40 | BA12: 0 | BB12: 0 | BC12: 0 | BD12: 0 | BH12: 2,3,4,5 | BI12: 0 | BJ12: 0 | BL12: 0 | BM12: 0 | BN12: 0 | BO12: 0 | BP12: 0 | BQ12: 0 | BR12: 0 | BS12: 0 | BT12: 0 | BU12: 0 | BV12: 0 | BW12: 0 | BX12: 0 | BY12: 0 | BZ12: 0 | CA12: 44.95 | CB12: 0 | CC12: 0 | CD12: 0 | CE12: 0 | CF12: =VLOOKUP(AP12,'Reseller Info'!$AL$123:$AO$130,3,FALSE) -> 0 | CG12: 0 | CH12: 119.85 | CI12: 0 | CJ12: 0 | CK12: 0 | CL12: 0 | CM12: 0 | CN12: 0 | CO12: 0 | CP12: 0 | CQ12: 0 | CR12: 0 | CS12: 0 | CT12: 0 | CU12: 0 | CV12: FALSE | CW12: FALSE | CX12: TRUE | CY12: TRUE | CZ12: TRUE | DA12: TRUE | DB12: FALSE | DC12: FALSE | DD12: TRUE | DE12: 0 | DF12: 0 | DG12: =IF(AM12="Existing",IF($BY12<0,$BY12,0),SUM(IF($BX12<0,$BX12,0),IF($BW12<0,$BW12,0))) -> 0 | DH12: =IF(AM12="Existing",IF($BY12>0,$BY12,0),SUM(IF($BX12>0,$BX12,0),IF($BW12>0,$BW12,0))) -> 0 | DI12: 44.95 | DM12: 0 | DN12: 4 | DO12: 0 | DP12: 0 | DQ12: 0 | DR12: 0 | DS12: 0 | DT12: 0
A13: =IF(SUM(BM13)>0,SUM(MAX(A$6:A12),1,IF(SUM(A$6:$A12)>0,0,$B$1)),0) -> 0 | B13: =IF(SUM(CC13,BI13:BK13,BO13,BQ13,BT13,BP13)<>0,MAX(B$6:B12)+1,0) -> 0 | C13: ADV-S2S-02018 | G13: Software | H13: S2S | I13: Advanced S2S | J13: Advanced S2S | K13: Star2Star software for Provisioned Polycom 400, 550, 560 &VVX 500 VVX 600 IP Phones | L13: 0 | M13: 0 | N13: 0 | O13: 84.95 | P13: 52.97 | Q13: 0 | R13: 0 | S13: 0 | T13: 4.95 | U13: 0 | V13: 0 | W13: 2.12375 | X13: 40 | Y13: 0 | Z13: 0 | AA13: 0 | AB13: 0 | AE13: 1 | AF13: PROV | AM13: Existing | AO13: FALSE | AP13: None | AQ13: 0 | AR13: 0 | AS13: 0.05 | AT13: 0 | AU13: 84.95 | AV13: 20 | AW13: 4.95 | AX13: 49.95 | AY13: 0 | AZ13: 40 | BA13: 0 | BB13: 0 | BC13: 0 | BD13: 0 | BH13: 2,3,4,5 | BI13: 0 | BJ13: 0 | BL13: 0 | BM13: 0 | BN13: 0 | BO13: 0 | BP13: 0 | BQ13: 0 | BR13: 0 | BS13: 0 | BT13: 0 | BU13: 0 | BV13: 0 | BW13: 0 | BX13: 0 | BY13: 0 | BZ13: 0 | CA13: 84.95 | CB13: 0 | CC13: 0 | CD13: 0 | CE13: 0 | CF13: =VLOOKUP(AP13,'Reseller Info'!$AL$123:$AO$130,3,FALSE) -> 0 | CG13: 0 | CH13: 159.85 | CI13: 0 | CJ13: 0 | CK13: 0 | CL13: 0 | CM13: 0 | CN13: 0 | CO13: 0 | CP13: 0 | CQ13: 0 | CR13: 0 | CS13: 0 | CT13: 0 | CU13: 0 | CV13: FALSE | CW13: FALSE | CX13: TRUE | CY13: TRUE | CZ13: TRUE | DA13: TRUE | DB13: FALSE | DC13: FALSE | DD13: TRUE | DE13: 0 | DF13: 0 | DG13: 0 | DH13: 0 | DI13: 84.95 | DM13: 0 | DN13: 4 | DO13: 0 | DP13: 0 | DQ13: 0 | DR13: 0 | DS13: 0 | DT13: 0
A14: =IF(SUM(BM14)>0,SUM(MAX(A$6:A13),1,IF(SUM(A$6:$A13)>0,0,$B$1)),0) -> 0 | B14: =IF(SUM(CC14,BI14:BK14,BO14,BQ14,BT14,BP14)<>0,MAX(B$6:B13)+1,0) -> 0 | C14: ADV-S2S-02019 | G14: Software | H14: S2S | I14: Advanced S2S | J14: Advanced S2S | K14: Star2Star software for Provisioned Polycom 650 & 670 IP Phones | L14: 0 | M14: 0 | N14: 0 | O14: 129.95 | P14: 76.97 | Q14: 0 | R14: 0 | S14: 0 | T14: 4.95 | U14: 0 | V14: 0 | W14: 3.24875 | X14: 40 | Y14: 0 | Z14: 0 | AA14: 0 | AB14: 0 | AE14: 1 | AF14: PROV | AM14: Existing | AO14: FALSE | AP14: None | AQ14: 0 | AR14: 0 | AS14: 0.05 | AT14: 0 | AU14: 129.95 | AV14: 20 | AW14: 4.95 | AX14: 49.95 | AY14: 0 | AZ14: 40 | BA14: 0 | BB14: 0 | BC14: 0 | BD14: 0 | BF14: 1 | BH14: 2,3,4,5 | BI14: 0 | BJ14: 0 | BL14: 0 | BM14: 0 | BN14: 0 | BO14: 0 | BP14: 0 | BQ14: 0 | BR14: 0 | BS14: 0 | BT14: 0 | BU14: 0 | BV14: 0 | BW14: 0 | BX14: 0 | BY14: 0 | BZ14: 0 | CA14: 129.95 | CB14: 0 | CC14: 0 | CD14: 0 | CE14: 0 | CF14: =VLOOKUP(AP14,'Reseller Info'!$AL$123:$AO$130,3,FALSE) -> 0 | CG14: 0 | CH14: 204.85 | CI14: 0 | CJ14: 0 | CK14: 0 | CL14: 0 | CM14: 0 | CN14: 0 | CO14: 0 | CP14: 0 | CQ14: 0 | CR14: 0 | CS14: 0 | CT14: 0 | CU14: 0 | CV14: FALSE | CW14: FALSE | CX14: TRUE | CY14: TRUE | CZ14: TRUE | DA14: TRUE | DB14: FALSE | DC14: FALSE | DD14: TRUE | DE14: 0 | DF14: 0 | DG14: 0 | DH14: 0 | DI14: 129.95 | DM14: 0 | DN14: 4 | DO14: 0 | DP14: 0 | DQ14: 0 | DR14: 0 | DS14: 0 | DT14: 0
A15: =IF(SUM(BM15)>0,SUM(MAX(A$6:A14),1,IF(SUM(A$6:$A14)>0,0,$B$1)),0) -> 0 | B15: =IF(SUM(CC15,BI15:BK15,BO15,BQ15,BT15,BP15)<>0,MAX(B$6:B14)+1,0) -> 0 | C15: ADV-S2S-02020 | G15: Software | H15: S2S | I15: Advanced S2S | J15: Advanced S2S | K15: Star2Star software for Provisioned Polycom Communicator | L15: 0 | M15: 0 | N15: 0 | O15: 19.95 | P15: 11.97 | Q15: 0 | R15: 0 | S15: 0 | T15: 4.95 | U15: 0 | V15: 0 | W15: 0.49875 | X15: 40 | Y15: 0 | Z15: 0 | AA15: 0 | AB15: 0 | AE15: 1 | AF15: PROV | AM15: Existing | AO15: FALSE | AP15: None | AQ15: 0 | AR15: 0 | AS15: 0.05 | AT15: 0 | AU15: 19.95 | AV15: 20 | AW15: 4.95 | AX15: 49.95 | AY15: 0 | AZ15: 40 | BA15: 0 | BB15: 0 | BC15: 0 | BD15: 0 | BH15: 2,3,4,5 | BI15: 0 | BJ15: 0 | BL15: 0 | BM15: 0 | BN15: 0 | BO15: 0 | BP15: 0 | BQ15: 0 | BR15: 0 | BS15: 0 | BT15: 0 | BU15: 0 | BV15: 0 | BW15: 0 | BX15: 0 | BY15: 0 | BZ15: 0 | CA15: 19.95 | CB15: 0 | CC15: 0 | CD15: 0 | CE15: 0 | CF15: =VLOOKUP(AP15,'Reseller Info'!$AL$123:$AO$130,3,FALSE) -> 0 | CG15: 0 | CH15: 94.85 | CI15: 0 | CJ15: 0 | CK15: 0 | CL15: 0 | CM15: 0 | CN15: 0 | CO15: 0 | CP15: 0 | CQ15: 0 | CR15: 0 | CS15: 0 | CT15: 0 | CU15: 0 | CV15: FALSE | CW15: FALSE | CX15: TRUE | CY15: TRUE | CZ15: TRUE | DA15: TRUE | DB15: FALSE | DC15: FALSE | DD15: TRUE | DE15: 0 | DF15: 0 | DG15: 0 | DH15: 0 | DI15: 19.95 | DM15: 0 | DN15: 4 | DO15: 0 | DP15: 0 | DQ15: 0 | DR15: 0 | DS15: 0 | DT15: 0
A16: =IF(SUM(BM16)>0,SUM(MAX(A$6:A15),1,IF(SUM(A$6:$A15)>0,0,$B$1)),0) -> 0 | B16: =IF(SUM(CC16,BI16:BK16,BO16,BQ16,BT16,BP16)<>0,MAX(B$6:B15)+1,0) -> 0 | C16: ADV-S2S-02021 | G16: Software | H16: S2S | I16: Advanced S2S | J16: Advanced S2S | K16: Star2Star software for Provisioned snom IP Phones (except 320 & 370) | L16: 0 | M16: 0 | N16: 0 | O16: 19.95 | P16: 11.97 | Q16: 0 | R16: 0 | S16: 0 | T16: 4.95 | U16: 0 | V16: 0 | W16: 0.49875 | X16: 40 | Y16: 0 | Z16: 0 | AA16: 0 | AB16: 0 | AE16: 1 | AF16: PROV | AM16: Existing | AO16: FALSE | AP16: None | AQ16: 0 | AR16: 0 | AS16: 0.05 | AT16: 0 | AU16: 19.95 | AV16: 20 | AW16: 4.95 | AX16: 49.95 | AY16: 0 | AZ16: 40 | BA16: 0 | BB16: 0 | BC16: 0 | BD16: 0 | BH16: 2,3,4,5 | BI16: 0 | BJ16: 0 | BL16: 0 | BM16: 0 | BN16: 0 | BO16: 0 | BP16: 0 | BQ16: 0 | BR16: 0 | BS16: 0 | BT16: 0 | BU16: 0 | BV16: 0 | BW16: 0 | BX16: 0 | BY16: 0 | BZ16: 0 | CA16: 19.95 | CB16: 0 | CC16: 0 | CD16: 0 | CE16: 0 | CF16: =VLOOKUP(AP16,'Reseller Info'!$AL$123:$AO$130,3,FALSE) -> 0 | CG16: 0 | CH16: 94.85 | CI16: 0 | CJ16: 0 | CK16: 0 | CL16: 0 | CM16: 0 | CN16: 0 | CO16: 0 | CP16: 0 | CQ16: 0 | CR16: 0 | CS16: 0 | CT16: 0 | CU16: 0 | CV16: FALSE | CW16: FALSE | CX16: TRUE | CY16: TRUE | CZ16: TRUE | DA16: TRUE | DB16: FALSE | DC16: FALSE | DD16: TRUE | DE16: 0 | DF16: 0 | DG16: 0 | DH16: 0 | DI16: 19.95 | DM16: 0 | DN16: 4 | DO16: 0 | DP16: 0 | DQ16: 0 | DR16: 0 | DS16: 0 | DT16: 0
A17: =IF(SUM(BM17)>0,SUM(MAX(A$6:A16),1,IF(SUM(A$6:$A16)>0,0,$B$1)),0) -> 0 | B17: =IF(SUM(CC17,BI17:BK17,BO17,BQ17,BT17,BP17)<>0,MAX(B$6:B16)+1,0) -> 0 | C17: ADV-S2S-02022 | G17: Software | H17: S2S | I17: Advanced S2S | J17: Advanced S2S | K17: Star2Star software for Provisioned snom (320 & 370) & Panasonic IP Phones | L17: 0 | M17: 0 | N17: 0 | O17: 29.5 | P17: 17.97 | Q17: 0 | R17: 0 | S17: 0 | T17: 4.95 | U17: 0 | V17: 0 | W17: 0.7375 | X17: 40 | Y17: 0 | Z17: 0 | AA17: 0 | AB17: 0 | AE17: 1 | AF17: PROV | AM17: Existing | AO17: FALSE | AP17: None | AQ17: 0 | AR17: 0 | AS17: 0.05 | AT17: 0 | AU17: 29.5 | AV17: 20 | AW17: 4.95 | AX17: 49.95 | AY17: 0 | AZ17: 40 | BA17: 0 | BB17: 0 | BC17: 0 | BD17: 0 | BH17: 2,3,4,5 | BI17: 0 | BJ17: 0 | BL17: 0 | BM17: 0 | BN17: 0 | BO17: 0 | BP17: 0 | BQ17: 0 | BR17: 0 | BS17: 0 | BT17: 0 | BU17: 0 | BV17: 0 | BW17: 0 | BX17: 0 | BY17: 0 | BZ17: 0 | CA17: 29.5 | CB17: 0 | CC17: 0 | CD17: 0 | CE17: 0 | CF17: =VLOOKUP(AP17,'Reseller Info'!$AL$123:$AO$130,3,FALSE) -> 0 | CG17: 0 | CH17: 104.4 | CI17: 0 | CJ17: 0 | CK17: 0 | CL17: 0 | CM17: 0 | CN17: 0 | CO17: 0 | CP17: 0 | CQ17: 0 | CR17: 0 | CS17: 0 | CT17: 0 | CU17: 0 | CV17: FALSE | CW17: FALSE | CX17: TRUE | CY17: TRUE | CZ17: TRUE | DA17: TRUE | DB17: FALSE | DC17: FALSE | DD17: TRUE | DE17: 0 | DF17: 0 | DG17: 0 | DH17: 0 | DI17: 29.5 | DM17: 0 | DN17: 4 | DO17: 0 | DP17: 0 | DQ17: 0 | DR17: 0 | DS17: 0 | DT17: 0
A18: =IF(SUM(BM18)>0,SUM(MAX(A$6:A17),1,IF(SUM(A$6:$A17)>0,0,$B$1)),0) -> 0 | B18: =IF(SUM(CC18,BI18:BK18,BO18,BQ18,BT18,BP18)<>0,MAX(B$6:B17)+1,0) -> 0 | C18: ADV-S2S-02027 | G18: Software | H18: S2S | I18: Advanced S2S | J18: Advanced S2S | K18: Star2Star software for Cisco SPA 303 IP Phones | L18: 0 | M18: 0 | N18: 0 | O18: 44.95 | P18: 26.97 | Q18: 0 | R18: 0 | S18: 0 | T18: 0 | U18: 0 | V18: 0 | W18: 1.12375 | X18: 0 | Y18: 0 | Z18: 0 | AA18: 0 | AB18: 0 | AE18: 0 | AF18: PROV | AM18: Software | AO18: FALSE | AP18: None | AQ18: 0 | AR18: 0 | AS18: 0.05 | AT18: 0 | AU18: 44.95 | AV18: 0 | AW18: 0 | AX18: 0 | AY18: 0 | AZ18: 0 | BA18: 0 | BB18: 0 | BC18: 0 | BD18: 0 | BH18: 4,5 | BI18: 0 | BJ18: 0 | BL18: 0 | BM18: 0 | BN18: 0 | BO18: 0 | BP18: 0 | BQ18: 0 | BR18: 0 | BS18: 0 | BT18: 0 | BU18: 0 | BV18: 0 | BW18: 0 | BX18: 0 | BY18: 0 | BZ18: 0 | CA18: 44.95 | CB18: 0 | CC18: 0 | CD18: 0 | CE18: 0 | CF18: =VLOOKUP(AP18,'Reseller Info'!$AL$123:$AO$130,3,FALSE) -> 0 | CG18: 0 | CH18: 44.95 | CI18: 0 | CJ18: 0 | CK18: 0 | CL18: 0 | CM18: 0 | CN18: 0 | CO18: 0 | CP18: 0 | CQ18: 0 | CR18: 0 | CS18: 0 | CT18: 0 | CU18: 0 | CV18: FALSE | CW18: FALSE | CX18: FALSE | CY18: FALSE | CZ18: TRUE | DA18: TRUE | DB18: FALSE | DC18: FALSE | DD18: FALSE | DE18: 0 | DF18: 0 | DG18: =IF(AM18="Existing",IF($BY18<0,$BY18,0),SUM(IF($BX18<0,$BX18,0),IF($BW18<0,$BW18,0))) -> 0 | DH18: =IF(AM18="Existing",IF($BY18>0,$BY18,0),SUM(IF($BX18>0,$BX18,0),IF($BW18>0,$BW18,0))) -> 0 | DI18: 44.95 | DM18: 0 | DN18: 1 | DO18: 0 | DP18: 0 | DQ18: 0 | DR18: 0 | DS18: 0 | DT18: 0
A19: =IF(SUM(BM19)>0,SUM(MAX(A$6:A18),1,IF(SUM(A$6:$A18)>0,0,$B$1)),0) -> 0 | B19: =IF(SUM(CC19,BI19:BK19,BO19,BQ19,BT19,BP19)<>0,MAX(B$6:B18)+1,0) -> 0 | C19: ADV-S2S-02028 | G19: Software | H19: S2S | I19: Advanced S2S | J19: Advanced S2S | K19: Star2Star software for Cisco SPA 502G, 512G IP Phones | L19: 0 | M19: 0 | N19: 0 | O19: 44.95 | P19: 26.97 | Q19: 0 | R19: 0 | S19: 0 | T19: 0 | U19: 0 | V19: 0 | W19: 1.12375 | X19: 0 | Y19: 0 | Z19: 0 | AA19: 0 | AB19: 0 | AE19: 0 | AF19: PROV | AM19: Software | AO19: FALSE | AP19: None | AQ19: 0 | AR19: 0 | AS19: 0.05 | AT19: 0 | AU19: 44.95 | AV19: 0 | AW19: 0 | AX19: 0 | AY19: 0 | AZ19: 0 | BA19: 0 | BB19: 0 | BC19: 0 | BD19: 0 | BH19: 4,5 | BI19: 0 | BJ19: 0 | BL19: 0 | BM19: 0 | BN19: 0 | BO19: 0 | BP19: 0 | BQ19: 0 | BR19: 0 | BS19: 0 | BT19: 0 | BU19: 0 | BV19: 0 | BW19: 0 | BX19: 0 | BY19: 0 | BZ19: 0 | CA19: 44.95 | CB19: 0 | CC19: 0 | CD19: 0 | CE19: 0 | CF19: =VLOOKUP(AP19,'Reseller Info'!$AL$123:$AO$130,3,FALSE) -> 0 | CG19: 0 | CH19: 44.95 | CI19: 0 | CJ19: 0 | CK19: 0 | CL19: 0 | CM19: 0 | CN19: 0 | CO19: 0 | CP19: 0 | CQ19: 0 | CR19: 0 | CS19: 0 | CT19: 0 | CU19: 0 | CV19: FALSE | CW19: FALSE | CX19: FALSE | CY19: FALSE | CZ19: TRUE | DA19: TRUE | DB19: FALSE | DC19: FALSE | DD19: FALSE | DE19: 0 | DF19: 0 | DG19: 0 | DH19: 0 | DI19: 44.95 | DM19: 0 | DN19: 1 | DO19: 0 | DP19: 0 | DQ19: 0 | DR19: 0 | DS19: 0 | DT19: 0
A20: =IF(SUM(BM20)>0,SUM(MAX(A$6:A19),1,IF(SUM(A$6:$A19)>0,0,$B$1)),0) -> 0 | B20: =IF(SUM(CC20,BI20:BK20,BO20,BQ20,BT20,BP20)<>0,MAX(B$6:B19)+1,0) -> 0 | C20: ADV-S2S-02029 | G20: Software | H20: S2S | I20: Advanced S2S | J20: Advanced S2S | K20: Star2Star software for Cisco SPA 504G, 514G IP Phones | L20: 0 | M20: 0 | N20: 0 | O20: 84.95 | P20: 50.97 | Q20: 0 | R20: 0 | S20: 0 | T20: 0 | U20: 0 | V20: 0 | W20: 2.12375 | X20: 0 | Y20: 0 | Z20: 0 | AA20: 0 | AB20: 0 | AE20: 0 | AF20: PROV | AM20: Software | AO20: FALSE | AP20: None | AQ20: 0 | AR20: 0 | AS20: 0.05 | AT20: 0 | AU20: 84.95 | AV20: 0 | AW20: 0 | AX20: 0 | AY20: 0 | AZ20: 0 | BA20: 0 | BB20: 0 | BC20: 0 | BD20: 0 | BH20: 4,5 | BI20: 0 | BJ20: 0 | BL20: 0 | BM20: 0 | BN20: 0 | BO20: =SUMIF($AK$7:$AK$175,$C20,$BN$7:$BN$175) -> 0 | BP20: 0 | BQ20: =IF(OR(JB_1972=FALSE,DL20="",AM20="Existing"),IF(BK20="",IF(ref_locid=20,BF20,MAX(BO20,BN20,BG20,BP20)),BK20),DL20) -> 0 | BR20: 0 | BS20: 0 | BT20: 0 | BU20: 0 | BV20: 0 | BW20: 0 | BX20: 0 | BY20: 0 | BZ20: 0 | CA20: 84.95 | CB20: 0 | CC20: 0 | CD20: =IF(OR(BQ20>0,ref_addon=TRUE),Y20,Y20*ref_demokitdisc) -> 0 | CE20: =IFERROR(BQ20*SUM(N20,AN20),0) -> 0 | CF20: =VLOOKUP(AP20,'Reseller Info'!$AL$123:$AO$130,3,FALSE) -> 0 | CG20: 0 | CH20: 84.95 | CI20: 0 | CJ20: =MAX(CK20:CL20) -> 0 | CK20: =IF(OR(CV20=TRUE,CZ20=TRUE),$BQ20,0) -> 0 | CL20: 0 | CM20: 0 | CN20: 0 | CO20: 0 | CP20: 0 | CQ20: 0 | CR20: 0 | CS20: 0 | CT20: 0 | CU20: 0 | CV20: FALSE | CW20: FALSE | CX20: FALSE | CY20: FALSE | CZ20: TRUE | DA20: TRUE | DB20: FALSE | DC20: FALSE | DD20: FALSE | DE20: 0 | DF20: =IFERROR(BQ20*N20,0) -> 0 | DG20: 0 | DH20: 0 | DI20: 84.95 | DM20: 0 | DN20: 1 | DO20: 0 | DP20: 0 | DQ20: 0 | DR20: 0 | DS20: =IFERROR(F20*(CJ20),0) -> 0 | DT20: 0
A21: =IF(SUM(BM21)>0,SUM(MAX(A$6:A20),1,IF(SUM(A$6:$A20)>0,0,$B$1)),0) -> 0 | B21: =IF(SUM(CC21,BI21:BK21,BO21,BQ21,BT21,BP21)<>0,MAX(B$6:B20)+1,0) -> 0 | C21: ADV-S2S-02030 | G21: Software | H21: S2S | I21: Advanced S2S | J21: Advanced S2S | K21: Star2Star software for Cisco SPA 508G, SPA 509G IP Phones | L21: 0 | M21: 0 | N21: 0 | O21: 84.95 | P21: 50.97 | Q21: 0 | R21: 0 | S21: 0 | T21: 0 | U21: 0 | V21: 0 | W21: 2.12375 | X21: 0 | Y21: 0 | Z21: 0 | AA21: 0 | AB21: 0 | AE21: 0 | AF21: PROV | AM21: Software | AO21: FALSE | AP21: None | AQ21: 0 | AR21: 0 | AS21: 0.05 | AT21: 0 | AU21: 84.95 | AV21: 0 | AW21: 0 | AX21: 0 | AY21: 0 | AZ21: 0 | BA21: 0 | BB21: 0 | BC21: 0 | BD21: 0 | BH21: 4,5 | BI21: 0 | BJ21: 0 | BL21: 0 | BM21: 0 | BN21: 0 | BO21: =SUMIF($AK$7:$AK$175,$C21,$BN$7:$BN$175) -> 0 | BP21: 0 | BQ21: =IF(OR(JB_1972=FALSE,DL21="",AM21="Existing"),IF(BK21="",IF(ref_locid=20,BF21,MAX(BO21,BN21,BG21,BP21)),BK21),DL21) -> 0 | BR21: 0 | BS21: 0 | BT21: 0 | BU21: 0 | BV21: 0 | BW21: 0 | BX21: 0 | BY21: 0 | BZ21: 0 | CA21: 84.95 | CB21: 0 | CC21: 0 | CD21: =IF(OR(BQ21>0,ref_addon=TRUE),Y21,Y21*ref_demokitdisc) -> 0 | CE21: =IFERROR(BQ21*SUM(N21,AN21),0) -> 0 | CF21: =VLOOKUP(AP21,'Reseller Info'!$AL$123:$AO$130,3,FALSE) -> 0 | CG21: 0 | CH21: 84.95 | CI21: 0 | CJ21: =MAX(CK21:CL21) -> 0 | CK21: 0 | CL21: 0 | CM21: 0 | CN21: 0 | CO21: 0 | CP21: 0 | CQ21: 0 | CR21: 0 | CS21: 0 | CT21: 0 | CU21: 0 | CV21: FALSE | CW21: FALSE | CX21: FALSE | CY21: FALSE | CZ21: TRUE | DA21: TRUE | DB21: FALSE | DC21: FALSE | DD21: FALSE | DE21: 0 | DF21: =IFERROR(BQ21*N21,0) -> 0 | DG21: 0 | DH21: 0 | DI21: 84.95 | DM21: 0 | DN21: 1 | DO21: 0 | DP21: 0 | DQ21: 0 | DR21: 0 | DS21: =IFERROR(F21*(CJ21),0) -> 0 | DT21: 0
A22: =IF(SUM(BM22)>0,SUM(MAX(A$6:A21),1,IF(SUM(A$6:$A21)>0,0,$B$1)),0) -> 0 | B22: =IF(SUM(CC22,BI22:BK22,BO22,BQ22,BT22,BP22)<>0,MAX(B$6:B21)+1,0) -> 0 | C22: ADV-S2S-02031 | G22: Software | H22: S2S | I22: Advanced S2S | J22: Advanced S2S | K22: Star2Star software for Cisco 525G2 IP Phones | L22: 0 | M22: 0 | N22: 0 | O22: 129.95 | P22: 76.97 | Q22: 0 | R22: 0 | S22: 0 | T22: 0 | U22: 0 | V22: 0 | W22: 3.24875 | X22: 0 | Y22: 0 | Z22: 0 | AA22: 0 | AB22: 0 | AE22: 0 | AF22: PROV | AM22: Software | AO22: FALSE | AP22: None | AQ22: 0 | AR22: 0 | AS22: 0.05 | AT22: 0 | AU22: 129.95 | AV22: 0 | AW22: 0 | AX22: 0 | AY22: 0 | AZ22: 0 | BA22: 0 | BB22: 0 | BC22: 0 | BD22: 0 | BF22: 1 | BH22: 4,5 | BI22: 0 | BJ22: 0 | BL22: 0 | BM22: 0 | BN22: 0 | BO22: =SUMIF($AK$7:$AK$175,$C22,$BN$7:$BN$175) -> 0 | BP22: 0 | BQ22: =IF(OR(JB_1972=FALSE,DL22="",AM22="Existing"),IF(BK22="",IF(ref_locid=20,BF22,MAX(BO22,BN22,BG22,BP22)),BK22),DL22) -> 0 | BR22: 0 | BS22: 0 | BT22: 0 | BU22: 0 | BV22: 0 | BW22: 0 | BX22: 0 | BY22: 0 | BZ22: 0 | CA22: 129.95 | CB22: 0 | CC22: 0 | CD22: =IF(OR(BQ22>0,ref_addon=TRUE),Y22,Y22*ref_demokitdisc) -> 0 | CE22: =IFERROR(BQ22*SUM(N22,AN22),0) -> 0 | CF22: =VLOOKUP(AP22,'Reseller Info'!$AL$123:$AO$130,3,FALSE) -> 0 | CG22: 0 | CH22: 129.95 | CI22: 0 | CJ22: =MAX(CK22:CL22) -> 0 | CK22: 0 | CL22: 0 | CM22: 0 | CN22: 0 | CO22: 0 | CP22: 0 | CQ22: 0 | CR22: 0 | CS22: 0 | CT22: 0 | CU22: 0 | CV22: FALSE | CW22: FALSE | CX22: FALSE | CY22: FALSE | CZ22: TRUE | DA22: TRUE | DB22: FALSE | DC22: FALSE | DD22: FALSE | DE22: 0 | DF22: =IFERROR(BQ22*N22,0) -> 0 | DG22: 0 | DH22: 0 | DI22: 129.95 | DM22: 0 | DN22: 1 | DO22: 0 | DP22: 0 | DQ22: 0 | DR22: 0 | DS22: =IFERROR(F22*(CJ22),0) -> 0 | DT22: 0
A23: =IF(SUM(BM23)>0,SUM(MAX(A$6:A22),1,IF(SUM(A$6:$A22)>0,0,$B$1)),0) -> 0 | B23: =IF(SUM(CC23,BI23:BK23,BO23,BQ23,BT23,BP23)<>0,MAX(B$6:B22)+1,0) -> 0 | C23: ADV-S2S-02032 | G23: Software | H23: S2S | I23: Advanced S2S | J23: Advanced S2S | K23: Star2Star software for Polycom 5000/6000 IP Conference Phones | L23: 0 | M23: 0 | N23: 0 | O23: 129.95 | P23: 76.97 | Q23: 0 | R23: 0 | S23: 0 | T23: 0 | U23: 0 | V23: 0 | W23: 3.24875 | X23: 0 | Y23: 0 | Z23: 0 | AA23: 0 | AB23: 0 | AE23: 0 | AF23: PROV | AM23: Software | AO23: FALSE | AP23: None | AQ23: 0 | AR23: 0 | AS23: 0.05 | AT23: 0 | AU23: 129.95 | AV23: 0 | AW23: 0 | AX23: 0 | AY23: 0 | AZ23: 0 | BA23: 0 | BB23: 0 | BC23: 0 | BD23: 0 | BH23: 4,5 | BI23: 0 | BJ23: 0 | BL23: 0 | BM23: 0 | BN23: 0 | BO23: =SUMIF($AK$7:$AK$175,$C23,$BN$7:$BN$175) -> 0 | BP23: 0 | BQ23: =IF(OR(JB_1972=FALSE,DL23="",AM23="Existing"),IF(BK23="",IF(ref_locid=20,BF23,MAX(BO23,BN23,BG23,BP23)),BK23),DL23) -> 0 | BR23: 0 | BS23: 0 | BT23: 0 | BU23: 0 | BV23: 0 | BW23: 0 | BX23: 0 | BY23: 0 | BZ23: 0 | CA23: 129.95 | CB23: 0 | CC23: 0 | CD23: =IF(OR(BQ23>0,ref_addon=TRUE),Y23,Y23*ref_demokitdisc) -> 0 | CE23: =IFERROR(BQ23*SUM(N23,AN23),0) -> 0 | CF23: =VLOOKUP(AP23,'Reseller Info'!$AL$123:$AO$130,3,FALSE) -> 0 | CG23: 0 | CH23: 129.95 | CI23: 0 | CJ23: =MAX(CK23:CL23) -> 0 | CK23: 0 | CL23: 0 | CM23: 0 | CN23: 0 | CO23: 0 | CP23: 0 | CQ23: 0 | CR23: 0 | CS23: 0 | CT23: 0 | CU23: 0 | CV23: =IF(ISERROR(FIND(CV$4,$BH23,1)),FALSE,TRUE) -> FALSE | CW23: FALSE | CX23: FALSE | CY23: FALSE | CZ23: TRUE | DA23: TRUE | DB23: FALSE | DC23: FALSE | DD23: FALSE | DE23: 0 | DF23: =IFERROR(BQ23*N23,0) -> 0 | DG23: 0 | DH23: 0 | DI23: 129.95 | DM23: 0 | DN23: 1 | DO23: 0 | DP23: 0 | DQ23: 0 | DR23: 0 | DS23: =IFERROR(F23*(CJ23),0) -> 0 | DT23: 0
A24: =IF(SUM(BM24)>0,SUM(MAX(A$6:A23),1,IF(SUM(A$6:$A23)>0,0,$B$1)),0) -> 0 | B24: =IF(SUM(CC24,BI24:BK24,BO24,BQ24,BT24,BP24)<>0,MAX(B$6:B23)+1,0) -> 0 | C24: ADV-S2S-02033 | G24: Software | H24: S2S | I24: Advanced S2S | J24: Advanced S2S | K24: Star2Star software for provisioned Cisco SPA 303 IP Phones | L24: 0 | M24: 0 | N24: 0 | O24: 44.95 | P24: 37.46 | Q24: 0 | R24: 0 | S24: 0 | T24: 4.95 | U24: 0 | V24: 0 | W24: 1.12375 | X24: 40 | Y24: 0 | Z24: 0 | AA24: 0 | AB24: 0 | AE24: 1 | AF24: PROV | AM24: Existing | AO24: FALSE | AP24: None | AQ24: 0 | AR24: 0 | AS24: 0.05 | AT24: 0 | AU24: 44.95 | AV24: 20 | AW24: 4.95 | AX24: 49.95 | AY24: 0 | AZ24: 40 | BA24: 0 | BB24: 0 | BC24: 0 | BD24: 0 | BH24: 2,3,4,5 | BI24: 0 | BJ24: 0 | BL24: 0 | BM24: 0 | BN24: 0 | BO24: 0 | BP24: 0 | BQ24: 0 | BR24: 0 | BS24: 0 | BT24: 0 | BU24: 0 | BV24: 0 | BW24: 0 | BX24: 0 | BY24: 0 | BZ24: 0 | CA24: 44.95 | CB24: 0 | CC24: 0 | CD24: 0 | CE24: 0 | CF24: =VLOOKUP(AP24,'Reseller Info'!$AL$123:$AO$130,3,FALSE) -> 0 | CG24: 0 | CH24: 119.85 | CI24: 0 | CJ24: 0 | CK24: 0 | CL24: 0 | CM24: 0 | CN24: 0 | CO24: 0 | CP24: 0 | CQ24: 0 | CR24: 0 | CS24: 0 | CT24: 0 | CU24: 0 | CV24: FALSE | CW24: FALSE | CX24: TRUE | CY24: TRUE | CZ24: TRUE | DA24: TRUE | DB24: FALSE | DC24: FALSE | DD24: TRUE | DE24: 0 | DF24: 0 | DG24: 0 | DH24: 0 | DI24: 44.95 | DM24: 0 | DN24: 4 | DO24: 0 | DP24: 0 | DQ24: 0 | DR24: 0 | DS24: 0 | DT24: 0
A25: =IF(SUM(BM25)>0,SUM(MAX(A$6:A24),1,IF(SUM(A$6:$A24)>0,0,$B$1)),0) -> 0 | B25: =IF(SUM(CC25,BI25:BK25,BO25,BQ25,BT25,BP25)<>0,MAX(B$6:B24)+1,0) -> 0 | C25: ADV-S2S-02034 | G25: Software | H25: S2S | I25: Advanced S2S | J25: Advanced S2S | K25: Star2Star software for provisioned Cisco SPA 502G, 512G IP Phones | L25: 0 | M25: 0 | N25: 0 | O25: 44.95 | P25: 26.97 | Q25: 0 | R25: 0 | S25: 0 | T25: 4.95 | U25: 0 | V25: 0 | W25: 1.12375 | X25: 40 | Y25: 0 | Z25: 0 | AA25: 0 | AB25: 0 | AE25: 1 | AF25: PROV | AM25: Existing | AO25: FALSE | AP25: None | AQ25: 0 | AR25: 0 | AS25: 0.05 | AT25: 0 | AU25: 44.95 | AV25: 20 | AW25: 4.95 | AX25: 49.95 | AY25: 0 | AZ25: 40 | BA25: 0 | BB25: 0 | BC25: 0 | BD25: 0 | BH25: 2,3,4,5 | BI25: 0 | BJ25: 0 | BL25: 0 | BM25: 0 | BN25: 0 | BO25: 0 | BP25: 0 | BQ25: 0 | BR25: 0 | BS25: 0 | BT25: 0 | BU25: 0 | BV25: 0 | BW25: 0 | BX25: 0 | BY25: 0 | BZ25: 0 | CA25: 44.95 | CB25: 0 | CC25: 0 | CD25: 0 | CE25: 0 | CF25: =VLOOKUP(AP25,'Reseller Info'!$AL$123:$AO$130,3,FALSE) -> 0 | CG25: 0 | CH25: 119.85 | CI25: 0 | CJ25: 0 | CK25: 0 | CL25: 0 | CM25: 0 | CN25: 0 | CO25: 0 | CP25: 0 | CQ25: 0 | CR25: 0 | CS25: 0 | CT25: 0 | CU25: 0 | CV25: FALSE | CW25: FALSE | CX25: TRUE | CY25: TRUE | CZ25: TRUE | DA25: TRUE | DB25: FALSE | DC25: FALSE | DD25: TRUE | DE25: 0 | DF25: 0 | DG25: 0 | DH25: 0 | DI25: 44.95 | DM25: 0 | DN25: 4 | DO25: 0 | DP25: 0 | DQ25: 0 | DR25: 0 | DS25: 0 | DT25: 0
A26: =IF(SUM(BM26)>0,SUM(MAX(A$6:A25),1,IF(SUM(A$6:$A25)>0,0,$B$1)),0) -> 0 | B26: =IF(SUM(CC26,BI26:BK26,BO26,BQ26,BT26,BP26)<>0,MAX(B$6:B25)+1,0) -> 0 | C26: ADV-S2S-02035 | G26: Software | H26: S2S | I26: Advanced S2S | J26: Advanced S2S | K26: Star2Star software for provisioned Cisco SPA 504G, 514G IP Phones | L26: 0 | M26: 0 | N26: 0 | O26: 84.95 | P26: 50.97 | Q26: 0 | R26: 0 | S26: 0 | T26: 4.95 | U26: 0 | V26: 0 | W26: 2.12375 | X26: 40 | Y26: 0 | Z26: 0 | AA26: 0 | AB26: 0 | AE26: 1 | AF26: PROV | AM26: Existing | AO26: FALSE | AP26: None | AQ26: 0 | AR26: 0 | AS26: 0.05 | AT26: 0 | AU26: 84.95 | AV26: 20 | AW26: 4.95 | AX26: 49.95 | AY26: 0 | AZ26: 40 | BA26: 0 | BB26: 0 | BC26: 0 | BD26: 0 | BH26: 2,3,4,5 | BI26: 0 | BJ26: 0 | BL26: 0 | BM26: 0 | BN26: 0 | BO26: 0 | BP26: 0 | BQ26: 0 | BR26: 0 | BS26: 0 | BT26: 0 | BU26: 0 | BV26: 0 | BW26: 0 | BX26: 0 | BY26: 0 | BZ26: 0 | CA26: 84.95 | CB26: 0 | CC26: 0 | CD26: 0 | CE26: 0 | CF26: =VLOOKUP(AP26,'Reseller Info'!$AL$123:$AO$130,3,FALSE) -> 0 | CG26: 0 | CH26: 159.85 | CI26: 0 | CJ26: 0 | CK26: 0 | CL26: 0 | CM26: 0 | CN26: 0 | CO26: 0 | CP26: 0 | CQ26: 0 | CR26: 0 | CS26: 0 | CT26: 0 | CU26: 0 | CV26: FALSE | CW26: FALSE | CX26: TRUE | CY26: TRUE | CZ26: TRUE | DA26: TRUE | DB26: FALSE | DC26: FALSE | DD26: TRUE | DE26: 0 | DF26: 0 | DG26: 0 | DH26: 0 | DI26: 84.95 | DM26: 0 | DN26: 4 | DO26: 0 | DP26: 0 | DQ26: 0 | DR26: 0 | DS26: 0 | DT26: 0
A27: =IF(SUM(BM27)>0,SUM(MAX(A$6:A26),1,IF(SUM(A$6:$A26)>0,0,$B$1)),0) -> 0 | B27: =IF(SUM(CC27,BI27:BK27,BO27,BQ27,BT27,BP27)<>0,MAX(B$6:B26)+1,0) -> 0 | C27: ADV-S2S-02036 | G27: Software | H27: S2S | I27: Advanced S2S | J27: Advanced S2S | K27: Star2Star software for provisioned Cisco SPA 508G, SPA 509G IP Phones | L27: 0 | M27: 0 | N27: 0 | O27: 84.95 | P27: 50.97 | Q27: 0 | R27: 0 | S27: 0 | T27: 4.95 | U27: 0 | V27: 0 | W27: 2.12375 | X27: 40 | Y27: 0 | Z27: 0 | AA27: 0 | AB27: 0 | AE27: 1 | AF27: PROV | AM27: Existing | AO27: FALSE | AP27: None | AQ27: 0 | AR27: 0 | AS27: 0.05 | AT27: 0 | AU27: 84.95 | AV27: 20 | AW27: 4.95 | AX27: 49.95 | AY27: 0 | AZ27: 40 | BA27: 0 | BB27: 0 | BC27: 0 | BD27: 0 | BH27: 2,3,4,5 | BI27: 0 | BJ27: 0 | BL27: 0 | BM27: 0 | BN27: 0 | BO27: 0 | BP27: 0 | BQ27: 0 | BR27: 0 | BS27: 0 | BT27: 0 | BU27: 0 | BV27: 0 | BW27: 0 | BX27: 0 | BY27: 0 | BZ27: 0 | CA27: 84.95 | CB27: 0 | CC27: 0 | CD27: 0 | CE27: 0 | CF27: =VLOOKUP(AP27,'Reseller Info'!$AL$123:$AO$130,3,FALSE) -> 0 | CG27: 0 | CH27: 159.85 | CI27: 0 | CJ27: 0 | CK27: 0 | CL27: 0 | CM27: 0 | CN27: 0 | CO27: 0 | CP27: 0 | CQ27: 0 | CR27: 0 | CS27: 0 | CT27: 0 | CU27: 0 | CV27: FALSE | CW27: FALSE | CX27: TRUE | CY27: TRUE | CZ27: TRUE | DA27: TRUE | DB27: FALSE | DC27: FALSE | DD27: TRUE | DE27: 0 | DF27: 0 | DG27: 0 | DH27: 0 | DI27: 84.95 | DM27: 0 | DN27: 4 | DO27: 0 | DP27: 0 | DQ27: 0 | DR27: 0 | DS27: 0 | DT27: 0
A28: =IF(SUM(BM28)>0,SUM(MAX(A$6:A27),1,IF(SUM(A$6:$A27)>0,0,$B$1)),0) -> 0 | B28: =IF(SUM(CC28,BI28:BK28,BO28,BQ28,BT28,BP28)<>0,MAX(B$6:B27)+1,0) -> 0 | C28: ADV-S2S-02037 | G28: Software | H28: S2S | I28: Advanced S2S | J28: Advanced S2S | K28: Star2Star software for provisioned Cisco 525 and 525G2 IP Phones | L28: 0 | M28: 0 | N28: 0 | O28: 129.95 | P28: 76.97 | Q28: 0 | R28: 0 | S28: 0 | T28: 4.95 | U28: 0 | V28: 0 | W28: 3.24875 | X28: 40 | Y28: 0 | Z28: 0 | AA28: 0 | AB28: 0 | AE28: 1 | AF28: PROV | AM28: Existing | AO28: FALSE | AP28: None | AQ28: 0 | AR28: 0 | AS28: 0.05 | AT28: 0 | AU28: 129.95 | AV28: 20 | AW28: 4.95 | AX28: 49.95 | AY28: 0 | AZ28: 40 | BA28: 0 | BB28: 0 | BC28: 0 | BD28: 0 | BH28: 2,3,4,5 | BI28: 0 | BJ28: 0 | BL28: 0 | BM28: 0 | BN28: 0 | BO28: 0 | BP28: 0 | BQ28: 0 | BR28: 0 | BS28: 0 | BT28: 0 | BU28: 0 | BV28: 0 | BW28: 0 | BX28: 0 | BY28: 0 | BZ28: 0 | CA28: 129.95 | CB28: 0 | CC28: 0 | CD28: 0 | CE28: 0 | CF28: =VLOOKUP(AP28,'Reseller Info'!$AL$123:$AO$130,3,FALSE) -> 0 | CG28: 0 | CH28: 204.85 | CI28: 0 | CJ28: 0 | CK28: 0 | CL28: 0 | CM28: 0 | CN28: 0 | CO28: 0 | CP28: 0 | CQ28: 0 | CR28: 0 | CS28: 0 | CT28: 0 | CU28: 0 | CV28: FALSE | CW28: FALSE | CX28: TRUE | CY28: TRUE | CZ28: TRUE | DA28: TRUE | DB28: FALSE | DC28: FALSE | DD28: TRUE | DE28: 0 | DF28: 0 | DG28: 0 | DH28: 0 | DI28: 129.95 | DM28: 0 | DN28: 4 | DO28: 0 | DP28: 0 | DQ28: 0 | DR28: 0 | DS28: 0 | DT28: 0
A29: =IF(SUM(BM29)>0,SUM(MAX(A$6:A28),1,IF(SUM(A$6:$A28)>0,0,$B$1)),0) -> 0 | B29: =IF(SUM(CC29,BI29:BK29,BO29,BQ29,BT29,BP29)<>0,MAX(B$6:B28)+1,0) -> 0 | C29: ADV-S2S-02038 | G29: Software | H29: S2S | I29: Advanced S2S | J29: Advanced S2S | K29: Star2Star software for provisioned Polycom 5000/6000 IP Conference Phones | L29: 0 | M29: 0 | N29: 0 | O29: 129.95 | P29: 76.97 | Q29: 0 | R29: 0 | S29: 0 | T29: 4.95 | U29: 0 | V29: 0 | W29: 3.24875 | X29: 40 | Y29: 0 | Z29: 0 | AA29: 0 | AB29: 0 | AE29: 1 | AF29: PROV | AM29: Existing | AO29: FALSE | AP29: None | AQ29: 0 | AR29: 0 | AS29: 0.05 | AT29: 0 | AU29: 129.95 | AV29: 20 | AW29: 4.95 | AX29: 49.95 | AY29: 0 | AZ29: 40 | BA29: 0 | BB29: 0 | BC29: 0 | BD29: 0 | BH29: 2,3,4,5 | BI29: 0 | BJ29: 0 | BL29: 0 | BM29: 0 | BN29: 0 | BO29: 0 | BP29: 0 | BQ29: 0 | BR29: 0 | BS29: 0 | BT29: 0 | BU29: 0 | BV29: 0 | BW29: 0 | BX29: 0 | BY29: 0 | BZ29: 0 | CA29: 129.95 | CB29: 0 | CC29: 0 | CD29: 0 | CE29: 0 | CF29: =VLOOKUP(AP29,'Reseller Info'!$AL$123:$AO$130,3,FALSE) -> 0 | CG29: 0 | CH29: 204.85 | CI29: 0 | CJ29: 0 | CK29: 0 | CL29: 0 | CM29: 0 | CN29: 0 | CO29: 0 | CP29: 0 | CQ29: 0 | CR29: 0 | CS29: 0 | CT29: 0 | CU29: 0 | CV29: FALSE | CW29: FALSE | CX29: TRUE | CY29: TRUE | CZ29: TRUE | DA29: TRUE | DB29: FALSE | DC29: FALSE | DD29: TRUE | DE29: 0 | DF29: 0 | DG29: 0 | DH29: 0 | DI29: 129.95 | DM29: 0 | DN29: 4 | DO29: 0 | DP29: 0 | DQ29: 0 | DR29: 0 | DS29: 0 | DT29: 0
A30: =IF(SUM(BM30)>0,SUM(MAX(A$6:A29),1,IF(SUM(A$6:$A29)>0,0,$B$1)),0) -> 0 | B30: =IF(SUM(CC30,BI30:BK30,BO30,BQ30,BT30,BP30)<>0,MAX(B$6:B29)+1,0) -> 0 | C30: ADV-S2S-02050 | G30: Software | H30: S2S | I30: Advanced S2S | J30: Advanced S2S | K30: Star2Star Software for Provisioned Tier D Linksys 7900 series Phones | L30: 0 | M30: 0 | N30: 0 | O30: 60 | P30: 36 | Q30: 0 | R30: 0 | S30: 0 | T30: 4.95 | U30: 0 | V30: 0 | W30: 0 | X30: 40 | Y30: 0 | Z30: 0 | AA30: 0 | AB30: 0 | AE30: 1 | AF30: PROV | AM30: Existing | AO30: FALSE | AP30: None | AQ30: 0 | AR30: 0 | AS30: 0.05 | AT30: 0 | AU30: 60 | AV30: 20 | AW30: 4.95 | AX30: 49.95 | AY30: 0 | AZ30: 40 | BA30: 0 | BB30: 0 | BC30: 0 | BD30: 0 | BH30: 2,3,4,5 | BI30: 0 | BJ30: 0 | BL30: 0 | BM30: 0 | BN30: 0 | BO30: 0 | BP30: 0 | BQ30: 0 | BR30: 0 | BS30: 0 | BT30: 0 | BU30: 0 | BV30: 0 | BW30: 0 | BX30: 0 | BY30: 0 | BZ30: 0 | CA30: 60 | CB30: 0 | CC30: 0 | CD30: 0 | CE30: 0 | CF30: =VLOOKUP(AP30,'Reseller Info'!$AL$123:$AO$130,3,FALSE) -> 0 | CG30: 0 | CH30: 134.9 | CI30: 0 | CJ30: 0 | CK30: 0 | CL30: 0 | CM30: 0 | CN30: 0 | CO30: 0 | CP30: 0 | CQ30: 0 | CR30: 0 | CS30: 0 | CT30: 0 | CU30: 0 | CV30: FALSE | CW30: FALSE | CX30: TRUE | CY30: TRUE | CZ30: TRUE | DA30: TRUE | DB30: FALSE | DC30: FALSE | DD30: TRUE | DE30: 0 | DF30: 0 | DG30: 0 | DH30: 0 | DI30: 60 | DM30: 0 | DN30: 4 | DO30: 0 | DP30: 0 | DQ30: 0 | DR30: 0 | DS30: 0 | DT30: 0
A31: =IF(SUM(BM31)>0,SUM(MAX(A$6:A30),1,IF(SUM(A$6:$A30)>0,0,$B$1)),0) -> 0 | B31: =IF(SUM(CC31,BI31:BK31,BO31,BQ31,BT31,BP31)<>0,MAX(B$6:B30)+1,0) -> 0 | C31: ADV-S2S-02060 | G31: Software | H31: S2S | I31: Advanced S2S | J31: Advanced S2S | K31: Star2Star Software for Provisioned Non-Supported Phones | L31: 0 | M31: 0 | N31: 0 | O31: 129.95 | P31: 71.39 | Q31: 0 | R31: 0 | S31: 0 | T31: 4.95 | U31: 0 | V31: 0 | W31: 3.24875 | X31: 40 | Y31: 0 | Z31: 0 | AA31: 0 | AB31: 0 | AE31: 1 | AF31: PROV | AM31: Existing | AO31: FALSE | AP31: None | AQ31: 0 | AR31: 0 | AS31: 0.05 | AT31: 0 | AU31: 129.95 | AV31: 20 | AW31: 4.95 | AX31: 49.95 | AY31: 0 | AZ31: 40 | BA31: 0 | BB31: 0 | BC31: 0 | BD31: 0 | BH31: 2,3,4,5 | BI31: 0 | BJ31: 0 | BL31: 0 | BM31: 0 | BN31: 0 | BO31: 0 | BP31: 0 | BQ31: 0 | BR31: 0 | BS31: 0 | BT31: 0 | BU31: 0 | BV31: 0 | BW31: 0 | BX31: 0 | BY31: 0 | BZ31: 0 | CA31: 129.95 | CB31: 0 | CC31: 0 | CD31: 0 | CE31: 0 | CF31: =VLOOKUP(AP31,'Reseller Info'!$AL$123:$AO$130,3,FALSE) -> 0 | CG31: 0 | CH31: 204.85 | CI31: 0 | CJ31: 0 | CK31: 0 | CL31: 0 | CM31: 0 | CN31: 0 | CO31: 0 | CP31: 0 | CQ31: 0 | CR31: 0 | CS31: 0 | CT31: 0 | CU31: 0 | CV31: FALSE | CW31: FALSE | CX31: TRUE | CY31: TRUE | CZ31: TRUE | DA31: TRUE | DB31: FALSE | DC31: FALSE | DD31: TRUE | DE31: 0 | DF31: 0 | DG31: 0 | DH31: 0 | DI31: 129.95 | DM31: 0 | DN31: 4 | DO31: 0 | DP31: 0 | DQ31: 0 | DR31: 0 | DS31: 0 | DT31: 0
A32: =IF(SUM(BM32)>0,SUM(MAX(A$6:A31),1,IF(SUM(A$6:$A31)>0,0,$B$1)),0) -> 0 | B32: =IF(SUM(CC32,BI32:BK32,BO32,BQ32,BT32,BP32)<>0,MAX(B$6:B31)+1,0) -> 0 | C32: ADV-S2S-02070 | G32: Software | H32: S2S | I32: Advanced S2S | J32: Advanced S2S | K32: Star2Star software for Panasonic IP Phones | L32: 0 | M32: 0 | N32: 0 | O32: 29.5 | P32: 17.97 | Q32: 0 | R32: 0 | S32: 0 | T32: 0 | U32: 0 | V32: 0 | W32: 0.7375 | X32: 0 | Y32: 0 | Z32: 0 | AA32: 0 | AB32: 0 | AE32: 0 | AF32: PROV | AM32: Software | AO32: FALSE | AP32: None | AQ32: 0 | AR32: 0 | AS32: 0.05 | AT32: 0 | AU32: 29.5 | AV32: 0 | AW32: 0 | AX32: 0 | AY32: 0 | AZ32: 0 | BA32: 0 | BB32: 0 | BC32: 0 | BD32: 0 | BF32: 1 | BH32: 4,5 | BI32: 0 | BJ32: 0 | BL32: 0 | BM32: 0 | BN32: 0 | BO32: 0 | BP32: 0 | BQ32: 0 | BR32: 0 | BS32: 0 | BT32: 0 | BU32: 0 | BV32: 0 | BW32: 0 | BX32: 0 | BY32: 0 | BZ32: 0 | CA32: 29.5 | CB32: 0 | CC32: 0 | CD32: 0 | CE32: 0 | CF32: =VLOOKUP(AP32,'Reseller Info'!$AL$123:$AO$130,3,FALSE) -> 0 | CG32: 0 | CH32: 29.5 | CI32: 0 | CJ32: 0 | CK32: 0 | CL32: 0 | CM32: 0 | CN32: 0 | CO32: 0 | CP32: 0 | CQ32: 0 | CR32: 0 | CS32: 0 | CT32: 0 | CU32: 0 | CV32: FALSE | CW32: FALSE | CX32: FALSE | CY32: FALSE | CZ32: TRUE | DA32: TRUE | DB32: FALSE | DC32: FALSE | DD32: FALSE | DE32: 0 | DF32: 0 | DG32: =IF(AM32="Existing",IF($BY32<0,$BY32,0),SUM(IF($BX32<0,$BX32,0),IF($BW32<0,$BW32,0))) -> 0 | DH32: =IF(AM32="Existing",IF($BY32>0,$BY32,0),SUM(IF($BX32>0,$BX32,0),IF($BW32>0,$BW32,0))) -> 0 | DI32: 29.5 | DM32: 0 | DN32: 1 | DO32: 0 | DP32: 0 | DQ32: 0 | DR32: 0 | DS32: 0 | DT32: 0
A33: =IF(SUM(BM33)>0,SUM(MAX(A$6:A32),1,IF(SUM(A$6:$A32)>0,0,$B$1)),0) -> 0 | B33: =IF(SUM(CC33,BI33:BK33,BO33,BQ33,BT33,BP33)<>0,MAX(B$6:B32)+1,0) -> 0 | C33: ADV-S2S-02072 | G33: Software | H33: S2S | I33: Advanced S2S | J33: Advanced S2S | K33: Star2Star software for Yealink T20P/T22P IP Phones | L33: 0 | M33: 0 | N33: 0 | O33: 29.95 | P33: 17.97 | Q33: 0 | R33: 0 | S33: 0 | T33: 0 | U33: 0 | V33: 0 | W33: 0.74875 | X33: 0 | Y33: 0 | Z33: 0 | AA33: 0 | AB33: 0 | AE33: 0 | AF33: PROV | AM33: Software | AO33: FALSE | AP33: None | AQ33: 0 | AR33: 0 | AS33: 0.05 | AT33: 0 | AU33: 29.95 | AV33: 0 | AW33: 0 | AX33: 0 | AY33: 0 | AZ33: 0 | BA33: 0 | BB33: 0 | BC33: 0 | BD33: 0 | BF33: 1 | BH33: 4,5 | BI33: 0 | BJ33: 0 | BL33: 0 | BM33: 0 | BN33: 0 | BO33: 0 | BP33: 0 | BQ33: 0 | BR33: 0 | BS33: 0 | BT33: 0 | BU33: 0 | BV33: 0 | BW33: 0 | BX33: 0 | BY33: 0 | BZ33: 0 | CA33: 29.95 | CB33: 0 | CC33: 0 | CD33: 0 | CE33: 0 | CF33: =VLOOKUP(AP33,'Reseller Info'!$AL$123:$AO$130,3,FALSE) -> 0 | CG33: 0 | CH33: 29.95 | CI33: 0 | CJ33: 0 | CK33: 0 | CL33: 0 | CM33: 0 | CN33: 0 | CO33: 0 | CP33: 0 | CQ33: 0 | CR33: 0 | CS33: 0 | CT33: 0 | CU33: 0 | CV33: =IF(ISERROR(FIND(CV$4,$BH33,1)),FALSE,TRUE) -> FALSE | CW33: FALSE | CX33: FALSE | CY33: FALSE | CZ33: TRUE | DA33: TRUE | DB33: FALSE | DC33: FALSE | DD33: FALSE | DE33: 0 | DF33: 0 | DG33: =IF(AM33="Existing",IF($BY33<0,$BY33,0),SUM(IF($BX33<0,$BX33,0),IF($BW33<0,$BW33,0))) -> 0 | DH33: =IF(AM33="Existing",IF($BY33>0,$BY33,0),SUM(IF($BX33>0,$BX33,0),IF($BW33>0,$BW33,0))) -> 0 | DI33: 29.95 | DM33: 0 | DN33: 1 | DO33: 0 | DP33: 0 | DQ33: 0 | DR33: 0 | DS33: 0 | DT33: 0
A34: =IF(SUM(BM34)>0,SUM(MAX(A$6:A33),1,IF(SUM(A$6:$A33)>0,0,$B$1)),0) -> 0 | B34: =IF(SUM(CC34,BI34:BK34,BO34,BQ34,BT34,BP34)<>0,MAX(B$6:B33)+1,0) -> 0 | C34: ADV-S2S-02073 | G34: Software | H34: S2S | I34: Advanced S2S | J34: Advanced S2S | K34: Star2Star software for Yealink T26P/T28P IP Phones | L34: 0 | M34: 0 | N34: 0 | O34: 44.95 | P34: 26.97 | Q34: 0 | R34: 0 | S34: 0 | T34: 0 | U34: 0 | V34: 0 | W34: 1.12375 | X34: 0 | Y34: 0 | Z34: 0 | AA34: 0 | AB34: 0 | AE34: 0 | AF34: PROV | AM34: Software | AO34: FALSE | AP34: None | AQ34: 0 | AR34: 0 | AS34: 0.05 | AT34: 0 | AU34: 44.95 | AV34: 0 | AW34: 0 | AX34: 0 | AY34: 0 | AZ34: 0 | BA34: 0 | BB34: 0 | BC34: 0 | BD34: 0 | BH34: 4,5 | BI34: 0 | BJ34: 0 | BL34: 0 | BM34: 0 | BN34: 0 | BO34: =SUMIF($AK$7:$AK$175,$C34,$BN$7:$BN$175) -> 0 | BP34: 0 | BQ34: =IF(OR(JB_1972=FALSE,DL34="",AM34="Existing"),IF(BK34="",IF(ref_locid=20,BF34,MAX(BO34,BN34,BG34,BP34)),BK34),DL34) -> 0 | BR34: 0 | BS34: 0 | BT34: 0 | BU34: 0 | BV34: 0 | BW34: 0 | BX34: 0 | BY34: 0 | BZ34: 0 | CA34: 44.95 | CB34: 0 | CC34: 0 | CD34: =IF(OR(BQ34>0,ref_addon=TRUE),Y34,Y34*ref_demokitdisc) -> 0 | CE34: =IFERROR(BQ34*SUM(N34,AN34),0) -> 0 | CF34: =VLOOKUP(AP34,'Reseller Info'!$AL$123:$AO$130,3,FALSE) -> 0 | CG34: 0 | CH34: 44.95 | CI34: 0 | CJ34: =MAX(CK34:CL34) -> 0 | CK34: =IF(OR(CV34=TRUE,CZ34=TRUE),$BQ34,0) -> 0 | CL34: =IF(OR(CW34=TRUE,DA34=TRUE),$BQ34,0) -> 0 | CM34: 0 | CN34: 0 | CO34: 0 | CP34: 0 | CQ34: 0 | CR34: 0 | CS34: 0 | CT34: 0 | CU34: 0 | CV34: FALSE | CW34: FALSE | CX34: FALSE | CY34: FALSE | CZ34: TRUE | DA34: TRUE | DB34: FALSE | DC34: FALSE | DD34: FALSE | DE34: 0 | DF34: =IFERROR(BQ34*N34,0) -> 0 | DG34: =IF(AM34="Existing",IF($BY34<0,$BY34,0),SUM(IF($BX34<0,$BX34,0),IF($BW34<0,$BW34,0))) -> 0 | DH34: =IF(AM34="Existing",IF($BY34>0,$BY34,0),SUM(IF($BX34>0,$BX34,0),IF($BW34>0,$BW34,0))) -> 0 | DI34: 44.95 | DM34: 0 | DN34: 1 | DO34: 0 | DP34: 0 | DQ34: 0 | DR34: 0 | DS34: =IFERROR(F34*(CJ34),0) -> 0 | DT34: 0
A35: =IF(SUM(BM35)>0,SUM(MAX(A$6:A34),1,IF(SUM(A$6:$A34)>0,0,$B$1)),0) -> 0 | B35: =IF(SUM(CC35,BI35:BK35,BO35,BQ35,BT35,BP35)<>0,MAX(B$6:B34)+1,0) -> 0 | C35: ADV-S2S-02074 | G35: Software | H35: S2S | I35: Advanced S2S | J35: Advanced S2S | K35: Star2Star software for Yealink T32G/T38G IP Phones | L35: 0 | M35: 0 | N35: 0 | O35: 84.95 | P35: 50.97 | Q35: 0 | R35: 0 | S35: 0 | T35: 0 | U35: 0 | V35: 0 | W35: 2.12375 | X35: 0 | Y35: 0 | Z35: 0 | AA35: 0 | AB35: 0 | AE35: 0 | AF35: PROV | AM35: Software | AO35: FALSE | AP35: None | AQ35: 0 | AR35: 0 | AS35: 0.05 | AT35: 0 | AU35: 84.95 | AV35: 0 | AW35: 0 | AX35: 0 | AY35: 0 | AZ35: 0 | BA35: 0 | BB35: 0 | BC35: 0 | BD35: 0 | BF35: 1 | BH35: 4,5 | BI35: 0 | BJ35: 0 | BL35: 0 | BM35: 0 | BN35: 0 | BO35: =SUMIF($AK$7:$AK$175,$C35,$BN$7:$BN$175) -> 0 | BP35: 0 | BQ35: =IF(OR(JB_1972=FALSE,DL35="",AM35="Existing"),IF(BK35="",IF(ref_locid=20,BF35,MAX(BO35,BN35,BG35,BP35)),BK35),DL35) -> 0 | BR35: 0 | BS35: 0 | BT35: 0 | BU35: 0 | BV35: 0 | BW35: 0 | BX35: 0 | BY35: 0 | BZ35: 0 | CA35: 84.95 | CB35: 0 | CC35: 0 | CD35: =IF(OR(BQ35>0,ref_addon=TRUE),Y35,Y35*ref_demokitdisc) -> 0 | CE35: =IFERROR(BQ35*SUM(N35,AN35),0) -> 0 | CF35: =VLOOKUP(AP35,'Reseller Info'!$AL$123:$AO$130,3,FALSE) -> 0 | CG35: 0 | CH35: 84.95 | CI35: 0 | CJ35: =MAX(CK35:CL35) -> 0 | CK35: =IF(OR(CV35=TRUE,CZ35=TRUE),$BQ35,0) -> 0 | CL35: =IF(OR(CW35=TRUE,DA35=TRUE),$BQ35,0) -> 0 | CM35: 0 | CN35: 0 | CO35: 0 | CP35: 0 | CQ35: 0 | CR35: 0 | CS35: 0 | CT35: 0 | CU35: 0 | CV35: FALSE | CW35: FALSE | CX35: FALSE | CY35: FALSE | CZ35: TRUE | DA35: TRUE | DB35: FALSE | DC35: FALSE | DD35: FALSE | DE35: 0 | DF35: =IFERROR(BQ35*N35,0) -> 0 | DG35: =IF(AM35="Existing",IF($BY35<0,$BY35,0),SUM(IF($BX35<0,$BX35,0),IF($BW35<0,$BW35,0))) -> 0 | DH35: =IF(AM35="Existing",IF($BY35>0,$BY35,0),SUM(IF($BX35>0,$BX35,0),IF($BW35>0,$BW35,0))) -> 0 | DI35: 84.95 | DM35: 0 | DN35: 1 | DO35: 0 | DP35: 0 | DQ35: 0 | DR35: 0 | DS35: =IFERROR(F35*(CJ35),0) -> 0 | DT35: 0
A36: =IF(SUM(BM36)>0,SUM(MAX(A$6:A35),1,IF(SUM(A$6:$A35)>0,0,$B$1)),0) -> 0 | B36: =IF(SUM(CC36,BI36:BK36,BO36,BQ36,BT36,BP36)<>0,MAX(B$6:B35)+1,0) -> 0 | C36: ADV-S2S-02075 | G36: Software | H36: S2S | I36: Advanced S2S | J36: Advanced S2S | K36: Star2Star software for Provisioned Yealink T32G/T38G Phones | L36: 0 | M36: 0 | N36: 0 | O36: 84.95 | P36: 50.97 | Q36: 0 | R36: 0 | S36: 0 | T36: 4.95 | U36: 0 | V36: 0 | W36: 2.12375 | X36: 40 | Y36: 0 | Z36: 0 | AA36: 0 | AB36: 0 | AE36: 1 | AF36: PROV | AM36: Existing | AO36: FALSE | AP36: None | AQ36: 0 | AR36: 0 | AS36: 0.05 | AT36: 0 | AU36: 84.95 | AV36: 20 | AW36: 4.95 | AX36: 49.95 | AY36: 0 | AZ36: 40 | BA36: 0 | BB36: 0 | BC36: 0 | BD36: 0 | BH36: 2,3,4,5 | BI36: 0 | BJ36: 0 | BL36: 0 | BM36: 0 | BN36: 0 | BO36: 0 | BP36: 0 | BQ36: 0 | BR36: 0 | BS36: 0 | BT36: 0 | BU36: 0 | BV36: 0 | BW36: 0 | BX36: 0 | BY36: 0 | BZ36: 0 | CA36: 84.95 | CB36: 0 | CC36: 0 | CD36: 0 | CE36: 0 | CF36: =VLOOKUP(AP36,'Reseller Info'!$AL$123:$AO$130,3,FALSE) -> 0 | CG36: 0 | CH36: 159.85 | CI36: 0 | CJ36: 0 | CK36: 0 | CL36: 0 | CM36: 0 | CN36: 0 | CO36: 0 | CP36: 0 | CQ36: 0 | CR36: 0 | CS36: 0 | CT36: 0 | CU36: 0 | CV36: FALSE | CW36: FALSE | CX36: TRUE | CY36: TRUE | CZ36: TRUE | DA36: TRUE | DB36: FALSE | DC36: FALSE | DD36: TRUE | DE36: 0 | DF36: 0 | DG36: 0 | DH36: 0 | DI36: 84.95 | DM36: 0 | DN36: 4 | DO36: 0 | DP36: 0 | DQ36: 0 | DR36: 0 | DS36: 0 | DT36: 0
A37: =IF(SUM(BM37)>0,SUM(MAX(A$6:A36),1,IF(SUM(A$6:$A36)>0,0,$B$1)),0) -> 0 | B37: =IF(SUM(CC37,BI37:BK37,BO37,BQ37,BT37,BP37)<>0,MAX(B$6:B36)+1,0) -> 0 | C37: ADV-S2S-02076 | G37: Software | H37: S2S | I37: Advanced S2S | J37: Advanced S2S | K37: Star2Star software for Provisioned Yealink T26P/T28P Phones | L37: 0 | M37: 0 | N37: 0 | O37: 44.95 | P37: 26.97 | Q37: 0 | R37: 0 | S37: 0 | T37: 4.95 | U37: 0 | V37: 0 | W37: 1.12375 | X37: 40 | Y37: 0 | Z37: 0 | AA37: 0 | AB37: 0 | AE37: 1 | AF37: PROV | AM37: Existing | AO37: FALSE | AP37: None | AQ37: 0 | AR37: 0 | AS37: 0.05 | AT37: 0 | AU37: 44.95 | AV37: 20 | AW37: 4.95 | AX37: 49.95 | AY37: 0 | AZ37: 40 | BA37: 0 | BB37: 0 | BC37: 0 | BD37: 0 | BH37: 2,3,4,5 | BI37: 0 | BJ37: 0 | BL37: 0 | BM37: 0 | BN37: 0 | BO37: 0 | BP37: 0 | BQ37: 0 | BR37: 0 | BS37: 0 | BT37: 0 | BU37: 0 | BV37: 0 | BW37: 0 | BX37: 0 | BY37: 0 | BZ37: 0 | CA37: 44.95 | CB37: 0 | CC37: 0 | CD37: 0 | CE37: 0 | CF37: =VLOOKUP(AP37,'Reseller Info'!$AL$123:$AO$130,3,FALSE) -> 0 | CG37: 0 | CH37: 119.85 | CI37: 0 | CJ37: 0 | CK37: 0 | CL37: 0 | CM37: 0 | CN37: 0 | CO37: 0 | CP37: 0 | CQ37: 0 | CR37: 0 | CS37: 0 | CT37: 0 | CU37: 0 | CV37: FALSE | CW37: FALSE | CX37: TRUE | CY37: TRUE | CZ37: TRUE | DA37: TRUE | DB37: FALSE | DC37: FALSE | DD37: TRUE | DE37: 0 | DF37: 0 | DG37: 0 | DH37: 0 | DI37: 44.95 | DM37: 0 | DN37: 4 | DO37: 0 | DP37: 0 | DQ37: 0 | DR37: 0 | DS37: 0 | DT37: 0
A38: =IF(SUM(BM38)>0,SUM(MAX(A$6:A37),1,IF(SUM(A$6:$A37)>0,0,$B$1)),0) -> 0 | B38: =IF(SUM(CC38,BI38:BK38,BO38,BQ38,BT38,BP38)<>0,MAX(B$6:B37)+1,0) -> 0 | C38: ADV-S2S-02077 | G38: Software | H38: S2S | I38: Advanced S2S | J38: Advanced S2S | K38: Star2Star software for Provisioned Yealink T20P/T22P Phones | L38: 0 | M38: 0 | N38: 0 | O38: 29.95 | P38: 17.97 | Q38: 0 | R38: 0 | S38: 0 | T38: 4.95 | U38: 0 | V38: 0 | W38: 0.74875 | X38: 40 | Y38: 0 | Z38: 0 | AA38: 0 | AB38: 0 | AE38: 1 | AF38: PROV | AM38: Existing | AO38: FALSE | AP38: None | AQ38: 0 | AR38: 0 | AS38: 0.05 | AT38: 0 | AU38: 29.95 | AV38: 20 | AW38: 4.95 | AX38: 49.95 | AY38: 0 | AZ38: 40 | BA38: 0 | BB38: 0 | BC38: 0 | BD38: 0 | BH38: 2,3,4,5 | BI38: 0 | BJ38: 0 | BL38: 0 | BM38: 0 | BN38: 0 | BO38: 0 | BP38: 0 | BQ38: 0 | BR38: 0 | BS38: 0 | BT38: 0 | BU38: 0 | BV38: 0 | BW38: 0 | BX38: 0 | BY38: 0 | BZ38: 0 | CA38: 29.95 | CB38: 0 | CC38: 0 | CD38: 0 | CE38: 0 | CF38: =VLOOKUP(AP38,'Reseller Info'!$AL$123:$AO$130,3,FALSE) -> 0 | CG38: 0 | CH38: 104.85 | CI38: 0 | CJ38: 0 | CK38: 0 | CL38: 0 | CM38: 0 | CN38: 0 | CO38: 0 | CP38: 0 | CQ38: 0 | CR38: 0 | CS38: 0 | CT38: 0 | CU38: 0 | CV38: FALSE | CW38: FALSE | CX38: TRUE | CY38: TRUE | CZ38: TRUE | DA38: TRUE | DB38: FALSE | DC38: FALSE | DD38: TRUE | DE38: 0 | DF38: 0 | DG38: 0 | DH38: 0 | DI38: 29.95 | DM38: 0 | DN38: 4 | DO38: 0 | DP38: 0 | DQ38: 0 | DR38: 0 | DS38: 0 | DT38: 0
A39: =IF(SUM(BM39)>0,SUM(MAX(A$6:A38),1,IF(SUM(A$6:$A38)>0,0,$B$1)),0) -> 0 | B39: =IF(SUM(CC39,BI39:BK39,BO39,BQ39,BT39,BP39)<>0,MAX(B$6:B38)+1,0) -> 0 | C39: PBX-S2S-01008 | D39: 10010 | G39: Hardware | H39: S2S | I39: BASESYS | J39: Base System | K39: Standard Base System Costs (1-19 phones) | L39: 0 | M39: 0 | N39: 0 | O39: 0 | P39: 0 | Q39: 0 | R39: 0 | S39: 0 | T39: 0 | U39: 0 | V39: 0 | W39: 0 | X39: 0 | Y39: 0 | Z39: 0 | AA39: 0 | AB39: 0 | AD39: area_pbx | AE39: 0 | AF39: RENT | AG39: Base Systems | AH39: Base System Costs (1 to 19 phones) | AM39: Hardware | AO39: FALSE | AP39: None | AQ39: 13 | AR39: 0 | AS39: 0.05 | AT39: 0 | AU39: 0 | AV39: 0 | AW39: 0 | AX39: 0 | AY39: 0 | AZ39: 0 | BA39: 0 | BB39: 0 | BC39: 0 | BD39: 0 | BG39: =ref_reg1_19 -> 0 | BH39: 0,2,3 | BI39: =IFERROR(VLOOKUP($C39,dashqtys,5,FALSE),0) -> 0 | BJ39: =IFERROR(VLOOKUP($C39,dashqtys,2,FALSE),0) -> 0 | BL39: 0 | BM39: 0 | BN39: =IF(ref_NIMA,MAX(BI39,BJ39),IF(BK39="",MAX(BI39,BJ39),BK39)) -> 0 | BO39: =SUMIF($AK$7:$AK$175,$C39,$BN$7:$BN$175) -> 0 | BP39: =SUMIF($AL$7:$AL$175,C39,$BM$7:$BM$175) -> 0 | BQ39: =IF(OR(JB_1972=FALSE,DL39="",AM39="Existing"),IF(BK39="",IF(ref_locid=20,BF39,MAX(BO39,BN39,BG39,BP39)),BK39),DL39) -> 0 | BR39: 0 | BS39: =MAX(IF(ref_estquote,CC39,0),BQ39:BR39) -> 0 | BT39: =SUMIF($AK$7:$AK$175,$C39,$BK$7:$BK$175) -> 0 | BU39: 0 | BV39: 0 | BW39: =IFERROR(SUM(IF(BS39=0,0,1)*CG39,IF(DN39=3,IF(DT39<0,DT39,0),DT39)),0) -> 0 | BX39: 0 | BY39: 0 | BZ39: =SUM(BW39,L39) -> 0 | CA39: 0 | CB39: 0 | CC39: 0 | CD39: =IF(OR(BQ39>0,ref_addon=TRUE),Y39,Y39*ref_demokitdisc) -> 0 | CE39: =IFERROR(BQ39*SUM(N39,AN39),0) -> 0 | CF39: =VLOOKUP(AP39,'Reseller Info'!$AL$123:$AO$130,3,FALSE) -> 0 | CG39: 0 | CH39: 0 | CI39: 0 | CJ39: =MAX(CK39:CL39) -> 0 | CK39: =IF(OR(CV39=TRUE,CZ39=TRUE),$BQ39,0) -> 0 | CL39: 0 | CM39: =IF(CV39=TRUE,$BQ39,0) -> 0 | CN39: 0 | CO39: =MAX(CP39:CQ39) -> 0 | CP39: =IF(OR(CX39=TRUE,DB39=TRUE),$BQ39,0) -> 0 | CQ39: =IF(OR(CY39=TRUE,DC39=TRUE),BQ39,0) -> 0 | CR39: 0 | CS39: =IF(OR(CY39=TRUE),$BQ39,0) -> 0 | CT39: 0 | CU39: 0 | CV39: TRUE | CW39: FALSE | CX39: TRUE | CY39: TRUE | CZ39: FALSE | DA39: FALSE | DB39: FALSE | DC39: FALSE | DD39: TRUE | DE39: =IF(H39="Polycom",BZ39,BZ39-N39) -> 0 | DF39: =IFERROR(BQ39*N39,0) -> 0 | DG39: =IF(AM39="Existing",IF($BY39<0,$BY39,0),SUM(IF($BX39<0,$BX39,0),IF($BW39<0,$BW39,0))) -> 0 | DH39: =IF(AM39="Existing",IF($BY39>0,$BY39,0),SUM(IF($BX39>0,$BX39,0),IF($BW39>0,$BW39,0))) -> 0 | DI39: =SUM(BZ39,CA39,-N39,-AN39) -> 0 | DJ39: 0 | DK39: TRUE | DM39: 0 | DN39: 1 | DO39: Base System Costs (1 to 19 phones) | DP39: =SUM(BW39:BX39) -> 0 | DQ39: =IFERROR(F39*BI39,0) -> 0 | DR39: 0 | DS39: =IFERROR(F39*(CJ39),0) -> 0 | DT39: =IFERROR(VLOOKUP(C39,area_salesagentmarkup,18,FALSE),0) -> 0
A40: =IF(SUM(BM40)>0,SUM(MAX(A$6:A39),1,IF(SUM(A$6:$A39)>0,0,$B$1)),0) -> 0 | B40: =IF(SUM(CC40,BI40:BK40,BO40,BQ40,BT40,BP40)<>0,MAX(B$6:B39)+1,0) -> 0 | C40: EST-S2S-01008 | D40: 10020 | G40: Hardware | H40: S2S | I40: BASESYS | J40: Est Equip | K40: Standard Base System Costs (1-19 phones) Estimated Equipment | L40: 0 | M40: 0 | N40: 0 | O40: 0 | P40: 0 | Q40: 0 | R40: 0 | S40: 0 | T40: 0 | U40: 0 | V40: 0 | W40: 0 | X40: 0 | Y40: 0 | Z40: 0 | AA40: 0 | AB40: 0 | AD40: area_pbx | AE40: 0 | AF40: RENT | AG40: Base Systems | AH40: Includes: ~StarLite (1/Location) ~QOS/VLAN Switch(s) ~Emergency Power Supply(s) | AM40: Hardware | AO40: FALSE | AP40: None | AQ40: 26 | AR40: 0 | AS40: 0 | AT40: 0 | AU40: 0 | AV40: 0 | AW40: 0 | AX40: 0 | AY40: 0 | AZ40: 0 | BA40: 0 | BB40: 0 | BC40: 0 | BD40: 0 | BH40: 0,2 | BI40: 0 | BJ40: 0 | BL40: 0 | BM40: 0 | BN40: 0 | BO40: 0 | BP40: 0 | BQ40: 0 | BR40: 0 | BS40: 0 | BT40: 0 | BU40: 0 | BV40: 0 | BW40: 0 | BX40: 0 | BY40: 0 | BZ40: 0 | CA40: 0 | CB40: 0 | CC40: 0 | CD40: =IF(OR(BQ40>0,ref_addon=TRUE),Y40,Y40*ref_demokitdisc) -> 0 | CE40: 0 | CF40: =VLOOKUP(AP40,'Reseller Info'!$AL$123:$AO$130,3,FALSE) -> 0 | CG40: 0 | CH40: 0 | CI40: 0 | CJ40: 0 | CK40: 0 | CL40: 0 | CM40: 0 | CN40: 0 | CO40: 0 | CP40: =IF(OR(CX40=TRUE,DB40=TRUE),$BQ40,0) -> 0 | CQ40: 0 | CR40: 0 | CS40: 0 | CT40: 0 | CU40: 0 | CV40: TRUE | CW40: FALSE | CX40: TRUE | CY40: FALSE | CZ40: FALSE | DA40: FALSE | DB40: FALSE | DC40: FALSE | DD40: FALSE | DE40: 0 | DF40: 0 | DG40: 0 | DH40: 0 | DI40: 0 | DJ40: 0 | DK40: TRUE | DM40: 0 | DN40: 1 | DO40: Includes: ~StarLite (1/Location) ~QOS/VLAN Switch(s) ~Emergency Power Supply(s) | DP40: 0 | DQ40: 0 | DR40: 0 | DS40: 0 | DT40: 0
A41: =IF(SUM(BM41)>0,SUM(MAX(A$6:A40),1,IF(SUM(A$6:$A40)>0,0,$B$1)),0) -> 0 | B41: =IF(SUM(CC41,BI41:BK41,BO41,BQ41,BT41,BP41)<>0,MAX(B$6:B40)+1,0) -> 0 | C41: PBX-S2S-01011 | D41: 10030 | G41: Hardware | H41: S2S | I41: BASESYS | J41: Base System | K41: Standard Base System Costs (20+ phones) | L41: 0 | M41: 0 | N41: 0 | O41: 0 | P41: 0 | Q41: 0 | R41: 0 | S41: 0 | T41: 0 | U41: 0 | V41: 0 | W41: 0 | X41: 0 | Y41: 0 | Z41: 0 | AA41: 0 | AB41: 0 | AD41: area_pbx | AE41: 0 | AF41: RENT | AG41: Base Systems | AH41: Base System Costs (20+ Phones) | AM41: Hardware | AO41: FALSE | AP41: None | AQ41: 13 | AR41: 0 | AS41: 0.05 | AT41: 0 | AU41: 0 | AV41: 0 | AW41: 0 | AX41: 0 | AY41: 0 | AZ41: 0 | BA41: 0 | BB41: 0 | BC41: 0 | BD41: 0 | BG41: =ref_reg20plus -> 0 | BH41: 0,2,3 | BI41: 0 | BJ41: 0 | BL41: 0 | BM41: 0 | BN41: 0 | BO41: 0 | BP41: 0 | BQ41: 0 | BR41: 0 | BS41: 0 | BT41: 0 | BU41: 0 | BV41: 0 | BW41: 0 | BX41: 0 | BY41: 0 | BZ41: 0 | CA41: 0 | CB41: 0 | CC41: 0 | CD41: =IF(OR(BQ41>0,ref_addon=TRUE),Y41,Y41*ref_demokitdisc) -> 0 | CE41: 0 | CF41: =VLOOKUP(AP41,'Reseller Info'!$AL$123:$AO$130,3,FALSE) -> 0 | CG41: 0 | CH41: 0 | CI41: 0 | CJ41: 0 | CK41: 0 | CL41: 0 | CM41: 0 | CN41: 0 | CO41: 0 | CP41: 0 | CQ41: =IF(OR(CY41=TRUE,DC41=TRUE),$BQ41,0) -> 0 | CR41: 0 | CS41: =IF(OR(CY41=TRUE),$BQ41,0) -> 0 | CT41: 0 | CU41: 0 | CV41: TRUE | CW41: FALSE | CX41: TRUE | CY41: TRUE | CZ41: FALSE | DA41: FALSE | DB41: FALSE | DC41: FALSE | DD41: TRUE | DE41: 0 | DF41: 0 | DG41: 0 | DH41: 0 | DI41: 0 | DJ41: 0 | DK41: TRUE | DM41: 0 | DN41: 1 | DO41: Base System Costs (20+ Phones) | DP41: 0 | DQ41: 0 | DR41: 0 | DS41: 0 | DT41: 0
A42: =IF(SUM(BM42)>0,SUM(MAX(A$6:A41),1,IF(SUM(A$6:$A41)>0,0,$B$1)),0) -> 0 | B42: =IF(SUM(CC42,BI42:BK42,BO42,BQ42,BT42,BP42)<>0,MAX(B$6:B41)+1,0) -> 0 | C42: EST-S2S-01011 | D42: 10040 | G42: Hardware | H42: S2S | I42: BASESYS | J42: Est Equip | K42: Standard Base System Costs (20+ phones) Estimated Equipment | L42: 0 | M42: 0 | N42: 0 | O42: 0 | P42: 0 | Q42: 0 | R42: 0 | S42: 0 | T42: 0 | U42: 0 | V42: 0 | W42: 0 | X42: 0 | Y42: 0 | Z42: 0 | AA42: 0 | AB42: 0 | AD42: area_pbx | AE42: 0 | AF42: RENT | AG42: Base Systems | AH42: Includes: ~StarBox (Sized to Location(s), 1/Location) ~QOS/VLAN Switch(s) ~Emergency Power Supply(s) | AM42: Hardware | AO42: FALSE | AP42: None | AQ42: 26 | AR42: 0 | AS42: 0 | AT42: 0 | AU42: 0 | AV42: 0 | AW42: 0 | AX42: 0 | AY42: 0 | AZ42: 0 | BA42: 0 | BB42: 0 | BC42: 0 | BD42: 0 | BH42: 0,2 | BI42: 0 | BJ42: 0 | BL42: 0 | BM42: 0 | BN42: 0 | BO42: 0 | BP42: 0 | BQ42: 0 | BR42: 0 | BS42: 0 | BT42: 0 | BU42: 0 | BV42: 0 | BW42: 0 | BX42: 0 | BY42: 0 | BZ42: 0 | CA42: 0 | CB42: 0 | CC42: 0 | CD42: =IF(OR(BQ42>0,ref_addon=TRUE),Y42,Y42*ref_demokitdisc) -> 0 | CE42: 0 | CF42: =VLOOKUP(AP42,'Reseller Info'!$AL$123:$AO$130,3,FALSE) -> 0 | CG42: 0 | CH42: 0 | CI42: 0 | CJ42: 0 | CK42: 0 | CL42: 0 | CM42: 0 | CN42: 0 | CO42: 0 | CP42: 0 | CQ42: 0 | CR42: 0 | CS42: 0 | CT42: 0 | CU42: 0 | CV42: TRUE | CW42: FALSE | CX42: TRUE | CY42: FALSE | CZ42: FALSE | DA42: FALSE | DB42: FALSE | DC42: FALSE | DD42: FALSE | DE42: 0 | DF42: 0 | DG42: 0 | DH42: 0 | DI42: 0 | DJ42: 0 | DK42: TRUE | DM42: 0 | DN42: 1 | DO42: Includes: ~StarBox (Sized to Location(s), 1/Location) ~QOS/VLAN Switch(s) ~Emergency Power Supply(s) | DP42: 0 | DQ42: 0 | DR42: 0 | DS42: 0 | DT42: 0
A43: =IF(SUM(BM43)>0,SUM(MAX(A$6:A42),1,IF(SUM(A$6:$A42)>0,0,$B$1)),0) -> 0 | B43: =IF(SUM(CC43,BI43:BK43,BO43,BQ43,BT43,BP43)<>0,MAX(B$6:B42)+1,0) -> 0 | C43: PBX-S2S-01012 | D43: 10050 | G43: Hardware | H43: S2S | I43: BASESYS | J43: Base System | K43: CR Base System Costs (1-19 phones) | L43: 0 | M43: 0 | N43: 0 | O43: 0 | P43: 0 | Q43: 0 | R43: 0 | S43: 0 | T43: 0 | U43: 0 | V43: 0 | W43: 0 | X43: 0 | Y43: 0 | Z43: 0 | AA43: 0 | AB43: 0 | AD43: area_pbx | AE43: 0 | AF43: RENT | AG43: Base Systems | AH43: CR Base System Costs (1-19 phones) | AM43: Hardware | AO43: FALSE | AP43: None | AQ43: 13 | AR43: 0 | AS43: 0.05 | AT43: 0 | AU43: 0 | AV43: 0 | AW43: 0 | AX43: 0 | AY43: 0 | AZ43: 0 | BA43: 0 | BB43: 0 | BC43: 0 | BD43: 0 | BG43: =ref_cr1_19 -> 0 | BH43: 0,2,3 | BI43: 0 | BJ43: 0 | BL43: 0 | BM43: 0 | BN43: 0 | BO43: 0 | BP43: 0 | BQ43: 0 | BR43: 0 | BS43: 0 | BT43: 0 | BU43: 0 | BV43: 0 | BW43: 0 | BX43: 0 | BY43: 0 | BZ43: 0 | CA43: 0 | CB43: 0 | CC43: 0 | CD43: =IF(OR(BQ43>0,ref_addon=TRUE),Y43,Y43*ref_demokitdisc) -> 0 | CE43: 0 | CF43: =VLOOKUP(AP43,'Reseller Info'!$AL$123:$AO$130,3,FALSE) -> 0 | CG43: 0 | CH43: 0 | CI43: 0 | CJ43: 0 | CK43: 0 | CL43: 0 | CM43: 0 | CN43: 0 | CO43: 0 | CP43: 0 | CQ43: =IF(OR(CY43=TRUE,DC43=TRUE),$BQ43,0) -> 0 | CR43: 0 | CS43: =IF(OR(CY43=TRUE),$BQ43,0) -> 0 | CT43: 0 | CU43: 0 | CV43: =IF(ISERROR(FIND(CV$4,$BH43,1)),FALSE,TRUE) -> TRUE | CW43: FALSE | CX43: TRUE | CY43: TRUE | CZ43: FALSE | DA43: FALSE | DB43: FALSE | DC43: FALSE | DD43: TRUE | DE43: 0 | DF43: 0 | DG43: 0 | DH43: 0 | DI43: 0 | DM43: 0 | DN43: 1 | DO43: CR Base System Costs (1-19 phones) | DP43: 0 | DQ43: 0 | DR43: 0 | DS43: 0 | DT43: 0
A44: =IF(SUM(BM44)>0,SUM(MAX(A$6:A43),1,IF(SUM(A$6:$A43)>0,0,$B$1)),0) -> 0 | B44: =IF(SUM(CC44,BI44:BK44,BO44,BQ44,BT44,BP44)<>0,MAX(B$6:B43)+1,0) -> 0 | C44: EST-S2S-01012 | D44: 10060 | G44: Hardware | H44: S2S | I44: BASESYS | J44: Est Equip | K44: CR Base System Costs (1-19 phones) Estimated Equipment | L44: 0 | M44: 0 | N44: 0 | O44: 0 | P44: 0 | Q44: 0 | R44: 0 | S44: 0 | T44: 0 | U44: 0 | V44: 0 | W44: 0 | X44: 0 | Y44: 0 | Z44: 0 | AA44: 0 | AB44: 0 | AD44: area_pbx | AE44: 0 | AF44: RENT | AG44: Base Systems | AH44: Includes: ~StarLiteCR (1/Location) ~QOS/VLAN Switch(s) ~Emergency Power Supply(s) | AM44: Hardware | AO44: FALSE | AP44: None | AQ44: 26 | AR44: 0 | AS44: 0 | AT44: 0 | AU44: 0 | AV44: 0 | AW44: 0 | AX44: 0 | AY44: 0 | AZ44: 0 | BA44: 0 | BB44: 0 | BC44: 0 | BD44: 0 | BH44: 0,2 | BI44: 0 | BJ44: 0 | BL44: 0 | BM44: 0 | BN44: 0 | BO44: 0 | BP44: 0 | BQ44: 0 | BR44: 0 | BS44: 0 | BT44: 0 | BU44: 0 | BV44: 0 | BW44: 0 | BX44: 0 | BY44: 0 | BZ44: 0 | CA44: 0 | CB44: 0 | CC44: 0 | CD44: =IF(OR(BQ44>0,ref_addon=TRUE),Y44,Y44*ref_demokitdisc) -> 0 | CE44: 0 | CF44: =VLOOKUP(AP44,'Reseller Info'!$AL$123:$AO$130,3,FALSE) -> 0 | CG44: 0 | CH44: 0 | CI44: 0 | CJ44: 0 | CK44: 0 | CL44: 0 | CM44: 0 | CN44: 0 | CO44: 0 | CP44: 0 | CQ44: 0 | CR44: 0 | CS44: 0 | CT44: 0 | CU44: 0 | CV44: TRUE | CW44: FALSE | CX44: TRUE | CY44: FALSE | CZ44: FALSE | DA44: FALSE | DB44: FALSE | DC44: FALSE | DD44: FALSE | DE44: 0 | DF44: 0 | DG44: 0 | DH44: 0 | DI44: 0 | DM44: 0 | DN44: 1 | DO44: Includes: ~StarLiteCR (1/Location) ~QOS/VLAN Switch(s) ~Emergency Power Supply(s) | DP44: 0 | DQ44: 0 | DR44: 0 | DS44: 0 | DT44: 0
A45: =IF(SUM(BM45)>0,SUM(MAX(A$6:A44),1,IF(SUM(A$6:$A44)>0,0,$B$1)),0) -> 0 | B45: =IF(SUM(CC45,BI45:BK45,BO45,BQ45,BT45,BP45)<>0,MAX(B$6:B44)+1,0) -> 0 | C45: PBX-S2S-01013 | D45: 10070 | G45: Hardware | H45: S2S | I45: BASESYS | J45: Base System | K45: CR Base System Costs (20+ phones) | L45: 0 | M45: 0 | N45: 0 | O45: 0 | P45: 0 | Q45: 0 | R45: 0 | S45: 0 | T45: 0 | U45: 0 | V45: 0 | W45: 0 | X45: 0 | Y45: 0 | Z45: 0 | AA45: 0 | AB45: 0 | AD45: area_pbx | AE45: 0 | AF45: RENT | AG45: Base Systems | AH45: CR Base System Costs (20+ phones) | AM45: Hardware | AO45: FALSE | AP45: None | AQ45: 13 | AR45: 0 | AS45: 0.05 | AT45: 0 | AU45: 0 | AV45: 0 | AW45: 0 | AX45: 0 | AY45: 0 | AZ45: 0 | BA45: 0 | BB45: 0 | BC45: 0 | BD45: 0 | BG45: =ref_cr20plus -> 0 | BH45: 0,2,3 | BI45: 0 | BJ45: 0 | BL45: 0 | BM45: 0 | BN45: 0 | BO45: 0 | BP45: 0 | BQ45: 0 | BR45: 0 | BS45: 0 | BT45: 0 | BU45: 0 | BV45: 0 | BW45: 0 | BX45: 0 | BY45: 0 | BZ45: 0 | CA45: 0 | CB45: 0 | CC45: 0 | CD45: =IF(OR(BQ45>0,ref_addon=TRUE),Y45,Y45*ref_demokitdisc) -> 0 | CE45: 0 | CF45: =VLOOKUP(AP45,'Reseller Info'!$AL$123:$AO$130,3,FALSE) -> 0 | CG45: 0 | CH45: 0 | CI45: 0 | CJ45: 0 | CK45: 0 | CL45: 0 | CM45: 0 | CN45: 0 | CO45: 0 | CP45: 0 | CQ45: =IF(OR(CY45=TRUE,DC45=TRUE),$BQ45,0) -> 0 | CR45: 0 | CS45: =IF(OR(CY45=TRUE),$BQ45,0) -> 0 | CT45: 0 | CU45: 0 | CV45: TRUE | CW45: FALSE | CX45: TRUE | CY45: TRUE | CZ45: FALSE | DA45: FALSE | DB45: FALSE | DC45: FALSE | DD45: TRUE | DE45: 0 | DF45: 0 | DG45: 0 | DH45: 0 | DI45: 0 | DM45: 0 | DN45: 1 | DO45: CR Base System Costs (20+ phones) | DP45: 0 | DQ45: 0 | DR45: 0 | DS45: 0 | DT45: 0
A46: =IF(SUM(BM46)>0,SUM(MAX(A$6:A45),1,IF(SUM(A$6:$A45)>0,0,$B$1)),0) -> 0 | B46: =IF(SUM(CC46,BI46:BK46,BO46,BQ46,BT46,BP46)<>0,MAX(B$6:B45)+1,0) -> 0 | C46: EST-S2S-01013 | D46: 10080 | G46: Hardware | H46: S2S | I46: BASESYS | J46: Est Equip | K46: CR Base System Costs (20+ phones) Estimated Equipment | L46: 0 | M46: 0 | N46: 0 | O46: 0 | P46: 0 | Q46: 0 | R46: 0 | S46: 0 | T46: 0 | U46: 0 | V46: 0 | W46: 0 | X46: 0 | Y46: 0 | Z46: 0 | AA46: 0 | AB46: 0 | AD46: area_pbx | AE46: 0 | AF46: RENT | AG46: Base Systems | AH46: Includes: ~StarBoxCR (Sized to Location(s),1/Location) ~QOS/VLAN Switch(s) ~Emergency Power Supply(s) | AM46: Hardware | AO46: FALSE | AP46: None | AQ46: 26 | AR46: 0 | AS46: 0 | AT46: 0 | AU46: 0 | AV46: 0 | AW46: 0 | AX46: 0 | AY46: 0 | AZ46: 0 | BA46: 0 | BB46: 0 | BC46: 0 | BD46: 0 | BH46: 0,2 | BI46: 0 | BJ46: 0 | BL46: 0 | BM46: 0 | BN46: 0 | BO46: 0 | BP46: 0 | BQ46: 0 | BR46: 0 | BS46: 0 | BT46: 0 | BU46: 0 | BV46: 0 | BW46: 0 | BX46: 0 | BY46: 0 | BZ46: 0 | CA46: 0 | CB46: 0 | CC46: 0 | CD46: =IF(OR(BQ46>0,ref_addon=TRUE),Y46,Y46*ref_demokitdisc) -> 0 | CE46: 0 | CF46: =VLOOKUP(AP46,'Reseller Info'!$AL$123:$AO$130,3,FALSE) -> 0 | CG46: 0 | CH46: 0 | CI46: 0 | CJ46: 0 | CK46: 0 | CL46: 0 | CM46: 0 | CN46: 0 | CO46: 0 | CP46: 0 | CQ46: 0 | CR46: 0 | CS46: 0 | CT46: 0 | CU46: 0 | CV46: TRUE | CW46: FALSE | CX46: TRUE | CY46: FALSE | CZ46: FALSE | DA46: FALSE | DB46: FALSE | DC46: FALSE | DD46: FALSE | DE46: 0 | DF46: 0 | DG46: 0 | DH46: 0 | DI46: 0 | DM46: 0 | DN46: 1 | DO46: Includes: ~StarBoxCR (Sized to Location(s),1/Location) ~QOS/VLAN Switch(s) ~Emergency Power Supply(s) | DP46: 0 | DQ46: 0 | DR46: 0 | DS46: 0 | DT46: 0
A47: =IF(SUM(BM47)>0,SUM(MAX(A$6:A46),1,IF(SUM(A$6:$A46)>0,0,$B$1)),0) -> 0 | B47: =IF(SUM(CC47,BI47:BK47,BO47,BQ47,BT47,BP47)<>0,MAX(B$6:B46)+1,0) -> 0 | C47: ADV-S2S-03003 | D47: 11010 | G47: License | H47: S2S | I47: Advanced S2S | J47: Advanced S2S | K47: Extension/Port License | L47: 49.95 | M47: 29.97 | N47: 0 | O47: 0 | P47: 0 | Q47: 0 | R47: 20 | S47: 0 | T47: 0 | U47: 0 | V47: 0 | W47: 1.24875 | X47: 0 | Y47: 0 | Z47: 0 | AA47: 0 | AB47: 0 | AE47: 0 | AF47: PROV | AG47: StarBox Cloud Connection System | AH47: Extension/Port License | AM47: Software | AO47: FALSE | AP47: None | AQ47: 14 | AR47: 0 | AS47: 0 | AT47: 0 | AU47: 49.95 | AV47: 20 | AW47: 0 | AX47: 0 | AY47: 0 | AZ47: 0 | BA47: 0 | BB47: 0 | BC47: 0 | BD47: 0 | BG47: =ref_ttlportsext -> 0 | BH47: 0,1,2,3 | BI47: 0 | BJ47: 0 | BL47: 0 | BM47: 0 | BN47: 0 | BO47: 0 | BP47: 0 | BQ47: 0 | BR47: 0 | BS47: 0 | BT47: 0 | BU47: 0 | BV47: 0 | BW47: 0 | BX47: 0 | BY47: 0 | BZ47: 49.95 | CA47: 0 | CB47: 0 | CC47: 0 | CD47: =IF(OR(BQ47>0,ref_addon=TRUE),Y47,Y47*ref_demokitdisc) -> 0 | CE47: 0 | CF47: =VLOOKUP(AP47,'Reseller Info'!$AL$123:$AO$130,3,FALSE) -> 0 | CG47: 0 | CH47: 69.95 | CI47: 0 | CJ47: 0 | CK47: 0 | CL47: =IF(OR(CW47=TRUE,DA47=TRUE),$BQ47,0) -> 0 | CM47: 0 | CN47: =IF(OR(CW47=TRUE),$BQ47,0) -> 0 | CO47: 0 | CP47: 0 | CQ47: =IF(OR(CY47=TRUE,DC47=TRUE),$BQ47,0) -> 0 | CR47: 0 | CS47: =IF(OR(CY47=TRUE),$BQ47,0) -> 0 | CT47: 0 | CU47: 0 | CV47: TRUE | CW47: TRUE | CX47: TRUE | CY47: TRUE | CZ47: FALSE | DA47: FALSE | DB47: FALSE | DC47: FALSE | DD47: TRUE | DE47: 49.95 | DF47: 0 | DG47: 0 | DH47: 0 | DI47: 49.95 | DM47: 0 | DN47: 4 | DO47: Extension/Port License | DP47: 0 | DQ47: 0 | DR47: 0 | DS47: 0 | DT47: 0
A48: =IF(SUM(BM48)>0,SUM(MAX(A$6:A47),1,IF(SUM(A$6:$A47)>0,0,$B$1)),0) -> 0 | B48: =IF(SUM(CC48,BI48:BK48,BO48,BQ48,BT48,BP48)<>0,MAX(B$6:B47)+1,0) -> 0 | C48: ADV-S2S-03004 | D48: 11020 | G48: License | H48: S2S | I48: Advanced S2S | J48: Advanced S2S | K48: Extension/Port License Discount - 4th Quarter Promotion | L48: -49.95 | M48: -29.97 | N48: 0 | O48: 0 | P48: 0 | Q48: 0 | R48: 0 | S48: 0 | T48: 0 | U48: 0 | V48: 0 | W48: -1.24875 | X48: 0 | Y48: 0 | Z48: 0 | AA48: 0 | AB48: 0 | AE48: 0 | AF48: PROV | AG48: StarBox Cloud Connection System | AH48: Extension/Port License Discount - 4th Quarter Promotion | AM48: Software | AO48: FALSE | AP48: None | AQ48: 14 | AR48: 0 | AS48: 0 | AT48: 0 | AU48: -49.95 | AV48: 0 | AW48: 0 | AX48: 0 | AY48: 0 | AZ48: 0 | BA48: 0 | BB48: 0 | BC48: 0 | BD48: 0 | BG48: =ref_pelpromo -> 0 | BH48: 0,1,2,3 | BI48: 0 | BJ48: 0 | BK48: =IF(DK48=FALSE,DJ48,"") ->  | BL48: 0 | BM48: =IF(OR(ref_NIMA=TRUE,E48=0),0,IFERROR(VLOOKUP($C48,area_phones,13,FALSE),0)) -> 0 | BN48: 0 | BO48: 0 | BP48: 0 | BQ48: 0 | BR48: =MAX(BM48,IF(AM48="Existing",DL48,0)) -> 0 | BS48: 0 | BT48: 0 | BU48: =IF(AE48=0,0,IFERROR(BJ48*AE48,0)) -> 0 | BV48: =IF(AE48=0,0,IFERROR(BQ48*AE48,0)) -> 0 | BW48: 0 | BX48: 0 | BY48: 0 | BZ48: -49.95 | CA48: =SUM(BX48,O48) -> 0 | CB48: =SUM(BY48,Z48) -> 0 | CC48: 0 | CD48: =IF(OR(BQ48>0,ref_addon=TRUE),Y48,Y48*ref_demokitdisc) -> 0 | CE48: 0 | CF48: =VLOOKUP(AP48,'Reseller Info'!$AL$123:$AO$130,3,FALSE) -> 0 | CG48: =IF(OR(AQ48=2,AQ48=6),ref_pbxmuper,0) -> 0 | CH48: =SUM(AU48:AY48) -> -49.95 | CI48: =SUM(BA48:BD48) -> 0 | CJ48: 0 | CK48: 0 | CL48: =IF(OR(CW48=TRUE,DA48=TRUE),$BQ48,0) -> 0 | CM48: 0 | CN48: =IF(OR(CW48=TRUE),$BQ48,0) -> 0 | CO48: 0 | CP48: 0 | CQ48: =IF(OR(CY48=TRUE,DC48=TRUE),$BQ48,0) -> 0 | CR48: =IF(OR(CX48=TRUE),$CC48,0) -> 0 | CS48: =IF(OR(CY48=TRUE),$BQ48,0) -> 0 | CT48: =IF(OR(CW48=TRUE,DA48=TRUE),$BR48,0) -> 0 | CU48: =IF(CW48=TRUE,$BR48,0) -> 0 | CV48: TRUE | CW48: TRUE | CX48: TRUE | CY48: TRUE | CZ48: FALSE | DA48: FALSE | DB48: FALSE | DC48: FALSE | DD48: =IF(OR(CX48=FALSE,CY48=FALSE),FALSE,TRUE) -> TRUE | DE48: -49.95 | DF48: 0 | DG48: 0 | DH48: 0 | DI48: -49.95 | DJ48: =IF(ref_NIMA,"",IFERROR(VLOOKUP($C48,IF(AD48="area_pbx",area_pbx,area_phones),7,FALSE),"")) ->  | DK48: =IF(DJ48="","",ISBLANK(VLOOKUP($C48,IF(AD48="area_pbx",area_pbx,area_phones),7,FALSE))) ->  | DM48: =SUM(AN48,N48) -> 0 | DN48: 1 | DO48: =AH48 -> Extension/Port License Discount - 4th Quarter Promotion | DP48: 0 | DQ48: 0 | DR48: =IFERROR(F48*(BK48),0) -> 0 | DS48: 0 | DT48: 0
A49: =IF(SUM(BM49)>0,SUM(MAX(A$6:A48),1,IF(SUM(A$6:$A48)>0,0,$B$1)),0) -> 0 | B49: =IF(SUM(CC49,BI49:BK49,BO49,BQ49,BT49,BP49)<>0,MAX(B$6:B48)+1,0) -> 0 | C49: PBX-S2S-01002 | D49: 11030 | G49: Hardware | H49: S2S | I49: PBX | J49: PBX | K49: StarLite Cloud Connection Manager | L49: 299 | M49: 175 | N49: 0 | O49: 0 | P49: 0 | Q49: 100 | R49: 50 | S49: 10 | T49: 0 | U49: 0 | V49: 7.5 | W49: 7.475 | X49: 44.85 | Y49: 149.5 | Z49: 0 | AA49: 0 | AB49: 0 | AD49: area_pbx | AE49: 0 | AF49: SLASSEMBLY | AG49: StarBox Cloud Connection System | AH49: StarLite Cloud Connection Manager | AI49: Up to 20 phones and 10 simultaneous calls. Does not support paging through the phone. For paging use Snom PA-1 paging unit or analog adaptor to overhead speakers | AJ49: Supports up to 25 call paths to a legacy phone system (Analog, PRI, or SIP connectivity) | AM49: Hardware | AO49: FALSE | AP49: PBX | AQ49: 2 | AR49: 6 | AS49: 0.05 | AT49: 0 | AU49: 299 | AV49: 60 | AW49: 100 | AX49: 0 | AY49: 7.5 | AZ49: 44.85 | BA49: 0 | BB49: 0 | BC49: 0 | BD49: 0 | BH49: 1,3,8 | BI49: =IFERROR(VLOOKUP($C49,dashqtys,5,FALSE),0) -> 0 | BJ49: =IFERROR(VLOOKUP($C49,dashqtys,2,FALSE),0) -> 0 | BL49: 0 | BM49: 0 | BN49: =IF(ref_NIMA,MAX(BI49,BJ49),IF(BK49="",MAX(BI49,BJ49),BK49)) -> 0 | BO49: 0 | BP49: 0 | BQ49: 0 | BR49: 0 | BS49: 0 | BT49: 0 | BU49: 0 | BV49: 0 | BW49: 0 | BX49: 0 | BY49: 0 | BZ49: 299 | CA49: 0 | CB49: 0 | CC49: =IFERROR(VLOOKUP($C49,dashqtys,4,FALSE),0) -> 0 | CD49: =IF(OR(BQ49>0,ref_addon=TRUE),Y49,Y49*ref_demokitdisc) -> 134.55 | CE49: 0 | CF49: =VLOOKUP(AP49,'Reseller Info'!$AL$123:$AO$130,3,FALSE) -> 0 | CG49: =IF(OR(AQ49=2,AQ49=6),ref_pbxmuper,0) -> 0 | CH49: 466.5 | CI49: 0 | CJ49: 0 | CK49: 0 | CL49: 0 | CM49: 0 | CN49: 0 | CO49: 0 | CP49: 0 | CQ49: 0 | CR49: 0 | CS49: 0 | CT49: 0 | CU49: 0 | CV49: FALSE | CW49: TRUE | CX49: FALSE | CY49: TRUE | CZ49: FALSE | DA49: FALSE | DB49: FALSE | DC49: FALSE | DD49: FALSE | DE49: 299 | DF49: 0 | DG49: 0 | DH49: 0 | DI49: 299 | DJ49: 0 | DK49: TRUE | DM49: 0 | DN49: 4 | DO49: StarLite Cloud Connection Manager | DP49: 0 | DQ49: 0 | DR49: 0 | DS49: 0 | DT49: 0
A50: =IF(SUM(BM50)>0,SUM(MAX(A$6:A49),1,IF(SUM(A$6:$A49)>0,0,$B$1)),0) -> 0 | B50: =IF(SUM(CC50,BI50:BK50,BO50,BQ50,BT50,BP50)<>0,MAX(B$6:B49)+1,0) -> 0 | C50: PBX-S2S-01014 | D50: 11040 | G50: Hardware | H50: S2S | I50: PBX | J50: PBX | K50: StarLite Cloud Connection Manager - 4th Quarter Promotion | L50: -299 | M50: -175 | N50: 0 | O50: 0 | P50: 0 | Q50: 0 | R50: 0 | S50: 0 | T50: 0 | U50: 0 | V50: 0 | W50: -7.475 | Y50: -149.5 | Z50: 0 | AA50: 0 | AB50: 0 | AD50: area_pbx | AE50: 0 | AF50: TBD | AG50: StarBox Cloud Connection System | AH50: StarLite Cloud Connection Manager - 4th Quarter Promotion | AM50: Hardware | AO50: FALSE | AP50: None | AQ50: 9 | AR50: 0 | AS50: 0 | AT50: 0 | AU50: -299 | AV50: 0 | AW50: 0 | AX50: 0 | AY50: 0 | BA50: 0 | BB50: 0 | BC50: 0 | BD50: 0 | BG50: =ref_freestarlite -> 0 | BH50: 1,3,8 | BI50: 0 | BJ50: 0 | BK50: =IF(DK50=FALSE,DJ50,"") ->  | BL50: 0 | BM50: =IF(OR(ref_NIMA=TRUE,E50=0),0,IFERROR(VLOOKUP($C50,area_phones,13,FALSE),0)) -> 0 | BN50: =IF(ref_NIMA,MAX(BI50,BJ50),IF(BK50="",MAX(BI50,BJ50),BK50)) -> 0 | BO50: 0 | BP50: =SUMIF($AL$7:$AL$175,C50,$BM$7:$BM$175) -> 0 | BQ50: =IF(OR(JB_1972=FALSE,DL50="",AM50="Existing"),IF(BK50="",IF(ref_locid=20,BF50,MAX(BO50,BN50,BG50,BP50)),BK50),DL50) -> 0 | BR50: =MAX(BM50,IF(AM50="Existing",DL50,0)) -> 0 | BS50: 0 | BT50: 0 | BU50: =IF(AE50=0,0,IFERROR(BJ50*AE50,0)) -> 0 | BV50: =IF(AE50=0,0,IFERROR(BQ50*AE50,0)) -> 0 | BW50: 0 | BX50: 0 | BY50: 0 | BZ50: -299 | CA50: =SUM(BX50,O50) -> 0 | CB50: =SUM(BY50,Z50) -> 0 | CC50: 0 | CD50: =IF(OR(BQ50>0,ref_addon=TRUE),Y50,Y50*ref_demokitdisc) -> -134.55 | CE50: =IFERROR(BQ50*SUM(N50,AN50),0) -> 0 | CF50: =VLOOKUP(AP50,'Reseller Info'!$AL$123:$AO$130,3,FALSE) -> 0 | CG50: 0 | CH50: =SUM(AU50:AY50) -> -299 | CI50: =SUM(BA50:BD50) -> 0 | CJ50: =MAX(CK50:CL50) -> 0 | CK50: =IF(OR(CV50=TRUE,CZ50=TRUE),$BQ50,0) -> 0 | CL50: =IF(OR(CW50=TRUE,DA50=TRUE),$BQ50,0) -> 0 | CM50: =IF(CV50=TRUE,$BQ50,0) -> 0 | CN50: =IF(OR(CW50=TRUE),$BQ50,0) -> 0 | CO50: =MAX(CP50:CQ50) -> 0 | CP50: =IF(OR(CX50=TRUE,DB50=TRUE),$BQ50,0) -> 0 | CQ50: =IF(OR(CY50=TRUE,DC50=TRUE),$BQ50,0) -> 0 | CR50: =IF(OR(CX50=TRUE),$CC50,0) -> 0 | CS50: =IF(OR(CY50=TRUE),$BQ50,0) -> 0 | CT50: =IF(OR(CW50=TRUE,DA50=TRUE),$BR50,0) -> 0 | CU50: =IF(CW50=TRUE,$BR50,0) -> 0 | CV50: FALSE | CW50: TRUE | CX50: FALSE | CY50: TRUE | CZ50: FALSE | DA50: FALSE | DB50: FALSE | DC50: FALSE | DD50: =IF(OR(CX50=FALSE,CY50=FALSE),FALSE,TRUE) -> FALSE | DE50: -299 | DF50: =IFERROR(BQ50*N50,0) -> 0 | DG50: 0 | DH50: 0 | DI50: -299 | DJ50: =IF(ref_NIMA,"",IFERROR(VLOOKUP($C50,IF(AD50="area_pbx",area_pbx,area_phones),7,FALSE),"")) ->  | DK50: =IF(DJ50="","",ISBLANK(VLOOKUP($C50,IF(AD50="area_pbx",area_pbx,area_phones),7,FALSE))) ->  | DM50: =SUM(AN50,N50) -> 0 | DN50: 1 | DO50: =AH50 -> StarLite Cloud Connection Manager - 4th Quarter Promotion | DP50: 0 | DQ50: =IFERROR(F50*BI50,0) -> 0 | DR50: =IFERROR(F50*(BK50),0) -> 0 | DS50: =IFERROR(F50*(CJ50),0) -> 0 | DT50: 0
A51: =IF(SUM(BM51)>0,SUM(MAX(A$6:A50),1,IF(SUM(A$6:$A50)>0,0,$B$1)),0) -> 0 | B51: =IF(SUM(CC51,BI51:BK51,BO51,BQ51,BT51,BP51)<>0,MAX(B$6:B50)+1,0) -> 0 | C51: PBX-S2S-01009 | D51: 11050 | G51: Hardware | H51: S2S | I51: PBX | J51: PBX | K51: StarLite CR Cloud Connection Manager | L51: 324 | M51: 193 | N51: 0 | O51: 0 | P51: 0 | Q51: 100 | R51: 50 | S51: 10 | T51: 0 | U51: 0 | V51: 7.5 | W51: 8.1 | X51: 48.6 | Y51: 193 | Z51: 0 | AA51: 0 | AB51: 0 | AD51: area_pbx | AE51: 0 | AF51: SLCR | AG51: StarBox Cloud Connection System | AH51: StarLite CR Cloud Connection Manager | AI51: Up to 20 phones and 10 simultaneous calls. Call Recording Functionality. Must order user licenses for call recording on Mnthly Srv tab. Does not support paging through the phone. For paging use Snom PA-1 paging unit or analog adaptor to overhead speakers | AJ51: Supports up to 15 voice channels on a SIP configuration | AM51: Hardware | AO51: FALSE | AP51: PBX | AQ51: 2 | AR51: 6 | AS51: 0.05 | AT51: 0 | AU51: 324 | AV51: 60 | AW51: 100 | AX51: 0 | AY51: 7.5 | AZ51: 48.6 | BA51: 0 | BB51: 0 | BC51: 0 | BD51: 0 | BH51: 1,3,8 | BI51: =IFERROR(VLOOKUP($C51,dashqtys,5,FALSE),0) -> 0 | BJ51: =IFERROR(VLOOKUP($C51,dashqtys,2,FALSE),0) -> 0 | BL51: 0 | BM51: 0 | BN51: =IF(ref_NIMA,MAX(BI51,BJ51),IF(BK51="",MAX(BI51,BJ51),BK51)) -> 0 | BO51: 0 | BP51: 0 | BQ51: =IF(OR(JB_1972=FALSE,DL51="",AM51="Existing"),IF(BK51="",IF(ref_locid=20,BF51,MAX(BO51,BN51,BG51,BP51)),BK51),DL51) -> 0 | BR51: 0 | BS51: 0 | BT51: 0 | BU51: 0 | BV51: 0 | BW51: 0 | BX51: 0 | BY51: 0 | BZ51: 324 | CA51: 0 | CB51: 0 | CC51: =IFERROR(VLOOKUP($C51,dashqtys,4,FALSE),0) -> 0 | CD51: =IF(OR(BQ51>0,ref_addon=TRUE),Y51,Y51*ref_demokitdisc) -> 173.7 | CE51: =IFERROR(BQ51*SUM(N51,AN51),0) -> 0 | CF51: =VLOOKUP(AP51,'Reseller Info'!$AL$123:$AO$130,3,FALSE) -> 0 | CG51: =IF(OR(AQ51=2,AQ51=6),ref_pbxmuper,0) -> 0 | CH51: 491.5 | CI51: 0 | CJ51: =MAX(CK51:CL51) -> 0 | CK51: 0 | CL51: =IF(OR(CW51=TRUE,DA51=TRUE),$BQ51,0) -> 0 | CM51: 0 | CN51: =IF(OR(CW51=TRUE),$BQ51,0) -> 0 | CO51: =MAX(CP51:CQ51) -> 0 | CP51: 0 | CQ51: =IF(OR(CY51=TRUE,DC51=TRUE),$BQ51,0) -> 0 | CR51: 0 | CS51: =IF(OR(CY51=TRUE),$BQ51,0) -> 0 | CT51: 0 | CU51: 0 | CV51: FALSE | CW51: TRUE | CX51: FALSE | CY51: TRUE | CZ51: FALSE | DA51: FALSE | DB51: FALSE | DC51: FALSE | DD51: FALSE | DE51: 324 | DF51: =IFERROR(BQ51*N51,0) -> 0 | DG51: 0 | DH51: 0 | DI51: 324 | DJ51: 0 | DK51: TRUE | DM51: 0 | DN51: 4 | DO51: StarLite CR Cloud Connection Manager | DP51: 0 | DQ51: =IFERROR(F51*BI51,0) -> 0 | DR51: 0 | DS51: =IFERROR(F51*(CJ51),0) -> 0 | DT51: 0
A52: =IF(SUM(BM52)>0,SUM(MAX(A$6:A51),1,IF(SUM(A$6:$A51)>0,0,$B$1)),0) -> 0 | B52: =IF(SUM(CC52,BI52:BK52,BO52,BQ52,BT52,BP52)<>0,MAX(B$6:B51)+1,0) -> 0 | C52: PBX-S2S-01005 | D52: 11060 | G52: Hardware | H52: S2S | I52: PBX | J52: PBX | K52: StarBox 2250 Cloud Connection Manager | L52: 1195 | M52: 599 | N52: 0 | O52: 0 | P52: 0 | Q52: 100 | R52: 100 | S52: 10 | T52: 0 | U52: 0 | V52: 7.5 | W52: 29.875 | X52: 179.25 | Y52: 599 | Z52: 0 | AA52: 0 | AB52: 0 | AD52: area_pbx | AE52: 0 | AF52: SBX2250 | AG52: StarBox Cloud Connection System | AH52: StarBox 2250 Cloud Connection Manager | AI52: Up to 250 phones and 50 simultaneous calls. Max 15 phones in a page group. For large area/multiple paging zone, the Snom PA-1 paging unit or analog adaptor to overhead speakers are strongly recommended. | AJ52: upports up to 250 call paths to a legacy phone system (Analog, PRI, or SIP connectivity) | AM52: Hardware | AO52: FALSE | AP52: PBX | AQ52: 2 | AR52: 6 | AS52: 0.05 | AT52: 0 | AU52: 1195 | AV52: 110 | AW52: 100 | AX52: 0 | AY52: 7.5 | AZ52: 179.25 | BA52: 0 | BB52: 0 | BC52: 0 | BD52: 0 | BF52: 1 | BH52: 1,3,8 | BI52: =IFERROR(VLOOKUP($C52,dashqtys,5,FALSE),0) -> 0 | BJ52: =IFERROR(VLOOKUP($C52,dashqtys,2,FALSE),0) -> 0 | BL52: 0 | BM52: 0 | BN52: =IF(ref_NIMA,MAX(BI52,BJ52),IF(BK52="",MAX(BI52,BJ52),BK52)) -> 0 | BO52: 0 | BP52: 0 | BQ52: =IF(OR(JB_1972=FALSE,DL52="",AM52="Existing"),IF(BK52="",IF(ref_locid=20,BF52,MAX(BO52,BN52,BG52,BP52)),BK52),DL52) -> 0 | BR52: 0 | BS52: 0 | BT52: 0 | BU52: 0 | BV52: 0 | BW52: 0 | BX52: 0 | BY52: 0 | BZ52: 1195 | CA52: 0 | CB52: 0 | CC52: =IFERROR(VLOOKUP($C52,dashqtys,4,FALSE),0) -> 0 | CD52: =IF(OR(BQ52>0,ref_addon=TRUE),Y52,Y52*ref_demokitdisc) -> 539.1 | CE52: =IFERROR(BQ52*SUM(N52,AN52),0) -> 0 | CF52: =VLOOKUP(AP52,'Reseller Info'!$AL$123:$AO$130,3,FALSE) -> 0 | CG52: =IF(OR(AQ52=2,AQ52=6),ref_pbxmuper,0) -> 0 | CH52: 1412.5 | CI52: 0 | CJ52: =MAX(CK52:CL52) -> 0 | CK52: 0 | CL52: =IF(OR(CW52=TRUE,DA52=TRUE),$BQ52,0) -> 0 | CM52: 0 | CN52: =IF(OR(CW52=TRUE),$BQ52,0) -> 0 | CO52: =MAX(CP52:CQ52) -> 0 | CP52: 0 | CQ52: =IF(OR(CY52=TRUE,DC52=TRUE),$BQ52,0) -> 0 | CR52: 0 | CS52: =IF(OR(CY52=TRUE),$BQ52,0) -> 0 | CT52: 0 | CU52: 0 | CV52: FALSE | CW52: TRUE | CX52: FALSE | CY52: TRUE | CZ52: FALSE | DA52: FALSE | DB52: FALSE | DC52: FALSE | DD52: FALSE | DE52: 1195 | DF52: =IFERROR(BQ52*N52,0) -> 0 | DG52: 0 | DH52: 0 | DI52: 1195 | DJ52: 0 | DK52: TRUE | DM52: 0 | DN52: 4 | DO52: StarBox 2250 Cloud Connection Manager | DP52: 0 | DQ52: =IFERROR(F52*BI52,0) -> 0 | DR52: 0 | DS52: =IFERROR(F52*(CJ52),0) -> 0 | DT52: 0
A53: =IF(SUM(BM53)>0,SUM(MAX(A$6:A52),1,IF(SUM(A$6:$A52)>0,0,$B$1)),0) -> 0 | B53: =IF(SUM(CC53,BI53:BK53,BO53,BQ53,BT53,BP53)<>0,MAX(B$6:B52)+1,0) -> 0 | C53: PBX-S2S-01015 | D53: 11070 | G53: Hardware | H53: S2S | I53: PBX | J53: PBX | K53: StarBox 2250 Cloud Connection Manager - 4th Quarter Promotion | L53: -1195 | M53: -599 | N53: 0 | O53: 0 | P53: 0 | Q53: 100 | R53: 0 | S53: 0 | T53: 0 | U53: 0 | V53: 0 | W53: -29.875 | Y53: -599 | Z53: 0 | AA53: 0 | AB53: 0 | AD53: area_pbx | AE53: 0 | AF53: TBD | AG53: StarBox Cloud Connection System | AH53: StarBox 2250 Cloud Connection Manager - 4th Quarter Promotion | AM53: Hardware | AO53: FALSE | AP53: None | AQ53: 9 | AR53: 0 | AS53: 0 | AT53: 0 | AU53: -1195 | AV53: 0 | AW53: 100 | AX53: 0 | AY53: 0 | BA53: 0 | BB53: 0 | BC53: 0 | BD53: 0 | BF53: 1 | BG53: =ref_freestarlite -> 0 | BH53: 1,3,8 | BI53: 0 | BJ53: 0 | BK53: =IF(DK53=FALSE,DJ53,"") ->  | BL53: 0 | BM53: =IF(OR(ref_NIMA=TRUE,E53=0),0,IFERROR(VLOOKUP($C53,area_phones,13,FALSE),0)) -> 0 | BN53: =IF(ref_NIMA,MAX(BI53,BJ53),IF(BK53="",MAX(BI53,BJ53),BK53)) -> 0 | BO53: 0 | BP53: =SUMIF($AL$7:$AL$175,C53,$BM$7:$BM$175) -> 0 | BQ53: =IF(OR(JB_1972=FALSE,DL53="",AM53="Existing"),IF(BK53="",IF(ref_locid=20,BF53,MAX(BO53,BN53,BG53,BP53)),BK53),DL53) -> 0 | BR53: =MAX(BM53,IF(AM53="Existing",DL53,0)) -> 0 | BS53: 0 | BT53: 0 | BU53: =IF(AE53=0,0,IFERROR(BJ53*AE53,0)) -> 0 | BV53: =IF(AE53=0,0,IFERROR(BQ53*AE53,0)) -> 0 | BW53: 0 | BX53: 0 | BY53: 0 | BZ53: -1195 | CA53: =SUM(BX53,O53) -> 0 | CB53: =SUM(BY53,Z53) -> 0 | CC53: 0 | CD53: =IF(OR(BQ53>0,ref_addon=TRUE),Y53,Y53*ref_demokitdisc) -> -539.1 | CE53: =IFERROR(BQ53*SUM(N53,AN53),0) -> 0 | CF53: =VLOOKUP(AP53,'Reseller Info'!$AL$123:$AO$130,3,FALSE) -> 0 | CG53: 0 | CH53: =SUM(AU53:AY53) -> -1095 | CI53: =SUM(BA53:BD53) -> 0 | CJ53: =MAX(CK53:CL53) -> 0 | CK53: =IF(OR(CV53=TRUE,CZ53=TRUE),$BQ53,0) -> 0 | CL53: =IF(OR(CW53=TRUE,DA53=TRUE),$BQ53,0) -> 0 | CM53: =IF(CV53=TRUE,$BQ53,0) -> 0 | CN53: =IF(OR(CW53=TRUE),$BQ53,0) -> 0 | CO53: =MAX(CP53:CQ53) -> 0 | CP53: =IF(OR(CX53=TRUE,DB53=TRUE),$BQ53,0) -> 0 | CQ53: =IF(OR(CY53=TRUE,DC53=TRUE),$BQ53,0) -> 0 | CR53: =IF(OR(CX53=TRUE),$CC53,0) -> 0 | CS53: =IF(OR(CY53=TRUE),$BQ53,0) -> 0 | CT53: =IF(OR(CW53=TRUE,DA53=TRUE),$BR53,0) -> 0 | CU53: =IF(CW53=TRUE,$BR53,0) -> 0 | CV53: FALSE | CW53: TRUE | CX53: FALSE | CY53: TRUE | CZ53: FALSE | DA53: FALSE | DB53: FALSE | DC53: FALSE | DD53: =IF(OR(CX53=FALSE,CY53=FALSE),FALSE,TRUE) -> FALSE | DE53: -1195 | DF53: =IFERROR(BQ53*N53,0) -> 0 | DG53: 0 | DH53: 0 | DI53: -1195 | DJ53: =IF(ref_NIMA,"",IFERROR(VLOOKUP($C53,IF(AD53="area_pbx",area_pbx,area_phones),7,FALSE),"")) ->  | DK53: =IF(DJ53="","",ISBLANK(VLOOKUP($C53,IF(AD53="area_pbx",area_pbx,area_phones),7,FALSE))) ->  | DM53: =SUM(AN53,N53) -> 0 | DN53: 1 | DO53: =AH53 -> StarBox 2250 Cloud Connection Manager - 4th Quarter Promotion | DP53: 0 | DQ53: =IFERROR(F53*BI53,0) -> 0 | DR53: =IFERROR(F53*(BK53),0) -> 0 | DS53: =IFERROR(F53*(CJ53),0) -> 0 | DT53: 0
A54: =IF(SUM(BM54)>0,SUM(MAX(A$6:A53),1,IF(SUM(A$6:$A53)>0,0,$B$1)),0) -> 0 | B54: =IF(SUM(CC54,BI54:BK54,BO54,BQ54,BT54,BP54)<>0,MAX(B$6:B53)+1,0) -> 0 | C54: PBX-S2S-01006 | D54: 11080 | G54: Hardware | H54: S2S | I54: PBX | J54: PBX | K54: StarBox 2250CR Cloud Connection Manager | L54: 1495 | M54: 799 | N54: 0 | O54: 0 | P54: 0 | Q54: 100 | R54: 100 | S54: 10 | T54: 0 | U54: 0 | V54: 7.5 | W54: 37.375 | X54: 224.25 | Y54: 799 | Z54: 0 | AA54: 0 | AB54: 0 | AD54: area_pbx | AE54: 0 | AF54: SBX2250CR | AG54: StarBox Cloud Connection System | AH54: StarBox 2250CR Cloud Connection Manager | AI54: Up to 250 phones and 50 simultaneous calls. Call Recording functionality. Must order user licenses for call recording on Mnthly Srv tab. Max 15 phones in a page group. For large area/multiple paging zone, the Snom PA-1 paging unit or analog adaptor to ov | AJ54: Up to 250 phones and 50 simultaneous calls. Call Recording functionality. | AM54: Hardware | AO54: FALSE | AP54: PBX | AQ54: 6 | AR54: 0 | AS54: 0.05 | AT54: 0 | AU54: 1495 | AV54: 110 | AW54: 100 | AX54: 0 | AY54: 7.5 | AZ54: 224.25 | BA54: 0 | BB54: 0 | BC54: 0 | BD54: 0 | BH54: 1,3,8 | BI54: =IFERROR(VLOOKUP($C54,dashqtys,5,FALSE),0) -> 0 | BJ54: =IFERROR(VLOOKUP($C54,dashqtys,2,FALSE),0) -> 0 | BL54: 0 | BM54: 0 | BN54: =IF(ref_NIMA,MAX(BI54,BJ54),IF(BK54="",MAX(BI54,BJ54),BK54)) -> 0 | BO54: 0 | BP54: 0 | BQ54: =IF(OR(JB_1972=FALSE,DL54="",AM54="Existing"),IF(BK54="",IF(ref_locid=20,BF54,MAX(BO54,BN54,BG54,BP54)),BK54),DL54) -> 0 | BR54: 0 | BS54: 0 | BT54: 0 | BU54: 0 | BV54: 0 | BW54: 0 | BX54: 0 | BY54: 0 | BZ54: 1495 | CA54: 0 | CB54: 0 | CC54: =IFERROR(VLOOKUP($C54,dashqtys,4,FALSE),0) -> 0 | CD54: =IF(OR(BQ54>0,ref_addon=TRUE),Y54,Y54*ref_demokitdisc) -> 719.1 | CE54: =IFERROR(BQ54*SUM(N54,AN54),0) -> 0 | CF54: =VLOOKUP(AP54,'Reseller Info'!$AL$123:$AO$130,3,FALSE) -> 0 | CG54: =IF(OR(AQ54=2,AQ54=6),ref_pbxmuper,0) -> 0 | CH54: 1712.5 | CI54: 0 | CJ54: =MAX(CK54:CL54) -> 0 | CK54: 0 | CL54: =IF(OR(CW54=TRUE,DA54=TRUE),$BQ54,0) -> 0 | CM54: 0 | CN54: =IF(OR(CW54=TRUE),$BQ54,0) -> 0 | CO54: =MAX(CP54:CQ54) -> 0 | CP54: 0 | CQ54: =IF(OR(CY54=TRUE,DC54=TRUE),$BQ54,0) -> 0 | CR54: 0 | CS54: =IF(OR(CY54=TRUE),$BQ54,0) -> 0 | CT54: 0 | CU54: 0 | CV54: FALSE | CW54: TRUE | CX54: FALSE | CY54: TRUE | CZ54: FALSE | DA54: FALSE | DB54: FALSE | DC54: FALSE | DD54: FALSE | DE54: 1495 | DF54: =IFERROR(BQ54*N54,0) -> 0 | DG54: 0 | DH54: 0 | DI54: 1495 | DJ54: 0 | DK54: TRUE | DM54: 0 | DN54: 4 | DO54: StarBox 2250CR Cloud Connection Manager | DP54: 0 | DQ54: =IFERROR(F54*BI54,0) -> 0 | DR54: 0 | DS54: =IFERROR(F54*(CJ54),0) -> 0 | DT54: 0
A55: =IF(SUM(BM55)>0,SUM(MAX(A$6:A54),1,IF(SUM(A$6:$A54)>0,0,$B$1)),0) -> 0 | B55: =IF(SUM(CC55,BI55:BK55,BO55,BQ55,BT55,BP55)<>0,MAX(B$6:B54)+1,0) -> 0 | C55: PBX-S2S-01003 | D55: 11090 | G55: Hardware | H55: S2S | I55: PBX | J55: PBX | K55: StarBox 5500 Cloud Connection Manager | L55: 2995 | M55: 1799 | N55: 0 | O55: 0 | P55: 0 | Q55: 100 | R55: 100 | S55: 10 | T55: 0 | U55: 0 | V55: 7.5 | W55: 74.875 | X55: 449.25 | Y55: 1799 | Z55: 0 | AA55: 0 | AB55: 0 | AD55: area_pbx | AE55: 0 | AF55: SBX5500 | AG55: StarBox Cloud Connection System | AH55: StarBox 5500 Cloud Connection Manager | AI55: Up to 500 phones and 100 simultaneous calls. Max 15 phones in a page group. For large area/multiple paging zone, the Snom PA-1 paging unit or analog adaptor to overhead speakers are strongly recommended. | AJ55: Supports up to 500 call paths to a legacy phone system (Analog, PRI, or SIP connectivity) | AM55: Hardware | AO55: FALSE | AP55: PBX | AQ55: 2 | AR55: 6 | AS55: 0.05 | AT55: 0 | AU55: 2995 | AV55: 110 | AW55: 100 | AX55: 0 | AY55: 7.5 | AZ55: 449.25 | BA55: 0 | BB55: 0 | BC55: 0 | BD55: 0 | BH55: 1,3,8 | BI55: =IFERROR(VLOOKUP($C55,dashqtys,5,FALSE),0) -> 0 | BJ55: =IFERROR(VLOOKUP($C55,dashqtys,2,FALSE),0) -> 0 | BL55: 0 | BM55: 0 | BN55: =IF(ref_NIMA,MAX(BI55,BJ55),IF(BK55="",MAX(BI55,BJ55),BK55)) -> 0 | BO55: 0 | BP55: 0 | BQ55: =IF(OR(JB_1972=FALSE,DL55="",AM55="Existing"),IF(BK55="",IF(ref_locid=20,BF55,MAX(BO55,BN55,BG55,BP55)),BK55),DL55) -> 0 | BR55: 0 | BS55: 0 | BT55: 0 | BU55: 0 | BV55: 0 | BW55: 0 | BX55: 0 | BY55: 0 | BZ55: 2995 | CA55: 0 | CB55: 0 | CC55: =IFERROR(VLOOKUP($C55,dashqtys,4,FALSE),0) -> 0 | CD55: =IF(OR(BQ55>0,ref_addon=TRUE),Y55,Y55*ref_demokitdisc) -> 1619.1 | CE55: =IFERROR(BQ55*SUM(N55,AN55),0) -> 0 | CF55: =VLOOKUP(AP55,'Reseller Info'!$AL$123:$AO$130,3,FALSE) -> 0 | CG55: =IF(OR(AQ55=2,AQ55=6),ref_pbxmuper,0) -> 0 | CH55: 3212.5 | CI55: 0 | CJ55: =MAX(CK55:CL55) -> 0 | CK55: 0 | CL55: =IF(OR(CW55=TRUE,DA55=TRUE),$BQ55,0) -> 0 | CM55: 0 | CN55: =IF(OR(CW55=TRUE),$BQ55,0) -> 0 | CO55: =MAX(CP55:CQ55) -> 0 | CP55: 0 | CQ55: =IF(OR(CY55=TRUE,DC55=TRUE),$BQ55,0) -> 0 | CR55: 0 | CS55: =IF(OR(CY55=TRUE),$BQ55,0) -> 0 | CT55: 0 | CU55: 0 | CV55: FALSE | CW55: TRUE | CX55: FALSE | CY55: TRUE | CZ55: FALSE | DA55: FALSE | DB55: FALSE | DC55: FALSE | DD55: FALSE | DE55: 2995 | DF55: =IFERROR(BQ55*N55,0) -> 0 | DG55: 0 | DH55: 0 | DI55: 2995 | DJ55: 0 | DK55: TRUE | DM55: 0 | DN55: 4 | DO55: StarBox 5500 Cloud Connection Manager | DP55: 0 | DQ55: =IFERROR(F55*BI55,0) -> 0 | DR55: 0 | DS55: =IFERROR(F55*(CJ55),0) -> 0 | DT55: 0
A56: =IF(SUM(BM56)>0,SUM(MAX(A$6:A55),1,IF(SUM(A$6:$A55)>0,0,$B$1)),0) -> 0 | B56: =IF(SUM(CC56,BI56:BK56,BO56,BQ56,BT56,BP56)<>0,MAX(B$6:B55)+1,0) -> 0 | C56: PBX-S2S-01007 | D56: 11110 | G56: Hardware | H56: S2S | I56: PBX | J56: PBX | K56: StarBox 5500CR Cloud Connection Manager | L56: 3495 | M56: 2199 | N56: 0 | O56: 0 | P56: 0 | Q56: 100 | R56: 100 | S56: 10 | T56: 0 | U56: 0 | V56: 7.5 | W56: 87.375 | X56: 524.25 | Y56: 2199 | Z56: 0 | AA56: 0 | AB56: 0 | AD56: area_pbx | AE56: 0 | AF56: SBX5500CR | AG56: StarBox Cloud Connection System | AH56: StarBox 5500CR Cloud Connection Manager | AI56: Up to 500 phones and 100 simultaneous calls. Call Recording functionality. Must order user licenses for call recording on Mnthly Srv tab. Max 15 phones in a page group. For large area/multiple paging zone, the Snom PA-1 paging unit or analog adaptor to | AJ56: Up to 500 phones and 100 simultaneous calls. Call Recording functionality. | AM56: Hardware | AO56: FALSE | AP56: PBX | AQ56: 6 | AR56: 0 | AS56: 0.05 | AT56: 0 | AU56: 3495 | AV56: 110 | AW56: 100 | AX56: 0 | AY56: 7.5 | AZ56: 524.25 | BA56: 0 | BB56: 0 | BC56: 0 | BD56: 0 | BH56: 1,3,8 | BI56: =IFERROR(VLOOKUP($C56,dashqtys,5,FALSE),0) -> 0 | BJ56: =IFERROR(VLOOKUP($C56,dashqtys,2,FALSE),0) -> 0 | BL56: 0 | BM56: 0 | BN56: =IF(ref_NIMA,MAX(BI56,BJ56),IF(BK56="",MAX(BI56,BJ56),BK56)) -> 0 | BO56: 0 | BP56: 0 | BQ56: =IF(OR(JB_1972=FALSE,DL56="",AM56="Existing"),IF(BK56="",IF(ref_locid=20,BF56,MAX(BO56,BN56,BG56,BP56)),BK56),DL56) -> 0 | BR56: 0 | BS56: 0 | BT56: 0 | BU56: 0 | BV56: 0 | BW56: 0 | BX56: 0 | BY56: 0 | BZ56: 3495 | CA56: 0 | CB56: 0 | CC56: =IFERROR(VLOOKUP($C56,dashqtys,4,FALSE),0) -> 0 | CD56: =IF(OR(BQ56>0,ref_addon=TRUE),Y56,Y56*ref_demokitdisc) -> 1979.1 | CE56: =IFERROR(BQ56*SUM(N56,AN56),0) -> 0 | CF56: =VLOOKUP(AP56,'Reseller Info'!$AL$123:$AO$130,3,FALSE) -> 0 | CG56: =IF(OR(AQ56=2,AQ56=6),ref_pbxmuper,0) -> 0 | CH56: 3712.5 | CI56: 0 | CJ56: =MAX(CK56:CL56) -> 0 | CK56: 0 | CL56: =IF(OR(CW56=TRUE,DA56=TRUE),$BQ56,0) -> 0 | CM56: 0 | CN56: =IF(OR(CW56=TRUE),$BQ56,0) -> 0 | CO56: =MAX(CP56:CQ56) -> 0 | CP56: 0 | CQ56: =IF(OR(CY56=TRUE,DC56=TRUE),$BQ56,0) -> 0 | CR56: 0 | CS56: =IF(OR(CY56=TRUE),$BQ56,0) -> 0 | CT56: 0 | CU56: 0 | CV56: =IF(ISERROR(FIND(CV$4,$BH56,1)),FALSE,TRUE) -> FALSE | CW56: TRUE | CX56: FALSE | CY56: TRUE | CZ56: FALSE | DA56: FALSE | DB56: FALSE | DC56: FALSE | DD56: FALSE | DE56: 3495 | DF56: =IFERROR(BQ56*N56,0) -> 0 | DG56: 0 | DH56: 0 | DI56: 3495 | DJ56: 0 | DK56: TRUE | DM56: 0 | DN56: 4 | DO56: StarBox 5500CR Cloud Connection Manager | DP56: 0 | DQ56: =IFERROR(F56*BI56,0) -> 0 | DR56: 0 | DS56: =IFERROR(F56*(CJ56),0) -> 0 | DT56: 0
A57: =IF(SUM(BM57)>0,SUM(MAX(A$6:A56),1,IF(SUM(A$6:$A56)>0,0,$B$1)),0) -> 0 | B57: =IF(SUM(CC57,BI57:BK57,BO57,BQ57,BT57,BP57)<>0,MAX(B$6:B56)+1,0) -> 0 | C57: PBX-S2S-01010 | D57: 11120 | G57: Hardware | H57: S2S | I57: PBX | J57: Misc | K57: CR Upgrade for Starlite Cloud Connection Manager | L57: 25 | M57: 18 | N57: 0 | O57: 0 | P57: 0 | Q57: 0 | R57: 0 | S57: 10 | T57: 0 | U57: 0 | V57: 7.5 | W57: 0.625 | X57: 3.75 | Y57: 18 | Z57: 0 | AA57: 0 | AB57: 0 | AD57: area_pbx | AE57: 0 | AF57: S2GBFC | AG57: StarBox Cloud Connection System | AH57: CR Upgrade for Starlite Cloud Connection Manager | AI57: Memory Card needed to upgrade a Starlite CCM to Call Recording functionality | AJ57: Not Available for SIP configurations | AM57: Hardware | AO57: FALSE | AP57: PBX | AQ57: 5 | AR57: 0 | AS57: 0 | AT57: 0 | AU57: 25 | AV57: 10 | AW57: 0 | AX57: 0 | AY57: 7.5 | AZ57: 3.75 | BA57: 0 | BB57: 0 | BC57: 0 | BD57: 0 | BH57: 0,1,2,3 | BI57: 0 | BJ57: 0 | BL57: 0 | BM57: 0 | BN57: 0 | BO57: 0 | BP57: 0 | BQ57: 0 | BR57: 0 | BS57: 0 | BT57: 0 | BU57: 0 | BV57: 0 | BW57: 0 | BX57: 0 | BY57: 0 | BZ57: 25 | CA57: 0 | CB57: 0 | CC57: 0 | CD57: 16.2 | CE57: 0 | CF57: =VLOOKUP(AP57,'Reseller Info'!$AL$123:$AO$130,3,FALSE) -> 0 | CG57: 0 | CH57: 42.5 | CI57: 0 | CJ57: 0 | CK57: 0 | CL57: 0 | CM57: 0 | CN57: 0 | CO57: 0 | CP57: 0 | CQ57: 0 | CR57: 0 | CS57: 0 | CT57: 0 | CU57: 0 | CV57: TRUE | CW57: TRUE | CX57: TRUE | CY57: TRUE | CZ57: FALSE | DA57: FALSE | DB57: FALSE | DC57: FALSE | DD57: TRUE | DE57: 25 | DF57: 0 | DG57: 0 | DH57: 0 | DI57: 25 | DJ57: 0 | DK57: TRUE | DM57: 0 | DN57: 4 | DO57: CR Upgrade for Starlite Cloud Connection Manager | DP57: 0 | DQ57: 0 | DR57: 0 | DS57: 0 | DT57: 0
A58: =IF(SUM(BM58)>0,SUM(MAX(A$6:A57),1,IF(SUM(A$6:$A57)>0,0,$B$1)),0) -> 0 | B58: =IF(SUM(CC58,BI58:BK58,BO58,BQ58,BT58,BP58)<>0,MAX(B$6:B57)+1,0) -> 0 | C58: ADV-S2S-02002 | D58: 12010 | G58: Application | H58: S2S | I58: Advanced S2S | J58: Call Center | K58: StarCenter Base License | L58: 4995 | M58: 2997 | N58: 0 | O58: 0 | P58: 0 | Q58: 0 | R58: 200 | S58: 0 | T58: 0 | U58: 0 | V58: 0 | W58: 124.875 | X58: 749.25 | Y58: 2497.5 | Z58: 0 | AA58: 0 | AB58: 0 | AD58: area_pbx | AE58: 0 | AF58: ACCB | AG58: Star2Star Enhancement Software | AH58: Advanced Call Center Base License (One time fee) | AI58: Advanced Call Center Functionality (Cross-location, one license per customer) | AJ58: Not Available for SIP configurations | AM58: HWSW | AO58: FALSE | AP58: None | AQ58: 5 | AR58: 0 | AS58: 0 | AT58: 5695 | AU58: 4995 | AV58: 200 | AW58: 0 | AX58: 0 | AY58: 0 | AZ58: 749.25 | BA58: 0 | BB58: 0 | BC58: 0 | BD58: 0 | BH58: 0,1,2,3 | BI58: 0 | BJ58: 0 | BL58: 0 | BM58: 0 | BN58: 0 | BO58: 0 | BP58: 0 | BQ58: 0 | BR58: 0 | BS58: 0 | BT58: 0 | BU58: 0 | BV58: 0 | BW58: 0 | BX58: 0 | BY58: 0 | BZ58: 4995 | CA58: 0 | CB58: 0 | CC58: 0 | CD58: 2247.75 | CE58: 0 | CF58: =VLOOKUP(AP58,'Reseller Info'!$AL$123:$AO$130,3,FALSE) -> 0 | CG58: 0 | CH58: 5195 | CI58: 0 | CJ58: 0 | CK58: 0 | CL58: 0 | CM58: 0 | CN58: 0 | CO58: 0 | CP58: 0 | CQ58: 0 | CR58: 0 | CS58: 0 | CT58: 0 | CU58: 0 | CV58: TRUE | CW58: TRUE | CX58: TRUE | CY58: TRUE | CZ58: FALSE | DA58: FALSE | DB58: FALSE | DC58: FALSE | DD58: TRUE | DE58: 4995 | DF58: 0 | DG58: 0 | DH58: 0 | DI58: 4995 | DJ58: 0 | DK58: TRUE | DM58: 0 | DN58: 4 | DO58: Advanced Call Center Base License (One time fee) | DP58: 0 | DQ58: 0 | DR58: 0 | DS58: 0 | DT58: 0
A59: =IF(SUM(BM59)>0,SUM(MAX(A$6:A58),1,IF(SUM(A$6:$A58)>0,0,$B$1)),0) -> 0 | B59: =IF(SUM(CC59,BI59:BK59,BO59,BQ59,BT59,BP59)<>0,MAX(B$6:B58)+1,0) -> 0 | C59: ADV-S2S-02039 | D59: 12020 | G59: Application | H59: S2S | I59: Advanced S2S | J59: Advanced S2S | K59: StarCenter Lite Base License | L59: 999 | M59: 599 | N59: 0 | O59: 0 | P59: 0 | Q59: 0 | R59: 50 | S59: 0 | T59: 0 | U59: 0 | V59: 0 | W59: 24.975 | X59: 149.85 | Y59: 499.5 | Z59: 0 | AA59: 0 | AB59: 0 | AD59: area_pbx | AE59: 0 | AF59: ACCLB | AG59: Star2Star Enhancement Software | AH59: Advanced Call Center Lite Base License (One time fee) | AI59: Lite Call Center Functionality (One license required per location) | AJ59: Not Available for SIP configurations | AM59: HWSW | AO59: FALSE | AP59: None | AQ59: 5 | AR59: 0 | AS59: 0 | AT59: 1049 | AU59: 999 | AV59: 50 | AW59: 0 | AX59: 0 | AY59: 0 | AZ59: 149.85 | BA59: 0 | BB59: 0 | BC59: 0 | BD59: 0 | BH59: 0,1,2,3 | BI59: 0 | BJ59: 0 | BL59: 0 | BM59: 0 | BN59: 0 | BO59: 0 | BP59: 0 | BQ59: 0 | BR59: 0 | BS59: 0 | BT59: 0 | BU59: 0 | BV59: 0 | BW59: 0 | BX59: 0 | BY59: 0 | BZ59: 999 | CA59: 0 | CB59: 0 | CC59: 0 | CD59: 449.55 | CE59: 0 | CF59: =VLOOKUP(AP59,'Reseller Info'!$AL$123:$AO$130,3,FALSE) -> 0 | CG59: 0 | CH59: 1049 | CI59: 0 | CJ59: 0 | CK59: 0 | CL59: 0 | CM59: 0 | CN59: 0 | CO59: 0 | CP59: 0 | CQ59: 0 | CR59: 0 | CS59: 0 | CT59: 0 | CU59: 0 | CV59: TRUE | CW59: TRUE | CX59: TRUE | CY59: TRUE | CZ59: FALSE | DA59: FALSE | DB59: FALSE | DC59: FALSE | DD59: TRUE | DE59: 999 | DF59: 0 | DG59: 0 | DH59: 0 | DI59: 999 | DJ59: 0 | DK59: TRUE | DM59: 0 | DN59: 4 | DO59: Advanced Call Center Lite Base License (One time fee) | DP59: 0 | DQ59: 0 | DR59: 0 | DS59: 0 | DT59: 0
A60: =IF(SUM(BM60)>0,SUM(MAX(A$6:A59),1,IF(SUM(A$6:$A59)>0,0,$B$1)),0) -> 0 | B60: =IF(SUM(CC60,BI60:BK60,BO60,BQ60,BT60,BP60)<>0,MAX(B$6:B59)+1,0) -> 0 | C60: ADV-S2S-02001 | D60: 12030 | G60: Application | H60: S2S | I60: Advanced S2S | J60: Call Center | K60: StarCenter Agent License | L60: 99 | M60: 59.4 | N60: 0 | O60: 0 | P60: 0 | Q60: 0 | R60: 20 | S60: 10 | T60: 0 | U60: 0 | V60: 0 | W60: 2.475 | X60: 14.85 | Y60: 49.5 | Z60: 0 | AA60: 0 | AB60: 0 | AD60: area_pbx | AE60: 0 | AF60: SACL100 | AG60: Star2Star Enhancement Software | AH60: Advanced Call Center Agent License | AI60: Advanced Call Center Agent License (1 per agent on a concurrent use basis) | AJ60: Not Available for SIP configurations | AM60: HWSW | AO60: FALSE | AP60: None | AQ60: 5 | AR60: 0 | AS60: 0 | AT60: 129 | AU60: 99 | AV60: 30 | AW60: 0 | AX60: 0 | AY60: 0 | AZ60: 14.85 | BA60: 0 | BB60: 0 | BC60: 0 | BD60: 0 | BH60: 0,1,2,3 | BI60: 0 | BJ60: 0 | BL60: 0 | BM60: 0 | BN60: 0 | BO60: 0 | BP60: 0 | BQ60: 0 | BR60: 0 | BS60: 0 | BT60: 0 | BU60: 0 | BV60: 0 | BW60: 0 | BX60: 0 | BY60: 0 | BZ60: 99 | CA60: 0 | CB60: 0 | CC60: 0 | CD60: 44.55 | CE60: 0 | CF60: =VLOOKUP(AP60,'Reseller Info'!$AL$123:$AO$130,3,FALSE) -> 0 | CG60: 0 | CH60: 129 | CI60: 0 | CJ60: 0 | CK60: 0 | CL60: 0 | CM60: 0 | CN60: 0 | CO60: 0 | CP60: 0 | CQ60: 0 | CR60: 0 | CS60: 0 | CT60: 0 | CU60: 0 | CV60: TRUE | CW60: TRUE | CX60: TRUE | CY60: TRUE | CZ60: FALSE | DA60: FALSE | DB60: FALSE | DC60: FALSE | DD60: TRUE | DE60: 99 | DF60: 0 | DG60: 0 | DH60: 0 | DI60: 99 | DJ60: 0 | DK60: TRUE | DM60: 0 | DN60: 4 | DO60: Advanced Call Center Agent License | DP60: 0 | DQ60: 0 | DR60: 0 | DS60: 0 | DT60: 0
A61: =IF(SUM(BM61)>0,SUM(MAX(A$6:A60),1,IF(SUM(A$6:$A60)>0,0,$B$1)),0) -> 0 | B61: =IF(SUM(CC61,BI61:BK61,BO61,BQ61,BT61,BP61)<>0,MAX(B$6:B60)+1,0) -> 0 | C61: ADV-S2S-02040 | D61: 12040 | G61: Application | H61: S2S | I61: Advanced S2S | J61: Advanced S2S | K61: StarCenter Lite Agent License | L61: 0 | M61: 0 | N61: 0 | O61: 0 | P61: 0 | Q61: 0 | R61: 0 | S61: 0 | T61: 0 | U61: 0 | V61: 0 | W61: 0 | X61: 0 | Y61: 0 | Z61: 0 | AA61: 0 | AB61: 0 | AD61: area_pbx | AE61: 0 | AF61: SACLL100 | AG61: Star2Star Enhancement Software | AI61: Lite Call Center Agent License (limit of 20 lite agent licenses per customer) | AJ61: Not Available for SIP configurations | AM61: HWSW | AO61: FALSE | AP61: None | AQ61: 0 | AR61: 0 | AS61: 0.05 | AT61: 0 | AU61: 0 | AV61: 0 | AW61: 0 | AX61: 0 | AY61: 0 | AZ61: 0 | BA61: 0 | BB61: 0 | BC61: 0 | BD61: 0 | BH61: 0,1,2,3 | BI61: 0 | BJ61: 0 | BL61: 0 | BM61: 0 | BN61: 0 | BO61: 0 | BP61: 0 | BQ61: 0 | BR61: 0 | BS61: 0 | BT61: 0 | BU61: 0 | BV61: 0 | BW61: 0 | BX61: 0 | BY61: 0 | BZ61: 0 | CA61: 0 | CB61: 0 | CC61: 0 | CD61: 0 | CE61: 0 | CF61: =VLOOKUP(AP61,'Reseller Info'!$AL$123:$AO$130,3,FALSE) -> 0 | CG61: 0 | CH61: 0 | CI61: 0 | CJ61: 0 | CK61: 0 | CL61: 0 | CM61: 0 | CN61: 0 | CO61: 0 | CP61: 0 | CQ61: 0 | CR61: 0 | CS61: 0 | CT61: 0 | CU61: 0 | CV61: TRUE | CW61: TRUE | CX61: TRUE | CY61: TRUE | CZ61: FALSE | DA61: FALSE | DB61: FALSE | DC61: FALSE | DD61: TRUE | DE61: 0 | DF61: 0 | DG61: 0 | DH61: 0 | DI61: 0 | DJ61: 0 | DK61: TRUE | DM61: 0 | DN61: 4 | DO61: 0 | DP61: 0 | DQ61: 0 | DR61: 0 | DS61: 0 | DT61: 0
A62: =IF(SUM(BM62)>0,SUM(MAX(A$6:A61),1,IF(SUM(A$6:$A61)>0,0,$B$1)),0) -> 0 | B62: =IF(SUM(CC62,BI62:BK62,BO62,BQ62,BT62,BP62)<>0,MAX(B$6:B61)+1,0) -> 0 | C62: ADV-S2S-04021 | D62: 12050 | G62: Application | H62: S2S | I62: Advanced S2S | J62: Advanced S2S | K62: StarCenter Call Recording Agent License | L62: 49.95 | M62: 42.46 | N62: 0 | O62: 0 | P62: 0 | Q62: 0 | R62: 0 | S62: 0 | T62: 0 | U62: 0 | V62: 0 | W62: 1.24875 | X62: 7.49 | Y62: 42.46 | Z62: 0 | AA62: 0 | AB62: 0 | AD62: area_pbx | AE62: 0 | AF62: SSCCR100 | AG62: Star2Star Enhancement Software | AH62: Star Center Call Recording Base License (One time fee, per agent) | AI62: Allows up to 200 hours of stored StarCenter recordings per agent | AJ62: Not Available for SIP configurations | AM62: HWSW | AO62: FALSE | AP62: None | AQ62: 5 | AR62: 0 | AS62: 0 | AT62: 0 | AU62: 49.95 | AV62: 0 | AW62: 0 | AX62: 0 | AY62: 0 | AZ62: 7.49 | BA62: 0 | BB62: 0 | BC62: 0 | BD62: 0 | BH62: 0,1,2,3 | BI62: 0 | BJ62: 0 | BL62: 0 | BM62: 0 | BN62: 0 | BO62: 0 | BP62: 0 | BQ62: 0 | BR62: 0 | BS62: 0 | BT62: 0 | BU62: 0 | BV62: 0 | BW62: 0 | BX62: 0 | BY62: 0 | BZ62: 49.95 | CA62: 0 | CB62: 0 | CC62: 0 | CD62: 38.214 | CE62: 0 | CF62: =VLOOKUP(AP62,'Reseller Info'!$AL$123:$AO$130,3,FALSE) -> 0 | CG62: 0 | CH62: 49.95 | CI62: 0 | CJ62: 0 | CK62: 0 | CL62: 0 | CM62: 0 | CN62: 0 | CO62: 0 | CP62: 0 | CQ62: 0 | CR62: 0 | CS62: 0 | CT62: 0 | CU62: 0 | CV62: TRUE | CW62: TRUE | CX62: TRUE | CY62: TRUE | CZ62: FALSE | DA62: FALSE | DB62: FALSE | DC62: FALSE | DD62: TRUE | DE62: 49.95 | DF62: 0 | DG62: 0 | DH62: 0 | DI62: 49.95 | DJ62: 0 | DK62: TRUE | DM62: 0 | DN62: 4 | DO62: Star Center Call Recording Base License (One time fee, per agent) | DP62: 0 | DQ62: 0 | DR62: 0 | DS62: 0 | DT62: 0
A63: =IF(SUM(BM63)>0,SUM(MAX(A$6:A62),1,IF(SUM(A$6:$A62)>0,0,$B$1)),0) -> 0 | B63: =IF(SUM(CC63,BI63:BK63,BO63,BQ63,BT63,BP63)<>0,MAX(B$6:B62)+1,0) -> 0 | C63: ADV-S2S-04020 | D63: 12060 | G63: Application | H63: S2S | I63: Advanced S2S | J63: Advanced S2S | K63: First Contact (Currently Branded as BRIDGEWORKS) per Agent License | L63: 50 | M63: 42.5 | N63: 0 | O63: 0 | P63: 0 | Q63: 0 | R63: 0 | S63: 0 | T63: 0 | U63: 0 | V63: 0 | W63: 0 | X63: 0 | Y63: 42.5 | Z63: 0 | AA63: 0 | AB63: 0 | AE63: 0 | AF63: SFC100 | AG63: Star2Star Enhancement Software | AH63: First Contact Customer Database Setup Fee | AI63: First Contact (Currently Branded as BRIDGEWORKS) - Customer Database System | AJ63: Not Available for SIP configurations | AM63: HWSW | AO63: FALSE | AP63: None | AQ63: 9 | AR63: 0 | AS63: 0 | AU63: 50 | AV63: 0 | AW63: 0 | AX63: 0 | AY63: 0 | AZ63: 0 | BA63: 0 | BB63: 0 | BC63: 0 | BD63: 0 | BH63: 4,5 | BI63: 0 | BJ63: 0 | BL63: 0 | BM63: 0 | BN63: 0 | BO63: 0 | BP63: 0 | BQ63: 0 | BR63: 0 | BS63: 0 | BT63: 0 | BU63: 0 | BV63: 0 | BW63: 0 | BX63: 0 | BY63: 0 | BZ63: 50 | CA63: 0 | CB63: 0 | CC63: 0 | CD63: 38.25 | CE63: 0 | CF63: =VLOOKUP(AP63,'Reseller Info'!$AL$123:$AO$130,3,FALSE) -> 0 | CG63: 0 | CH63: 50 | CI63: 0 | CJ63: 0 | CK63: 0 | CL63: 0 | CM63: 0 | CN63: 0 | CO63: 0 | CP63: 0 | CQ63: 0 | CR63: 0 | CS63: 0 | CT63: 0 | CU63: 0 | CV63: FALSE | CW63: FALSE | CX63: FALSE | CY63: FALSE | CZ63: TRUE | DA63: TRUE | DB63: FALSE | DC63: FALSE | DD63: FALSE | DE63: 50 | DF63: 0 | DG63: 0 | DH63: 0 | DI63: 50 | DM63: 0 | DN63: 4 | DO63: First Contact Customer Database Setup Fee | DP63: 0 | DQ63: 0 | DR63: 0 | DS63: 0 | DT63: 0
A64: =IF(SUM(BM64)>0,SUM(MAX(A$6:A63),1,IF(SUM(A$6:$A63)>0,0,$B$1)),0) -> 0 | B64: =IF(SUM(CC64,BI64:BK64,BO64,BQ64,BT64,BP64)<>0,MAX(B$6:B63)+1,0) -> 0 | C64: ADV-S2S-02071 | D64: 12070 | G64: Application | H64: S2S | I64: Advanced S2S | J64: Advanced S2S | K64: Star2Star Framework License Monthly Fee | L64: 100 | M64: 100 | N64: 120 | O64: 0 | P64: 0 | Q64: 20 | R64: 0 | S64: 0 | T64: 0 | U64: 0 | V64: 0 | W64: 2.5 | X64: 15 | Y64: 100 | Z64: 0 | AA64: 0 | AB64: 0 | AD64: area_pbx | AE64: 0 | AF64: PROV | AG64: Star2Star Enhancement Software | AH64: Star2Star Framework License Monthly Fee | AI64: For end users who subscribed to Star2Star service prior to 7/2013. This license enables users to access the framework, use the StarScope 2 and Activities applications and purchase additional features (such as StarFax Personal) | AJ64: Not Available for SIP configurations | AM64: HWSW | AO64: FALSE | AP64: Accessories | AQ64: 5 | AR64: 0 | AS64: 0 | AT64: 100 | AU64: -20 | AV64: 0 | AW64: 20 | AX64: 0 | AY64: 0 | AZ64: 15 | BA64: 0 | BB64: 0 | BC64: 0 | BD64: 0 | BH64: 0,1,2,3 | BI64: 0 | BJ64: 0 | BL64: 0 | BM64: 0 | BN64: 0 | BO64: 0 | BP64: 0 | BQ64: 0 | BR64: 0 | BS64: 0 | BT64: 0 | BU64: 0 | BV64: 0 | BW64: 0 | BX64: 0 | BY64: 0 | BZ64: 100 | CA64: 0 | CB64: 0 | CC64: 0 | CD64: 90 | CE64: 0 | CF64: =VLOOKUP(AP64,'Reseller Info'!$AL$123:$AO$130,3,FALSE) -> 0 | CG64: 0 | CH64: 0 | CI64: 0 | CJ64: 0 | CK64: 0 | CL64: 0 | CM64: 0 | CN64: 0 | CO64: 0 | CP64: 0 | CQ64: 0 | CR64: 0 | CS64: 0 | CT64: 0 | CU64: 0 | CV64: TRUE | CW64: TRUE | CX64: TRUE | CY64: TRUE | CZ64: FALSE | DA64: FALSE | DB64: FALSE | DC64: FALSE | DD64: TRUE | DE64: -20 | DF64: 0 | DG64: 0 | DH64: 0 | DI64: -20 | DJ64: 0 | DK64: TRUE | DM64: 120 | DN64: 4 | DO64: Star2Star Framework License Monthly Fee | DP64: 0 | DQ64: 0 | DR64: 0 | DS64: 0 | DT64: 0
A65: =IF(SUM(BM65)>0,SUM(MAX(A$6:A64),1,IF(SUM(A$6:$A64)>0,0,$B$1)),0) -> 0 | B65: =IF(SUM(CC65,BI65:BK65,BO65,BQ65,BT65,BP65)<>0,MAX(B$6:B64)+1,0) -> 0 | C65: ADV-S2S-02062 | D65: 12080 | G65: Application | H65: S2S | I65: Advanced S2S | J65: Advanced S2S | K65: StarRecovery Base License (One time per extension) | L65: 0 | M65: 0 | N65: 0 | O65: 0 | P65: 0 | Q65: 0 | R65: 20 | S65: 0 | T65: 0 | U65: 0 | V65: 0 | W65: 0 | X65: 80 | Y65: 0 | Z65: 0 | AA65: 0 | AB65: 0 | AD65: area_pbx | AE65: 0 | AG65: Star2Star Enhancement Software | AH65: StarRecovery Base License (one time per extension) | AI65: Required When Customer Selects To Set Up StarRecovery | AJ65: Required When Customer Selects To Set Up StarRecovery | AM65: HWSW | AO65: FALSE | AP65: None | AQ65: 0 | AR65: 0 | AS65: 0.05 | AT65: 0 | AU65: 0 | AV65: 20 | AW65: 0 | AX65: 0 | AY65: 0 | AZ65: 80 | BA65: 0 | BB65: 0 | BC65: 0 | BD65: 0 | BG65: =ref_starrecovery -> 0 | BH65: 1 | BI65: 0 | BJ65: 0 | BL65: 0 | BM65: 0 | BN65: 0 | BO65: 0 | BP65: 0 | BQ65: 0 | BR65: 0 | BS65: 0 | BT65: 0 | BU65: 0 | BV65: 0 | BW65: 0 | BX65: 0 | BY65: 0 | BZ65: 0 | CA65: 0 | CB65: 0 | CC65: 0 | CD65: 0 | CE65: 0 | CF65: =VLOOKUP(AP65,'Reseller Info'!$AL$123:$AO$130,3,FALSE) -> 0 | CG65: 0 | CH65: 20 | CI65: 0 | CJ65: 0 | CK65: 0 | CL65: 0 | CM65: 0 | CN65: 0 | CO65: 0 | CP65: 0 | CQ65: 0 | CR65: 0 | CS65: 0 | CT65: 0 | CU65: 0 | CV65: FALSE | CW65: TRUE | CX65: FALSE | CY65: FALSE | CZ65: FALSE | DA65: FALSE | DB65: FALSE | DC65: FALSE | DD65: FALSE | DE65: 0 | DF65: 0 | DG65: 0 | DH65: 0 | DI65: 0 | DJ65: 0 | DK65: TRUE | DM65: 0 | DN65: 4 | DO65: StarRecovery Base License (one time per extension) | DP65: 0 | DQ65: 0 | DR65: 0 | DS65: 0 | DT65: 0
A66: =IF(SUM(BM66)>0,SUM(MAX(A$6:A65),1,IF(SUM(A$6:$A65)>0,0,$B$1)),0) -> 0 | B66: =IF(SUM(CC66,BI66:BK66,BO66,BQ66,BT66,BP66)<>0,MAX(B$6:B65)+1,0) -> 0 | C66: PHO-POL-01001 | D66: 13050 | E66: 14050 | G66: Hardware | H66: Polycom | I66: Phones | J66: Polycom Phones | K66: Polycom 321 IP Phone | L66: 114.95 | M66: 72.03 | N66: 0 | O66: 44.95 | P66: 26.97 | Q66: 20 | R66: 0 | S66: 10 | T66: 4.95 | U66: 5 | V66: 7.5 | W66: 2.87375 | X66: 40 | Y66: 62.55 | Z66: 44.95 | AA66: 26.97 | AB66: 0 | AD66: area_phones | AE66: 1 | AF66: PIP321 | AG66: VoIP Phones | AH66: Polycom 321 IP Phone with Star2Star productivity software | AI66: 2 line, Single Ethernet, PoE default, power supply extra | AK66: ADV-S2S-02013 | AL66: ADV-S2S-02017 | AM66: Hardware | AN66: 0 | AO66: TRUE | AP66: Phones | AQ66: 1 | AR66: 0 | AS66: 0.5 | AT66: 0 | AU66: 159.9 | AV66: 30 | AW66: 29.95 | AX66: 49.95 | AY66: 7.5 | AZ66: 40 | BA66: 44.95 | BB66: 20 | BC66: 24.95 | BD66: 49.95 | BE66: 40 | BH66: 0,1,2,3 | BI66: 0 | BJ66: 0 | BL66: 0 | BM66: 0 | BN66: 0 | BO66: 0 | BP66: 0 | BQ66: 0 | BR66: 0 | BS66: 0 | BT66: 0 | BU66: 0 | BV66: 0 | BW66: 0 | BX66: =IF(AND(DT66>0,DN66=3),DT66,0) -> 0 | BY66: 0 | BZ66: 114.95 | CA66: 44.95 | CB66: 44.95 | CC66: 0 | CD66: 56.295 | CE66: 0 | CF66: =VLOOKUP(AP66,'Reseller Info'!$AL$123:$AO$130,3,FALSE) -> 0 | CG66: 0 | CH66: 277.3 | CI66: 139.85 | CJ66: 0 | CK66: 0 | CL66: 0 | CM66: 0 | CN66: 0 | CO66: 0 | CP66: 0 | CQ66: 0 | CR66: 0 | CS66: 0 | CT66: 0 | CU66: 0 | CV66: =IF(ISERROR(FIND(CV$4,$BH66,1)),FALSE,TRUE) -> TRUE | CW66: TRUE | CX66: TRUE | CY66: TRUE | CZ66: FALSE | DA66: FALSE | DB66: FALSE | DC66: FALSE | DD66: TRUE | DE66: 114.95 | DF66: 0 | DG66: 0 | DH66: 0 | DI66: 159.9 | DJ66: 0 | DK66: TRUE | DM66: 0 | DN66: 3 | DO66: Polycom 321 IP Phone with Star2Star productivity software | DP66: 0 | DQ66: 0 | DR66: 0 | DS66: 0 | DT66: 0
A67: =IF(SUM(BM67)>0,SUM(MAX(A$6:A66),1,IF(SUM(A$6:$A66)>0,0,$B$1)),0) -> 0 | B67: =IF(SUM(CC67,BI67:BK67,BO67,BQ67,BT67,BP67)<>0,MAX(B$6:B66)+1,0) -> 0 | C67: PHO-POL-01002 | D67: 13060 | E67: 14060 | G67: Hardware | H67: Polycom | I67: Phones | J67: Polycom Phones | K67: Polycom 331 IP Phone | L67: 134.05 | M67: 92.03 | N67: 0 | O67: 44.95 | P67: 26.97 | Q67: 20 | R67: 0 | S67: 10 | T67: 4.95 | U67: 5 | V67: 7.5 | W67: 3.35125 | X67: 40 | Y67: 80.55 | Z67: 44.95 | AA67: 26.97 | AB67: 0 | AD67: area_phones | AE67: 1 | AF67: P331 | AG67: VoIP Phones | AH67: Polycom 331 IP Phone with Star2Star productivity software | AI67: 2 line, Dual Ethernet, PoE default, power supply extra | AK67: ADV-S2S-02013 | AL67: ADV-S2S-02017 | AM67: Hardware | AN67: 0 | AO67: TRUE | AP67: Phones | AQ67: 1 | AR67: 0 | AS67: 0.5 | AT67: 0 | AU67: 179 | AV67: 30 | AW67: 29.95 | AX67: 49.95 | AY67: 7.5 | AZ67: 40 | BA67: 44.95 | BB67: 20 | BC67: 24.95 | BD67: 49.95 | BE67: 40 | BH67: 0,1,2,3 | BI67: 0 | BJ67: 0 | BL67: 0 | BM67: 0 | BN67: 0 | BO67: 0 | BP67: 0 | BQ67: 0 | BR67: 0 | BS67: 0 | BT67: 0 | BU67: 0 | BV67: 0 | BW67: 0 | BX67: =IF(AND(DT67>0,DN67=3),DT67,0) -> 0 | BY67: 0 | BZ67: 134.05 | CA67: 44.95 | CB67: 44.95 | CC67: 0 | CD67: 72.495 | CE67: 0 | CF67: =VLOOKUP(AP67,'Reseller Info'!$AL$123:$AO$130,3,FALSE) -> 0 | CG67: 0 | CH67: 296.4 | CI67: 139.85 | CJ67: 0 | CK67: 0 | CL67: 0 | CM67: 0 | CN67: 0 | CO67: 0 | CP67: 0 | CQ67: 0 | CR67: 0 | CS67: 0 | CT67: 0 | CU67: 0 | CV67: TRUE | CW67: TRUE | CX67: TRUE | CY67: TRUE | CZ67: FALSE | DA67: FALSE | DB67: FALSE | DC67: FALSE | DD67: TRUE | DE67: 134.05 | DF67: 0 | DG67: 0 | DH67: 0 | DI67: 179 | DJ67: 0 | DK67: TRUE | DM67: 0 | DN67: 3 | DO67: Polycom 331 IP Phone with Star2Star productivity software | DP67: 0 | DQ67: 0 | DR67: 0 | DS67: 0 | DT67: 0
A68: =IF(SUM(BM68)>0,SUM(MAX(A$6:A67),1,IF(SUM(A$6:$A67)>0,0,$B$1)),0) -> 0 | B68: =IF(SUM(CC68,BI68:BK68,BO68,BQ68,BT68,BP68)<>0,MAX(B$6:B67)+1,0) -> 0 | C68: PHO-POL-01003 | D68: 13070 | E68: 14070 | G68: Hardware | H68: Polycom | I68: Phones | J68: Polycom Phones | K68: Polycom 335 IP Phone | L68: 155.04 | M68: 130.03 | N68: 15 | O68: 44.95 | P68: 26.97 | Q68: 20 | R68: 0 | S68: 10 | T68: 4.95 | U68: 5 | V68: 7.5 | W68: 3.876 | X68: 40 | Y68: 89.55 | Z68: 44.95 | AA68: 26.97 | AB68: 0 | AD68: area_phones | AE68: 1 | AF68: PIP335 | AG68: VoIP Phones | AH68: Polycom 335 IP Phone with Star2Star productivity software | AI68: 2 line, Dual Ethernet, Anti Mobile Phone Buzz Filter, pwr supply extra | AK68: ADV-S2S-02013 | AL68: ADV-S2S-02017 | AM68: Hardware | AN68: 0 | AO68: TRUE | AP68: Phones | AQ68: 1 | AR68: 0 | AS68: 0.5 | AT68: 0 | AU68: 184.99 | AV68: 30 | AW68: 29.95 | AX68: 49.95 | AY68: 7.5 | AZ68: 40 | BA68: 44.95 | BB68: 20 | BC68: 24.95 | BD68: 49.95 | BE68: 40 | BH68: 0,1,2,3 | BI68: 0 | BJ68: =IFERROR(VLOOKUP($C68,dashqtys,2,FALSE),0) -> 0 | BL68: 0 | BM68: 0 | BN68: =IF(ref_NIMA,MAX(BI68,BJ68),IF(BK68="",MAX(BI68,BJ68),BK68)) -> 0 | BO68: 0 | BP68: 0 | BQ68: =IF(OR(JB_1972=FALSE,DL68="",AM68="Existing"),IF(BK68="",IF(ref_locid=20,BF68,MAX(BO68,BN68,BG68,BP68)),BK68),DL68) -> 0 | BR68: 0 | BS68: 0 | BT68: 0 | BU68: =IF(AE68=0,0,IFERROR(BJ68*AE68,0)) -> 0 | BV68: =IF(AE68=0,0,IFERROR(BQ68*AE68,0)) -> 0 | BW68: 0 | BX68: 0 | BY68: 0 | BZ68: 155.04 | CA68: 44.95 | CB68: 44.95 | CC68: 0 | CD68: =IF(OR(BQ68>0,ref_addon=TRUE),Y68,Y68*ref_demokitdisc) -> 80.595 | CE68: =IFERROR(BQ68*SUM(N68,AN68),0) -> 0 | CF68: =VLOOKUP(AP68,'Reseller Info'!$AL$123:$AO$130,3,FALSE) -> 0 | CG68: 0 | CH68: 302.39 | CI68: 139.85 | CJ68: =MAX(CK68:CL68) -> 0 | CK68: =IF(OR(CV68=TRUE,CZ68=TRUE),$BQ68,0) -> 0 | CL68: =IF(OR(CW68=TRUE,DA68=TRUE),$BQ68,0) -> 0 | CM68: =IF(CV68=TRUE,$BQ68,0) -> 0 | CN68: =IF(OR(CW68=TRUE),$BQ68,0) -> 0 | CO68: =MAX(CP68:CQ68) -> 0 | CP68: =IF(OR(CX68=TRUE,DB68=TRUE),$BQ68,0) -> 0 | CQ68: =IF(OR(CY68=TRUE,DC68=TRUE),$BQ68,0) -> 0 | CR68: 0 | CS68: =IF(OR(CY68=TRUE),$BQ68,0) -> 0 | CT68: 0 | CU68: 0 | CV68: TRUE | CW68: TRUE | CX68: TRUE | CY68: TRUE | CZ68: FALSE | DA68: FALSE | DB68: FALSE | DC68: FALSE | DD68: TRUE | DE68: 155.04 | DF68: =IFERROR(BQ68*N68,0) -> 0 | DG68: 0 | DH68: 0 | DI68: 184.99 | DJ68: 0 | DK68: TRUE | DM68: 15 | DN68: 3 | DO68: Polycom 335 IP Phone with Star2Star productivity software | DP68: 0 | DQ68: 0 | DR68: 0 | DS68: =IFERROR(F68*(CJ68),0) -> 0 | DT68: 0
A69: =IF(SUM(BM69)>0,SUM(MAX(A$6:A68),1,IF(SUM(A$6:$A68)>0,0,$B$1)),0) -> 0 | B69: =IF(SUM(CC69,BI69:BK69,BO69,BQ69,BT69,BP69)<>0,MAX(B$6:B68)+1,0) -> 0 | C69: PHO-POL-01004 | D69: 13080 | E69: 14080 | G69: Hardware | H69: Polycom | I69: Phones | J69: Polycom Phones | K69: Polycom 450 IP Phone | L69: 224.05 | M69: 162.03 | N69: 0 | O69: 84.95 | P69: 52.97 | Q69: 20 | R69: 0 | S69: 10 | T69: 4.95 | U69: 5 | V69: 7.5 | W69: 5.60125 | X69: 40 | Y69: 148.05 | Z69: 84.95 | AA69: 52.97 | AB69: 0 | AD69: area_phones | AE69: 1 | AF69: PIP450 | AG69: VoIP Phones | AH69: Polycom 450 IP Phone with Star2Star productivity software | AI69: 3 line, Dual Ethernet, PoE, power supply extra | AK69: ADV-S2S-02014 | AL69: ADV-S2S-02018 | AM69: Hardware | AN69: 25 | AO69: TRUE | AP69: Phones | AQ69: 1 | AR69: 0 | AS69: 0.5 | AT69: 0 | AU69: 309 | AV69: 30 | AW69: 29.95 | AX69: 49.95 | AY69: 7.5 | AZ69: 40 | BA69: 84.95 | BB69: 20 | BC69: 24.95 | BD69: 49.95 | BE69: 40 | BH69: 0,1,2,3 | BI69: 0 | BJ69: 0 | BL69: 0 | BM69: 0 | BN69: 0 | BO69: 0 | BP69: 0 | BQ69: 0 | BR69: 0 | BS69: 0 | BT69: 0 | BU69: 0 | BV69: 0 | BW69: 0 | BX69: 0 | BY69: 0 | BZ69: 224.05 | CA69: 84.95 | CB69: 84.95 | CC69: 0 | CD69: 133.245 | CE69: 0 | CF69: =VLOOKUP(AP69,'Reseller Info'!$AL$123:$AO$130,3,FALSE) -> 0 | CG69: 0 | CH69: 426.4 | CI69: 179.85 | CJ69: 0 | CK69: 0 | CL69: 0 | CM69: 0 | CN69: 0 | CO69: 0 | CP69: 0 | CQ69: 0 | CR69: 0 | CS69: 0 | CT69: 0 | CU69: 0 | CV69: TRUE | CW69: TRUE | CX69: TRUE | CY69: TRUE | CZ69: FALSE | DA69: FALSE | DB69: FALSE | DC69: FALSE | DD69: TRUE | DE69: 224.05 | DF69: 0 | DG69: 0 | DH69: 0 | DI69: 284 | DJ69: 0 | DK69: TRUE | DM69: 25 | DN69: 3 | DO69: Polycom 450 IP Phone with Star2Star productivity software | DP69: 0 | DQ69: 0 | DR69: 0 | DS69: 0 | DT69: 0
A70: =IF(SUM(BM70)>0,SUM(MAX(A$6:A69),1,IF(SUM(A$6:$A69)>0,0,$B$1)),0) -> 0 | B70: =IF(SUM(CC70,BI70:BK70,BO70,BQ70,BT70,BP70)<>0,MAX(B$6:B69)+1,0) -> 0 | C70: PHO-POL-01005 | D70: 13090 | E70: 14090 | G70: Hardware | H70: Polycom | I70: Phones | J70: Polycom Phones | K70: Polycom 550 IP Phone | L70: 284.05 | M70: 187.03 | N70: 0 | O70: 84.95 | P70: 52.97 | Q70: 20 | R70: 0 | S70: 10 | T70: 4.95 | U70: 5 | V70: 7.5 | W70: 7.10125 | X70: 42.61 | Y70: 166.05 | Z70: 84.95 | AA70: 52.97 | AB70: 0 | AD70: area_phones | AE70: 1 | AF70: PIP550 | AG70: VoIP Phones | AH70: Polycom 550 IP Phone with Star2Star productivity software | AI70: 4 line, Dual Ethernet, PoE, power supply extra | AK70: ADV-S2S-02014 | AL70: ADV-S2S-02018 | AM70: Hardware | AN70: 50 | AO70: TRUE | AP70: Phones | AQ70: 1 | AR70: 0 | AS70: 0.5 | AT70: 0 | AU70: 369 | AV70: 30 | AW70: 29.95 | AX70: 49.95 | AY70: 7.5 | AZ70: 42.61 | BA70: 84.95 | BB70: 20 | BC70: 24.95 | BD70: 49.95 | BE70: 42.61 | BH70: 0,1,2,3 | BI70: 0 | BJ70: =IFERROR(VLOOKUP($C70,dashqtys,2,FALSE),0) -> 0 | BL70: 0 | BM70: 0 | BN70: =IF(ref_NIMA,MAX(BI70,BJ70),IF(BK70="",MAX(BI70,BJ70),BK70)) -> 0 | BO70: 0 | BP70: 0 | BQ70: =IF(OR(JB_1972=FALSE,DL70="",AM70="Existing"),IF(BK70="",IF(ref_locid=20,BF70,MAX(BO70,BN70,BG70,BP70)),BK70),DL70) -> 0 | BR70: 0 | BS70: 0 | BT70: 0 | BU70: =IF(AE70=0,0,IFERROR(BJ70*AE70,0)) -> 0 | BV70: =IF(AE70=0,0,IFERROR(BQ70*AE70,0)) -> 0 | BW70: 0 | BX70: 0 | BY70: 0 | BZ70: 284.05 | CA70: 84.95 | CB70: 84.95 | CC70: 0 | CD70: =IF(OR(BQ70>0,ref_addon=TRUE),Y70,Y70*ref_demokitdisc) -> 149.445 | CE70: =IFERROR(BQ70*SUM(N70,AN70),0) -> 0 | CF70: =VLOOKUP(AP70,'Reseller Info'!$AL$123:$AO$130,3,FALSE) -> 0 | CG70: 0 | CH70: 486.4 | CI70: 179.85 | CJ70: =MAX(CK70:CL70) -> 0 | CK70: =IF(OR(CV70=TRUE,CZ70=TRUE),$BQ70,0) -> 0 | CL70: =IF(OR(CW70=TRUE,DA70=TRUE),$BQ70,0) -> 0 | CM70: =IF(CV70=TRUE,$BQ70,0) -> 0 | CN70: =IF(OR(CW70=TRUE),$BQ70,0) -> 0 | CO70: =MAX(CP70:CQ70) -> 0 | CP70: =IF(OR(CX70=TRUE,DB70=TRUE),$BQ70,0) -> 0 | CQ70: =IF(OR(CY70=TRUE,DC70=TRUE),$BQ70,0) -> 0 | CR70: 0 | CS70: =IF(OR(CY70=TRUE),$BQ70,0) -> 0 | CT70: 0 | CU70: 0 | CV70: TRUE | CW70: TRUE | CX70: TRUE | CY70: TRUE | CZ70: FALSE | DA70: FALSE | DB70: FALSE | DC70: FALSE | DD70: TRUE | DE70: 284.05 | DF70: =IFERROR(BQ70*N70,0) -> 0 | DG70: 0 | DH70: 0 | DI70: 319 | DJ70: 0 | DK70: TRUE | DM70: 50 | DN70: 3 | DO70: Polycom 550 IP Phone with Star2Star productivity software | DP70: 0 | DQ70: 0 | DR70: 0 | DS70: =IFERROR(F70*(CJ70),0) -> 0 | DT70: 0
A71: =IF(SUM(BM71)>0,SUM(MAX(A$6:A70),1,IF(SUM(A$6:$A70)>0,0,$B$1)),0) -> 0 | B71: =IF(SUM(CC71,BI71:BK71,BO71,BQ71,BT71,BP71)<>0,MAX(B$6:B70)+1,0) -> 0 | C71: PHO-POL-01006 | D71: 13100 | E71: 14100 | G71: Hardware | H71: Polycom | I71: Phones | J71: Polycom Phones | K71: Polycom 560 Gig IP Phone | L71: 364.05 | M71: 241.03 | N71: 0 | O71: 84.95 | P71: 52.97 | Q71: 20 | R71: 0 | S71: 10 | T71: 4.95 | U71: 5 | V71: 7.5 | W71: 9.10125 | X71: 54.61 | Y71: 211.05 | Z71: 84.95 | AA71: 52.97 | AB71: 0 | AD71: area_phones | AE71: 1 | AF71: PIP560 | AG71: VoIP Phones | AH71: Polycom 560 IP Phone with Star2Star productivity software | AI71: 4 line, Dual Gigabit Ethernet, PoE, power supply extra | AK71: ADV-S2S-02014 | AL71: ADV-S2S-02018 | AM71: Hardware | AN71: 50 | AO71: TRUE | AP71: Phones | AQ71: 1 | AR71: 0 | AS71: 0.5 | AT71: 0 | AU71: 449 | AV71: 30 | AW71: 29.95 | AX71: 49.95 | AY71: 7.5 | AZ71: 54.61 | BA71: 84.95 | BB71: 20 | BC71: 24.95 | BD71: 49.95 | BE71: 54.61 | BH71: 0,1,2,3 | BI71: 0 | BJ71: 0 | BL71: 0 | BM71: 0 | BN71: 0 | BO71: 0 | BP71: 0 | BQ71: 0 | BR71: 0 | BS71: =MAX(IF(ref_estquote,CC71,0),BQ71:BR71) -> 0 | BT71: 0 | BU71: 0 | BV71: 0 | BW71: =IFERROR(SUM(IF(BS71=0,0,1)*CG71,IF(DN71=3,IF(DT71<0,DT71,0),DT71)),0) -> 0 | BX71: 0 | BY71: 0 | BZ71: =SUM(BW71,L71) -> 364.05 | CA71: 84.95 | CB71: 84.95 | CC71: 0 | CD71: 189.945 | CE71: 0 | CF71: =VLOOKUP(AP71,'Reseller Info'!$AL$123:$AO$130,3,FALSE) -> 0 | CG71: 0 | CH71: 566.4 | CI71: 179.85 | CJ71: 0 | CK71: 0 | CL71: 0 | CM71: 0 | CN71: 0 | CO71: 0 | CP71: 0 | CQ71: 0 | CR71: 0 | CS71: 0 | CT71: 0 | CU71: 0 | CV71: TRUE | CW71: TRUE | CX71: TRUE | CY71: TRUE | CZ71: FALSE | DA71: FALSE | DB71: FALSE | DC71: FALSE | DD71: TRUE | DE71: =IF(H71="Polycom",BZ71,BZ71-N71) -> 364.05 | DF71: 0 | DG71: =IF(AM71="Existing",IF($BY71<0,$BY71,0),SUM(IF($BX71<0,$BX71,0),IF($BW71<0,$BW71,0))) -> 0 | DH71: =IF(AM71="Existing",IF($BY71>0,$BY71,0),SUM(IF($BX71>0,$BX71,0),IF($BW71>0,$BW71,0))) -> 0 | DI71: =SUM(BZ71,CA71,-N71,-AN71) -> 399 | DJ71: 0 | DK71: TRUE | DM71: 50 | DN71: 3 | DO71: Polycom 560 IP Phone with Star2Star productivity software | DP71: =SUM(BW71:BX71) -> 0 | DQ71: 0 | DR71: 0 | DS71: 0 | DT71: =IFERROR(VLOOKUP(C71,area_salesagentmarkup,18,FALSE),0) -> 0
A72: =IF(SUM(BM72)>0,SUM(MAX(A$6:A71),1,IF(SUM(A$6:$A71)>0,0,$B$1)),0) -> 0 | B72: =IF(SUM(CC72,BI72:BK72,BO72,BQ72,BT72,BP72)<>0,MAX(B$6:B71)+1,0) -> 0 | C72: PHO-POL-01007 | D72: 13110 | E72: 14110 | G72: Hardware | H72: Polycom | I72: Phones | J72: Polycom Phones | K72: Polycom 650 IP Phone | L72: 243 | M72: 225 | N72: 0 | O72: 129.95 | P72: 76.97 | Q72: 20 | R72: 0 | S72: 10 | T72: 4.95 | U72: 5 | V72: 7.5 | W72: 6.075 | X72: 40 | Y72: 202.05 | Z72: 129.95 | AA72: 76.97 | AB72: 0 | AD72: area_phones | AE72: 1 | AF72: PIP650 | AG72: VoIP Phones | AH72: Polycom 650 IP Phone with Star2Star productivity software | AI72: 6 line, Dual Ethernet, Call Recording, power supply extra | AK72: ADV-S2S-02015 | AL72: ADV-S2S-02019 | AM72: Hardware | AN72: 50 | AO72: TRUE | AP72: Phones | AQ72: 1 | AR72: 0 | AS72: 0.5 | AT72: 0 | AU72: 372.95 | AV72: 30 | AW72: 29.95 | AX72: 49.95 | AY72: 7.5 | AZ72: 40 | BA72: 129.95 | BB72: 20 | BC72: 24.95 | BD72: 49.95 | BE72: 40 | BF72: 1 | BH72: 0,1,2,3 | BI72: 0 | BJ72: =IFERROR(VLOOKUP($C72,dashqtys,2,FALSE),0) -> 0 | BL72: 0 | BM72: 0 | BN72: =IF(ref_NIMA,MAX(BI72,BJ72),IF(BK72="",MAX(BI72,BJ72),BK72)) -> 0 | BO72: 0 | BP72: 0 | BQ72: =IF(OR(JB_1972=FALSE,DL72="",AM72="Existing"),IF(BK72="",IF(ref_locid=20,BF72,MAX(BO72,BN72,BG72,BP72)),BK72),DL72) -> 0 | BR72: 0 | BS72: 0 | BT72: 0 | BU72: =IF(AE72=0,0,IFERROR(BJ72*AE72,0)) -> 0 | BV72: =IF(AE72=0,0,IFERROR(BQ72*AE72,0)) -> 0 | BW72: 0 | BX72: 0 | BY72: 0 | BZ72: 243 | CA72: 129.95 | CB72: 129.95 | CC72: 0 | CD72: =IF(OR(BQ72>0,ref_addon=TRUE),Y72,Y72*ref_demokitdisc) -> 181.845 | CE72: =IFERROR(BQ72*SUM(N72,AN72),0) -> 0 | CF72: =VLOOKUP(AP72,'Reseller Info'!$AL$123:$AO$130,3,FALSE) -> 0 | CG72: 0 | CH72: 490.35 | CI72: 224.85 | CJ72: =MAX(CK72:CL72) -> 0 | CK72: =IF(OR(CV72=TRUE,CZ72=TRUE),$BQ72,0) -> 0 | CL72: =IF(OR(CW72=TRUE,DA72=TRUE),$BQ72,0) -> 0 | CM72: =IF(CV72=TRUE,$BQ72,0) -> 0 | CN72: =IF(OR(CW72=TRUE),$BQ72,0) -> 0 | CO72: =MAX(CP72:CQ72) -> 0 | CP72: =IF(OR(CX72=TRUE,DB72=TRUE),$BQ72,0) -> 0 | CQ72: =IF(OR(CY72=TRUE,DC72=TRUE),$BQ72,0) -> 0 | CR72: 0 | CS72: =IF(OR(CY72=TRUE),$BQ72,0) -> 0 | CT72: 0 | CU72: 0 | CV72: TRUE | CW72: TRUE | CX72: TRUE | CY72: TRUE | CZ72: FALSE | DA72: FALSE | DB72: FALSE | DC72: FALSE | DD72: TRUE | DE72: 243 | DF72: =IFERROR(BQ72*N72,0) -> 0 | DG72: 0 | DH72: 0 | DI72: 322.95 | DJ72: 0 | DK72: TRUE | DM72: 50 | DN72: 3 | DO72: Polycom 650 IP Phone with Star2Star productivity software | DP72: 0 | DQ72: 0 | DR72: 0 | DS72: =IFERROR(F72*(CJ72),0) -> 0 | DT72: 0
A73: =IF(SUM(BM73)>0,SUM(MAX(A$6:A72),1,IF(SUM(A$6:$A72)>0,0,$B$1)),0) -> 0 | B73: =IF(SUM(CC73,BI73:BK73,BO73,BQ73,BT73,BP73)<>0,MAX(B$6:B72)+1,0) -> 0 | C73: PHO-POL-01008 | D73: 13120 | E73: 14120 | G73: Hardware | H73: Polycom | I73: Phones | J73: Polycom Phones | K73: Polycom 670 Gig IP Phone | L73: 420.05 | M73: 332.03 | N73: 0 | O73: 129.95 | P73: 76.97 | Q73: 20 | R73: 0 | S73: 10 | T73: 4.95 | U73: 5 | V73: 7.5 | W73: 10.50125 | X73: 63.01 | Y73: 283.05 | Z73: 129.95 | AA73: 76.97 | AB73: 0 | AD73: area_phones | AE73: 1 | AF73: PIP670 | AG73: VoIP Phones | AH73: Polycom 670 IP Phone with Star2Star productivity software | AI73: 6 line, Dual Gig. Ethe, Color Display, Call Recording, pwr sup extra | AK73: ADV-S2S-02015 | AL73: ADV-S2S-02019 | AM73: Hardware | AN73: 50 | AO73: TRUE | AP73: Phones | AQ73: 1 | AR73: 0 | AS73: 0.5 | AT73: 0 | AU73: 550 | AV73: 30 | AW73: 29.95 | AX73: 49.95 | AY73: 7.5 | AZ73: 63.01 | BA73: 129.95 | BB73: 20 | BC73: 24.95 | BD73: 49.95 | BE73: 63.01 | BH73: 0,1,2,3 | BI73: 0 | BJ73: 0 | BL73: 0 | BM73: 0 | BN73: 0 | BO73: =SUMIF($AK$7:$AK$175,$C73,$BN$7:$BN$175) -> 0 | BP73: =SUMIF($AL$7:$AL$175,C73,$BM$7:$BM$175) -> 0 | BQ73: 0 | BR73: 0 | BS73: 0 | BT73: =SUMIF($AK$7:$AK$175,$C73,$BK$7:$BK$175) -> 0 | BU73: 0 | BV73: 0 | BW73: 0 | BX73: 0 | BY73: 0 | BZ73: 420.05 | CA73: 129.95 | CB73: 129.95 | CC73: 0 | CD73: 254.745 | CE73: 0 | CF73: =VLOOKUP(AP73,'Reseller Info'!$AL$123:$AO$130,3,FALSE) -> 0 | CG73: 0 | CH73: 667.4 | CI73: 224.85 | CJ73: 0 | CK73: 0 | CL73: 0 | CM73: 0 | CN73: 0 | CO73: 0 | CP73: 0 | CQ73: 0 | CR73: 0 | CS73: 0 | CT73: 0 | CU73: 0 | CV73: TRUE | CW73: TRUE | CX73: TRUE | CY73: TRUE | CZ73: FALSE | DA73: FALSE | DB73: FALSE | DC73: FALSE | DD73: TRUE | DE73: 420.05 | DF73: 0 | DG73: 0 | DH73: 0 | DI73: 500 | DJ73: 0 | DK73: TRUE | DM73: 50 | DN73: 3 | DO73: Polycom 670 IP Phone with Star2Star productivity software | DP73: 0 | DQ73: 0 | DR73: 0 | DS73: 0 | DT73: 0
A74: =IF(SUM(BM74)>0,SUM(MAX(A$6:A73),1,IF(SUM(A$6:$A73)>0,0,$B$1)),0) -> 0 | B74: =IF(SUM(CC74,BI74:BK74,BO74,BQ74,BT74,BP74)<>0,MAX(B$6:B73)+1,0) -> 0 | C74: PHO-POL-01015 | D74: 13130 | E74: 14130 | G74: Hardware | H74: Polycom | I74: Phones | J74: Polycom Phones | K74: Polycom VVX 300 Entry Level Business Media Phone | L74: 139.99 | M74: 114.99 | N74: 15 | O74: 44.95 | P74: 26.97 | Q74: 20 | R74: 0 | S74: 10 | T74: 4.95 | U74: 5 | V74: 7.5 | W74: 3.49975 | X74: 40 | Y74: 114.99 | Z74: 44.95 | AA74: 26.97 | AB74: 0 | AD74: area_phones | AE74: 1 | AF74: VVX 300 | AG74: VoIP Phones | AH74: Polycom VVX 300 IP Phone with Star2Star Productivity Software | AI74: 2 line appearances, Key system (square key) emulation, Grayscale screen, Two-port Ethernet switch (10/100) | AJ74: Not Available for SIP configurations | AK74: ADV-S2S-02013 | AL74: ADV-S2S-02017 | AM74: Hardware | AN74: 0 | AO74: TRUE | AP74: Phones | AQ74: 1 | AR74: 0 | AS74: 0.5 | AT74: 0 | AU74: 169.94 | AV74: 30 | AW74: 29.95 | AX74: 49.95 | AY74: 7.5 | AZ74: 40 | BA74: 0 | BB74: 0 | BC74: 0 | BD74: 0 | BH74: 0,1,2,3 | BI74: =IFERROR(VLOOKUP($C74,dashqtys,5,FALSE),0) -> 0 | BJ74: =IFERROR(VLOOKUP($C74,dashqtys,2,FALSE),0) -> 0 | BL74: =IF(ref_NIMA,0,IFERROR(VLOOKUP($C74,area_phones,11,FALSE),0)) -> 0 | BM74: 0 | BN74: =IF(ref_NIMA,MAX(BI74,BJ74),IF(BK74="",MAX(BI74,BJ74),BK74)) -> 0 | BO74: 0 | BP74: 0 | BQ74: =IF(OR(JB_1972=FALSE,DL74="",AM74="Existing"),IF(BK74="",IF(ref_locid=20,BF74,MAX(BO74,BN74,BG74,BP74)),BK74),DL74) -> 0 | BR74: 0 | BS74: 0 | BT74: 0 | BU74: =IF(AE74=0,0,IFERROR(BJ74*AE74,0)) -> 0 | BV74: =IF(AE74=0,0,IFERROR(BQ74*AE74,0)) -> 0 | BW74: 0 | BX74: 0 | BY74: =IFERROR(VLOOKUP($AL74,area_salesagentmarkup,18,FALSE),0) -> 0 | BZ74: 139.99 | CA74: 44.95 | CB74: 44.95 | CC74: =IFERROR(VLOOKUP($C74,dashqtys,4,FALSE),0) -> 0 | CD74: =IF(OR(BQ74>0,ref_addon=TRUE),Y74,Y74*ref_demokitdisc) -> 103.491 | CE74: =IFERROR(BQ74*SUM(N74,AN74),0) -> 0 | CF74: =VLOOKUP(AP74,'Reseller Info'!$AL$123:$AO$130,3,FALSE) -> 0 | CG74: 0 | CH74: 287.34 | CI74: 0 | CJ74: =MAX(CK74:CL74) -> 0 | CK74: =IF(OR(CV74=TRUE,CZ74=TRUE),$BQ74,0) -> 0 | CL74: =IF(OR(CW74=TRUE,DA74=TRUE),$BQ74,0) -> 0 | CM74: =IF(CV74=TRUE,$BQ74,0) -> 0 | CN74: =IF(OR(CW74=TRUE),$BQ74,0) -> 0 | CO74: =MAX(CP74:CQ74) -> 0 | CP74: =IF(OR(CX74=TRUE,DB74=TRUE),$BQ74,0) -> 0 | CQ74: =IF(OR(CY74=TRUE,DC74=TRUE),$BQ74,0) -> 0 | CR74: 0 | CS74: =IF(OR(CY74=TRUE),$BQ74,0) -> 0 | CT74: 0 | CU74: 0 | CV74: TRUE | CW74: TRUE | CX74: TRUE | CY74: TRUE | CZ74: FALSE | DA74: FALSE | DB74: FALSE | DC74: FALSE | DD74: TRUE | DE74: 139.99 | DF74: =IFERROR(BQ74*N74,0) -> 0 | DG74: 0 | DH74: 0 | DI74: 169.94 | DJ74: 0 | DK74: TRUE | DL74: =IF(NOT(JB_1972),"",IFERROR(IF(ISBLANK(VLOOKUP($C74,area_salesagentmarkup,16,FALSE)),"",VLOOKUP($C74,area_salesagentmarkup,16,FALSE)),"")) ->  | DM74: 15 | DN74: 3 | DO74: Polycom VVX 300 IP Phone with Star2Star Productivity Software | DP74: 0 | DQ74: 0 | DR74: 0 | DS74: =IFERROR(F74*(CJ74),0) -> 0 | DT74: 0
A75: =IF(SUM(BM75)>0,SUM(MAX(A$6:A74),1,IF(SUM(A$6:$A74)>0,0,$B$1)),0) -> 0 | B75: =IF(SUM(CC75,BI75:BK75,BO75,BQ75,BT75,BP75)<>0,MAX(B$6:B74)+1,0) -> 0 | C75: PHO-POL-01016 | D75: 13140 | E75: 14140 | G75: Hardware | H75: Polycom | I75: Phones | J75: Polycom Phones | K75: Polycom VVX 310 Entry Level Gig Business Media Phone | L75: 169.99 | M75: 139.99 | N75: 15 | O75: 44.95 | P75: 26.97 | Q75: 20 | R75: 0 | S75: 10 | T75: 4.95 | U75: 5 | V75: 7.5 | W75: 4.24975 | X75: 40 | Y75: 139.99 | Z75: 44.95 | AA75: 26.97 | AB75: 0 | AD75: area_phones | AE75: 1 | AF75: VVX 310 | AG75: VoIP Phones | AH75: Polycom VVX 310 IP Phone with Star2Star Productivity Software | AI75: 2 line appearances, Key system (square key) emulation, Grayscale screen, Two-port Ethernet switch (gigabit Ethernet) | AJ75: Not Available for SIP configurations | AK75: ADV-S2S-02013 | AL75: ADV-S2S-02017 | AM75: Hardware | AN75: 0 | AO75: TRUE | AP75: Phones | AQ75: 1 | AR75: 0 | AS75: 0.5 | AT75: 0 | AU75: 199.94 | AV75: 30 | AW75: 29.95 | AX75: 49.95 | AY75: 7.5 | AZ75: 40 | BA75: 0 | BB75: 0 | BC75: 0 | BD75: 0 | BH75: 0,1,2,3 | BI75: 0 | BJ75: =IFERROR(VLOOKUP($C75,dashqtys,2,FALSE),0) -> 0 | BK75: =IF(DK75=FALSE,DJ75,"") ->  | BL75: 0 | BM75: =IF(OR(ref_NIMA=TRUE,E75=0),0,IFERROR(VLOOKUP($C75,area_phones,13,FALSE),0)) -> 0 | BN75: =IF(ref_NIMA,MAX(BI75,BJ75),IF(BK75="",MAX(BI75,BJ75),BK75)) -> 0 | BO75: 0 | BP75: 0 | BQ75: =IF(OR(JB_1972=FALSE,DL75="",AM75="Existing"),IF(BK75="",IF(ref_locid=20,BF75,MAX(BO75,BN75,BG75,BP75)),BK75),DL75) -> 0 | BR75: =MAX(BM75,IF(AM75="Existing",DL75,0)) -> 0 | BS75: 0 | BT75: 0 | BU75: =IF(AE75=0,0,IFERROR(BJ75*AE75,0)) -> 0 | BV75: =IF(AE75=0,0,IFERROR(BQ75*AE75,0)) -> 0 | BW75: 0 | BX75: 0 | BY75: 0 | BZ75: 169.99 | CA75: =SUM(BX75,O75) -> 44.95 | CB75: =SUM(BY75,Z75) -> 44.95 | CC75: 0 | CD75: =IF(OR(BQ75>0,ref_addon=TRUE),Y75,Y75*ref_demokitdisc) -> 125.991 | CE75: =IFERROR(BQ75*SUM(N75,AN75),0) -> 0 | CF75: =VLOOKUP(AP75,'Reseller Info'!$AL$123:$AO$130,3,FALSE) -> 0 | CG75: =IF(OR(AQ75=2,AQ75=6),ref_pbxmuper,0) -> 0 | CH75: =SUM(AU75:AY75) -> 317.34 | CI75: =SUM(BA75:BD75) -> 0 | CJ75: =MAX(CK75:CL75) -> 0 | CK75: =IF(OR(CV75=TRUE,CZ75=TRUE),$BQ75,0) -> 0 | CL75: =IF(OR(CW75=TRUE,DA75=TRUE),$BQ75,0) -> 0 | CM75: =IF(CV75=TRUE,$BQ75,0) -> 0 | CN75: =IF(OR(CW75=TRUE),$BQ75,0) -> 0 | CO75: =MAX(CP75:CQ75) -> 0 | CP75: =IF(OR(CX75=TRUE,DB75=TRUE),$BQ75,0) -> 0 | CQ75: =IF(OR(CY75=TRUE,DC75=TRUE),$BQ75,0) -> 0 | CR75: =IF(OR(CX75=TRUE),$CC75,0) -> 0 | CS75: =IF(OR(CY75=TRUE),$BQ75,0) -> 0 | CT75: =IF(OR(CW75=TRUE,DA75=TRUE),$BR75,0) -> 0 | CU75: =IF(CW75=TRUE,$BR75,0) -> 0 | CV75: TRUE | CW75: TRUE | CX75: TRUE | CY75: TRUE | CZ75: FALSE | DA75: FALSE | DB75: FALSE | DC75: FALSE | DD75: =IF(OR(CX75=FALSE,CY75=FALSE),FALSE,TRUE) -> TRUE | DE75: 169.99 | DF75: =IFERROR(BQ75*N75,0) -> 0 | DG75: 0 | DH75: 0 | DI75: 199.94 | DJ75: =IF(ref_NIMA,"",IFERROR(VLOOKUP($C75,IF(AD75="area_pbx",area_pbx,area_phones),7,FALSE),"")) -> 0 | DK75: =IF(DJ75="","",ISBLANK(VLOOKUP($C75,IF(AD75="area_pbx",area_pbx,area_phones),7,FALSE))) -> TRUE | DM75: =SUM(AN75,N75) -> 15 | DN75: 3 | DO75: =AH75 -> Polycom VVX 310 IP Phone with Star2Star Productivity Software | DP75: 0 | DQ75: =IFERROR(F75*BI75,0) -> 0 | DR75: =IFERROR(F75*(BK75),0) -> 0 | DS75: =IFERROR(F75*(CJ75),0) -> 0 | DT75: 0
A76: =IF(SUM(BM76)>0,SUM(MAX(A$6:A75),1,IF(SUM(A$6:$A75)>0,0,$B$1)),0) -> 0 | B76: =IF(SUM(CC76,BI76:BK76,BO76,BQ76,BT76,BP76)<>0,MAX(B$6:B75)+1,0) -> 0 | C76: PHO-POL-01017 | D76: 13150 | E76: 14150 | G76: Hardware | H76: Polycom | I76: Phones | J76: Polycom Phones | K76: Polycom VVX 400 Mid-Range Business Media Phone | L76: 204.99 | M76: 164.99 | N76: 25 | O76: 44.95 | P76: 26.97 | Q76: 20 | R76: 0 | S76: 10 | T76: 4.95 | U76: 5 | V76: 7.5 | W76: 5.12475 | X76: 40 | Y76: 164.99 | Z76: 44.95 | AA76: 26.97 | AB76: 0 | AD76: area_phones | AE76: 1 | AF76: VVX 400 | AG76: VoIP Phones | AH76: Polycom VVX 400 IP Phone with Star2Star productivity software | AI76: 3 or 6 line appearances, Key system (square key) emulation, 3.5” color screen , Two-port Ethernet switch (10/100) | AJ76: Not Available for SIP configurations | AK76: ADV-S2S-02013 | AL76: ADV-S2S-02017 | AM76: Hardware | AN76: 0 | AO76: TRUE | AP76: Phones | AQ76: 1 | AR76: 0 | AS76: 0.5 | AT76: 0 | AU76: 224.94 | AV76: 30 | AW76: 29.95 | AX76: 49.95 | AY76: 7.5 | AZ76: 40 | BA76: 0 | BB76: 0 | BC76: 0 | BD76: 0 | BH76: 0,1,2,3 | BI76: 0 | BJ76: =IFERROR(VLOOKUP($C76,dashqtys,2,FALSE),0) -> 0 | BL76: 0 | BM76: 0 | BN76: =IF(ref_NIMA,MAX(BI76,BJ76),IF(BK76="",MAX(BI76,BJ76),BK76)) -> 0 | BO76: 0 | BP76: 0 | BQ76: =IF(OR(JB_1972=FALSE,DL76="",AM76="Existing"),IF(BK76="",IF(ref_locid=20,BF76,MAX(BO76,BN76,BG76,BP76)),BK76),DL76) -> 0 | BR76: 0 | BS76: 0 | BT76: 0 | BU76: =IF(AE76=0,0,IFERROR(BJ76*AE76,0)) -> 0 | BV76: =IF(AE76=0,0,IFERROR(BQ76*AE76,0)) -> 0 | BW76: 0 | BX76: 0 | BY76: 0 | BZ76: 204.99 | CA76: 44.95 | CB76: 44.95 | CC76: 0 | CD76: =IF(OR(BQ76>0,ref_addon=TRUE),Y76,Y76*ref_demokitdisc) -> 148.491 | CE76: =IFERROR(BQ76*SUM(N76,AN76),0) -> 0 | CF76: =VLOOKUP(AP76,'Reseller Info'!$AL$123:$AO$130,3,FALSE) -> 0 | CG76: 0 | CH76: 342.34 | CI76: 0 | CJ76: =MAX(CK76:CL76) -> 0 | CK76: =IF(OR(CV76=TRUE,CZ76=TRUE),$BQ76,0) -> 0 | CL76: =IF(OR(CW76=TRUE,DA76=TRUE),$BQ76,0) -> 0 | CM76: =IF(CV76=TRUE,$BQ76,0) -> 0 | CN76: =IF(OR(CW76=TRUE),$BQ76,0) -> 0 | CO76: =MAX(CP76:CQ76) -> 0 | CP76: =IF(OR(CX76=TRUE,DB76=TRUE),$BQ76,0) -> 0 | CQ76: =IF(OR(CY76=TRUE,DC76=TRUE),$BQ76,0) -> 0 | CR76: 0 | CS76: =IF(OR(CY76=TRUE),$BQ76,0) -> 0 | CT76: 0 | CU76: 0 | CV76: =IF(ISERROR(FIND(CV$4,$BH76,1)),FALSE,TRUE) -> TRUE | CW76: TRUE | CX76: TRUE | CY76: TRUE | CZ76: FALSE | DA76: FALSE | DB76: FALSE | DC76: FALSE | DD76: TRUE | DE76: 204.99 | DF76: =IFERROR(BQ76*N76,0) -> 0 | DG76: 0 | DH76: 0 | DI76: 224.94 | DJ76: 0 | DK76: TRUE | DM76: 25 | DN76: 3 | DO76: Polycom VVX 400 IP Phone with Star2Star productivity software | DP76: 0 | DQ76: 0 | DR76: 0 | DS76: =IFERROR(F76*(CJ76),0) -> 0 | DT76: 0
A77: =IF(SUM(BM77)>0,SUM(MAX(A$6:A76),1,IF(SUM(A$6:$A76)>0,0,$B$1)),0) -> 0 | B77: =IF(SUM(CC77,BI77:BK77,BO77,BQ77,BT77,BP77)<>0,MAX(B$6:B76)+1,0) -> 0 | C77: PHO-POL-01018 | D77: 13160 | E77: 14160 | G77: Hardware | H77: Polycom | I77: Phones | J77: Polycom Phones | K77: Polycom VVX 410 Mid-Range Gig Business Media Phone | L77: 224.99 | M77: 179.99 | N77: 25 | O77: 44.95 | P77: 26.97 | Q77: 20 | R77: 0 | S77: 10 | T77: 4.95 | U77: 5 | V77: 7.5 | W77: 5.62475 | X77: 40 | Y77: 179.99 | Z77: 44.95 | AA77: 26.97 | AB77: 0 | AD77: area_phones | AE77: 1 | AF77: VVX 410 | AG77: VoIP Phones | AH77: Polycom VVX 410 IP Phone with Star2Star productivity software | AI77: 3 or 6 line appearances, Key system (square key) emulation, 3.5” color screen , Two-port Ethernet switch (gigabit Ethernet) | AJ77: Not Available for SIP configurations | AK77: ADV-S2S-02013 | AL77: ADV-S2S-02017 | AM77: Hardware | AN77: 0 | AO77: TRUE | AP77: Phones | AQ77: 1 | AR77: 0 | AS77: 0.5 | AT77: 0 | AU77: 244.94 | AV77: 30 | AW77: 29.95 | AX77: 49.95 | AY77: 7.5 | AZ77: 40 | BA77: 0 | BB77: 0 | BC77: 0 | BD77: 0 | BH77: 0,1,2,3 | BI77: 0 | BJ77: 0 | BL77: 0 | BM77: 0 | BN77: 0 | BO77: 0 | BP77: 0 | BQ77: 0 | BR77: 0 | BS77: 0 | BT77: 0 | BU77: 0 | BV77: 0 | BW77: 0 | BX77: 0 | BY77: 0 | BZ77: 224.99 | CA77: 44.95 | CB77: 44.95 | CC77: 0 | CD77: 161.991 | CE77: 0 | CF77: =VLOOKUP(AP77,'Reseller Info'!$AL$123:$AO$130,3,FALSE) -> 0 | CG77: 0 | CH77: 362.34 | CI77: 0 | CJ77: 0 | CK77: 0 | CL77: 0 | CM77: 0 | CN77: 0 | CO77: 0 | CP77: 0 | CQ77: 0 | CR77: 0 | CS77: 0 | CT77: 0 | CU77: 0 | CV77: TRUE | CW77: TRUE | CX77: TRUE | CY77: TRUE | CZ77: FALSE | DA77: FALSE | DB77: FALSE | DC77: FALSE | DD77: TRUE | DE77: 224.99 | DF77: 0 | DG77: 0 | DH77: 0 | DI77: 244.94 | DJ77: 0 | DK77: TRUE | DM77: 25 | DN77: 3 | DO77: Polycom VVX 410 IP Phone with Star2Star productivity software | DP77: 0 | DQ77: 0 | DR77: 0 | DS77: 0 | DT77: 0
A78: =IF(SUM(BM78)>0,SUM(MAX(A$6:A77),1,IF(SUM(A$6:$A77)>0,0,$B$1)),0) -> 0 | B78: =IF(SUM(CC78,BI78:BK78,BO78,BQ78,BT78,BP78)<>0,MAX(B$6:B77)+1,0) -> 0 | C78: PHO-POL-01014 | D78: 13170 | E78: 14170 | G78: Hardware | H78: Polycom | I78: Phones | J78: Polycom Phones | K78: Polycom VVX 500 Performance Business Media Phone | L78: 319.99 | M78: 269.99 | N78: 50 | O78: 84.95 | P78: 52.97 | Q78: 20 | R78: 0 | S78: 10 | T78: 4.95 | U78: 5 | V78: 7.5 | W78: 7.99975 | X78: 48 | Y78: 269.99 | Z78: 84.95 | AA78: 52.97 | AB78: 0 | AD78: area_phones | AE78: 1 | AF78: VVX 500 | AG78: VoIP Phones | AH78: Polycom VVX 500 Phone with Star2Star productivity software | AI78: 3 or 6 line appearances, Key system (square key) emulation, Color multi-touch 3.5" interface, Two-port gigabit Ethernet switch | AJ78: Not Available for SIP configurations | AK78: ADV-S2S-02014 | AL78: ADV-S2S-02018 | AM78: Hardware | AN78: 0 | AO78: TRUE | AP78: Phones | AQ78: 1 | AR78: 0 | AS78: 0.5 | AT78: 0 | AU78: 354.94 | AV78: 30 | AW78: 29.95 | AX78: 49.95 | AY78: 7.5 | AZ78: 48 | BA78: 84.95 | BB78: 20 | BC78: 24.95 | BD78: 49.95 | BE78: 48 | BH78: 0,1,2,3 | BI78: 0 | BJ78: =IFERROR(VLOOKUP($C78,dashqtys,2,FALSE),0) -> 0 | BL78: 0 | BM78: 0 | BN78: =IF(ref_NIMA,MAX(BI78,BJ78),IF(BK78="",MAX(BI78,BJ78),BK78)) -> 0 | BO78: 0 | BP78: 0 | BQ78: =IF(OR(JB_1972=FALSE,DL78="",AM78="Existing"),IF(BK78="",IF(ref_locid=20,BF78,MAX(BO78,BN78,BG78,BP78)),BK78),DL78) -> 0 | BR78: 0 | BS78: 0 | BT78: 0 | BU78: =IF(AE78=0,0,IFERROR(BJ78*AE78,0)) -> 0 | BV78: =IF(AE78=0,0,IFERROR(BQ78*AE78,0)) -> 0 | BW78: 0 | BX78: 0 | BY78: 0 | BZ78: 319.99 | CA78: 84.95 | CB78: 84.95 | CC78: 0 | CD78: =IF(OR(BQ78>0,ref_addon=TRUE),Y78,Y78*ref_demokitdisc) -> 242.991 | CE78: =IFERROR(BQ78*SUM(N78,AN78),0) -> 0 | CF78: =VLOOKUP(AP78,'Reseller Info'!$AL$123:$AO$130,3,FALSE) -> 0 | CG78: 0 | CH78: 472.34 | CI78: 179.85 | CJ78: =MAX(CK78:CL78) -> 0 | CK78: =IF(OR(CV78=TRUE,CZ78=TRUE),$BQ78,0) -> 0 | CL78: 0 | CM78: =IF(CV78=TRUE,$BQ78,0) -> 0 | CN78: =IF(OR(CW78=TRUE),$BQ78,0) -> 0 | CO78: =MAX(CP78:CQ78) -> 0 | CP78: =IF(OR(CX78=TRUE,DB78=TRUE),$BQ78,0) -> 0 | CQ78: 0 | CR78: 0 | CS78: =IF(OR(CY78=TRUE),$BQ78,0) -> 0 | CT78: 0 | CU78: 0 | CV78: TRUE | CW78: TRUE | CX78: TRUE | CY78: TRUE | CZ78: FALSE | DA78: FALSE | DB78: FALSE | DC78: FALSE | DD78: TRUE | DE78: 319.99 | DF78: =IFERROR(BQ78*N78,0) -> 0 | DG78: 0 | DH78: 0 | DI78: 354.94 | DJ78: 0 | DK78: TRUE | DM78: 50 | DN78: 3 | DO78: Polycom VVX 500 Phone with Star2Star productivity software | DP78: 0 | DQ78: 0 | DR78: 0 | DS78: =IFERROR(F78*(CJ78),0) -> 0 | DT78: 0
A79: =IF(SUM(BM79)>0,SUM(MAX(A$6:A78),1,IF(SUM(A$6:$A78)>0,0,$B$1)),0) -> 0 | B79: =IF(SUM(CC79,BI79:BK79,BO79,BQ79,BT79,BP79)<>0,MAX(B$6:B78)+1,0) -> 0 | C79: PHO-POL-01020 | D79: 13180 | E79: 14180 | G79: Hardware | H79: Polycom | I79: Phones | J79: Polycom Phones | K79: Polycom VVX 600 Performance Business Media Phone | L79: 399.99 | M79: 329.99 | N79: 50 | O79: 84.95 | P79: 52.97 | Q79: 20 | R79: 0 | S79: 10 | T79: 4.95 | U79: 5 | V79: 7.5 | W79: 9.99975 | X79: 60 | Y79: 329.99 | Z79: 84.95 | AA79: 52.97 | AB79: 0 | AD79: area_phones | AE79: 1 | AF79: VVX 600 | AG79: VoIP Phones | AH79: Polycom VVX 600 Phone with Star2Star productivity software | AI79: 3 or 6 line appearances, Key system (square key) emulation, Color multi-touch 4.3" interface, Two-port gigabit Ethernet switch, Bluetooth headset support | AJ79: Not Available for SIP configurations | AK79: ADV-S2S-02014 | AL79: ADV-S2S-02018 | AM79: Hardware | AN79: 0 | AO79: TRUE | AP79: Phones | AQ79: 1 | AR79: 0 | AS79: 0.5 | AT79: 0 | AU79: 434.94 | AV79: 30 | AW79: 29.95 | AX79: 49.95 | AY79: 7.5 | AZ79: 60 | BA79: 0 | BB79: 0 | BC79: 0 | BD79: 0 | BH79: 0,1,2,3 | BI79: 0 | BJ79: =IFERROR(VLOOKUP($C79,dashqtys,2,FALSE),0) -> 0 | BL79: 0 | BM79: 0 | BN79: =IF(ref_NIMA,MAX(BI79,BJ79),IF(BK79="",MAX(BI79,BJ79),BK79)) -> 0 | BO79: 0 | BP79: 0 | BQ79: =IF(OR(JB_1972=FALSE,DL79="",AM79="Existing"),IF(BK79="",IF(ref_locid=20,BF79,MAX(BO79,BN79,BG79,BP79)),BK79),DL79) -> 0 | BR79: 0 | BS79: 0 | BT79: 0 | BU79: =IF(AE79=0,0,IFERROR(BJ79*AE79,0)) -> 0 | BV79: =IF(AE79=0,0,IFERROR(BQ79*AE79,0)) -> 0 | BW79: 0 | BX79: 0 | BY79: 0 | BZ79: 399.99 | CA79: 84.95 | CB79: 84.95 | CC79: 0 | CD79: =IF(OR(BQ79>0,ref_addon=TRUE),Y79,Y79*ref_demokitdisc) -> 296.991 | CE79: =IFERROR(BQ79*SUM(N79,AN79),0) -> 0 | CF79: =VLOOKUP(AP79,'Reseller Info'!$AL$123:$AO$130,3,FALSE) -> 0 | CG79: 0 | CH79: 552.34 | CI79: 0 | CJ79: =MAX(CK79:CL79) -> 0 | CK79: 0 | CL79: 0 | CM79: =IF(CV79=TRUE,$BQ79,0) -> 0 | CN79: =IF(OR(CW79=TRUE),$BQ79,0) -> 0 | CO79: =MAX(CP79:CQ79) -> 0 | CP79: 0 | CQ79: 0 | CR79: 0 | CS79: =IF(OR(CY79=TRUE),$BQ79,0) -> 0 | CT79: 0 | CU79: 0 | CV79: TRUE | CW79: TRUE | CX79: TRUE | CY79: TRUE | CZ79: FALSE | DA79: FALSE | DB79: FALSE | DC79: FALSE | DD79: TRUE | DE79: 399.99 | DF79: =IFERROR(BQ79*N79,0) -> 0 | DG79: 0 | DH79: 0 | DI79: 434.94 | DJ79: 0 | DK79: TRUE | DM79: 50 | DN79: 3 | DO79: Polycom VVX 600 Phone with Star2Star productivity software | DP79: 0 | DQ79: 0 | DR79: 0 | DS79: =IFERROR(F79*(CJ79),0) -> 0 | DT79: 0
A80: =IF(SUM(BM80)>0,SUM(MAX(A$6:A79),1,IF(SUM(A$6:$A79)>0,0,$B$1)),0) -> 0 | B80: =IF(SUM(CC80,BI80:BK80,BO80,BQ80,BT80,BP80)<>0,MAX(B$6:B79)+1,0) -> 0 | C80: PHO-POL-01013 | D80: 13190 | E80: 14190 | G80: Hardware | H80: Polycom | I80: Phones | J80: Polycom Phones | K80: Polycom IP 5000 Conference Room Speaker Phone | L80: 599 | M80: 399 | N80: 0 | O80: 129.95 | P80: 76.97 | Q80: 20 | R80: 0 | S80: 10 | T80: 4.95 | U80: 5 | V80: 7.5 | W80: 14.975 | X80: 89.85 | Y80: 269.55 | Z80: 129.95 | AA80: 76.97 | AB80: 0 | AD80: area_phones | AE80: 1 | AF80: PIP5CRSP | AG80: VoIP Phones | AH80: Polycom 5000 IP Phone with Star2Star productivity software | AI80: 7 ft pickup range, PoE, Pwr sup extra | AK80: ADV-S2S-02032 | AL80: ADV-S2S-02038 | AM80: Hardware | AN80: 50 | AO80: TRUE | AP80: Phones | AQ80: 1 | AR80: 0 | AS80: 0.5 | AT80: 0 | AU80: 728.95 | AV80: 30 | AW80: 29.95 | AX80: 49.95 | AY80: 7.5 | AZ80: 89.85 | BA80: 129.95 | BB80: 20 | BC80: 24.95 | BD80: 49.95 | BE80: 89.85 | BH80: 0,1,2,3 | BI80: 0 | BJ80: =IFERROR(VLOOKUP($C80,dashqtys,2,FALSE),0) -> 0 | BL80: 0 | BM80: 0 | BN80: =IF(ref_NIMA,MAX(BI80,BJ80),IF(BK80="",MAX(BI80,BJ80),BK80)) -> 0 | BO80: 0 | BP80: 0 | BQ80: =IF(OR(JB_1972=FALSE,DL80="",AM80="Existing"),IF(BK80="",IF(ref_locid=20,BF80,MAX(BO80,BN80,BG80,BP80)),BK80),DL80) -> 0 | BR80: 0 | BS80: 0 | BT80: 0 | BU80: =IF(AE80=0,0,IFERROR(BJ80*AE80,0)) -> 0 | BV80: =IF(AE80=0,0,IFERROR(BQ80*AE80,0)) -> 0 | BW80: 0 | BX80: 0 | BY80: 0 | BZ80: 599 | CA80: 129.95 | CB80: 129.95 | CC80: 0 | CD80: =IF(OR(BQ80>0,ref_addon=TRUE),Y80,Y80*ref_demokitdisc) -> 242.595 | CE80: =IFERROR(BQ80*SUM(N80,AN80),0) -> 0 | CF80: =VLOOKUP(AP80,'Reseller Info'!$AL$123:$AO$130,3,FALSE) -> 0 | CG80: 0 | CH80: 846.35 | CI80: 224.85 | CJ80: =MAX(CK80:CL80) -> 0 | CK80: 0 | CL80: 0 | CM80: =IF(CV80=TRUE,$BQ80,0) -> 0 | CN80: =IF(OR(CW80=TRUE),$BQ80,0) -> 0 | CO80: =MAX(CP80:CQ80) -> 0 | CP80: 0 | CQ80: 0 | CR80: 0 | CS80: =IF(OR(CY80=TRUE),$BQ80,0) -> 0 | CT80: 0 | CU80: 0 | CV80: TRUE | CW80: TRUE | CX80: TRUE | CY80: TRUE | CZ80: FALSE | DA80: FALSE | DB80: FALSE | DC80: FALSE | DD80: TRUE | DE80: 599 | DF80: =IFERROR(BQ80*N80,0) -> 0 | DG80: 0 | DH80: 0 | DI80: 678.95 | DJ80: 0 | DK80: TRUE | DM80: 50 | DN80: 3 | DO80: Polycom 5000 IP Phone with Star2Star productivity software | DP80: 0 | DQ80: 0 | DR80: 0 | DS80: =IFERROR(F80*(CJ80),0) -> 0 | DT80: 0
A81: =IF(SUM(BM81)>0,SUM(MAX(A$6:A80),1,IF(SUM(A$6:$A80)>0,0,$B$1)),0) -> 0 | B81: =IF(SUM(CC81,BI81:BK81,BO81,BQ81,BT81,BP81)<>0,MAX(B$6:B80)+1,0) -> 0 | C81: PHO-POL-01009 | D81: 13210 | E81: 14210 | G81: Hardware | H81: Polycom | I81: Phones | J81: Polycom Phones | K81: Polycom IP 6000 Conference Room Speaker Phone | L81: 969.05 | M81: 593.03 | N81: 0 | O81: 129.95 | P81: 76.97 | Q81: 20 | R81: 0 | S81: 10 | T81: 4.95 | U81: 5 | V81: 7.5 | W81: 24.22625 | X81: 145.36 | Y81: 463.05 | Z81: 129.95 | AA81: 76.97 | AB81: 0 | AD81: area_phones | AE81: 1 | AF81: PIP6CRSP | AG81: VoIP Phones | AH81: Polycom 6000 Conference Room IP Speaker Phone with Star2Star productivity software | AI81: Three Microphones, 12 ft pickup range, PoE, Pwr sup extra | AK81: ADV-S2S-02032 | AL81: ADV-S2S-02038 | AM81: Hardware | AN81: 100 | AO81: TRUE | AP81: Phones | AQ81: 1 | AR81: 0 | AS81: 0.5 | AT81: 0 | AU81: 1099 | AV81: 30 | AW81: 29.95 | AX81: 49.95 | AY81: 7.5 | AZ81: 145.36 | BA81: 129.95 | BB81: 20 | BC81: 24.95 | BD81: 49.95 | BE81: 145.36 | BH81: 0,1,2,3 | BI81: 0 | BJ81: 0 | BL81: 0 | BM81: 0 | BN81: 0 | BO81: 0 | BP81: 0 | BQ81: 0 | BR81: 0 | BS81: 0 | BT81: 0 | BU81: 0 | BV81: 0 | BW81: 0 | BX81: 0 | BY81: 0 | BZ81: 969.05 | CA81: 129.95 | CB81: 129.95 | CC81: 0 | CD81: 416.745 | CE81: 0 | CF81: =VLOOKUP(AP81,'Reseller Info'!$AL$123:$AO$130,3,FALSE) -> 0 | CG81: 0 | CH81: 1216.4 | CI81: 224.85 | CJ81: 0 | CK81: 0 | CL81: 0 | CM81: 0 | CN81: 0 | CO81: 0 | CP81: 0 | CQ81: 0 | CR81: 0 | CS81: 0 | CT81: 0 | CU81: 0 | CV81: TRUE | CW81: TRUE | CX81: TRUE | CY81: TRUE | CZ81: FALSE | DA81: FALSE | DB81: FALSE | DC81: FALSE | DD81: TRUE | DE81: 969.05 | DF81: 0 | DG81: 0 | DH81: 0 | DI81: 999 | DJ81: 0 | DK81: TRUE | DM81: 100 | DN81: 3 | DO81: Polycom 6000 Conference Room IP Speaker Phone with Star2Star productivity software | DP81: 0 | DQ81: 0 | DR81: 0 | DS81: 0 | DT81: 0
A82: =IF(SUM(BM82)>0,SUM(MAX(A$6:A81),1,IF(SUM(A$6:$A81)>0,0,$B$1)),0) -> 0 | B82: =IF(SUM(CC82,BI82:BK82,BO82,BQ82,BT82,BP82)<>0,MAX(B$6:B81)+1,0) -> 0 | C82: PHO-POL-01010 | D82: 13230 | E82: 14230 | G82: Hardware | H82: Polycom | I82: Phones | J82: Polycom Phones | K82: Polycom Communicator for Soft Phone - Blue | L82: 125 | M82: 110 | N82: 0 | O82: 19.95 | P82: 11.97 | Q82: 20 | R82: 0 | S82: 10 | T82: 0 | U82: 5 | V82: 7.5 | W82: 3.125 | X82: 40 | Y82: 62.55 | Z82: 19.95 | AA82: 11.97 | AB82: 0 | AD82: area_phones | AE82: 0 | AF82: PCB | AG82: VoIP Phones | AH82: Polycom Communicator for Soft Phone - Blue | AI82: Blue - 1 line, PC/MAC Speaker Phone for Star2Star softphone USB powered | AK82: ADV-S2S-02016 | AL82: ADV-S2S-02020 | AM82: Hardware | AN82: 0 | AO82: TRUE | AP82: Phones | AQ82: 1 | AR82: 0 | AS82: 0.5 | AT82: 0 | AU82: 144.95 | AV82: 10 | AW82: 25 | AX82: 0 | AY82: 7.5 | AZ82: 40 | BA82: 19.95 | BB82: 0 | BC82: 20 | BD82: 0 | BE82: 40 | BH82: 0,1,2,3 | BI82: 0 | BJ82: 0 | BL82: 0 | BM82: 0 | BN82: 0 | BO82: 0 | BP82: 0 | BQ82: 0 | BR82: 0 | BS82: 0 | BT82: 0 | BU82: 0 | BV82: 0 | BW82: 0 | BX82: 0 | BY82: 0 | BZ82: 125 | CA82: 19.95 | CB82: 19.95 | CC82: 0 | CD82: 56.295 | CE82: 0 | CF82: =VLOOKUP(AP82,'Reseller Info'!$AL$123:$AO$130,3,FALSE) -> 0 | CG82: 0 | CH82: 187.45 | CI82: 39.95 | CJ82: 0 | CK82: 0 | CL82: 0 | CM82: 0 | CN82: 0 | CO82: 0 | CP82: 0 | CQ82: 0 | CR82: 0 | CS82: 0 | CT82: 0 | CU82: 0 | CV82: TRUE | CW82: TRUE | CX82: TRUE | CY82: TRUE | CZ82: FALSE | DA82: FALSE | DB82: FALSE | DC82: FALSE | DD82: TRUE | DE82: 125 | DF82: 0 | DG82: 0 | DH82: 0 | DI82: 144.95 | DJ82: 0 | DK82: TRUE | DM82: 0 | DN82: 3 | DO82: Polycom Communicator for Soft Phone - Blue | DP82: 0 | DQ82: 0 | DR82: 0 | DS82: 0 | DT82: 0
A83: =IF(SUM(BM83)>0,SUM(MAX(A$6:A82),1,IF(SUM(A$6:$A82)>0,0,$B$1)),0) -> 0 | B83: =IF(SUM(CC83,BI83:BK83,BO83,BQ83,BT83,BP83)<>0,MAX(B$6:B82)+1,0) -> 0 | C83: PHO-POL-01011 | D83: 13240 | E83: 14240 | G83: Hardware | H83: Polycom | I83: Phones | J83: Polycom Phones | K83: Polycom Communicator for Soft Phone - Grey | L83: 125 | M83: 110 | N83: 0 | O83: 19.95 | P83: 11.97 | Q83: 20 | R83: 0 | S83: 10 | T83: 0 | U83: 5 | V83: 7.5 | W83: 3.125 | X83: 40 | Y83: 62.55 | Z83: 19.95 | AA83: 11.97 | AB83: 0 | AD83: area_phones | AE83: 0 | AF83: PCG | AG83: VoIP Phones | AH83: Polycom Communicator for Soft Phone - Grey | AI83: Grey - 1 line, PC/MAC Speaker Phone for Star2Star softphone USB powered | AK83: ADV-S2S-02016 | AL83: ADV-S2S-02020 | AM83: Hardware | AN83: 0 | AO83: TRUE | AP83: Phones | AQ83: 1 | AR83: 0 | AS83: 0.5 | AT83: 0 | AU83: 144.95 | AV83: 10 | AW83: 25 | AX83: 0 | AY83: 7.5 | AZ83: 40 | BA83: 19.95 | BB83: 0 | BC83: 20 | BD83: 0 | BE83: 40 | BH83: 0,1,2,3 | BI83: 0 | BJ83: 0 | BL83: 0 | BM83: 0 | BN83: 0 | BO83: 0 | BP83: 0 | BQ83: 0 | BR83: 0 | BS83: 0 | BT83: 0 | BU83: 0 | BV83: 0 | BW83: 0 | BX83: 0 | BY83: 0 | BZ83: 125 | CA83: 19.95 | CB83: 19.95 | CC83: 0 | CD83: 56.295 | CE83: 0 | CF83: =VLOOKUP(AP83,'Reseller Info'!$AL$123:$AO$130,3,FALSE) -> 0 | CG83: 0 | CH83: 187.45 | CI83: 39.95 | CJ83: 0 | CK83: 0 | CL83: 0 | CM83: 0 | CN83: 0 | CO83: 0 | CP83: 0 | CQ83: 0 | CR83: 0 | CS83: 0 | CT83: 0 | CU83: 0 | CV83: TRUE | CW83: TRUE | CX83: TRUE | CY83: TRUE | CZ83: FALSE | DA83: FALSE | DB83: FALSE | DC83: FALSE | DD83: TRUE | DE83: 125 | DF83: 0 | DG83: 0 | DH83: 0 | DI83: 144.95 | DJ83: 0 | DK83: TRUE | DM83: 0 | DN83: 3 | DO83: Polycom Communicator for Soft Phone - Grey | DP83: 0 | DQ83: 0 | DR83: 0 | DS83: 0 | DT83: 0
A84: =IF(SUM(BM84)>0,SUM(MAX(A$6:A83),1,IF(SUM(A$6:$A83)>0,0,$B$1)),0) -> 0 | B84: =IF(SUM(CC84,BI84:BK84,BO84,BQ84,BT84,BP84)<>0,MAX(B$6:B83)+1,0) -> 0 | C84: PHO-CIS-01018 | D84: 13250 | E84: 14250 | G84: Hardware | H84: Cisco | I84: Phones | J84: Cisco Phones | K84: Cisco SPA 303G IP Phone | L84: 125 | M84: 114.99 | N84: 25 | O84: 44.95 | P84: 26.97 | Q84: 20 | R84: 0 | S84: 10 | T84: 4.95 | U84: 5 | V84: 7.5 | W84: 3.125 | X84: 40 | Y84: 62.5 | Z84: 44.95 | AA84: 37.46 | AB84: 0 | AD84: area_phones | AE84: 1 | AF84: CSPA303G1 | AG84: VoIP Phones | AH84: Cisco SPA 303 IP Phone with Star2Star Productivity Software | AI84: 3 programmable keys, mono display speakerphone, dual Ethernet, Power Supply included (no PoE) | AK84: ADV-S2S-02027 | AL84: ADV-S2S-02033 | AM84: Hardware | AN84: 0 | AO84: TRUE | AP84: Phones | AQ84: 1 | AR84: 0 | AS84: 0.5 | AT84: 0 | AU84: 144.95 | AV84: 30 | AW84: 29.95 | AX84: 49.95 | AY84: 7.5 | AZ84: 40 | BA84: 44.95 | BB84: 20 | BC84: 24.95 | BD84: 49.95 | BE84: 40 | BH84: 0,1,2,3 | BI84: 0 | BJ84: 0 | BL84: 0 | BM84: 0 | BN84: 0 | BO84: 0 | BP84: 0 | BQ84: 0 | BR84: 0 | BS84: 0 | BT84: 0 | BU84: 0 | BV84: 0 | BW84: 0 | BX84: 0 | BY84: 0 | BZ84: 125 | CA84: 44.95 | CB84: 44.95 | CC84: 0 | CD84: 56.25 | CE84: 0 | CF84: =VLOOKUP(AP84,'Reseller Info'!$AL$123:$AO$130,3,FALSE) -> 0 | CG84: 0 | CH84: 262.35 | CI84: 139.85 | CJ84: 0 | CK84: 0 | CL84: 0 | CM84: 0 | CN84: 0 | CO84: 0 | CP84: 0 | CQ84: 0 | CR84: 0 | CS84: 0 | CT84: 0 | CU84: 0 | CV84: TRUE | CW84: TRUE | CX84: TRUE | CY84: TRUE | CZ84: FALSE | DA84: FALSE | DB84: FALSE | DC84: FALSE | DD84: TRUE | DE84: 100 | DF84: 0 | DG84: 0 | DH84: 0 | DI84: 144.95 | DJ84: 0 | DK84: TRUE | DM84: 25 | DN84: 3 | DO84: Cisco SPA 303 IP Phone with Star2Star Productivity Software | DP84: 0 | DQ84: 0 | DR84: 0 | DS84: 0 | DT84: 0
A85: =IF(SUM(BM85)>0,SUM(MAX(A$6:A84),1,IF(SUM(A$6:$A84)>0,0,$B$1)),0) -> 0 | B85: =IF(SUM(CC85,BI85:BK85,BO85,BQ85,BT85,BP85)<>0,MAX(B$6:B84)+1,0) -> 0 | C85: PHO-CIS-01020 | D85: 13260 | E85: 14260 | G85: Hardware | H85: Cisco | I85: Phones | J85: Cisco Phones | K85: Cisco SPA 502G IP Phone | L85: 164 | M85: 139.99 | N85: 25 | O85: 44.95 | P85: 26.97 | Q85: 20 | R85: 0 | S85: 10 | T85: 4.95 | U85: 5 | V85: 7.5 | W85: 4.1 | X85: 40 | Y85: 82 | Z85: 44.95 | AA85: 26.97 | AB85: 0 | AD85: area_phones | AE85: 1 | AF85: CSPA502G | AG85: VoIP Phones | AH85: Cisco SPA 502 IP Phone with Star2Star Productivity Software | AI85: 1 line, backlit LCD, dual Ethernet, PoE, supports 2 attendant consoles | AK85: ADV-S2S-02028 | AL85: ADV-S2S-02034 | AM85: Hardware | AN85: 0 | AO85: TRUE | AP85: Phones | AQ85: 1 | AR85: 0 | AS85: 0.5 | AT85: 0 | AU85: 183.95 | AV85: 30 | AW85: 29.95 | AX85: 49.95 | AY85: 7.5 | AZ85: 40 | BA85: 44.95 | BB85: 20 | BC85: 24.95 | BD85: 49.95 | BE85: 40 | BH85: 0,1,2,3 | BI85: 0 | BJ85: 0 | BL85: 0 | BM85: 0 | BN85: 0 | BO85: 0 | BP85: 0 | BQ85: 0 | BR85: 0 | BS85: 0 | BT85: 0 | BU85: 0 | BV85: 0 | BW85: 0 | BX85: 0 | BY85: 0 | BZ85: 164 | CA85: 44.95 | CB85: 44.95 | CC85: 0 | CD85: 73.8 | CE85: 0 | CF85: =VLOOKUP(AP85,'Reseller Info'!$AL$123:$AO$130,3,FALSE) -> 0 | CG85: 0 | CH85: 301.35 | CI85: 139.85 | CJ85: 0 | CK85: 0 | CL85: 0 | CM85: 0 | CN85: 0 | CO85: 0 | CP85: 0 | CQ85: 0 | CR85: 0 | CS85: 0 | CT85: 0 | CU85: 0 | CV85: TRUE | CW85: TRUE | CX85: TRUE | CY85: TRUE | CZ85: FALSE | DA85: FALSE | DB85: FALSE | DC85: FALSE | DD85: TRUE | DE85: 139 | DF85: 0 | DG85: 0 | DH85: 0 | DI85: 183.95 | DJ85: 0 | DK85: TRUE | DM85: 25 | DN85: 3 | DO85: Cisco SPA 502 IP Phone with Star2Star Productivity Software | DP85: 0 | DQ85: 0 | DR85: 0 | DS85: 0 | DT85: 0
A86: =IF(SUM(BM86)>0,SUM(MAX(A$6:A85),1,IF(SUM(A$6:$A85)>0,0,$B$1)),0) -> 0 | B86: =IF(SUM(CC86,BI86:BK86,BO86,BQ86,BT86,BP86)<>0,MAX(B$6:B85)+1,0) -> 0 | C86: PHO-CIS-01021 | D86: 13270 | E86: 14270 | G86: Hardware | H86: Cisco | I86: Phones | J86: Cisco Phones | K86: Cisco SPA 504G IP Phone | L86: 189 | M86: 174.99 | N86: 50 | O86: 84.95 | P86: 50.97 | Q86: 20 | R86: 0 | S86: 10 | T86: 4.95 | U86: 5 | V86: 7.5 | W86: 4.725 | X86: 40 | Y86: 94.5 | Z86: 84.95 | AA86: 50.97 | AB86: 0 | AD86: area_phones | AE86: 1 | AF86: CSPA504G | AG86: VoIP Phones | AH86: Cisco SPA 504 IP Phone with Star2Star Productivity Software | AI86: 4 programmable keys, backlit LCD, dual Ethernet, PoE, supports 2 attendant consoles | AK86: ADV-S2S-02029 | AL86: ADV-S2S-02035 | AM86: Hardware | AN86: 0 | AO86: TRUE | AP86: Phones | AQ86: 1 | AR86: 0 | AS86: 0.5 | AT86: 0 | AU86: 223.95 | AV86: 30 | AW86: 29.95 | AX86: 49.95 | AY86: 7.5 | AZ86: 40 | BA86: 84.95 | BB86: 20 | BC86: 24.95 | BD86: 49.95 | BE86: 40 | BH86: 0,1,2,3 | BI86: 0 | BJ86: =IFERROR(VLOOKUP($C86,dashqtys,2,FALSE),0) -> 0 | BL86: 0 | BM86: 0 | BN86: =IF(ref_NIMA,MAX(BI86,BJ86),IF(BK86="",MAX(BI86,BJ86),BK86)) -> 0 | BO86: 0 | BP86: 0 | BQ86: =IF(OR(JB_1972=FALSE,DL86="",AM86="Existing"),IF(BK86="",IF(ref_locid=20,BF86,MAX(BO86,BN86,BG86,BP86)),BK86),DL86) -> 0 | BR86: 0 | BS86: 0 | BT86: 0 | BU86: =IF(AE86=0,0,IFERROR(BJ86*AE86,0)) -> 0 | BV86: =IF(AE86=0,0,IFERROR(BQ86*AE86,0)) -> 0 | BW86: 0 | BX86: 0 | BY86: 0 | BZ86: 189 | CA86: 84.95 | CB86: 84.95 | CC86: 0 | CD86: =IF(OR(BQ86>0,ref_addon=TRUE),Y86,Y86*ref_demokitdisc) -> 85.05 | CE86: =IFERROR(BQ86*SUM(N86,AN86),0) -> 0 | CF86: =VLOOKUP(AP86,'Reseller Info'!$AL$123:$AO$130,3,FALSE) -> 0 | CG86: 0 | CH86: 341.35 | CI86: 179.85 | CJ86: =MAX(CK86:CL86) -> 0 | CK86: =IF(OR(CV86=TRUE,CZ86=TRUE),$BQ86,0) -> 0 | CL86: =IF(OR(CW86=TRUE,DA86=TRUE),$BQ86,0) -> 0 | CM86: =IF(CV86=TRUE,$BQ86,0) -> 0 | CN86: =IF(OR(CW86=TRUE),$BQ86,0) -> 0 | CO86: =MAX(CP86:CQ86) -> 0 | CP86: =IF(OR(CX86=TRUE,DB86=TRUE),$BQ86,0) -> 0 | CQ86: =IF(OR(CY86=TRUE,DC86=TRUE),$BQ86,0) -> 0 | CR86: 0 | CS86: =IF(OR(CY86=TRUE),$BQ86,0) -> 0 | CT86: 0 | CU86: 0 | CV86: =IF(ISERROR(FIND(CV$4,$BH86,1)),FALSE,TRUE) -> TRUE | CW86: TRUE | CX86: TRUE | CY86: TRUE | CZ86: FALSE | DA86: FALSE | DB86: FALSE | DC86: FALSE | DD86: TRUE | DE86: 139 | DF86: =IFERROR(BQ86*N86,0) -> 0 | DG86: 0 | DH86: 0 | DI86: 223.95 | DJ86: 0 | DK86: TRUE | DM86: 50 | DN86: 3 | DO86: Cisco SPA 504 IP Phone with Star2Star Productivity Software | DP86: 0 | DQ86: 0 | DR86: 0 | DS86: =IFERROR(F86*(CJ86),0) -> 0 | DT86: 0
A87: =IF(SUM(BM87)>0,SUM(MAX(A$6:A86),1,IF(SUM(A$6:$A86)>0,0,$B$1)),0) -> 0 | B87: =IF(SUM(CC87,BI87:BK87,BO87,BQ87,BT87,BP87)<>0,MAX(B$6:B86)+1,0) -> 0 | C87: PHO-CIS-01022 | D87: 13290 | E87: 14290 | G87: Hardware | H87: Cisco | I87: Phones | J87: Cisco Phones | K87: Cisco SPA 508G IP Phone | L87: 225 | M87: 199.99 | N87: 50 | O87: 84.95 | P87: 50.97 | Q87: 20 | R87: 0 | S87: 10 | T87: 4.95 | U87: 5 | V87: 7.5 | W87: 5.625 | X87: 40 | Y87: 112.5 | Z87: 84.95 | AA87: 50.97 | AB87: 0 | AD87: area_phones | AE87: 1 | AF87: CSPA508G | AG87: VoIP Phones | AH87: Cisco SPA 508 IP Phone with Star2Star Productivity Software | AI87: 8 programmable keys, backlit LCD, dual Ethernet, PoE, supports 2 attendant consoles | AK87: ADV-S2S-02030 | AL87: ADV-S2S-02036 | AM87: Hardware | AN87: 0 | AO87: TRUE | AP87: Phones | AQ87: 1 | AR87: 0 | AS87: 0.5 | AT87: 0 | AU87: 259.95 | AV87: 30 | AW87: 29.95 | AX87: 49.95 | AY87: 7.5 | AZ87: 40 | BA87: 84.95 | BB87: 20 | BC87: 24.95 | BD87: 49.95 | BE87: 40 | BH87: 0,1,2,3 | BI87: 0 | BJ87: =IFERROR(VLOOKUP($C87,dashqtys,2,FALSE),0) -> 0 | BL87: 0 | BM87: 0 | BN87: =IF(ref_NIMA,MAX(BI87,BJ87),IF(BK87="",MAX(BI87,BJ87),BK87)) -> 0 | BO87: 0 | BP87: 0 | BQ87: =IF(OR(JB_1972=FALSE,DL87="",AM87="Existing"),IF(BK87="",IF(ref_locid=20,BF87,MAX(BO87,BN87,BG87,BP87)),BK87),DL87) -> 0 | BR87: 0 | BS87: 0 | BT87: 0 | BU87: =IF(AE87=0,0,IFERROR(BJ87*AE87,0)) -> 0 | BV87: =IF(AE87=0,0,IFERROR(BQ87*AE87,0)) -> 0 | BW87: 0 | BX87: 0 | BY87: 0 | BZ87: 225 | CA87: 84.95 | CB87: 84.95 | CC87: 0 | CD87: =IF(OR(BQ87>0,ref_addon=TRUE),Y87,Y87*ref_demokitdisc) -> 101.25 | CE87: =IFERROR(BQ87*SUM(N87,AN87),0) -> 0 | CF87: =VLOOKUP(AP87,'Reseller Info'!$AL$123:$AO$130,3,FALSE) -> 0 | CG87: 0 | CH87: 377.35 | CI87: 179.85 | CJ87: =MAX(CK87:CL87) -> 0 | CK87: =IF(OR(CV87=TRUE,CZ87=TRUE),$BQ87,0) -> 0 | CL87: =IF(OR(CW87=TRUE,DA87=TRUE),$BQ87,0) -> 0 | CM87: =IF(CV87=TRUE,$BQ87,0) -> 0 | CN87: =IF(OR(CW87=TRUE),$BQ87,0) -> 0 | CO87: =MAX(CP87:CQ87) -> 0 | CP87: =IF(OR(CX87=TRUE,DB87=TRUE),$BQ87,0) -> 0 | CQ87: =IF(OR(CY87=TRUE,DC87=TRUE),$BQ87,0) -> 0 | CR87: 0 | CS87: =IF(OR(CY87=TRUE),$BQ87,0) -> 0 | CT87: 0 | CU87: 0 | CV87: TRUE | CW87: TRUE | CX87: TRUE | CY87: TRUE | CZ87: FALSE | DA87: FALSE | DB87: FALSE | DC87: FALSE | DD87: TRUE | DE87: 175 | DF87: =IFERROR(BQ87*N87,0) -> 0 | DG87: 0 | DH87: 0 | DI87: 259.95 | DJ87: 0 | DK87: TRUE | DM87: 50 | DN87: 3 | DO87: Cisco SPA 508 IP Phone with Star2Star Productivity Software | DP87: 0 | DQ87: 0 | DR87: 0 | DS87: =IFERROR(F87*(CJ87),0) -> 0 | DT87: 0
A88: =IF(SUM(BM88)>0,SUM(MAX(A$6:A87),1,IF(SUM(A$6:$A87)>0,0,$B$1)),0) -> 0 | B88: =IF(SUM(CC88,BI88:BK88,BO88,BQ88,BT88,BP88)<>0,MAX(B$6:B87)+1,0) -> 0 | C88: PHO-CIS-01023 | D88: 13310 | E88: 14310 | G88: Hardware | H88: Cisco | I88: Phones | J88: Cisco Phones | K88: Cisco SPA 509G IP Phone | L88: 240 | M88: 214.99 | N88: 50 | O88: 84.95 | P88: 50.97 | Q88: 20 | R88: 0 | S88: 10 | T88: 4.95 | U88: 5 | V88: 7.5 | W88: 6 | X88: 40 | Y88: 120 | Z88: 84.95 | AA88: 50.97 | AB88: 0 | AD88: area_phones | AE88: 1 | AF88: CSPA509G | AG88: VoIP Phones | AH88: Cisco SPA 509 IP Phone with Star2Star Productivity Software | AI88: 12 programmable keys, backlit LCD, dual Ethernet, PoE, supports 2 attendant consoles | AK88: ADV-S2S-02030 | AL88: ADV-S2S-02036 | AM88: Hardware | AN88: 0 | AO88: TRUE | AP88: Phones | AQ88: 1 | AR88: 0 | AS88: 0.5 | AT88: 0 | AU88: 274.95 | AV88: 30 | AW88: 29.95 | AX88: 49.95 | AY88: 7.5 | AZ88: 40 | BA88: 84.95 | BB88: 20 | BC88: 24.95 | BD88: 49.95 | BE88: 40 | BH88: 0,1,2,3 | BI88: 0 | BJ88: 0 | BL88: 0 | BM88: 0 | BN88: 0 | BO88: 0 | BP88: 0 | BQ88: 0 | BR88: 0 | BS88: 0 | BT88: 0 | BU88: 0 | BV88: 0 | BW88: 0 | BX88: 0 | BY88: 0 | BZ88: 240 | CA88: 84.95 | CB88: 84.95 | CC88: 0 | CD88: 108 | CE88: 0 | CF88: =VLOOKUP(AP88,'Reseller Info'!$AL$123:$AO$130,3,FALSE) -> 0 | CG88: 0 | CH88: 392.35 | CI88: 179.85 | CJ88: 0 | CK88: 0 | CL88: 0 | CM88: 0 | CN88: 0 | CO88: 0 | CP88: 0 | CQ88: 0 | CR88: 0 | CS88: 0 | CT88: 0 | CU88: 0 | CV88: TRUE | CW88: TRUE | CX88: TRUE | CY88: TRUE | CZ88: FALSE | DA88: FALSE | DB88: FALSE | DC88: FALSE | DD88: TRUE | DE88: 190 | DF88: 0 | DG88: 0 | DH88: 0 | DI88: 274.95 | DJ88: 0 | DK88: TRUE | DM88: 50 | DN88: 3 | DO88: Cisco SPA 509 IP Phone with Star2Star Productivity Software | DP88: 0 | DQ88: 0 | DR88: 0 | DS88: 0 | DT88: 0
A89: =IF(SUM(BM89)>0,SUM(MAX(A$6:A88),1,IF(SUM(A$6:$A88)>0,0,$B$1)),0) -> 0 | B89: =IF(SUM(CC89,BI89:BK89,BO89,BQ89,BT89,BP89)<>0,MAX(B$6:B88)+1,0) -> 0 | C89: PHO-CIS-01026 | D89: 13320 | E89: 14320 | G89: Hardware | H89: Cisco | I89: Phones | J89: Cisco Phones | K89: Cisco SPA 512G Gig IP Phone | L89: 195 | M89: 176 | N89: 50 | O89: 44.95 | P89: 26.97 | Q89: 20 | R89: 0 | S89: 10 | T89: 4.95 | U89: 5 | V89: 7.5 | W89: 4.875 | X89: 40 | Y89: 126 | Z89: 44.95 | AA89: 26.97 | AB89: 0 | AD89: area_phones | AE89: 1 | AF89: CSPA512G | AG89: VoIP Phones | AH89: Cisco SPA 512G IP Phone with Star2Star Productivity Software | AI89: 1 line, backlit LCD, dual Gigabit Ethernet, PoE, supports 2 attendant consoles | AK89: ADV-S2S-02028 | AL89: ADV-S2S-02034 | AM89: Hardware | AN89: 0 | AO89: TRUE | AP89: Phones | AQ89: 1 | AR89: 0 | AS89: 0.5 | AT89: 0 | AU89: 189.95 | AV89: 30 | AW89: 29.95 | AX89: 49.95 | AY89: 7.5 | AZ89: 40 | BA89: 44.95 | BB89: 20 | BC89: 24.95 | BD89: 49.95 | BE89: 40 | BH89: 0,1,2,3 | BI89: 0 | BJ89: 0 | BL89: 0 | BM89: 0 | BN89: 0 | BO89: 0 | BP89: 0 | BQ89: 0 | BR89: 0 | BS89: 0 | BT89: 0 | BU89: 0 | BV89: 0 | BW89: 0 | BX89: 0 | BY89: 0 | BZ89: 195 | CA89: 44.95 | CB89: 44.95 | CC89: 0 | CD89: 113.4 | CE89: 0 | CF89: =VLOOKUP(AP89,'Reseller Info'!$AL$123:$AO$130,3,FALSE) -> 0 | CG89: 0 | CH89: 307.35 | CI89: 139.85 | CJ89: 0 | CK89: 0 | CL89: 0 | CM89: 0 | CN89: 0 | CO89: 0 | CP89: 0 | CQ89: 0 | CR89: 0 | CS89: 0 | CT89: 0 | CU89: 0 | CV89: TRUE | CW89: TRUE | CX89: TRUE | CY89: TRUE | CZ89: FALSE | DA89: FALSE | DB89: FALSE | DC89: FALSE | DD89: TRUE | DE89: 145 | DF89: 0 | DG89: 0 | DH89: 0 | DI89: 189.95 | DJ89: 0 | DK89: TRUE | DM89: 50 | DN89: 3 | DO89: Cisco SPA 512G IP Phone with Star2Star Productivity Software | DP89: 0 | DQ89: 0 | DR89: 0 | DS89: 0 | DT89: 0
A90: =IF(SUM(BM90)>0,SUM(MAX(A$6:A89),1,IF(SUM(A$6:$A89)>0,0,$B$1)),0) -> 0 | B90: =IF(SUM(CC90,BI90:BK90,BO90,BQ90,BT90,BP90)<>0,MAX(B$6:B89)+1,0) -> 0 | C90: PHO-CIS-01027 | D90: 13330 | E90: 14330 | G90: Hardware | H90: Cisco | I90: Phones | J90: Cisco Phones | K90: Cisco SPA 514G Gig IP Phone | L90: 220 | M90: 194 | N90: 50 | O90: 84.95 | P90: 50.97 | Q90: 20 | R90: 0 | S90: 10 | T90: 4.95 | U90: 5 | V90: 7.5 | W90: 5.5 | X90: 40 | Y90: 144 | Z90: 84.95 | AA90: 50.97 | AB90: 0 | AD90: area_phones | AE90: 1 | AF90: CSPA514G | AG90: VoIP Phones | AH90: Cisco SPA 514G IP Phone with Star2Star Productivity Software | AI90: 4 programmable keys, backlit LCD, dual Gigabit Ethernet, PoE, supports 2 attendant consoles | AK90: ADV-S2S-02029 | AL90: ADV-S2S-02035 | AM90: Hardware | AN90: 0 | AO90: TRUE | AP90: Phones | AQ90: 1 | AR90: 0 | AS90: 0.5 | AT90: 0 | AU90: 254.95 | AV90: 30 | AW90: 29.95 | AX90: 49.95 | AY90: 7.5 | AZ90: 40 | BA90: 84.95 | BB90: 20 | BC90: 24.95 | BD90: 49.95 | BE90: 40 | BH90: 0,1,2,3 | BI90: 0 | BJ90: 0 | BL90: 0 | BM90: 0 | BN90: 0 | BO90: 0 | BP90: 0 | BQ90: 0 | BR90: 0 | BS90: 0 | BT90: 0 | BU90: 0 | BV90: 0 | BW90: 0 | BX90: 0 | BY90: 0 | BZ90: 220 | CA90: 84.95 | CB90: 84.95 | CC90: 0 | CD90: 129.6 | CE90: 0 | CF90: =VLOOKUP(AP90,'Reseller Info'!$AL$123:$AO$130,3,FALSE) -> 0 | CG90: 0 | CH90: 372.35 | CI90: 179.85 | CJ90: 0 | CK90: 0 | CL90: 0 | CM90: 0 | CN90: 0 | CO90: 0 | CP90: 0 | CQ90: 0 | CR90: 0 | CS90: 0 | CT90: 0 | CU90: 0 | CV90: TRUE | CW90: TRUE | CX90: TRUE | CY90: TRUE | CZ90: FALSE | DA90: FALSE | DB90: FALSE | DC90: FALSE | DD90: TRUE | DE90: 170 | DF90: 0 | DG90: 0 | DH90: 0 | DI90: 254.95 | DJ90: 0 | DK90: TRUE | DM90: 50 | DN90: 3 | DO90: Cisco SPA 514G IP Phone with Star2Star Productivity Software | DP90: 0 | DQ90: 0 | DR90: 0 | DS90: 0 | DT90: 0
A91: =IF(SUM(BM91)>0,SUM(MAX(A$6:A90),1,IF(SUM(A$6:$A90)>0,0,$B$1)),0) -> 0 | B91: =IF(SUM(CC91,BI91:BK91,BO91,BQ91,BT91,BP91)<>0,MAX(B$6:B90)+1,0) -> 0 | C91: PHO-CIS-01025 | D91: 13340 | E91: 14340 | G91: Hardware | H91: Cisco | I91: Phones | J91: Cisco Phones | K91: Cisco SPA 525G2 IP Phone | L91: 350 | M91: 349 | N91: 50 | O91: 129.95 | P91: 76.97 | Q91: 20 | R91: 0 | S91: 10 | T91: 4.95 | U91: 5 | V91: 7.5 | W91: 8.75 | X91: 52.5 | Y91: 215 | Z91: 129.95 | AA91: 76.97 | AB91: 0 | AD91: area_phones | AE91: 1 | AF91: CSPA525G2 | AG91: VoIP Phones | AH91: Cisco SPA 525G2 IP Phone with Star2Star Productivity Software | AI91: 5 lines,color LCD, dual Ethernet, PoE, WIFi, Bluetooth headset support, Cisco Mobile Link (needs Power Supply to run Mobile Link) | AK91: ADV-S2S-02031 | AL91: ADV-S2S-02037 | AM91: Hardware | AN91: 0 | AO91: TRUE | AP91: Phones | AQ91: 1 | AR91: 0 | AS91: 0.5 | AT91: 0 | AU91: 429.95 | AV91: 30 | AW91: 29.95 | AX91: 49.95 | AY91: 7.5 | AZ91: 52.5 | BA91: 129.95 | BB91: 20 | BC91: 24.95 | BD91: 49.95 | BE91: 52.5 | BF91: 1 | BH91: 0,1,2,3 | BI91: 0 | BJ91: =IFERROR(VLOOKUP($C91,dashqtys,2,FALSE),0) -> 0 | BL91: 0 | BM91: 0 | BN91: =IF(ref_NIMA,MAX(BI91,BJ91),IF(BK91="",MAX(BI91,BJ91),BK91)) -> 0 | BO91: 0 | BP91: 0 | BQ91: =IF(OR(JB_1972=FALSE,DL91="",AM91="Existing"),IF(BK91="",IF(ref_locid=20,BF91,MAX(BO91,BN91,BG91,BP91)),BK91),DL91) -> 0 | BR91: 0 | BS91: 0 | BT91: 0 | BU91: =IF(AE91=0,0,IFERROR(BJ91*AE91,0)) -> 0 | BV91: =IF(AE91=0,0,IFERROR(BQ91*AE91,0)) -> 0 | BW91: 0 | BX91: 0 | BY91: 0 | BZ91: 350 | CA91: 129.95 | CB91: 129.95 | CC91: 0 | CD91: =IF(OR(BQ91>0,ref_addon=TRUE),Y91,Y91*ref_demokitdisc) -> 193.5 | CE91: =IFERROR(BQ91*SUM(N91,AN91),0) -> 0 | CF91: =VLOOKUP(AP91,'Reseller Info'!$AL$123:$AO$130,3,FALSE) -> 0 | CG91: 0 | CH91: 547.35 | CI91: 224.85 | CJ91: =MAX(CK91:CL91) -> 0 | CK91: =IF(OR(CV91=TRUE,CZ91=TRUE),$BQ91,0) -> 0 | CL91: =IF(OR(CW91=TRUE,DA91=TRUE),$BQ91,0) -> 0 | CM91: =IF(CV91=TRUE,$BQ91,0) -> 0 | CN91: =IF(OR(CW91=TRUE),$BQ91,0) -> 0 | CO91: =MAX(CP91:CQ91) -> 0 | CP91: =IF(OR(CX91=TRUE,DB91=TRUE),$BQ91,0) -> 0 | CQ91: =IF(OR(CY91=TRUE,DC91=TRUE),$BQ91,0) -> 0 | CR91: 0 | CS91: =IF(OR(CY91=TRUE),$BQ91,0) -> 0 | CT91: 0 | CU91: 0 | CV91: TRUE | CW91: TRUE | CX91: TRUE | CY91: TRUE | CZ91: FALSE | DA91: FALSE | DB91: FALSE | DC91: FALSE | DD91: TRUE | DE91: 300 | DF91: =IFERROR(BQ91*N91,0) -> 0 | DG91: 0 | DH91: 0 | DI91: 429.95 | DJ91: 0 | DK91: TRUE | DM91: 50 | DN91: 3 | DO91: Cisco SPA 525G2 IP Phone with Star2Star Productivity Software | DP91: 0 | DQ91: 0 | DR91: 0 | DS91: =IFERROR(F91*(CJ91),0) -> 0 | DT91: 0
A92: =IF(SUM(BM92)>0,SUM(MAX(A$6:A91),1,IF(SUM(A$6:$A91)>0,0,$B$1)),0) -> 0 | B92: =IF(SUM(CC92,BI92:BK92,BO92,BQ92,BT92,BP92)<>0,MAX(B$6:B91)+1,0) -> 0 | C92: PHO-PAN-01001 | D92: 13350 | E92: 14350 | G92: Hardware | H92: Panasonic | I92: Phones | J92: Panasonic Phones | K92: Panasonic KX-TGP500 - DECT Base Station & Handset | L92: 199 | M92: 161 | N92: 0 | O92: 29.5 | P92: 17.97 | Q92: 20 | R92: 0 | S92: 10 | T92: 4.95 | U92: 5 | V92: 7.5 | W92: 4.975 | X92: 40 | Y92: 161 | Z92: 29.5 | AA92: 17.97 | AB92: 0 | AD92: area_phones | AE92: 1 | AF92: KXTGP500 | AG92: VoIP Phones | AH92: Panasonic KX-TGP500 - DECT Base Station & Handset | AI92: Includes the base unit, one cordless handset, and charger. Base unit has ethernet pass-through port. Hands-free speaker phone on cordless handset. | AJ92: Not Available for SIP configurations | AK92: ADV-S2S-02070 | AL92: ADV-S2S-02022 | AM92: Hardware | AN92: 0 | AO92: TRUE | AP92: Phones | AQ92: 1 | AR92: 0 | AS92: 0.5 | AT92: 0 | AU92: 228.5 | AV92: 30 | AW92: 29.95 | AX92: 49.95 | AY92: 7.5 | AZ92: 40 | BA92: 29.5 | BB92: 20 | BC92: 24.95 | BD92: 49.95 | BE92: 40 | BF92: 1 | BH92: 0,1,2,3 | BI92: 0 | BJ92: 0 | BL92: 0 | BM92: 0 | BN92: 0 | BO92: 0 | BP92: 0 | BQ92: 0 | BR92: 0 | BS92: 0 | BT92: 0 | BU92: 0 | BV92: 0 | BW92: 0 | BX92: 0 | BY92: 0 | BZ92: 199 | CA92: 29.5 | CB92: 29.5 | CC92: 0 | CD92: 144.9 | CE92: 0 | CF92: =VLOOKUP(AP92,'Reseller Info'!$AL$123:$AO$130,3,FALSE) -> 0 | CG92: 0 | CH92: 345.9 | CI92: 124.4 | CJ92: 0 | CK92: 0 | CL92: 0 | CM92: 0 | CN92: 0 | CO92: 0 | CP92: 0 | CQ92: 0 | CR92: 0 | CS92: 0 | CT92: 0 | CU92: 0 | CV92: TRUE | CW92: TRUE | CX92: TRUE | CY92: TRUE | CZ92: FALSE | DA92: FALSE | DB92: FALSE | DC92: FALSE | DD92: TRUE | DE92: 199 | DF92: 0 | DG92: 0 | DH92: 0 | DI92: 228.5 | DJ92: 0 | DK92: TRUE | DM92: 0 | DN92: 3 | DO92: Panasonic KX-TGP500 - DECT Base Station & Handset | DP92: 0 | DQ92: 0 | DR92: 0 | DS92: 0 | DT92: 0
A93: =IF(SUM(BM93)>0,SUM(MAX(A$6:A92),1,IF(SUM(A$6:$A92)>0,0,$B$1)),0) -> 0 | B93: =IF(SUM(CC93,BI93:BK93,BO93,BQ93,BT93,BP93)<>0,MAX(B$6:B92)+1,0) -> 0 | C93: PHO-PAN-01002 | D93: 13360 | E93: 14360 | G93: Hardware | H93: Panasonic | I93: Phones | J93: Panasonic Phones | K93: Panasonic KX-TPA50 Additional Cordless Handset (requires Base Station for operation) | L93: 99.95 | M93: 82 | N93: 0 | O93: 29.5 | P93: 17.97 | Q93: 20 | R93: 0 | S93: 10 | T93: 4.95 | U93: 5 | V93: 7.5 | W93: 2.49875 | X93: 40 | Y93: 82 | Z93: 29.5 | AA93: 17.97 | AB93: 0 | AD93: area_phones | AE93: 1 | AF93: KXTPA50 | AG93: VoIP Phones | AH93: Panasonic KX-TPA50 Additional Cordless Handset | AI93: Add-on handset for the KX-TGP500. Each base unit connects up to 3 handsets. 2.1" Large LCD with white back light on cordless handset, message waiting indicator, soft keys | AJ93: Not Available for SIP configurations | AK93: ADV-S2S-02070 | AL93: ADV-S2S-02022 | AM93: Hardware | AN93: 0 | AO93: TRUE | AP93: Phones | AQ93: 1 | AR93: 0 | AS93: 0.5 | AT93: 0 | AU93: 129.45 | AV93: 30 | AW93: 29.95 | AX93: 49.95 | AY93: 7.5 | AZ93: 40 | BA93: 29.5 | BB93: 20 | BC93: 24.95 | BD93: 49.95 | BE93: 40 | BH93: 0,1,2,3 | BI93: 0 | BJ93: 0 | BL93: 0 | BM93: 0 | BN93: 0 | BO93: 0 | BP93: 0 | BQ93: 0 | BR93: 0 | BS93: 0 | BT93: 0 | BU93: 0 | BV93: 0 | BW93: 0 | BX93: 0 | BY93: 0 | BZ93: 99.95 | CA93: 29.5 | CB93: 29.5 | CC93: 0 | CD93: 73.8 | CE93: 0 | CF93: =VLOOKUP(AP93,'Reseller Info'!$AL$123:$AO$130,3,FALSE) -> 0 | CG93: 0 | CH93: 246.85 | CI93: 124.4 | CJ93: 0 | CK93: 0 | CL93: 0 | CM93: 0 | CN93: 0 | CO93: 0 | CP93: 0 | CQ93: 0 | CR93: 0 | CS93: 0 | CT93: 0 | CU93: 0 | CV93: TRUE | CW93: TRUE | CX93: TRUE | CY93: TRUE | CZ93: FALSE | DA93: FALSE | DB93: FALSE | DC93: FALSE | DD93: TRUE | DE93: 99.95 | DF93: 0 | DG93: 0 | DH93: 0 | DI93: 129.45 | DJ93: 0 | DK93: TRUE | DM93: 0 | DN93: 3 | DO93: Panasonic KX-TPA50 Additional Cordless Handset | DP93: 0 | DQ93: 0 | DR93: 0 | DS93: 0 | DT93: 0
A94: =IF(SUM(BM94)>0,SUM(MAX(A$6:A93),1,IF(SUM(A$6:$A93)>0,0,$B$1)),0) -> 0 | B94: =IF(SUM(CC94,BI94:BK94,BO94,BQ94,BT94,BP94)<>0,MAX(B$6:B93)+1,0) -> 0 | C94: PHO-YEA-01001 | D94: 13370 | E94: 14370 | G94: Hardware | H94: Yealink | I94: Phones | J94: Yealink Phones | K94: Yealink SIP-T20P IP Phone | L94: 99 | M94: 79.95 | N94: 15 | O94: 29.95 | P94: 17.97 | Q94: 20 | R94: 0 | S94: 10 | T94: 4.95 | U94: 5 | V94: 7.5 | W94: 2.475 | X94: 40 | Y94: 38 | Z94: 29.95 | AA94: 17.97 | AB94: 0 | AD94: area_phones | AE94: 1 | AF94: YSIPT20P | AG94: VoIP Phones | AH94: Yealink SIP-T20P with Star2Star Productivity Software | AI94: 2 Line appearance phone. 2 Programmable BLF buttons usable for call park and /or speed dials. | AJ94: SIP Solutions require 1 managed switch | AK94: ADV-S2S-02072 | AL94: ADV-S2S-02077 | AM94: Hardware | AN94: 0 | AO94: TRUE | AP94: Phones | AQ94: 1 | AR94: 0 | AS94: 0.5 | AT94: 0 | AU94: 113.95 | AV94: 30 | AW94: 29.95 | AX94: 49.95 | AY94: 7.5 | AZ94: 40 | BA94: 29.95 | BB94: 20 | BC94: 24.95 | BD94: 49.95 | BE94: 40 | BF94: 1 | BH94: 0,1,2,3 | BI94: 0 | BJ94: 0 | BL94: 0 | BM94: 0 | BN94: 0 | BO94: 0 | BP94: 0 | BQ94: 0 | BR94: 0 | BS94: 0 | BT94: 0 | BU94: 0 | BV94: 0 | BW94: 0 | BX94: 0 | BY94: 0 | BZ94: 99 | CA94: 29.95 | CB94: 29.95 | CC94: 0 | CD94: 34.2 | CE94: 0 | CF94: =VLOOKUP(AP94,'Reseller Info'!$AL$123:$AO$130,3,FALSE) -> 0 | CG94: 0 | CH94: 231.35 | CI94: 124.85 | CJ94: 0 | CK94: 0 | CL94: 0 | CM94: 0 | CN94: 0 | CO94: 0 | CP94: 0 | CQ94: 0 | CR94: 0 | CS94: 0 | CT94: 0 | CU94: 0 | CV94: TRUE | CW94: TRUE | CX94: TRUE | CY94: TRUE | CZ94: FALSE | DA94: FALSE | DB94: FALSE | DC94: FALSE | DD94: TRUE | DE94: 84 | DF94: 0 | DG94: 0 | DH94: 0 | DI94: 113.95 | DJ94: 0 | DK94: TRUE | DM94: 15 | DN94: 3 | DO94: Yealink SIP-T20P with Star2Star Productivity Software | DP94: 0 | DQ94: 0 | DR94: 0 | DS94: 0 | DT94: 0
A95: =IF(SUM(BM95)>0,SUM(MAX(A$6:A94),1,IF(SUM(A$6:$A94)>0,0,$B$1)),0) -> 0 | B95: =IF(SUM(CC95,BI95:BK95,BO95,BQ95,BT95,BP95)<>0,MAX(B$6:B94)+1,0) -> 0 | C95: PHO-YEA-01002 | D95: 13380 | E95: 14380 | G95: Hardware | H95: Yealink | I95: Phones | J95: Yealink Phones | K95: Yealink SIP-T22P IP Phone | L95: 109 | M95: 94.95 | N95: 20 | O95: 29.95 | P95: 17.97 | Q95: 20 | R95: 0 | S95: 10 | T95: 4.95 | U95: 5 | V95: 7.5 | W95: 2.725 | X95: 40 | Y95: 44 | Z95: 29.95 | AA95: 17.97 | AB95: 0 | AD95: area_phones | AE95: 1 | AF95: YSIPT22P | AG95: VoIP Phones | AH95: Yealink SIP-T22P with Star2Star Productivity Software | AI95: 3 Line appearance phone. 3 Programmable BLF buttons usable for call park and / or speed dials. | AJ95: SIP Solutions require 1 managed switch | AK95: ADV-S2S-02072 | AL95: ADV-S2S-02077 | AM95: Hardware | AN95: 0 | AO95: TRUE | AP95: Phones | AQ95: 1 | AR95: 0 | AS95: 0.5 | AT95: 0 | AU95: 118.95 | AV95: 30 | AW95: 29.95 | AX95: 49.95 | AY95: 7.5 | AZ95: 40 | BA95: 29.95 | BB95: 20 | BC95: 24.95 | BD95: 49.95 | BE95: 40 | BH95: 0,1,2,3 | BI95: 0 | BJ95: 0 | BL95: 0 | BM95: 0 | BN95: 0 | BO95: 0 | BP95: 0 | BQ95: 0 | BR95: 0 | BS95: 0 | BT95: 0 | BU95: 0 | BV95: 0 | BW95: 0 | BX95: 0 | BY95: 0 | BZ95: 109 | CA95: 29.95 | CB95: 29.95 | CC95: 0 | CD95: 39.6 | CE95: 0 | CF95: =VLOOKUP(AP95,'Reseller Info'!$AL$123:$AO$130,3,FALSE) -> 0 | CG95: 0 | CH95: 236.35 | CI95: 124.85 | CJ95: 0 | CK95: 0 | CL95: 0 | CM95: 0 | CN95: 0 | CO95: 0 | CP95: 0 | CQ95: 0 | CR95: 0 | CS95: 0 | CT95: 0 | CU95: 0 | CV95: TRUE | CW95: TRUE | CX95: TRUE | CY95: TRUE | CZ95: FALSE | DA95: FALSE | DB95: FALSE | DC95: FALSE | DD95: TRUE | DE95: 89 | DF95: 0 | DG95: 0 | DH95: 0 | DI95: 118.95 | DJ95: 0 | DK95: TRUE | DM95: 20 | DN95: 3 | DO95: Yealink SIP-T22P with Star2Star Productivity Software | DP95: 0 | DQ95: 0 | DR95: 0 | DS95: 0 | DT95: 0
A96: =IF(SUM(BM96)>0,SUM(MAX(A$6:A95),1,IF(SUM(A$6:$A95)>0,0,$B$1)),0) -> 0 | B96: =IF(SUM(CC96,BI96:BK96,BO96,BQ96,BT96,BP96)<>0,MAX(B$6:B95)+1,0) -> 0 | C96: PHO-YEA-01003 | D96: 13390 | E96: 14390 | G96: Hardware | H96: Yealink | I96: Phones | J96: Yealink Phones | K96: Yealink SIP-T26P IP Phone | L96: 145 | M96: 124.95 | N96: 25 | O96: 44.95 | P96: 26.97 | Q96: 20 | R96: 0 | S96: 10 | T96: 4.95 | U96: 5 | V96: 7.5 | W96: 3.625 | X96: 40 | Y96: 58 | Z96: 44.95 | AA96: 26.97 | AB96: 0 | AD96: area_phones | AE96: 1 | AF96: YSIPT26P | AG96: VoIP Phones | AH96: Yealink SIP-T26P with Star2Star Productivity Software | AI96: 3 Line appearance phone. 13 Programmable BLF buttons usable for call park and / or speed dials. | AJ96: SIP Solutions require 1 managed switch | AK96: ADV-S2S-02073 | AL96: ADV-S2S-02076 | AM96: Hardware | AN96: 0 | AO96: TRUE | AP96: Phones | AQ96: 1 | AR96: 0 | AS96: 0.5 | AT96: 0 | AU96: 164.95 | AV96: 30 | AW96: 29.95 | AX96: 49.95 | AY96: 7.5 | AZ96: 40 | BA96: 44.95 | BB96: 20 | BC96: 24.95 | BD96: 49.95 | BE96: 40 | BH96: 0,1,2,3 | BI96: 0 | BJ96: =IFERROR(VLOOKUP($C96,dashqtys,2,FALSE),0) -> 0 | BL96: 0 | BM96: 0 | BN96: =IF(ref_NIMA,MAX(BI96,BJ96),IF(BK96="",MAX(BI96,BJ96),BK96)) -> 0 | BO96: 0 | BP96: 0 | BQ96: =IF(OR(JB_1972=FALSE,DL96="",AM96="Existing"),IF(BK96="",IF(ref_locid=20,BF96,MAX(BO96,BN96,BG96,BP96)),BK96),DL96) -> 0 | BR96: 0 | BS96: 0 | BT96: 0 | BU96: =IF(AE96=0,0,IFERROR(BJ96*AE96,0)) -> 0 | BV96: =IF(AE96=0,0,IFERROR(BQ96*AE96,0)) -> 0 | BW96: 0 | BX96: 0 | BY96: 0 | BZ96: 145 | CA96: 44.95 | CB96: 44.95 | CC96: 0 | CD96: =IF(OR(BQ96>0,ref_addon=TRUE),Y96,Y96*ref_demokitdisc) -> 52.2 | CE96: =IFERROR(BQ96*SUM(N96,AN96),0) -> 0 | CF96: =VLOOKUP(AP96,'Reseller Info'!$AL$123:$AO$130,3,FALSE) -> 0 | CG96: 0 | CH96: 282.35 | CI96: 139.85 | CJ96: =MAX(CK96:CL96) -> 0 | CK96: =IF(OR(CV96=TRUE,CZ96=TRUE),$BQ96,0) -> 0 | CL96: 0 | CM96: =IF(CV96=TRUE,$BQ96,0) -> 0 | CN96: =IF(OR(CW96=TRUE),$BQ96,0) -> 0 | CO96: =MAX(CP96:CQ96) -> 0 | CP96: =IF(OR(CX96=TRUE,DB96=TRUE),$BQ96,0) -> 0 | CQ96: 0 | CR96: 0 | CS96: =IF(OR(CY96=TRUE),$BQ96,0) -> 0 | CT96: 0 | CU96: 0 | CV96: =IF(ISERROR(FIND(CV$4,$BH96,1)),FALSE,TRUE) -> TRUE | CW96: TRUE | CX96: TRUE | CY96: TRUE | CZ96: FALSE | DA96: FALSE | DB96: FALSE | DC96: FALSE | DD96: TRUE | DE96: 120 | DF96: =IFERROR(BQ96*N96,0) -> 0 | DG96: 0 | DH96: 0 | DI96: 164.95 | DJ96: 0 | DK96: TRUE | DM96: 25 | DN96: 3 | DO96: Yealink SIP-T26P with Star2Star Productivity Software | DP96: 0 | DQ96: 0 | DR96: 0 | DS96: =IFERROR(F96*(CJ96),0) -> 0 | DT96: 0
A97: =IF(SUM(BM97)>0,SUM(MAX(A$6:A96),1,IF(SUM(A$6:$A96)>0,0,$B$1)),0) -> 0 | B97: =IF(SUM(CC97,BI97:BK97,BO97,BQ97,BT97,BP97)<>0,MAX(B$6:B96)+1,0) -> 0 | C97: PHO-YEA-01004 | D97: 13410 | E97: 14410 | G97: Hardware | H97: Yealink | I97: Phones | J97: Yealink Phones | K97: Yealink SIP-T28P IP Phone | L97: 189 | M97: 169.95 | N97: 50 | O97: 44.95 | P97: 26.97 | Q97: 20 | R97: 0 | S97: 10 | T97: 4.95 | U97: 5 | V97: 7.5 | W97: 4.725 | X97: 40 | Y97: 76 | Z97: 44.95 | AA97: 26.97 | AB97: 0 | AD97: area_phones | AE97: 1 | AF97: YSIPT28P | AG97: VoIP Phones | AH97: Yealink SIP-T28P with Star2Star Productivity Software | AI97: 6 Line appearance phone. 16 programmable BLF buttons usable for call park and / or speed dials. | AJ97: SIP Solutions require 1 managed switch | AK97: ADV-S2S-02073 | AL97: ADV-S2S-02076 | AM97: Hardware | AN97: 0 | AO97: TRUE | AP97: Phones | AQ97: 1 | AR97: 0 | AS97: 0.5 | AT97: 0 | AU97: 183.95 | AV97: 30 | AW97: 29.95 | AX97: 49.95 | AY97: 7.5 | AZ97: 40 | BA97: 44.95 | BB97: 20 | BC97: 24.95 | BD97: 49.95 | BE97: 40 | BH97: 0,1,2,3 | BI97: 0 | BJ97: =IFERROR(VLOOKUP($C97,dashqtys,2,FALSE),0) -> 0 | BL97: 0 | BM97: 0 | BN97: =IF(ref_NIMA,MAX(BI97,BJ97),IF(BK97="",MAX(BI97,BJ97),BK97)) -> 0 | BO97: 0 | BP97: 0 | BQ97: =IF(OR(JB_1972=FALSE,DL97="",AM97="Existing"),IF(BK97="",IF(ref_locid=20,BF97,MAX(BO97,BN97,BG97,BP97)),BK97),DL97) -> 0 | BR97: 0 | BS97: 0 | BT97: 0 | BU97: =IF(AE97=0,0,IFERROR(BJ97*AE97,0)) -> 0 | BV97: =IF(AE97=0,0,IFERROR(BQ97*AE97,0)) -> 0 | BW97: 0 | BX97: 0 | BY97: 0 | BZ97: 189 | CA97: 44.95 | CB97: 44.95 | CC97: 0 | CD97: =IF(OR(BQ97>0,ref_addon=TRUE),Y97,Y97*ref_demokitdisc) -> 68.4 | CE97: =IFERROR(BQ97*SUM(N97,AN97),0) -> 0 | CF97: =VLOOKUP(AP97,'Reseller Info'!$AL$123:$AO$130,3,FALSE) -> 0 | CG97: 0 | CH97: 301.35 | CI97: 139.85 | CJ97: =MAX(CK97:CL97) -> 0 | CK97: 0 | CL97: 0 | CM97: =IF(CV97=TRUE,$BQ97,0) -> 0 | CN97: =IF(OR(CW97=TRUE),$BQ97,0) -> 0 | CO97: =MAX(CP97:CQ97) -> 0 | CP97: 0 | CQ97: 0 | CR97: 0 | CS97: =IF(OR(CY97=TRUE),$BQ97,0) -> 0 | CT97: 0 | CU97: 0 | CV97: TRUE | CW97: TRUE | CX97: TRUE | CY97: TRUE | CZ97: FALSE | DA97: FALSE | DB97: FALSE | DC97: FALSE | DD97: TRUE | DE97: 139 | DF97: =IFERROR(BQ97*N97,0) -> 0 | DG97: 0 | DH97: 0 | DI97: 183.95 | DJ97: 0 | DK97: TRUE | DM97: 50 | DN97: 3 | DO97: Yealink SIP-T28P with Star2Star Productivity Software | DP97: 0 | DQ97: 0 | DR97: 0 | DS97: =IFERROR(F97*(CJ97),0) -> 0 | DT97: 0
A98: =IF(SUM(BM98)>0,SUM(MAX(A$6:A97),1,IF(SUM(A$6:$A97)>0,0,$B$1)),0) -> 0 | B98: =IF(SUM(CC98,BI98:BK98,BO98,BQ98,BT98,BP98)<>0,MAX(B$6:B97)+1,0) -> 0 | C98: PHO-YEA-01005 | D98: 13420 | E98: 14420 | G98: Hardware | H98: Yealink | I98: Phones | J98: Yealink Phones | K98: Yealink SIP-T32G Gig IP Phone | L98: 195 | M98: 184.95 | N98: 50 | O98: 84.95 | P98: 50.97 | Q98: 20 | R98: 0 | S98: 10 | T98: 4.95 | U98: 5 | V98: 7.5 | W98: 4.875 | X98: 40 | Y98: 78 | Z98: 84.95 | AA98: 50.97 | AB98: 0 | AD98: area_phones | AE98: 1 | AF98: YSIPT32G | AG98: VoIP Phones | AH98: Yealink SIP-T32G with Star2Star Productivity Software | AI98: 3 Line appearance phone. 3 Programmable BLF buttons usable for call park and / or speed dials. 2 x GbE ports Colour display | AJ98: SIP Solutions require 1 managed switch | AK98: ADV-S2S-02074 | AL98: ADV-S2S-02075 | AM98: Hardware | AN98: 0 | AO98: TRUE | AP98: Phones | AQ98: 1 | AR98: 0 | AS98: 0.5 | AT98: 0 | AU98: 229.95 | AV98: 30 | AW98: 29.95 | AX98: 49.95 | AY98: 7.5 | AZ98: 40 | BA98: 84.95 | BB98: 20 | BC98: 24.95 | BD98: 49.95 | BE98: 40 | BH98: 0,1,2,3 | BI98: 0 | BJ98: =IFERROR(VLOOKUP($C98,dashqtys,2,FALSE),0) -> 0 | BL98: 0 | BM98: 0 | BN98: =IF(ref_NIMA,MAX(BI98,BJ98),IF(BK98="",MAX(BI98,BJ98),BK98)) -> 0 | BO98: 0 | BP98: 0 | BQ98: =IF(OR(JB_1972=FALSE,DL98="",AM98="Existing"),IF(BK98="",IF(ref_locid=20,BF98,MAX(BO98,BN98,BG98,BP98)),BK98),DL98) -> 0 | BR98: 0 | BS98: 0 | BT98: 0 | BU98: =IF(AE98=0,0,IFERROR(BJ98*AE98,0)) -> 0 | BV98: =IF(AE98=0,0,IFERROR(BQ98*AE98,0)) -> 0 | BW98: 0 | BX98: 0 | BY98: 0 | BZ98: 195 | CA98: 84.95 | CB98: 84.95 | CC98: 0 | CD98: =IF(OR(BQ98>0,ref_addon=TRUE),Y98,Y98*ref_demokitdisc) -> 70.2 | CE98: =IFERROR(BQ98*SUM(N98,AN98),0) -> 0 | CF98: =VLOOKUP(AP98,'Reseller Info'!$AL$123:$AO$130,3,FALSE) -> 0 | CG98: 0 | CH98: 347.35 | CI98: 179.85 | CJ98: =MAX(CK98:CL98) -> 0 | CK98: 0 | CL98: 0 | CM98: =IF(CV98=TRUE,$BQ98,0) -> 0 | CN98: =IF(OR(CW98=TRUE),$BQ98,0) -> 0 | CO98: =MAX(CP98:CQ98) -> 0 | CP98: 0 | CQ98: 0 | CR98: 0 | CS98: =IF(OR(CY98=TRUE),$BQ98,0) -> 0 | CT98: 0 | CU98: 0 | CV98: TRUE | CW98: TRUE | CX98: TRUE | CY98: TRUE | CZ98: FALSE | DA98: FALSE | DB98: FALSE | DC98: FALSE | DD98: TRUE | DE98: 145 | DF98: =IFERROR(BQ98*N98,0) -> 0 | DG98: 0 | DH98: 0 | DI98: 229.95 | DJ98: 0 | DK98: TRUE | DM98: 50 | DN98: 3 | DO98: Yealink SIP-T32G with Star2Star Productivity Software | DP98: 0 | DQ98: 0 | DR98: 0 | DS98: =IFERROR(F98*(CJ98),0) -> 0 | DT98: 0
A99: =IF(SUM(BM99)>0,SUM(MAX(A$6:A98),1,IF(SUM(A$6:$A98)>0,0,$B$1)),0) -> 0 | B99: =IF(SUM(CC99,BI99:BK99,BO99,BQ99,BT99,BP99)<>0,MAX(B$6:B98)+1,0) -> 0 | C99: PHO-YEA-01006 | D99: 13430 | E99: 14430 | G99: Hardware | H99: Yealink | I99: Phones | J99: Yealink Phones | K99: Yealink SIP-T38G Gig IP Phone | L99: 250 | M99: 229.95 | N99: 50 | O99: 84.95 | P99: 50.97 | Q99: 20 | R99: 0 | S99: 10 | T99: 4.95 | U99: 5 | V99: 7.5 | W99: 6.25 | X99: 40 | Y99: 104 | Z99: 84.95 | AA99: 50.97 | AB99: 0 | AD99: area_phones | AE99: 1 | AF99: YSIPT38G | AG99: VoIP Phones | AH99: Yealink SIP-T38G with Star2Star Productivity Software | AI99: 6 Line appearance phone. 16 Programmable BLF buttons usable for call park and / or speed dials. 2 x GbE ports Colour display | AJ99: SIP Solutions require 1 managed switch | AK99: ADV-S2S-02074 | AL99: ADV-S2S-02075 | AM99: Hardware | AN99: 0 | AO99: TRUE | AP99: Phones | AQ99: 1 | AR99: 0 | AS99: 0.5 | AT99: 0 | AU99: 284.95 | AV99: 30 | AW99: 29.95 | AX99: 49.95 | AY99: 7.5 | AZ99: 40 | BA99: 84.95 | BB99: 20 | BC99: 24.95 | BD99: 49.95 | BE99: 40 | BF99: 1 | BH99: 0,1,2,3 | BI99: 0 | BJ99: =IFERROR(VLOOKUP($C99,dashqtys,2,FALSE),0) -> 0 | BL99: 0 | BM99: 0 | BN99: =IF(ref_NIMA,MAX(BI99,BJ99),IF(BK99="",MAX(BI99,BJ99),BK99)) -> 0 | BO99: 0 | BP99: 0 | BQ99: =IF(OR(JB_1972=FALSE,DL99="",AM99="Existing"),IF(BK99="",IF(ref_locid=20,BF99,MAX(BO99,BN99,BG99,BP99)),BK99),DL99) -> 0 | BR99: 0 | BS99: 0 | BT99: 0 | BU99: =IF(AE99=0,0,IFERROR(BJ99*AE99,0)) -> 0 | BV99: =IF(AE99=0,0,IFERROR(BQ99*AE99,0)) -> 0 | BW99: 0 | BX99: 0 | BY99: 0 | BZ99: 250 | CA99: 84.95 | CB99: 84.95 | CC99: 0 | CD99: =IF(OR(BQ99>0,ref_addon=TRUE),Y99,Y99*ref_demokitdisc) -> 93.6 | CE99: =IFERROR(BQ99*SUM(N99,AN99),0) -> 0 | CF99: =VLOOKUP(AP99,'Reseller Info'!$AL$123:$AO$130,3,FALSE) -> 0 | CG99: 0 | CH99: 402.35 | CI99: 179.85 | CJ99: =MAX(CK99:CL99) -> 0 | CK99: 0 | CL99: 0 | CM99: =IF(CV99=TRUE,$BQ99,0) -> 0 | CN99: =IF(OR(CW99=TRUE),$BQ99,0) -> 0 | CO99: =MAX(CP99:CQ99) -> 0 | CP99: 0 | CQ99: 0 | CR99: 0 | CS99: =IF(OR(CY99=TRUE),$BQ99,0) -> 0 | CT99: 0 | CU99: 0 | CV99: TRUE | CW99: TRUE | CX99: TRUE | CY99: TRUE | CZ99: FALSE | DA99: FALSE | DB99: FALSE | DC99: FALSE | DD99: TRUE | DE99: 200 | DF99: =IFERROR(BQ99*N99,0) -> 0 | DG99: 0 | DH99: 0 | DI99: 284.95 | DJ99: 0 | DK99: TRUE | DM99: 50 | DN99: 3 | DO99: Yealink SIP-T38G with Star2Star Productivity Software | DP99: 0 | DQ99: 0 | DR99: 0 | DS99: =IFERROR(F99*(CJ99),0) -> 0 | DT99: 0
A100: =IF(SUM(BM100)>0,SUM(MAX(A$6:A99),1,IF(SUM(A$6:$A99)>0,0,$B$1)),0) -> 0 | B100: =IF(SUM(CC100,BI100:BK100,BO100,BQ100,BT100,BP100)<>0,MAX(B$6:B99)+1,0) -> 0 | C100: ADV-S2S-02044 | D100: 14510 | E100: 14510 | G100: Software | H100: S2S | I100: Advanced S2S | J100: Advanced S2S | K100: Provision an Existing Phone - Tier A Supported Phones | L100: 0 | M100: 0 | N100: 0 | O100: 0 | P100: 0 | Q100: 20 | R100: 0 | S100: 10 | T100: 4.95 | U100: 0 | V100: 0 | W100: 0 | X100: 40 | Y100: 0 | Z100: 19.95 | AA100: 11.97 | AB100: 0 | AD100: area_phones | AE100: 1 | AF100: PROV | AG100: Existing Phones | AH100: Provision an Existing Phone - Tier A Supported Phones | AI100: Snom 300, Snom 360 | AJ100: Not Available for SIP configurations | AK100: ADV-S2S-02021 | AL100: ADV-S2S-02021 | AM100: Existing | AO100: TRUE | AP100: Phones | AQ100: 7 | AR100: 0 | AS100: 0.5 | AT100: 0 | AU100: 0 | AV100: 0 | AW100: 5 | AX100: 0 | BA100: 19.95 | BB100: 20 | BC100: 24.95 | BD100: 49.95 | BE100: 40 | BH100: 0,1,2,3 | BI100: 0 | BJ100: 0 | BL100: 0 | BM100: 0 | BN100: 0 | BO100: 0 | BP100: 0 | BQ100: 0 | BR100: 0 | BS100: 0 | BT100: 0 | BU100: 0 | BV100: 0 | BW100: 0 | BX100: 0 | BY100: 0 | BZ100: 0 | CA100: 0 | CB100: 19.95 | CC100: 0 | CD100: 0 | CE100: 0 | CF100: =VLOOKUP(AP100,'Reseller Info'!$AL$123:$AO$130,3,FALSE) -> 0 | CG100: 0 | CH100: 5 | CI100: 114.85 | CJ100: 0 | CK100: 0 | CL100: 0 | CM100: 0 | CN100: 0 | CO100: 0 | CP100: 0 | CQ100: 0 | CR100: 0 | CS100: 0 | CT100: 0 | CU100: 0 | CV100: TRUE | CW100: TRUE | CX100: TRUE | CY100: TRUE | CZ100: FALSE | DA100: FALSE | DB100: FALSE | DC100: FALSE | DD100: TRUE | DE100: 0 | DF100: 0 | DG100: =IF(AM100="Existing",IF($BY100<0,$BY100,0),SUM(IF($BX100<0,$BX100,0),IF($BW100<0,$BW100,0))) -> 0 | DH100: =IF(AM100="Existing",IF($BY100>0,$BY100,0),SUM(IF($BX100>0,$BX100,0),IF($BW100>0,$BW100,0))) -> 0 | DI100: 0 | DJ100: 0 | DK100: TRUE | DM100: 0 | DN100: 4 | DO100: Provision an Existing Phone - Tier A Supported Phones | DP100: 0 | DQ100: 0 | DR100: 0 | DS100: 0 | DT100: 0
A101: =IF(SUM(BM101)>0,SUM(MAX(A$6:A100),1,IF(SUM(A$6:$A100)>0,0,$B$1)),0) -> 0 | B101: =IF(SUM(CC101,BI101:BK101,BO101,BQ101,BT101,BP101)<>0,MAX(B$6:B100)+1,0) -> 0 | C101: ADV-S2S-02045 | D101: 14520 | E101: 14520 | G101: Software | H101: S2S | I101: Advanced S2S | J101: Advanced S2S | K101: Provision an Existing Phone - Tier B Supported Phones | L101: 0 | M101: 0 | N101: 0 | O101: 0 | P101: 0 | Q101: 20 | R101: 0 | S101: 10 | T101: 4.95 | U101: 0 | V101: 0 | W101: 0 | X101: 40 | Y101: 0 | Z101: 29.5 | AA101: 17.97 | AB101: 0 | AD101: area_phones | AE101: 1 | AF101: PROV | AG101: Existing Phones | AH101: Provision an Existing Phone - Tier B Supported Phones | AI101: Snom 370 | AJ101: Not Available for SIP configurations | AK101: ADV-S2S-02022 | AL101: ADV-S2S-02022 | AM101: Existing | AO101: TRUE | AP101: Phones | AQ101: 7 | AR101: 0 | AS101: 0.5 | AT101: 0 | AU101: 0 | AV101: 0 | AW101: 5 | AX101: 0 | BA101: 29.5 | BB101: 20 | BC101: 24.95 | BD101: 49.95 | BE101: 40 | BH101: 0,1,2,3 | BI101: 0 | BJ101: 0 | BL101: 0 | BM101: 0 | BN101: 0 | BO101: 0 | BP101: 0 | BQ101: 0 | BR101: 0 | BS101: 0 | BT101: 0 | BU101: 0 | BV101: 0 | BW101: 0 | BX101: 0 | BY101: 0 | BZ101: 0 | CA101: 0 | CB101: 29.5 | CC101: 0 | CD101: 0 | CE101: 0 | CF101: =VLOOKUP(AP101,'Reseller Info'!$AL$123:$AO$130,3,FALSE) -> 0 | CG101: 0 | CH101: 5 | CI101: 124.4 | CJ101: 0 | CK101: 0 | CL101: 0 | CM101: 0 | CN101: 0 | CO101: 0 | CP101: 0 | CQ101: 0 | CR101: 0 | CS101: 0 | CT101: 0 | CU101: 0 | CV101: TRUE | CW101: TRUE | CX101: TRUE | CY101: TRUE | CZ101: FALSE | DA101: FALSE | DB101: FALSE | DC101: FALSE | DD101: TRUE | DE101: 0 | DF101: 0 | DG101: 0 | DH101: 0 | DI101: 0 | DJ101: 0 | DK101: TRUE | DM101: 0 | DN101: 4 | DO101: Provision an Existing Phone - Tier B Supported Phones | DP101: 0 | DQ101: 0 | DR101: 0 | DS101: 0 | DT101: 0
A102: =IF(SUM(BM102)>0,SUM(MAX(A$6:A101),1,IF(SUM(A$6:$A101)>0,0,$B$1)),0) -> 0 | B102: =IF(SUM(CC102,BI102:BK102,BO102,BQ102,BT102,BP102)<>0,MAX(B$6:B101)+1,0) -> 0 | C102: ADV-S2S-02046 | D102: 14530 | E102: 14530 | G102: Software | H102: S2S | I102: Advanced S2S | J102: Advanced S2S | K102: Provision an Existing Phone - Tier C Supported Phones | L102: 0 | M102: 0 | N102: 0 | O102: 0 | P102: 0 | Q102: 20 | R102: 0 | S102: 10 | T102: 4.95 | U102: 0 | V102: 0 | W102: 0 | X102: 40 | Y102: 0 | Z102: 44.95 | AA102: 26.97 | AB102: 0 | AD102: area_phones | AE102: 1 | AF102: PROV | AG102: Existing Phones | AH102: Provision an Existing Phone - Tier C Supported Phones | AI102: <None> | AJ102: Not Available for SIP configurations | AK102: ADV-S2S-02017 | AL102: ADV-S2S-02017 | AM102: Existing | AO102: TRUE | AP102: Phones | AQ102: 7 | AR102: 0 | AS102: 0.5 | AT102: 0 | AU102: 0 | AV102: 0 | AW102: 5 | AX102: 0 | BA102: 44.95 | BB102: 20 | BC102: 24.95 | BD102: 49.95 | BE102: 40 | BH102: 0,1,2,3 | BI102: 0 | BJ102: 0 | BL102: 0 | BM102: 0 | BN102: 0 | BO102: 0 | BP102: 0 | BQ102: 0 | BR102: 0 | BS102: 0 | BT102: 0 | BU102: 0 | BV102: 0 | BW102: 0 | BX102: 0 | BY102: 0 | BZ102: 0 | CA102: 0 | CB102: 44.95 | CC102: 0 | CD102: 0 | CE102: 0 | CF102: =VLOOKUP(AP102,'Reseller Info'!$AL$123:$AO$130,3,FALSE) -> 0 | CG102: 0 | CH102: 5 | CI102: 139.85 | CJ102: 0 | CK102: 0 | CL102: 0 | CM102: 0 | CN102: 0 | CO102: 0 | CP102: 0 | CQ102: 0 | CR102: 0 | CS102: 0 | CT102: 0 | CU102: 0 | CV102: TRUE | CW102: TRUE | CX102: TRUE | CY102: TRUE | CZ102: FALSE | DA102: FALSE | DB102: FALSE | DC102: FALSE | DD102: TRUE | DE102: 0 | DF102: 0 | DG102: 0 | DH102: 0 | DI102: 0 | DJ102: 0 | DK102: TRUE | DM102: 0 | DN102: 4 | DO102: Provision an Existing Phone - Tier C Supported Phones | DP102: 0 | DQ102: 0 | DR102: 0 | DS102: 0 | DT102: 0
A103: =IF(SUM(BM103)>0,SUM(MAX(A$6:A102),1,IF(SUM(A$6:$A102)>0,0,$B$1)),0) -> 0 | B103: =IF(SUM(CC103,BI103:BK103,BO103,BQ103,BT103,BP103)<>0,MAX(B$6:B102)+1,0) -> 0 | C103: ADV-S2S-02047 | D103: 14540 | E103: 14540 | G103: Software | H103: S2S | I103: Advanced S2S | J103: Advanced S2S | K103: Provision an Existing Phone - Tier D Supported Phones | L103: 0 | M103: 0 | N103: 0 | O103: 0 | P103: 0 | Q103: 20 | R103: 0 | S103: 10 | T103: 4.95 | U103: 0 | V103: 0 | W103: 0 | X103: 40 | Y103: 0 | Z103: 60 | AA103: 36 | AB103: 0 | AD103: area_phones | AE103: 1 | AF103: PROV | AG103: Existing Phones | AH103: Provision an Existing Phone - Tier D Supported Phones | AI103: Cisco 7940, Cisco 7960 | AJ103: Not Available for SIP configurations | AK103: ADV-S2S-02050 | AL103: ADV-S2S-02050 | AM103: Existing | AO103: TRUE | AP103: Phones | AQ103: 7 | AR103: 0 | AS103: 0.5 | AT103: 0 | AU103: 0 | AV103: 0 | AW103: 5 | AX103: 0 | BA103: 60 | BB103: 20 | BC103: 24.95 | BD103: 49.95 | BE103: 40 | BH103: 0,1,2,3 | BI103: 0 | BJ103: 0 | BL103: 0 | BM103: 0 | BN103: 0 | BO103: 0 | BP103: 0 | BQ103: 0 | BR103: 0 | BS103: =MAX(IF(ref_estquote,CC103,0),BQ103:BR103) -> 0 | BT103: 0 | BU103: 0 | BV103: 0 | BW103: =IFERROR(SUM(IF(BS103=0,0,1)*CG103,IF(DN103=3,IF(DT103<0,DT103,0),DT103)),0) -> 0 | BX103: 0 | BY103: 0 | BZ103: =SUM(BW103,L103) -> 0 | CA103: 0 | CB103: 60 | CC103: 0 | CD103: 0 | CE103: 0 | CF103: =VLOOKUP(AP103,'Reseller Info'!$AL$123:$AO$130,3,FALSE) -> 0 | CG103: 0 | CH103: 5 | CI103: 154.9 | CJ103: 0 | CK103: 0 | CL103: 0 | CM103: 0 | CN103: 0 | CO103: 0 | CP103: 0 | CQ103: 0 | CR103: 0 | CS103: 0 | CT103: 0 | CU103: 0 | CV103: TRUE | CW103: TRUE | CX103: TRUE | CY103: TRUE | CZ103: FALSE | DA103: FALSE | DB103: FALSE | DC103: FALSE | DD103: TRUE | DE103: =IF(H103="Polycom",BZ103,BZ103-N103) -> 0 | DF103: 0 | DG103: 0 | DH103: 0 | DI103: =SUM(BZ103,CA103,-N103,-AN103) -> 0 | DJ103: 0 | DK103: TRUE | DM103: 0 | DN103: 4 | DO103: Provision an Existing Phone - Tier D Supported Phones | DP103: =SUM(BW103:BX103) -> 0 | DQ103: 0 | DR103: 0 | DS103: 0 | DT103: =IFERROR(VLOOKUP(C103,area_salesagentmarkup,18,FALSE),0) -> 0
A104: =IF(SUM(BM104)>0,SUM(MAX(A$6:A103),1,IF(SUM(A$6:$A103)>0,0,$B$1)),0) -> 0 | B104: =IF(SUM(CC104,BI104:BK104,BO104,BQ104,BT104,BP104)<>0,MAX(B$6:B103)+1,0) -> 0 | C104: ADV-S2S-02048 | D104: 14550 | E104: 14550 | G104: Software | H104: S2S | I104: Advanced S2S | J104: Advanced S2S | K104: Provision an Existing Phone - Tier E Supported Phones | L104: 0 | M104: 0 | N104: 0 | O104: 0 | P104: 0 | Q104: 20 | R104: 0 | S104: 10 | T104: 4.95 | U104: 0 | V104: 0 | W104: 0 | X104: 40 | Y104: 0 | Z104: 84.95 | AA104: 52.97 | AB104: 0 | AD104: area_phones | AE104: 1 | AF104: PROV | AG104: Existing Phones | AH104: Provision an Existing Phone - Tier E Supported Phones | AI104: <None> | AJ104: Not Available for SIP configurations | AK104: ADV-S2S-02018 | AL104: ADV-S2S-02018 | AM104: Existing | AO104: TRUE | AP104: Phones | AQ104: 7 | AR104: 0 | AS104: 0.5 | AT104: 0 | AU104: 0 | AV104: 0 | AW104: 5 | AX104: 0 | BA104: 84.95 | BB104: 20 | BC104: 24.95 | BD104: 49.95 | BE104: 40 | BH104: 0,1,2,3 | BI104: 0 | BJ104: 0 | BL104: 0 | BM104: 0 | BN104: 0 | BO104: 0 | BP104: 0 | BQ104: 0 | BR104: 0 | BS104: 0 | BT104: 0 | BU104: 0 | BV104: 0 | BW104: 0 | BX104: 0 | BY104: 0 | BZ104: 0 | CA104: 0 | CB104: 84.95 | CC104: 0 | CD104: 0 | CE104: 0 | CF104: =VLOOKUP(AP104,'Reseller Info'!$AL$123:$AO$130,3,FALSE) -> 0 | CG104: 0 | CH104: 5 | CI104: 179.85 | CJ104: 0 | CK104: 0 | CL104: 0 | CM104: 0 | CN104: 0 | CO104: 0 | CP104: 0 | CQ104: 0 | CR104: 0 | CS104: 0 | CT104: 0 | CU104: 0 | CV104: TRUE | CW104: TRUE | CX104: TRUE | CY104: TRUE | CZ104: FALSE | DA104: FALSE | DB104: FALSE | DC104: FALSE | DD104: TRUE | DE104: 0 | DF104: 0 | DG104: 0 | DH104: 0 | DI104: 0 | DJ104: 0 | DK104: TRUE | DM104: 0 | DN104: 4 | DO104: Provision an Existing Phone - Tier E Supported Phones | DP104: 0 | DQ104: 0 | DR104: 0 | DS104: 0 | DT104: 0
A105: =IF(SUM(BM105)>0,SUM(MAX(A$6:A104),1,IF(SUM(A$6:$A104)>0,0,$B$1)),0) -> 0 | B105: =IF(SUM(CC105,BI105:BK105,BO105,BQ105,BT105,BP105)<>0,MAX(B$6:B104)+1,0) -> 0 | C105: ADV-S2S-02049 | D105: 14560 | E105: 14560 | G105: Software | H105: S2S | I105: Advanced S2S | J105: Advanced S2S | K105: Provision an Existing Phone - Tier F Supported Phones | L105: 0 | M105: 0 | N105: 0 | O105: 0 | P105: 0 | Q105: 20 | R105: 0 | S105: 10 | T105: 4.95 | U105: 0 | V105: 0 | W105: 0 | X105: 40 | Y105: 0 | Z105: 129.95 | AA105: 71.39 | AB105: 0 | AD105: area_phones | AE105: 1 | AF105: PROV | AG105: Existing Phones | AH105: Provision an Existing Phone - Tier F Supported Phones | AI105: Polycom IP4000 | AJ105: Not Available for SIP configurations | AK105: ADV-S2S-02008 | AL105: ADV-S2S-02008 | AM105: Existing | AO105: TRUE | AP105: Phones | AQ105: 7 | AR105: 0 | AS105: 0.5 | AT105: 0 | AU105: 0 | AV105: 0 | AW105: 5 | AX105: 0 | BA105: 129.95 | BB105: 20 | BC105: 24.95 | BD105: 49.95 | BE105: 40 | BH105: 0,1,2,3 | BI105: 0 | BJ105: 0 | BL105: 0 | BM105: 0 | BN105: 0 | BO105: =SUMIF($AK$7:$AK$175,$C105,$BN$7:$BN$175) -> 0 | BP105: =SUMIF($AL$7:$AL$175,C105,$BM$7:$BM$175) -> 0 | BQ105: 0 | BR105: 0 | BS105: 0 | BT105: =SUMIF($AK$7:$AK$175,$C105,$BK$7:$BK$175) -> 0 | BU105: 0 | BV105: 0 | BW105: 0 | BX105: 0 | BY105: 0 | BZ105: 0 | CA105: 0 | CB105: 129.95 | CC105: 0 | CD105: 0 | CE105: 0 | CF105: =VLOOKUP(AP105,'Reseller Info'!$AL$123:$AO$130,3,FALSE) -> 0 | CG105: 0 | CH105: 5 | CI105: 224.85 | CJ105: 0 | CK105: 0 | CL105: 0 | CM105: 0 | CN105: 0 | CO105: 0 | CP105: 0 | CQ105: 0 | CR105: 0 | CS105: 0 | CT105: 0 | CU105: 0 | CV105: TRUE | CW105: TRUE | CX105: TRUE | CY105: TRUE | CZ105: FALSE | DA105: FALSE | DB105: FALSE | DC105: FALSE | DD105: TRUE | DE105: 0 | DF105: 0 | DG105: 0 | DH105: 0 | DI105: 0 | DJ105: 0 | DK105: TRUE | DM105: 0 | DN105: 4 | DO105: Provision an Existing Phone - Tier F Supported Phones | DP105: 0 | DQ105: 0 | DR105: 0 | DS105: 0 | DT105: 0
A106: =IF(SUM(BM106)>0,SUM(MAX(A$6:A105),1,IF(SUM(A$6:$A105)>0,0,$B$1)),0) -> 0 | B106: =IF(SUM(CC106,BI106:BK106,BO106,BQ106,BT106,BP106)<>0,MAX(B$6:B105)+1,0) -> 0 | C106: ADV-S2S-02004 | D106: 14570 | E106: 14570 | G106: Software | H106: S2S | I106: Advanced S2S | J106: Advanced S2S | K106: Provision an Existing Phone From Competitive Carrier | L106: 0 | M106: 0 | N106: 0 | O106: 0 | P106: 0 | Q106: 20 | R106: 0 | S106: 10 | T106: 4.95 | U106: 0 | V106: 0 | W106: 0 | X106: 40 | Y106: 0 | Z106: 129.95 | AA106: 71.39 | AB106: 0 | AD106: area_phones | AE106: 1 | AF106: PROV | AG106: Existing Phones | AH106: Provision an Existing Phone From Competitive Carrier | AI106: Customer Owned Phones from competing carrier other than those currently sold or currently supported by Star2Star. | AJ106: Not Available for SIP configurations | AK106: ADV-S2S-02060 | AL106: ADV-S2S-02008 | AM106: Existing | AO106: TRUE | AP106: Phones | AQ106: 7 | AR106: 0 | AS106: 0.5 | AT106: 0 | AU106: 0 | AV106: 0 | AW106: 5 | AX106: 0 | BA106: 129.95 | BB106: 20 | BC106: 24.95 | BD106: 49.95 | BE106: 40 | BH106: 0,1,2,3 | BI106: 0 | BJ106: 0 | BL106: 0 | BM106: 0 | BN106: =IF(ref_NIMA,MAX(BI106,BJ106),IF(BK106="",MAX(BI106,BJ106),BK106)) -> 0 | BO106: 0 | BP106: 0 | BQ106: 0 | BR106: 0 | BS106: 0 | BT106: 0 | BU106: 0 | BV106: 0 | BW106: 0 | BX106: 0 | BY106: 0 | BZ106: 0 | CA106: 0 | CB106: 129.95 | CC106: 0 | CD106: =IF(OR(BQ106>0,ref_addon=TRUE),Y106,Y106*ref_demokitdisc) -> 0 | CE106: 0 | CF106: =VLOOKUP(AP106,'Reseller Info'!$AL$123:$AO$130,3,FALSE) -> 0 | CG106: 0 | CH106: 5 | CI106: 224.85 | CJ106: 0 | CK106: 0 | CL106: 0 | CM106: 0 | CN106: 0 | CO106: 0 | CP106: 0 | CQ106: 0 | CR106: 0 | CS106: 0 | CT106: 0 | CU106: 0 | CV106: =IF(ISERROR(FIND(CV$4,$BH106,1)),FALSE,TRUE) -> TRUE | CW106: TRUE | CX106: TRUE | CY106: TRUE | CZ106: FALSE | DA106: FALSE | DB106: FALSE | DC106: FALSE | DD106: TRUE | DE106: 0 | DF106: 0 | DG106: 0 | DH106: 0 | DI106: 0 | DJ106: 0 | DK106: TRUE | DM106: 0 | DN106: 4 | DO106: Provision an Existing Phone From Competitive Carrier | DP106: 0 | DQ106: 0 | DR106: 0 | DS106: 0 | DT106: 0
A107: =IF(SUM(BM107)>0,SUM(MAX(A$6:A106),1,IF(SUM(A$6:$A106)>0,0,$B$1)),0) -> 0 | B107: =IF(SUM(CC107,BI107:BK107,BO107,BQ107,BT107,BP107)<>0,MAX(B$6:B106)+1,0) -> 0 | C107: INT-S2S-01014 | D107: 15020 | G107: Hardware | H107: Audiocode | I107: Interfaces | J107: SIP Analog Interfaces | K107: Audiocodes MP 114 - 4 Port Analog Adaptor - SIP Lines | L107: 485 | M107: 310 | N107: 0 | O107: 0 | P107: 0 | Q107: 20 | R107: 0 | S107: 10 | T107: 19.8 | U107: 0 | V107: 7.5 | W107: 12.125 | X107: 72.75 | Y107: 310 | Z107: 0 | AA107: 0 | AB107: 0 | AD107: area_pbx | AE107: 4 | AF107: ACMP114 | AG107: Analog Adaptors | AH107: Audiocode MP 114 - 4 Port Analog Adaptor | AI107: (S) StarSIP Only - Not Available for StarSystem configurations | AJ107: Support 4 Analog Lines for SIP to POTS configurations | AM107: Hardware | AO107: FALSE | AP107: ATAs | AQ107: 10 | AR107: 0 | AS107: 0.05 | AT107: 0 | AU107: 485 | AV107: 30 | AW107: 39.8 | AX107: 49.95 | AY107: 7.5 | AZ107: 72.75 | BA107: 0 | BB107: 0 | BC107: 0 | BD107: 0 | BH107: 0,1,2,3 | BI107: 0 | BJ107: 0 | BL107: 0 | BM107: 0 | BN107: 0 | BO107: 0 | BP107: 0 | BQ107: 0 | BR107: 0 | BS107: 0 | BT107: 0 | BU107: 0 | BV107: 0 | BW107: 0 | BX107: 0 | BY107: 0 | BZ107: 485 | CA107: 0 | CB107: 0 | CC107: 0 | CD107: 279 | CE107: 0 | CF107: =VLOOKUP(AP107,'Reseller Info'!$AL$123:$AO$130,3,FALSE) -> 0 | CG107: 0 | CH107: 612.25 | CI107: 0 | CJ107: 0 | CK107: 0 | CL107: 0 | CM107: 0 | CN107: 0 | CO107: 0 | CP107: 0 | CQ107: 0 | CR107: 0 | CS107: 0 | CT107: 0 | CU107: 0 | CV107: TRUE | CW107: TRUE | CX107: TRUE | CY107: TRUE | CZ107: FALSE | DA107: FALSE | DB107: FALSE | DC107: FALSE | DD107: TRUE | DE107: 485 | DF107: 0 | DG107: =IF(AM107="Existing",IF($BY107<0,$BY107,0),SUM(IF($BX107<0,$BX107,0),IF($BW107<0,$BW107,0))) -> 0 | DH107: =IF(AM107="Existing",IF($BY107>0,$BY107,0),SUM(IF($BX107>0,$BX107,0),IF($BW107>0,$BW107,0))) -> 0 | DI107: 485 | DM107: 0 | DN107: 2 | DO107: Audiocode MP 114 - 4 Port Analog Adaptor | DP107: 0 | DQ107: 0 | DR107: 0 | DS107: 0 | DT107: 0
A108: =IF(SUM(BM108)>0,SUM(MAX(A$6:A107),1,IF(SUM(A$6:$A107)>0,0,$B$1)),0) -> 0 | B108: =IF(SUM(CC108,BI108:BK108,BO108,BQ108,BT108,BP108)<>0,MAX(B$6:B107)+1,0) -> 0 | C108: INT-S2S-01015 | D108: 15030 | G108: Hardware | H108: Audiocode | I108: Interfaces | J108: SIP Analog Interfaces | K108: Audiocodes MP 118 - 8 Port Analog Adaptor - SIP Lines | L108: 621 | M108: 575 | N108: 0 | O108: 0 | P108: 0 | Q108: 20 | R108: 0 | S108: 10 | T108: 39.6 | U108: 0 | V108: 7.5 | W108: 15.525 | X108: 93.15 | Y108: 415 | Z108: 0 | AA108: 0 | AB108: 0 | AD108: area_pbx | AE108: 8 | AF108: ACMP118 | AG108: Analog Adaptors | AH108: Audiocode MP 118 - 8 Port Analog Adaptor | AI108: (S) StarSIP Only - Not Available for StarSystem configurations | AJ108: Support 8 Analog Lines for SIP to POTS configurations | AM108: Hardware | AO108: FALSE | AP108: ATAs | AQ108: 10 | AR108: 0 | AS108: 0.05 | AT108: 0 | AU108: 621 | AV108: 30 | AW108: 59.6 | AX108: 49.95 | AY108: 7.5 | AZ108: 93.15 | BA108: 0 | BB108: 0 | BC108: 0 | BD108: 0 | BH108: 0,1,2,3 | BI108: 0 | BJ108: 0 | BL108: 0 | BM108: 0 | BN108: 0 | BO108: 0 | BP108: 0 | BQ108: 0 | BR108: 0 | BS108: 0 | BT108: 0 | BU108: 0 | BV108: 0 | BW108: 0 | BX108: 0 | BY108: 0 | BZ108: 621 | CA108: 0 | CB108: 0 | CC108: 0 | CD108: 373.5 | CE108: 0 | CF108: =VLOOKUP(AP108,'Reseller Info'!$AL$123:$AO$130,3,FALSE) -> 0 | CG108: 0 | CH108: 768.05 | CI108: 0 | CJ108: 0 | CK108: 0 | CL108: 0 | CM108: 0 | CN108: 0 | CO108: 0 | CP108: 0 | CQ108: 0 | CR108: 0 | CS108: 0 | CT108: 0 | CU108: 0 | CV108: TRUE | CW108: TRUE | CX108: TRUE | CY108: TRUE | CZ108: FALSE | DA108: FALSE | DB108: FALSE | DC108: FALSE | DD108: TRUE | DE108: 621 | DF108: 0 | DG108: 0 | DH108: 0 | DI108: 621 | DM108: 0 | DN108: 2 | DO108: Audiocode MP 118 - 8 Port Analog Adaptor | DP108: 0 | DQ108: 0 | DR108: 0 | DS108: 0 | DT108: 0
A109: =IF(SUM(BM109)>0,SUM(MAX(A$6:A108),1,IF(SUM(A$6:$A108)>0,0,$B$1)),0) -> 0 | B109: =IF(SUM(CC109,BI109:BK109,BO109,BQ109,BT109,BP109)<>0,MAX(B$6:B108)+1,0) -> 0 | C109: INT-S2S-01016 | D109: 15030 | G109: Hardware | H109: Audiocode | I109: Interfaces | J109: SIP Analog Interfaces | K109: Audiocodes MP 124 - 24 Port Analog Adaptor - SIP Lines | L109: 1377 | M109: 1275 | N109: 0 | O109: 0 | P109: 0 | Q109: 20 | R109: 0 | S109: 10 | T109: 118.8 | U109: 0 | V109: 7.5 | W109: 34.425 | X109: 206.55 | Y109: 925 | Z109: 0 | AA109: 0 | AB109: 0 | AD109: area_pbx | AE109: 24 | AF109: ACMP124 | AG109: Analog Adaptors | AH109: Audiocode MP 124 - 24 Port Analog Adaptor | AI109: (S) StarSIP Only - Not Available for StarSystem configurations | AJ109: Support 24 Analog Lines for SIP to POTS configurations | AM109: Hardware | AO109: FALSE | AP109: ATAs | AQ109: 10 | AR109: 0 | AS109: 0.05 | AT109: 0 | AU109: 1377 | AV109: 30 | AW109: 138.8 | AX109: 49.95 | AY109: 7.5 | AZ109: 206.55 | BA109: 0 | BB109: 0 | BC109: 0 | BD109: 0 | BH109: 0,1,2,3 | BI109: 0 | BJ109: 0 | BL109: 0 | BM109: 0 | BN109: 0 | BO109: 0 | BP109: 0 | BQ109: 0 | BR109: 0 | BS109: 0 | BT109: 0 | BU109: 0 | BV109: 0 | BW109: 0 | BX109: 0 | BY109: 0 | BZ109: 1377 | CA109: 0 | CB109: 0 | CC109: 0 | CD109: 832.5 | CE109: 0 | CF109: =VLOOKUP(AP109,'Reseller Info'!$AL$123:$AO$130,3,FALSE) -> 0 | CG109: 0 | CH109: 1603.25 | CI109: 0 | CJ109: 0 | CK109: 0 | CL109: 0 | CM109: 0 | CN109: 0 | CO109: 0 | CP109: 0 | CQ109: 0 | CR109: 0 | CS109: 0 | CT109: 0 | CU109: 0 | CV109: TRUE | CW109: TRUE | CX109: TRUE | CY109: TRUE | CZ109: FALSE | DA109: FALSE | DB109: FALSE | DC109: FALSE | DD109: TRUE | DE109: 1377 | DF109: 0 | DG109: 0 | DH109: 0 | DI109: 1377 | DM109: 0 | DN109: 2 | DO109: Audiocode MP 124 - 24 Port Analog Adaptor | DP109: 0 | DQ109: 0 | DR109: 0 | DS109: 0 | DT109: 0
A110: =IF(SUM(BM110)>0,SUM(MAX(A$6:A109),1,IF(SUM(A$6:$A109)>0,0,$B$1)),0) -> 0 | B110: =IF(SUM(CC110,BI110:BK110,BO110,BQ110,BT110,BP110)<>0,MAX(B$6:B109)+1,0) -> 0 | C110: INT-ADT-01004 | D110: 15040 | G110: Hardware | H110: Adtran | I110: Interfaces | J110: Analog Interfaces | K110: Adtran Total Access 908 - SIP Lines | L110: 1150 | M110: 999 | N110: 0 | O110: 0 | P110: 0 | Q110: 50 | R110: 0 | S110: 10 | T110: 0 | U110: 0 | V110: 7.5 | W110: 28.75 | X110: 172.5 | Y110: 794 | Z110: 0 | AA110: 0 | AB110: 0 | AD110: area_pbx | AE110: 0 | AF110: ATA908 | AG110: Analog Adaptors | AH110: Adtran Total Access 908 (2nd Gen) | AI110: (S) StarSIP-to-PRI Adapter | AJ110: Required for SIP to PRI solutions | AM110: Hardware | AO110: FALSE | AP110: ATAs | AQ110: 10 | AR110: 0 | AS110: 0.05 | AT110: 0 | AU110: 1150 | AV110: 10 | AW110: 50 | AX110: 0 | AY110: 7.5 | AZ110: 172.5 | BA110: 0 | BB110: 0 | BC110: 0 | BD110: 0 | BH110: 0,1,2,3 | BI110: 0 | BJ110: 0 | BL110: 0 | BM110: 0 | BN110: 0 | BO110: 0 | BP110: 0 | BQ110: 0 | BR110: 0 | BS110: 0 | BT110: 0 | BU110: 0 | BV110: 0 | BW110: 0 | BX110: 0 | BY110: 0 | BZ110: 1150 | CA110: 0 | CB110: 0 | CC110: 0 | CD110: 714.6 | CE110: 0 | CF110: =VLOOKUP(AP110,'Reseller Info'!$AL$123:$AO$130,3,FALSE) -> 0 | CG110: 0 | CH110: 1217.5 | CI110: 0 | CJ110: 0 | CK110: 0 | CL110: 0 | CM110: 0 | CN110: 0 | CO110: 0 | CP110: 0 | CQ110: 0 | CR110: 0 | CS110: 0 | CT110: 0 | CU110: 0 | CV110: TRUE | CW110: TRUE | CX110: TRUE | CY110: TRUE | CZ110: FALSE | DA110: FALSE | DB110: FALSE | DC110: FALSE | DD110: TRUE | DE110: 1150 | DF110: 0 | DG110: 0 | DH110: 0 | DI110: 1150 | DJ110: 0 | DK110: TRUE | DM110: 0 | DN110: 2 | DO110: Adtran Total Access 908 (2nd Gen) | DP110: 0 | DQ110: 0 | DR110: 0 | DS110: 0 | DT110: 0
A111: =IF(SUM(BM111)>0,SUM(MAX(A$6:A110),1,IF(SUM(A$6:$A110)>0,0,$B$1)),0) -> 0 | B111: =IF(SUM(CC111,BI111:BK111,BO111,BQ111,BT111,BP111)<>0,MAX(B$6:B110)+1,0) -> 0 | C111: INT-ADT-01003 | D111: 15060 | G111: Hardware | H111: Adtran | I111: Interfaces | J111: Analog Interfaces | K111: Adtran Total Access 908e inbound PRI adaptor - Monthly Rental | L111: 0 | M111: 0 | N111: 0 | O111: 0 | P111: 0 | Q111: 50 | R111: 0 | S111: 10 | T111: 0 | U111: 0 | V111: 7.5 | W111: 0 | X111: 0 | Y111: 130 | Z111: 0 | AA111: 0 | AB111: 0 | AD111: area_pbx | AE111: 0 | AF111: SATA908 | AG111: Analog Adaptors | AH111: Adtran Total Access 908 (2nd Gen) - Prepaid Months | AI111: (I) Enter Qty of 908e to be rented ($130/month) | AJ111: Not Available for SIP configurations | AK111: INT-ADT-11003 | AM111: Hardware | AO111: FALSE | AP111: ATAs | AQ111: 10 | AR111: 0 | AS111: 0.05 | AT111: 0 | AU111: 0 | AV111: 10 | AW111: 50 | AX111: 0 | AY111: 7.5 | AZ111: 0 | BA111: 0 | BB111: 0 | BC111: 0 | BD111: 0 | BH111: 0,1,2,3 | BI111: 0 | BJ111: 0 | BL111: 0 | BM111: 0 | BN111: 0 | BO111: 0 | BP111: 0 | BQ111: 0 | BR111: 0 | BS111: 0 | BT111: 0 | BU111: 0 | BV111: 0 | BW111: 0 | BX111: 0 | BY111: 0 | BZ111: 0 | CA111: 0 | CB111: 0 | CC111: 0 | CD111: 117 | CE111: 0 | CF111: =VLOOKUP(AP111,'Reseller Info'!$AL$123:$AO$130,3,FALSE) -> 0 | CG111: 0 | CH111: 67.5 | CI111: 0 | CJ111: 0 | CK111: 0 | CL111: 0 | CM111: 0 | CN111: 0 | CO111: 0 | CP111: 0 | CQ111: 0 | CR111: 0 | CS111: 0 | CT111: 0 | CU111: 0 | CV111: TRUE | CW111: TRUE | CX111: TRUE | CY111: TRUE | CZ111: FALSE | DA111: FALSE | DB111: FALSE | DC111: FALSE | DD111: TRUE | DE111: 0 | DF111: 0 | DG111: 0 | DH111: 0 | DI111: 0 | DJ111: 0 | DK111: TRUE | DM111: 0 | DN111: 2 | DO111: Adtran Total Access 908 (2nd Gen) - Prepaid Months | DP111: 0 | DQ111: 0 | DR111: 0 | DS111: 0 | DT111: 0
A112: =IF(SUM(BM112)>0,SUM(MAX(A$6:A111),1,IF(SUM(A$6:$A111)>0,0,$B$1)),0) -> 0 | B112: =IF(SUM(CC112,BI112:BK112,BO112,BQ112,BT112,BP112)<>0,MAX(B$6:B111)+1,0) -> 0 | C112: INT-ADT-01002 | D112: 15070 | G112: Hardware | H112: Adtran | I112: Interfaces | J112: Analog Interfaces | K112: Adtran Total Access 908e inbound PRI adaptor | L112: 2320 | M112: 1999 | N112: 0 | O112: 0 | P112: 0 | Q112: 50 | R112: 0 | S112: 10 | T112: 0 | U112: 0 | V112: 7.5 | W112: 58 | X112: 348 | Y112: 1346 | Z112: 0 | AA112: 0 | AB112: 0 | AD112: area_pbx | AE112: 0 | AF112: ATA908E | AG112: Analog Adaptors | AH112: Adtran Total Access 908e inbound PRI adaptor | AI112: (I) Enter Qty of 908e to be purchased outright | AJ112: Not Available for SIP configurations | AM112: Hardware | AO112: FALSE | AP112: ATAs | AQ112: 10 | AR112: 0 | AS112: 0.05 | AT112: 0 | AU112: 2320 | AV112: 10 | AW112: 50 | AX112: 0 | AY112: 7.5 | AZ112: 348 | BA112: 0 | BB112: 0 | BC112: 0 | BD112: 0 | BH112: 0,1,2,3 | BI112: 0 | BJ112: 0 | BL112: 0 | BM112: 0 | BN112: 0 | BO112: 0 | BP112: 0 | BQ112: 0 | BR112: 0 | BS112: 0 | BT112: 0 | BU112: 0 | BV112: 0 | BW112: 0 | BX112: 0 | BY112: 0 | BZ112: 2320 | CA112: 0 | CB112: 0 | CC112: 0 | CD112: 1211.4 | CE112: 0 | CF112: =VLOOKUP(AP112,'Reseller Info'!$AL$123:$AO$130,3,FALSE) -> 0 | CG112: 0 | CH112: 2387.5 | CI112: 0 | CJ112: 0 | CK112: 0 | CL112: 0 | CM112: 0 | CN112: 0 | CO112: 0 | CP112: 0 | CQ112: 0 | CR112: 0 | CS112: 0 | CT112: 0 | CU112: 0 | CV112: TRUE | CW112: TRUE | CX112: TRUE | CY112: TRUE | CZ112: FALSE | DA112: FALSE | DB112: FALSE | DC112: FALSE | DD112: TRUE | DE112: 2320 | DF112: 0 | DG112: 0 | DH112: 0 | DI112: 2320 | DJ112: 0 | DK112: TRUE | DM112: 0 | DN112: 2 | DO112: Adtran Total Access 908e inbound PRI adaptor | DP112: 0 | DQ112: 0 | DR112: 0 | DS112: 0 | DT112: 0
A113: =IF(SUM(BM113)>0,SUM(MAX(A$6:A112),1,IF(SUM(A$6:$A112)>0,0,$B$1)),0) -> 0 | B113: =IF(SUM(CC113,BI113:BK113,BO113,BQ113,BT113,BP113)<>0,MAX(B$6:B112)+1,0) -> 0 | C113: INT-SPA-00001 | D113: 15110 | G113: Hardware | H113: Cisco | I113: Interfaces | J113: Analog Phone Adaptors | K113: Cisco SPA 112 ATA (2 FXS) | L113: 65 | M113: 55 | O113: 0 | P113: 0 | Q113: 20 | R113: 0 | S113: 10 | T113: 9.9 | U113: 0 | V113: 7.5 | W113: 1.625 | X113: 40 | Z113: 0 | AA113: 0 | AB113: 0 | AD113: area_pbx | AE113: 2 | AF113: SPA112 | AG113: Analog Adaptors | AH113: Cisco SPA112 ATA 2 Port Fax/ Analog Telephone device | AI113: (A) (F) Supports 2 Analog/Fax Extensions - can be configured to support voice, fax or combination | AJ113: Supports 2 Analog/Fax Extensions - can be configured to support voice, fax or combination | AM113: Hardware | AO113: FALSE | AP113: ATAs | AQ113: 10 | AR113: 0 | AS113: 0.05 | AU113: 65 | AV113: 30 | AW113: 29.9 | AX113: 49.95 | AY113: 7.5 | AZ113: 40 | BA113: 0 | BB113: 0 | BC113: 0 | BD113: 0 | BH113: 0,1,2,3 | BI113: 0 | BJ113: 0 | BL113: 0 | BM113: 0 | BN113: 0 | BO113: 0 | BP113: 0 | BQ113: 0 | BR113: 0 | BS113: 0 | BT113: 0 | BU113: 0 | BV113: 0 | BW113: 0 | BX113: 0 | BY113: 0 | BZ113: 65 | CA113: 0 | CB113: 0 | CC113: 0 | CD113: 0 | CE113: 0 | CF113: =VLOOKUP(AP113,'Reseller Info'!$AL$123:$AO$130,3,FALSE) -> 0 | CG113: 0 | CH113: 182.35 | CI113: 0 | CJ113: 0 | CK113: 0 | CL113: 0 | CM113: 0 | CN113: 0 | CO113: 0 | CP113: 0 | CQ113: 0 | CR113: 0 | CS113: 0 | CT113: 0 | CU113: 0 | CV113: TRUE | CW113: TRUE | CX113: TRUE | CY113: TRUE | CZ113: FALSE | DA113: FALSE | DB113: FALSE | DC113: FALSE | DD113: TRUE | DE113: 65 | DF113: 0 | DG113: 0 | DH113: 0 | DI113: 65 | DJ113: 0 | DK113: TRUE | DM113: 0 | DN113: 2 | DO113: Cisco SPA112 ATA 2 Port Fax/ Analog Telephone device | DP113: 0 | DQ113: 0 | DR113: 0 | DS113: 0 | DT113: 0
A114: =IF(SUM(BM114)>0,SUM(MAX(A$6:A113),1,IF(SUM(A$6:$A113)>0,0,$B$1)),0) -> 0 | B114: =IF(SUM(CC114,BI114:BK114,BO114,BQ114,BT114,BP114)<>0,MAX(B$6:B113)+1,0) -> 0 | C114: INT-S2S-01004 | D114: 15120 | G114: Hardware | H114: Cisco | I114: Interfaces | J114: Analog Phone Adaptors | K114: Cisco SPA 3102 ATA (1 FXS / 1 FXO + Switch Port) | L114: 120 | M114: 81.95 | N114: 0 | O114: 0 | P114: 0 | Q114: 20 | R114: 0 | S114: 10 | T114: 4.95 | U114: 0 | V114: 7.5 | W114: 3 | X114: 40 | Y114: 60 | Z114: 0 | AA114: 0 | AB114: 0 | AD114: area_pbx | AE114: 1 | AF114: SPA3102 | AG114: Analog Adaptors | AH114: SPA 3102 Analog Adaptor (1 FXS Extension and 1 FXO Analog Trunk) | AI114: (A) (F) (I) Supports 1 Analog/Fax Extension and 1 Analog Line Failover - can be configured to support voice or fax. Additional switch port for connecting another network device. | AJ114: Supports 1 Analog/Fax Extension and 1 Analog Line Failover - can be configured to support voice or fax. Additional switch port for connecting another network device. | AM114: Hardware | AO114: FALSE | AP114: ATAs | AQ114: 10 | AR114: 0 | AS114: 0.05 | AT114: 0 | AU114: 120 | AV114: 30 | AW114: 24.95 | AX114: 49.95 | AY114: 7.5 | AZ114: 40 | BA114: 0 | BB114: 0 | BC114: 0 | BD114: 0 | BH114: 0,1,2,3 | BI114: 0 | BJ114: 0 | BL114: 0 | BM114: 0 | BN114: 0 | BO114: 0 | BP114: 0 | BQ114: 0 | BR114: 0 | BS114: 0 | BT114: 0 | BU114: 0 | BV114: 0 | BW114: 0 | BX114: 0 | BY114: 0 | BZ114: 120 | CA114: 0 | CB114: 0 | CC114: 0 | CD114: 54 | CE114: 0 | CF114: =VLOOKUP(AP114,'Reseller Info'!$AL$123:$AO$130,3,FALSE) -> 0 | CG114: 0 | CH114: 232.4 | CI114: 0 | CJ114: 0 | CK114: 0 | CL114: 0 | CM114: 0 | CN114: 0 | CO114: 0 | CP114: 0 | CQ114: 0 | CR114: 0 | CS114: 0 | CT114: 0 | CU114: 0 | CV114: TRUE | CW114: TRUE | CX114: TRUE | CY114: TRUE | CZ114: FALSE | DA114: FALSE | DB114: FALSE | DC114: FALSE | DD114: TRUE | DE114: 120 | DF114: 0 | DG114: 0 | DH114: 0 | DI114: 120 | DJ114: 0 | DK114: TRUE | DM114: 0 | DN114: 2 | DO114: SPA 3102 Analog Adaptor (1 FXS Extension and 1 FXO Analog Trunk) | DP114: 0 | DQ114: 0 | DR114: 0 | DS114: 0 | DT114: 0
A115: =IF(SUM(BM115)>0,SUM(MAX(A$6:A114),1,IF(SUM(A$6:$A114)>0,0,$B$1)),0) -> 0 | B115: =IF(SUM(CC115,BI115:BK115,BO115,BQ115,BT115,BP115)<>0,MAX(B$6:B114)+1,0) -> 0 | C115: INT-SPA-00005 | D115: 15130 | G115: Hardware | H115: Cisco | I115: Interfaces | J115: Analog Phone Adaptors | K115: Cisco SPA 232D Analog Adaptor (1 FXS Extension and 1 FXO Analog Trunk) | L115: 130 | M115: 100 | N115: 0 | O115: 0 | P115: 0 | Q115: 20 | R115: 0 | S115: 10 | T115: 4.95 | U115: 0 | V115: 7.5 | W115: 3.25 | X115: 40 | Z115: 0 | AA115: 0 | AB115: 0 | AD115: area_pbx | AE115: 1 | AF115: SPA232 | AG115: Analog Adaptors | AH115: Cisco SPA 232D Analog Adaptor (1 FXS Extension and 1 FXO Analog Trunk) | AI115: (A) (F) 1 Port Analog Line Backup And/Or Analog Extension | AJ115: 1 Port Analog Line Backup And/Or Analog Extension | AM115: Hardware | AO115: FALSE | AP115: ATAs | AQ115: 10 | AR115: 0 | AS115: 0.05 | AU115: 130 | AV115: 30 | AW115: 24.95 | AX115: 49.95 | AY115: 7.5 | AZ115: 40 | BA115: 0 | BB115: 0 | BC115: 0 | BD115: 0 | BH115: 0,1,2,3 | BI115: 0 | BJ115: 0 | BL115: 0 | BM115: 0 | BN115: 0 | BO115: 0 | BP115: 0 | BQ115: 0 | BR115: 0 | BS115: 0 | BT115: 0 | BU115: 0 | BV115: 0 | BW115: 0 | BX115: 0 | BY115: 0 | BZ115: 130 | CA115: 0 | CB115: 0 | CC115: 0 | CD115: 0 | CE115: 0 | CF115: =VLOOKUP(AP115,'Reseller Info'!$AL$123:$AO$130,3,FALSE) -> 0 | CG115: 0 | CH115: 242.4 | CI115: 0 | CJ115: 0 | CK115: 0 | CL115: 0 | CM115: 0 | CN115: 0 | CO115: 0 | CP115: 0 | CQ115: 0 | CR115: 0 | CS115: 0 | CT115: 0 | CU115: 0 | CV115: TRUE | CW115: TRUE | CX115: TRUE | CY115: TRUE | CZ115: FALSE | DA115: FALSE | DB115: FALSE | DC115: FALSE | DD115: TRUE | DE115: 130 | DF115: 0 | DG115: 0 | DH115: 0 | DI115: 130 | DJ115: 0 | DK115: TRUE | DM115: 0 | DN115: 2 | DO115: Cisco SPA 232D Analog Adaptor (1 FXS Extension and 1 FXO Analog Trunk) | DP115: 0 | DQ115: 0 | DR115: 0 | DS115: 0 | DT115: 0
A116: =IF(SUM(BM116)>0,SUM(MAX(A$6:A115),1,IF(SUM(A$6:$A115)>0,0,$B$1)),0) -> 0 | B116: =IF(SUM(CC116,BI116:BK116,BO116,BQ116,BT116,BP116)<>0,MAX(B$6:B115)+1,0) -> 0 | C116: INT-CIS-01001 | D116: 15140 | G116: Hardware | H116: Cisco | I116: Interfaces | J116: Analog Phone Adaptors | K116: SPA 8000 8-Port IP Telephony Gateway | L116: 245 | M116: 212.5 | N116: 0 | O116: 0 | P116: 0 | Q116: 20 | R116: 0 | S116: 10 | T116: 39.6 | U116: 0 | V116: 7.5 | W116: 6.125 | X116: 40 | Y116: 212.5 | Z116: 0 | AA116: 0 | AB116: 0 | AD116: area_pbx | AE116: 8 | AF116: SPA8000 | AG116: Analog Adaptors | AH116: Cisco SPA8000 ATA 8 Port Fax/ Analog Telephone device | AI116: (A) (F) (S) Supports 8 Analog/Fax Extensions - can be configured to support voice, fax or combination. | AJ116: Supports 8 Analog Extensions (fax, phones or a combination of both) | AM116: Hardware | AO116: FALSE | AP116: ATAs | AQ116: 10 | AR116: 0 | AS116: 0.05 | AT116: 0 | AU116: 245 | AV116: 30 | AW116: 59.6 | AX116: 49.95 | AY116: 7.5 | AZ116: 40 | BA116: 0 | BB116: 0 | BC116: 0 | BD116: 0 | BH116: 0,1,2,3 | BI116: 0 | BJ116: 0 | BL116: 0 | BM116: 0 | BN116: 0 | BO116: 0 | BP116: 0 | BQ116: 0 | BR116: 0 | BS116: 0 | BT116: 0 | BU116: 0 | BV116: 0 | BW116: 0 | BX116: 0 | BY116: 0 | BZ116: 245 | CA116: 0 | CB116: 0 | CC116: 0 | CD116: 191.25 | CE116: 0 | CF116: =VLOOKUP(AP116,'Reseller Info'!$AL$123:$AO$130,3,FALSE) -> 0 | CG116: 0 | CH116: 392.05 | CI116: 0 | CJ116: 0 | CK116: 0 | CL116: 0 | CM116: 0 | CN116: 0 | CO116: 0 | CP116: 0 | CQ116: 0 | CR116: 0 | CS116: 0 | CT116: 0 | CU116: 0 | CV116: TRUE | CW116: TRUE | CX116: TRUE | CY116: TRUE | CZ116: FALSE | DA116: FALSE | DB116: FALSE | DC116: FALSE | DD116: TRUE | DE116: 245 | DF116: 0 | DG116: 0 | DH116: 0 | DI116: 245 | DJ116: 0 | DK116: TRUE | DM116: 0 | DN116: 2 | DO116: Cisco SPA8000 ATA 8 Port Fax/ Analog Telephone device | DP116: 0 | DQ116: 0 | DR116: 0 | DS116: 0 | DT116: 0
A117: =IF(SUM(BM117)>0,SUM(MAX(A$6:A116),1,IF(SUM(A$6:$A116)>0,0,$B$1)),0) -> 0 | B117: =IF(SUM(CC117,BI117:BK117,BO117,BQ117,BT117,BP117)<>0,MAX(B$6:B116)+1,0) -> 0 | C117: INT-CIS-01002 | D117: 15150 | G117: Hardware | H117: Cisco | I117: Interfaces | J117: Analog Phone Adaptors | K117: SPA 8800 IP Telephony Gateway (4 FXS Extension and 4 FXO Analog Trunks) | L117: 495 | M117: 425 | N117: 0 | O117: 0 | P117: 0 | Q117: 20 | R117: 0 | S117: 10 | T117: 19.8 | U117: 0 | V117: 7.5 | W117: 12.375 | X117: 74.25 | Y117: 425 | Z117: 0 | AA117: 0 | AB117: 0 | AD117: area_pbx | AE117: 4 | AF117: SPA8800 | AG117: Analog Adaptors | AH117: Cisco SPA8800 ATA (4 FXS Extension and 4 FXO Analog Trunk) | AI117: (A) (F) (S) Supports 4 Analog/Fax Extensions and 4 Analog Line Failover - can be configured to support voice, fax or combination | AJ117: Supports 4 Analog/Fax Extensions and 4 Analog Line Failover - can be configured to support voice, fax or combination | AM117: Hardware | AO117: FALSE | AP117: ATAs | AQ117: 10 | AR117: 0 | AS117: 0.05 | AT117: 0 | AU117: 495 | AV117: 30 | AW117: 39.8 | AX117: 49.95 | AY117: 7.5 | AZ117: 74.25 | BA117: 0 | BB117: 0 | BC117: 0 | BD117: 0 | BH117: 0,1,2,3 | BI117: 0 | BJ117: 0 | BL117: 0 | BM117: 0 | BN117: 0 | BO117: 0 | BP117: 0 | BQ117: 0 | BR117: 0 | BS117: 0 | BT117: 0 | BU117: 0 | BV117: 0 | BW117: 0 | BX117: 0 | BY117: 0 | BZ117: 495 | CA117: 0 | CB117: 0 | CC117: 0 | CD117: 382.5 | CE117: 0 | CF117: =VLOOKUP(AP117,'Reseller Info'!$AL$123:$AO$130,3,FALSE) -> 0 | CG117: 0 | CH117: 622.25 | CI117: 0 | CJ117: 0 | CK117: 0 | CL117: 0 | CM117: 0 | CN117: 0 | CO117: 0 | CP117: 0 | CQ117: 0 | CR117: 0 | CS117: 0 | CT117: 0 | CU117: 0 | CV117: TRUE | CW117: TRUE | CX117: TRUE | CY117: TRUE | CZ117: FALSE | DA117: FALSE | DB117: FALSE | DC117: FALSE | DD117: TRUE | DE117: 495 | DF117: 0 | DG117: 0 | DH117: 0 | DI117: 495 | DJ117: 0 | DK117: TRUE | DM117: 0 | DN117: 2 | DO117: Cisco SPA8800 ATA (4 FXS Extension and 4 FXO Analog Trunk) | DP117: 0 | DQ117: 0 | DR117: 0 | DS117: 0 | DT117: 0
A118: =IF(SUM(BM118)>0,SUM(MAX(A$6:A117),1,IF(SUM(A$6:$A117)>0,0,$B$1)),0) -> 0 | B118: =IF(SUM(CC118,BI118:BK118,BO118,BQ118,BT118,BP118)<>0,MAX(B$6:B117)+1,0) -> 0 | C118: INT-S2S-01006 | D118: 15160 | G118: Hardware | H118: Grandstream | I118: Interfaces | J118: Analog Phone Adaptors | K118: Grandstream GXW-4004 4 Port Analog Adaptor - Analog Phones | L118: 165 | M118: 137.5 | N118: 0 | O118: 0 | P118: 0 | Q118: 20 | R118: 0 | S118: 10 | T118: 19.8 | U118: 0 | V118: 7.5 | W118: 4.125 | X118: 40 | Y118: 104.5 | Z118: 0 | AA118: 0 | AB118: 0 | AD118: area_pbx | AE118: 4 | AF118: GGXW4004 | AG118: Analog Adaptors | AH118: 4 Port Analog Adaptor - Analog Phones | AI118: (A) Support 4 Analog Extensions (phones) | AJ118: Support 4 Analog Extensions (phones) | AM118: Hardware | AO118: FALSE | AP118: ATAs | AQ118: 10 | AR118: 0 | AS118: 0.05 | AT118: 0 | AU118: 165 | AV118: 30 | AW118: 39.8 | AX118: 49.95 | AY118: 7.5 | AZ118: 40 | BA118: 0 | BB118: 0 | BC118: 0 | BD118: 0 | BH118: 0,1,2,3 | BI118: 0 | BJ118: 0 | BL118: 0 | BM118: 0 | BN118: 0 | BO118: 0 | BP118: 0 | BQ118: 0 | BR118: 0 | BS118: 0 | BT118: 0 | BU118: 0 | BV118: 0 | BW118: 0 | BX118: 0 | BY118: 0 | BZ118: 165 | CA118: 0 | CB118: 0 | CC118: 0 | CD118: 94.05 | CE118: 0 | CF118: =VLOOKUP(AP118,'Reseller Info'!$AL$123:$AO$130,3,FALSE) -> 0 | CG118: 0 | CH118: 292.25 | CI118: 0 | CJ118: 0 | CK118: 0 | CL118: 0 | CM118: 0 | CN118: 0 | CO118: 0 | CP118: 0 | CQ118: 0 | CR118: 0 | CS118: 0 | CT118: 0 | CU118: 0 | CV118: TRUE | CW118: TRUE | CX118: TRUE | CY118: TRUE | CZ118: FALSE | DA118: FALSE | DB118: FALSE | DC118: FALSE | DD118: TRUE | DE118: 165 | DF118: 0 | DG118: 0 | DH118: 0 | DI118: 165 | DJ118: =IF(ref_NIMA,"",IFERROR(VLOOKUP($C118,IF(AD118="area_pbx",area_pbx,area_phones),7,FALSE),"")) -> 0 | DK118: =IF(DJ118="","",ISBLANK(VLOOKUP($C118,IF(AD118="area_pbx",area_pbx,area_phones),7,FALSE))) -> TRUE | DM118: 0 | DN118: 2 | DO118: 4 Port Analog Adaptor - Analog Phones | DP118: 0 | DQ118: 0 | DR118: 0 | DS118: 0 | DT118: 0
A119: =IF(SUM(BM119)>0,SUM(MAX(A$6:A118),1,IF(SUM(A$6:$A118)>0,0,$B$1)),0) -> 0 | B119: =IF(SUM(CC119,BI119:BK119,BO119,BQ119,BT119,BP119)<>0,MAX(B$6:B118)+1,0) -> 0 | C119: INT-S2S-01007 | D119: 15170 | G119: Hardware | H119: Grandstream | I119: Interfaces | J119: Analog Phone Adaptors | K119: Grandstream GXW-4008 8 Port Analog Adaptor - Analog Phones | L119: 275 | M119: 229 | N119: 0 | O119: 0 | P119: 0 | Q119: 20 | R119: 0 | S119: 10 | T119: 39.6 | U119: 0 | V119: 7.5 | W119: 6.875 | X119: 41.25 | Y119: 166.96 | Z119: 0 | AA119: 0 | AB119: 0 | AD119: area_pbx | AE119: 8 | AF119: GGXW4008 | AG119: Analog Adaptors | AH119: 8 Port Analog Adaptor - Analog Phones | AI119: (A) Support 8 Analog Extensions (phones) | AJ119: Support 8 Analog Extensions (phones) | AM119: Hardware | AO119: FALSE | AP119: ATAs | AQ119: 10 | AR119: 0 | AS119: 0.05 | AT119: 0 | AU119: 275 | AV119: 30 | AW119: 59.6 | AX119: 49.95 | AY119: 7.5 | AZ119: 41.25 | BA119: 0 | BB119: 0 | BC119: 0 | BD119: 0 | BH119: 0,1,2,3 | BI119: 0 | BJ119: 0 | BL119: 0 | BM119: 0 | BN119: 0 | BO119: 0 | BP119: 0 | BQ119: 0 | BR119: 0 | BS119: 0 | BT119: 0 | BU119: 0 | BV119: 0 | BW119: 0 | BX119: 0 | BY119: 0 | BZ119: 275 | CA119: 0 | CB119: 0 | CC119: 0 | CD119: 150.264 | CE119: 0 | CF119: =VLOOKUP(AP119,'Reseller Info'!$AL$123:$AO$130,3,FALSE) -> 0 | CG119: 0 | CH119: 422.05 | CI119: 0 | CJ119: 0 | CK119: 0 | CL119: 0 | CM119: 0 | CN119: 0 | CO119: 0 | CP119: 0 | CQ119: 0 | CR119: 0 | CS119: 0 | CT119: 0 | CU119: 0 | CV119: TRUE | CW119: TRUE | CX119: TRUE | CY119: TRUE | CZ119: FALSE | DA119: FALSE | DB119: FALSE | DC119: FALSE | DD119: TRUE | DE119: 275 | DF119: 0 | DG119: 0 | DH119: 0 | DI119: 275 | DJ119: 0 | DK119: TRUE | DM119: 0 | DN119: 2 | DO119: 8 Port Analog Adaptor - Analog Phones | DP119: 0 | DQ119: 0 | DR119: 0 | DS119: 0 | DT119: 0
A120: =IF(SUM(BM120)>0,SUM(MAX(A$6:A119),1,IF(SUM(A$6:$A119)>0,0,$B$1)),0) -> 0 | B120: =IF(SUM(CC120,BI120:BK120,BO120,BQ120,BT120,BP120)<>0,MAX(B$6:B119)+1,0) -> 0 | C120: INT-S2S-01008 | D120: 15180 | G120: Hardware | H120: Grandstream | I120: Interfaces | J120: Analog Phone Adaptors | K120: Grandstream GXW-4024 24 Port Analog Adaptor - Analog Phones | L120: 1425 | M120: 925 | N120: 0 | O120: 0 | P120: 0 | Q120: 20 | R120: 0 | S120: 10 | T120: 118.8 | U120: 0 | V120: 7.5 | W120: 35.625 | X120: 213.75 | Y120: 712.5 | Z120: 0 | AA120: 0 | AB120: 0 | AD120: area_pbx | AE120: 24 | AF120: GGXW4024 | AG120: Analog Adaptors | AH120: 24 Port Analog Adaptor - Analog Phones | AI120: (A) Support 24 Analog Extensions (phones) | AJ120: Not Available for SIP configurations | AM120: Hardware | AO120: FALSE | AP120: ATAs | AQ120: 10 | AR120: 0 | AS120: 0.05 | AT120: 0 | AU120: 1425 | AV120: 30 | AW120: 138.8 | AX120: 49.95 | AY120: 7.5 | AZ120: 213.75 | BA120: 0 | BB120: 0 | BC120: 0 | BD120: 0 | BH120: 0,1,2,3 | BI120: 0 | BJ120: 0 | BL120: 0 | BM120: 0 | BN120: 0 | BO120: 0 | BP120: 0 | BQ120: 0 | BR120: 0 | BS120: 0 | BT120: 0 | BU120: 0 | BV120: 0 | BW120: 0 | BX120: 0 | BY120: 0 | BZ120: 1425 | CA120: 0 | CB120: 0 | CC120: 0 | CD120: 641.25 | CE120: 0 | CF120: =VLOOKUP(AP120,'Reseller Info'!$AL$123:$AO$130,3,FALSE) -> 0 | CG120: 0 | CH120: 1651.25 | CI120: 0 | CJ120: 0 | CK120: 0 | CL120: 0 | CM120: 0 | CN120: 0 | CO120: 0 | CP120: 0 | CQ120: 0 | CR120: 0 | CS120: 0 | CT120: 0 | CU120: 0 | CV120: TRUE | CW120: TRUE | CX120: TRUE | CY120: TRUE | CZ120: FALSE | DA120: FALSE | DB120: FALSE | DC120: FALSE | DD120: TRUE | DE120: 1425 | DF120: 0 | DG120: 0 | DH120: 0 | DI120: 1425 | DJ120: 0 | DK120: TRUE | DM120: 0 | DN120: 2 | DO120: 24 Port Analog Adaptor - Analog Phones | DP120: 0 | DQ120: 0 | DR120: 0 | DS120: 0 | DT120: 0
A121: =IF(SUM(BM121)>0,SUM(MAX(A$6:A120),1,IF(SUM(A$6:$A120)>0,0,$B$1)),0) -> 0 | B121: =IF(SUM(CC121,BI121:BK121,BO121,BQ121,BT121,BP121)<>0,MAX(B$6:B120)+1,0) -> 0 | C121: INT-S2S-01017 | D121: 15190 | G121: Hardware | H121: Grandstream | I121: Interfaces | J121: Analog Phone Adaptors | K121: Grandstream HT-502 Retail Configuration - 1 Analog Phone and 1 StarFax Classic | L121: 59 | M121: 49 | N121: 0 | O121: 0 | P121: 0 | Q121: 20 | R121: 0 | S121: 10 | T121: 9.9 | U121: 0 | V121: 7.5 | W121: 1.475 | X121: 40 | Y121: 49 | Z121: 0 | AA121: 0 | AB121: 0 | AD121: area_pbx | AE121: 2 | AF121: GHT502 | AG121: Analog Adaptors | AH121: 2 Port Analog Adaptor - Grandstream HT 502 | AI121: (A) Support 2 Analog Extensions (phones) | AJ121: Not Available for SIP configurations | AM121: Hardware | AO121: FALSE | AP121: ATAs | AQ121: 10 | AR121: 0 | AS121: 0.05 | AT121: 0 | AU121: 59 | AV121: 30 | AW121: 29.9 | AX121: 49.95 | AY121: 7.5 | AZ121: 40 | BA121: 0 | BB121: 0 | BC121: 0 | BD121: 0 | BH121: 0,1,2,3 | BI121: 0 | BJ121: 0 | BL121: 0 | BM121: 0 | BN121: 0 | BO121: 0 | BP121: 0 | BQ121: 0 | BR121: 0 | BS121: 0 | BT121: 0 | BU121: 0 | BV121: 0 | BW121: 0 | BX121: 0 | BY121: 0 | BZ121: 59 | CA121: 0 | CB121: 0 | CC121: 0 | CD121: 44.1 | CE121: 0 | CF121: =VLOOKUP(AP121,'Reseller Info'!$AL$123:$AO$130,3,FALSE) -> 0 | CG121: 0 | CH121: 176.35 | CI121: 0 | CJ121: 0 | CK121: 0 | CL121: 0 | CM121: 0 | CN121: 0 | CO121: 0 | CP121: 0 | CQ121: 0 | CR121: 0 | CS121: 0 | CT121: 0 | CU121: 0 | CV121: =IF(ISERROR(FIND(CV$4,$BH121,1)),FALSE,TRUE) -> TRUE | CW121: =IF(ISERROR(FIND(CW$4,$BH121,1)),FALSE,TRUE) -> TRUE | CX121: =IF(ISERROR(FIND(CX$4,$BH121,1)),FALSE,TRUE) -> TRUE | CY121: =IF(ISERROR(FIND(CY$4,$BH121,1)),FALSE,TRUE) -> TRUE | CZ121: =IF(ISERROR(FIND(CZ$4,$BH121,1)),FALSE,TRUE) -> FALSE | DA121: =IF(ISERROR(FIND(DA$4,$BH121,1)),FALSE,TRUE) -> FALSE | DB121: FALSE | DC121: FALSE | DD121: TRUE | DE121: 59 | DF121: 0 | DG121: 0 | DH121: 0 | DI121: 59 | DJ121: 0 | DK121: TRUE | DM121: 0 | DN121: 2 | DO121: 2 Port Analog Adaptor - Grandstream HT 502 | DP121: 0 | DQ121: 0 | DR121: 0 | DS121: 0 | DT121: 0
A122: =IF(SUM(BM122)>0,SUM(MAX(A$6:A121),1,IF(SUM(A$6:$A121)>0,0,$B$1)),0) -> 0 | B122: =IF(SUM(CC122,BI122:BK122,BO122,BQ122,BT122,BP122)<>0,MAX(B$6:B121)+1,0) -> 0 | C122: SWI-NET-01002 | D122: 16010 | F122: 12 | G122: Hardware | H122: Netgear | I122: Switches | J122: Switches | K122: Netgear FS726TP Network Switch | L122: 340 | M122: 239 | N122: 0 | O122: 0 | P122: 0 | Q122: 50 | R122: 0 | S122: 10 | T122: 0 | U122: 0 | V122: 7.5 | W122: 8.5 | X122: 51 | Y122: 233.73 | Z122: 0 | AA122: 0 | AB122: 0 | AD122: area_pbx | AE122: 0 | AF122: NFS72612 | AG122: Network and Power Backup Hardware | AH122: Netgear FS726tp 24 Port 10/100 SmartSwitch 12 PoE | AI122: 12x 10/100 POE + 12x 10/100 Non-POE + 2x GigE + 2x SFP Uplink | AJ122: SIP Solutions require 1 managed switch | AM122: Hardware | AO122: FALSE | AP122: Switches | AQ122: 11 | AR122: 12 | AS122: 0.05 | AT122: 0 | AU122: 340 | AV122: 10 | AW122: 50 | AX122: 0 | AY122: 7.5 | AZ122: 51 | BA122: 0 | BB122: 0 | BC122: 0 | BD122: 0 | BH122: 1,3,8 | BI122: =IFERROR(VLOOKUP($C122,dashqtys,5,FALSE),0) -> 0 | BJ122: =IFERROR(VLOOKUP($C122,dashqtys,2,FALSE),0) -> 0 | BL122: 0 | BM122: 0 | BN122: =IF(ref_NIMA,MAX(BI122,BJ122),IF(BK122="",MAX(BI122,BJ122),BK122)) -> 0 | BO122: 0 | BP122: 0 | BQ122: =IF(OR(JB_1972=FALSE,DL122="",AM122="Existing"),IF(BK122="",IF(ref_locid=20,BF122,MAX(BO122,BN122,BG122,BP122)),BK122),DL122) -> 0 | BR122: 0 | BS122: 0 | BT122: 0 | BU122: 0 | BV122: 0 | BW122: 0 | BX122: 0 | BY122: 0 | BZ122: 340 | CA122: 0 | CB122: 0 | CC122: =IFERROR(VLOOKUP($C122,dashqtys,4,FALSE),0) -> 0 | CD122: =IF(OR(BQ122>0,ref_addon=TRUE),Y122,Y122*ref_demokitdisc) -> 210.357 | CE122: =IFERROR(BQ122*SUM(N122,AN122),0) -> 0 | CF122: =VLOOKUP(AP122,'Reseller Info'!$AL$123:$AO$130,3,FALSE) -> 0 | CG122: 0 | CH122: 407.5 | CI122: 0 | CJ122: =MAX(CK122:CL122) -> 0 | CK122: 0 | CL122: =IF(OR(CW122=TRUE,DA122=TRUE),$BQ122,0) -> 0 | CM122: 0 | CN122: =IF(OR(CW122=TRUE),$BQ122,0) -> 0 | CO122: =MAX(CP122:CQ122) -> 0 | CP122: 0 | CQ122: =IF(OR(CY122=TRUE,DC122=TRUE),$BQ122,0) -> 0 | CR122: 0 | CS122: =IF(OR(CY122=TRUE),$BQ122,0) -> 0 | CT122: 0 | CU122: 0 | CV122: FALSE | CW122: TRUE | CX122: FALSE | CY122: TRUE | CZ122: FALSE | DA122: FALSE | DB122: FALSE | DC122: FALSE | DD122: FALSE | DE122: 340 | DF122: =IFERROR(BQ122*N122,0) -> 0 | DG122: 0 | DH122: 0 | DI122: 340 | DJ122: 0 | DK122: TRUE | DM122: 0 | DN122: 2 | DO122: Netgear FS726tp 24 Port 10/100 SmartSwitch 12 PoE | DP122: 0 | DQ122: =IFERROR(F122*BI122,0) -> 0 | DR122: 0 | DS122: =IFERROR(F122*(CJ122),0) -> 0 | DT122: 0
A123: =IF(SUM(BM123)>0,SUM(MAX(A$6:A122),1,IF(SUM(A$6:$A122)>0,0,$B$1)),0) -> 0 | B123: =IF(SUM(CC123,BI123:BK123,BO123,BQ123,BT123,BP123)<>0,MAX(B$6:B122)+1,0) -> 0 | C123: SWI-NET-01003 | D123: 16020 | F123: 24 | G123: Hardware | H123: Netgear | I123: Switches | J123: Switches | K123: Netgear FS728TP Network Switch | L123: 440 | M123: 319 | N123: 0 | O123: 0 | P123: 0 | Q123: 50 | R123: 0 | S123: 10 | T123: 0 | U123: 0 | V123: 7.5 | W123: 11 | X123: 66 | Y123: 294.66 | Z123: 0 | AA123: 0 | AB123: 0 | AD123: area_pbx | AE123: 0 | AF123: NFS72824 | AG123: Network and Power Backup Hardware | AH123: Netgear FS728tp 24 Port 10/100 SmartSwitch 24 PoE | AI123: 24x 10/100 POE + 4x GigE +2x SFP Uplink | AJ123: SIP Solutions require 1 managed switch | AM123: Hardware | AO123: FALSE | AP123: Switches | AQ123: 11 | AR123: 12 | AS123: 0.05 | AT123: 0 | AU123: 440 | AV123: 10 | AW123: 50 | AX123: 0 | AY123: 7.5 | AZ123: 66 | BA123: 0 | BB123: 0 | BC123: 0 | BD123: 0 | BH123: 1,3,8 | BI123: =IFERROR(VLOOKUP($C123,dashqtys,5,FALSE),0) -> 0 | BJ123: =IFERROR(VLOOKUP($C123,dashqtys,2,FALSE),0) -> 0 | BL123: 0 | BM123: 0 | BN123: =IF(ref_NIMA,MAX(BI123,BJ123),IF(BK123="",MAX(BI123,BJ123),BK123)) -> 0 | BO123: 0 | BP123: 0 | BQ123: =IF(OR(JB_1972=FALSE,DL123="",AM123="Existing"),IF(BK123="",IF(ref_locid=20,BF123,MAX(BO123,BN123,BG123,BP123)),BK123),DL123) -> 0 | BR123: 0 | BS123: 0 | BT123: 0 | BU123: 0 | BV123: 0 | BW123: 0 | BX123: 0 | BY123: 0 | BZ123: 440 | CA123: 0 | CB123: 0 | CC123: =IFERROR(VLOOKUP($C123,dashqtys,4,FALSE),0) -> 0 | CD123: =IF(OR(BQ123>0,ref_addon=TRUE),Y123,Y123*ref_demokitdisc) -> 265.194 | CE123: =IFERROR(BQ123*SUM(N123,AN123),0) -> 0 | CF123: =VLOOKUP(AP123,'Reseller Info'!$AL$123:$AO$130,3,FALSE) -> 0 | CG123: 0 | CH123: 507.5 | CI123: 0 | CJ123: =MAX(CK123:CL123) -> 0 | CK123: 0 | CL123: =IF(OR(CW123=TRUE,DA123=TRUE),$BQ123,0) -> 0 | CM123: 0 | CN123: =IF(OR(CW123=TRUE),$BQ123,0) -> 0 | CO123: =MAX(CP123:CQ123) -> 0 | CP123: 0 | CQ123: =IF(OR(CY123=TRUE,DC123=TRUE),$BQ123,0) -> 0 | CR123: 0 | CS123: =IF(OR(CY123=TRUE),$BQ123,0) -> 0 | CT123: 0 | CU123: 0 | CV123: FALSE | CW123: TRUE | CX123: FALSE | CY123: TRUE | CZ123: FALSE | DA123: FALSE | DB123: FALSE | DC123: FALSE | DD123: FALSE | DE123: 440 | DF123: =IFERROR(BQ123*N123,0) -> 0 | DG123: 0 | DH123: 0 | DI123: 440 | DJ123: 0 | DK123: TRUE | DM123: 0 | DN123: 2 | DO123: Netgear FS728tp 24 Port 10/100 SmartSwitch 24 PoE | DP123: 0 | DQ123: =IFERROR(F123*BI123,0) -> 0 | DR123: 0 | DS123: =IFERROR(F123*(CJ123),0) -> 0 | DT123: 0
